Workbook

Sheet Graphs
B6: Change in Cumulative Resources Relative to P45CNW- | R6: Reliability Resources
B23: Case S05-MM_ Portfolio | R23: Case P45CNW- Portfolio

Sheet Delta Reliability
C3: Coal
C4: Cumulative | D4: 2019 | E4: 2020 | F4: 2021 | G4: 2022 | H4: 2023 | I4: 2024 | J4: 2025 | K4: 2026 | L4: 2027 | M4: 2028 | N4: 2029 | O4: 2030 | P4: 2031 | Q4: 2032 | R4: 2033 | S4: 2034 | T4: 2035 | U4: 2036 | V4: 2037 | W4: 2038
C5: Coal Removed | D5: ='Data Compare Rel'!D8-'Data Base Rel'!D8 -> 0 | E5: ='Data Compare Rel'!E8-'Data Base Rel'!E8 -> 0 | F5: ='Data Compare Rel'!F8-'Data Base Rel'!F8 -> 0 | G5: ='Data Compare Rel'!G8-'Data Base Rel'!G8 -> 0 | H5: ='Data Compare Rel'!H8-'Data Base Rel'!H8 -> 0 | I5: ='Data Compare Rel'!I8-'Data Base Rel'!I8 -> 0 | J5: ='Data Compare Rel'!J8-'Data Base Rel'!J8 -> 0 | K5: ='Data Compare Rel'!K8-'Data Base Rel'!K8 -> 0 | L5: ='Data Compare Rel'!L8-'Data Base Rel'!L8 -> 0 | M5: ='Data Compare Rel'!M8-'Data Base Rel'!M8 -> 0 | N5: ='Data Compare Rel'!N8-'Data Base Rel'!N8 -> 0 | O5: ='Data Compare Rel'!O8-'Data Base Rel'!O8 -> 0 | P5: ='Data Compare Rel'!P8-'Data Base Rel'!P8 -> 0 | Q5: ='Data Compare Rel'!Q8-'Data Base Rel'!Q8 -> 0 | R5: ='Data Compare Rel'!R8-'Data Base Rel'!R8 -> 0 | S5: ='Data Compare Rel'!S8-'Data Base Rel'!S8 -> 0 | T5: ='Data Compare Rel'!T8-'Data Base Rel'!T8 -> 0 | U5: ='Data Compare Rel'!U8-'Data Base Rel'!U8 -> 0 | V5: ='Data Compare Rel'!V8-'Data Base Rel'!V8 -> 0 | W5: ='Data Compare Rel'!W8-'Data Base Rel'!W8 -> 0
C7: Renewable and Storage
C8: Cumulative | D8: 2019 | E8: 2020 | F8: 2021 | G8: 2022 | H8: 2023 | I8: 2024 | J8: 2025 | K8: 2026 | L8: 2027 | M8: 2028 | N8: 2029 | O8: 2030 | P8: 2031 | Q8: 2032 | R8: 2033 | S8: 2034 | T8: 2035 | U8: 2036 | V8: 2037 | W8: 2038 | Y8: Wind | Z8: Solar | AA8: Battery
C9: Wind | D9: ='Data Compare Rel'!D24-'Data Base Rel'!D24 -> 0 | E9: ='Data Compare Rel'!E24-'Data Base Rel'!E24 -> 0 | F9: ='Data Compare Rel'!F24-'Data Base Rel'!F24 -> 0 | G9: ='Data Compare Rel'!G24-'Data Base Rel'!G24 -> 0 | H9: ='Data Compare Rel'!H24-'Data Base Rel'!H24 -> -69.2 | I9: ='Data Compare Rel'!I24-'Data Base Rel'!I24 -> -69.2 | J9: ='Data Compare Rel'!J24-'Data Base Rel'!J24 -> -69.2 | K9: ='Data Compare Rel'!K24-'Data Base Rel'!K24 -> -69.2 | L9: ='Data Compare Rel'!L24-'Data Base Rel'!L24 -> -69.2 | M9: ='Data Compare Rel'!M24-'Data Base Rel'!M24 -> -69.2 | N9: ='Data Compare Rel'!N24-'Data Base Rel'!N24 -> -69.2 | O9: ='Data Compare Rel'!O24-'Data Base Rel'!O24 -> -115.2 | P9: ='Data Compare Rel'!P24-'Data Base Rel'!P24 -> -115.2 | Q9: ='Data Compare Rel'!Q24-'Data Base Rel'!Q24 -> -115.2 | R9: ='Data Compare Rel'!R24-'Data Base Rel'!R24 -> -115.2 | S9: ='Data Compare Rel'!S24-'Data Base Rel'!S24 -> -115.2 | T9: ='Data Compare Rel'!T24-'Data Base Rel'!T24 -> -115.2 | U9: ='Data Compare Rel'!U24-'Data Base Rel'!U24 -> -115.2 | V9: ='Data Compare Rel'!V24-'Data Base Rel'!V24 -> -115.2 | W9: ='Data Compare Rel'!W24-'Data Base Rel'!W24 -> -115.2 | Y9: ='Data Compare Rel'!Y24-'Data Base Rel'!Y24 -> -89.6 | Z9: ='Data Compare Rel'!Z24-'Data Base Rel'!Z24 -> -240.4 | AA9: =0.25*W11+0.25*W12+W13 -> -23.7
C10: Solar | D10: ='Data Compare Rel'!D25-'Data Base Rel'!D25 -> 0 | E10: ='Data Compare Rel'!E25-'Data Base Rel'!E25 -> 0 | F10: ='Data Compare Rel'!F25-'Data Base Rel'!F25 -> 0 | G10: ='Data Compare Rel'!G25-'Data Base Rel'!G25 -> 0 | H10: ='Data Compare Rel'!H25-'Data Base Rel'!H25 -> 0 | I10: ='Data Compare Rel'!I25-'Data Base Rel'!I25 -> 0 | J10: ='Data Compare Rel'!J25-'Data Base Rel'!J25 -> 0 | K10: ='Data Compare Rel'!K25-'Data Base Rel'!K25 -> 0 | L10: ='Data Compare Rel'!L25-'Data Base Rel'!L25 -> 0 | M10: ='Data Compare Rel'!M25-'Data Base Rel'!M25 -> 0 | N10: ='Data Compare Rel'!N25-'Data Base Rel'!N25 -> 0 | O10: ='Data Compare Rel'!O25-'Data Base Rel'!O25 -> 0 | P10: ='Data Compare Rel'!P25-'Data Base Rel'!P25 -> 0 | Q10: ='Data Compare Rel'!Q25-'Data Base Rel'!Q25 -> 0 | R10: ='Data Compare Rel'!R25-'Data Base Rel'!R25 -> 0 | S10: ='Data Compare Rel'!S25-'Data Base Rel'!S25 -> 0 | T10: ='Data Compare Rel'!T25-'Data Base Rel'!T25 -> 0 | U10: ='Data Compare Rel'!U25-'Data Base Rel'!U25 -> 0 | V10: ='Data Compare Rel'!V25-'Data Base Rel'!V25 -> 0 | W10: ='Data Compare Rel'!W25-'Data Base Rel'!W25 -> 0
C11: Wind+Bat | D11: ='Data Compare Rel'!D26-'Data Base Rel'!D26 -> 0 | E11: ='Data Compare Rel'!E26-'Data Base Rel'!E26 -> 0 | F11: ='Data Compare Rel'!F26-'Data Base Rel'!F26 -> 0 | G11: ='Data Compare Rel'!G26-'Data Base Rel'!G26 -> 0 | H11: ='Data Compare Rel'!H26-'Data Base Rel'!H26 -> 0 | I11: ='Data Compare Rel'!I26-'Data Base Rel'!I26 -> 0 | J11: ='Data Compare Rel'!J26-'Data Base Rel'!J26 -> 0 | K11: ='Data Compare Rel'!K26-'Data Base Rel'!K26 -> 0 | L11: ='Data Compare Rel'!L26-'Data Base Rel'!L26 -> 0 | M11: ='Data Compare Rel'!M26-'Data Base Rel'!M26 -> 0 | N11: ='Data Compare Rel'!N26-'Data Base Rel'!N26 -> -9.8 | O11: ='Data Compare Rel'!O26-'Data Base Rel'!O26 -> 20.4 | P11: ='Data Compare Rel'!P26-'Data Base Rel'!P26 -> 20.4 | Q11: ='Data Compare Rel'!Q26-'Data Base Rel'!Q26 -> 36.2 | R11: ='Data Compare Rel'!R26-'Data Base Rel'!R26 -> 36.2 | S11: ='Data Compare Rel'!S26-'Data Base Rel'!S26 -> 36.2 | T11: ='Data Compare Rel'!T26-'Data Base Rel'!T26 -> 36.2 | U11: ='Data Compare Rel'!U26-'Data Base Rel'!U26 -> 36.2 | V11: ='Data Compare Rel'!V26-'Data Base Rel'!V26 -> 25.6 | W11: ='Data Compare Rel'!W26-'Data Base Rel'!W26 -> 25.6
C12: Solar+Bat | D12: ='Data Compare Rel'!D27-'Data Base Rel'!D27 -> 0 | E12: ='Data Compare Rel'!E27-'Data Base Rel'!E27 -> 0 | F12: ='Data Compare Rel'!F27-'Data Base Rel'!F27 -> 0 | G12: ='Data Compare Rel'!G27-'Data Base Rel'!G27 -> 0 | H12: ='Data Compare Rel'!H27-'Data Base Rel'!H27 -> 69.4 | I12: ='Data Compare Rel'!I27-'Data Base Rel'!I27 -> 79 | J12: ='Data Compare Rel'!J27-'Data Base Rel'!J27 -> 79 | K12: ='Data Compare Rel'!K27-'Data Base Rel'!K27 -> 79 | L12: ='Data Compare Rel'!L27-'Data Base Rel'!L27 -> 79 | M12: ='Data Compare Rel'!M27-'Data Base Rel'!M27 -> 79 | N12: ='Data Compare Rel'!N27-'Data Base Rel'!N27 -> 79 | O12: ='Data Compare Rel'!O27-'Data Base Rel'!O27 -> -421 | P12: ='Data Compare Rel'!P27-'Data Base Rel'!P27 -> 79 | Q12: ='Data Compare Rel'!Q27-'Data Base Rel'!Q27 -> 554 | R12: ='Data Compare Rel'!R27-'Data Base Rel'!R27 -> 179 | S12: ='Data Compare Rel'!S27-'Data Base Rel'!S27 -> 179 | T12: ='Data Compare Rel'!T27-'Data Base Rel'!T27 -> 179 | U12: ='Data Compare Rel'!U27-'Data Base Rel'!U27 -> -240.4 | V12: ='Data Compare Rel'!V27-'Data Base Rel'!V27 -> -245.4 | W12: ='Data Compare Rel'!W27-'Data Base Rel'!W27 -> -240.4
C13: Battery | D13: ='Data Compare Rel'!D28-'Data Base Rel'!D28 -> 0 | E13: ='Data Compare Rel'!E28-'Data Base Rel'!E28 -> 0 | F13: ='Data Compare Rel'!F28-'Data Base Rel'!F28 -> 0 | G13: ='Data Compare Rel'!G28-'Data Base Rel'!G28 -> 0 | H13: ='Data Compare Rel'!H28-'Data Base Rel'!H28 -> 0 | I13: ='Data Compare Rel'!I28-'Data Base Rel'!I28 -> 0 | J13: ='Data Compare Rel'!J28-'Data Base Rel'!J28 -> 0 | K13: ='Data Compare Rel'!K28-'Data Base Rel'!K28 -> 0 | L13: ='Data Compare Rel'!L28-'Data Base Rel'!L28 -> 0 | M13: ='Data Compare Rel'!M28-'Data Base Rel'!M28 -> 60 | N13: ='Data Compare Rel'!N28-'Data Base Rel'!N28 -> -375 | O13: ='Data Compare Rel'!O28-'Data Base Rel'!O28 -> -45 | P13: ='Data Compare Rel'!P28-'Data Base Rel'!P28 -> -75 | Q13: ='Data Compare Rel'!Q28-'Data Base Rel'!Q28 -> -150 | R13: ='Data Compare Rel'!R28-'Data Base Rel'!R28 -> 45 | S13: ='Data Compare Rel'!S28-'Data Base Rel'!S28 -> 45 | T13: ='Data Compare Rel'!T28-'Data Base Rel'!T28 -> 45 | U13: ='Data Compare Rel'!U28-'Data Base Rel'!U28 -> 45 | V13: ='Data Compare Rel'!V28-'Data Base Rel'!V28 -> 165 | W13: ='Data Compare Rel'!W28-'Data Base Rel'!W28 -> 30
C14: Pumped Storage | D14: ='Data Compare Rel'!D29-'Data Base Rel'!D29 -> 0 | E14: ='Data Compare Rel'!E29-'Data Base Rel'!E29 -> 0 | F14: ='Data Compare Rel'!F29-'Data Base Rel'!F29 -> 0 | G14: ='Data Compare Rel'!G29-'Data Base Rel'!G29 -> 0 | H14: ='Data Compare Rel'!H29-'Data Base Rel'!H29 -> 0 | I14: ='Data Compare Rel'!I29-'Data Base Rel'!I29 -> 0 | J14: ='Data Compare Rel'!J29-'Data Base Rel'!J29 -> 0 | K14: ='Data Compare Rel'!K29-'Data Base Rel'!K29 -> 0 | L14: ='Data Compare Rel'!L29-'Data Base Rel'!L29 -> 0 | M14: ='Data Compare Rel'!M29-'Data Base Rel'!M29 -> 0 | N14: ='Data Compare Rel'!N29-'Data Base Rel'!N29 -> 0 | O14: ='Data Compare Rel'!O29-'Data Base Rel'!O29 -> 0 | P14: ='Data Compare Rel'!P29-'Data Base Rel'!P29 -> 0 | Q14: ='Data Compare Rel'!Q29-'Data Base Rel'!Q29 -> 0 | R14: ='Data Compare Rel'!R29-'Data Base Rel'!R29 -> 0 | S14: ='Data Compare Rel'!S29-'Data Base Rel'!S29 -> 0 | T14: ='Data Compare Rel'!T29-'Data Base Rel'!T29 -> 0 | U14: ='Data Compare Rel'!U29-'Data Base Rel'!U29 -> 0 | V14: ='Data Compare Rel'!V29-'Data Base Rel'!V29 -> 0 | W14: ='Data Compare Rel'!W29-'Data Base Rel'!W29 -> 0
C15: Renewable Removed | D15: ='Data Compare Rel'!D30-'Data Base Rel'!D30 -> 0 | E15: ='Data Compare Rel'!E30-'Data Base Rel'!E30 -> 0 | F15: ='Data Compare Rel'!F30-'Data Base Rel'!F30 -> 0 | G15: ='Data Compare Rel'!G30-'Data Base Rel'!G30 -> 0 | H15: ='Data Compare Rel'!H30-'Data Base Rel'!H30 -> 0 | I15: ='Data Compare Rel'!I30-'Data Base Rel'!I30 -> 0 | J15: ='Data Compare Rel'!J30-'Data Base Rel'!J30 -> 0 | K15: ='Data Compare Rel'!K30-'Data Base Rel'!K30 -> 0 | L15: ='Data Compare Rel'!L30-'Data Base Rel'!L30 -> 0 | M15: ='Data Compare Rel'!M30-'Data Base Rel'!M30 -> 0 | N15: ='Data Compare Rel'!N30-'Data Base Rel'!N30 -> 0 | O15: ='Data Compare Rel'!O30-'Data Base Rel'!O30 -> 0 | P15: ='Data Compare Rel'!P30-'Data Base Rel'!P30 -> 0 | Q15: ='Data Compare Rel'!Q30-'Data Base Rel'!Q30 -> 0 | R15: ='Data Compare Rel'!R30-'Data Base Rel'!R30 -> 0 | S15: ='Data Compare Rel'!S30-'Data Base Rel'!S30 -> 0 | T15: ='Data Compare Rel'!T30-'Data Base Rel'!T30 -> 0 | U15: ='Data Compare Rel'!U30-'Data Base Rel'!U30 -> 0 | V15: ='Data Compare Rel'!V30-'Data Base Rel'!V30 -> 0 | W15: ='Data Compare Rel'!W30-'Data Base Rel'!W30 -> 0
C17: Gas
C18: Cumulative | D18: 2019 | E18: 2020 | F18: 2021 | G18: 2022 | H18: 2023 | I18: 2024 | J18: 2025 | K18: 2026 | L18: 2027 | M18: 2028 | N18: 2029 | O18: 2030 | P18: 2031 | Q18: 2032 | R18: 2033 | S18: 2034 | T18: 2035 | U18: 2036 | V18: 2037 | W18: 2038
C19: Gas Peaker | D19: ='Data Compare Rel'!D40-'Data Base Rel'!D40 -> 0 | E19: ='Data Compare Rel'!E40-'Data Base Rel'!E40 -> 0 | F19: ='Data Compare Rel'!F40-'Data Base Rel'!F40 -> 0 | G19: ='Data Compare Rel'!G40-'Data Base Rel'!G40 -> 0 | H19: ='Data Compare Rel'!H40-'Data Base Rel'!H40 -> 0 | I19: ='Data Compare Rel'!I40-'Data Base Rel'!I40 -> 0 | J19: ='Data Compare Rel'!J40-'Data Base Rel'!J40 -> 0 | K19: ='Data Compare Rel'!K40-'Data Base Rel'!K40 -> -184.9 | L19: ='Data Compare Rel'!L40-'Data Base Rel'!L40 -> -184.9 | M19: ='Data Compare Rel'!M40-'Data Base Rel'!M40 -> -184.9 | N19: ='Data Compare Rel'!N40-'Data Base Rel'!N40 -> -184.9 | O19: ='Data Compare Rel'!O40-'Data Base Rel'!O40 -> 0 | P19: ='Data Compare Rel'!P40-'Data Base Rel'!P40 -> 0 | Q19: ='Data Compare Rel'!Q40-'Data Base Rel'!Q40 -> 0 | R19: ='Data Compare Rel'!R40-'Data Base Rel'!R40 -> 0 | S19: ='Data Compare Rel'!S40-'Data Base Rel'!S40 -> 0 | T19: ='Data Compare Rel'!T40-'Data Base Rel'!T40 -> 0 | U19: ='Data Compare Rel'!U40-'Data Base Rel'!U40 -> 0 | V19: ='Data Compare Rel'!V40-'Data Base Rel'!V40 -> 0 | W19: ='Data Compare Rel'!W40-'Data Base Rel'!W40 -> 0
C20: Gas CCCT | D20: ='Data Compare Rel'!D41-'Data Base Rel'!D41 -> 0 | E20: ='Data Compare Rel'!E41-'Data Base Rel'!E41 -> 0 | F20: ='Data Compare Rel'!F41-'Data Base Rel'!F41 -> 0 | G20: ='Data Compare Rel'!G41-'Data Base Rel'!G41 -> 0 | H20: ='Data Compare Rel'!H41-'Data Base Rel'!H41 -> 0 | I20: ='Data Compare Rel'!I41-'Data Base Rel'!I41 -> 0 | J20: ='Data Compare Rel'!J41-'Data Base Rel'!J41 -> 0 | K20: ='Data Compare Rel'!K41-'Data Base Rel'!K41 -> 0 | L20: ='Data Compare Rel'!L41-'Data Base Rel'!L41 -> 0 | M20: ='Data Compare Rel'!M41-'Data Base Rel'!M41 -> 0 | N20: ='Data Compare Rel'!N41-'Data Base Rel'!N41 -> 0 | O20: ='Data Compare Rel'!O41-'Data Base Rel'!O41 -> 0 | P20: ='Data Compare Rel'!P41-'Data Base Rel'!P41 -> 0 | Q20: ='Data Compare Rel'!Q41-'Data Base Rel'!Q41 -> 0 | R20: ='Data Compare Rel'!R41-'Data Base Rel'!R41 -> 0 | S20: ='Data Compare Rel'!S41-'Data Base Rel'!S41 -> 0 | T20: ='Data Compare Rel'!T41-'Data Base Rel'!T41 -> 0 | U20: ='Data Compare Rel'!U41-'Data Base Rel'!U41 -> 0 | V20: ='Data Compare Rel'!V41-'Data Base Rel'!V41 -> 0 | W20: ='Data Compare Rel'!W41-'Data Base Rel'!W41 -> 0
C21: Gas Conv. | D21: ='Data Compare Rel'!D42-'Data Base Rel'!D42 -> 0 | E21: ='Data Compare Rel'!E42-'Data Base Rel'!E42 -> 0 | F21: ='Data Compare Rel'!F42-'Data Base Rel'!F42 -> 0 | G21: ='Data Compare Rel'!G42-'Data Base Rel'!G42 -> 0 | H21: ='Data Compare Rel'!H42-'Data Base Rel'!H42 -> 0 | I21: ='Data Compare Rel'!I42-'Data Base Rel'!I42 -> 0 | J21: ='Data Compare Rel'!J42-'Data Base Rel'!J42 -> 0 | K21: ='Data Compare Rel'!K42-'Data Base Rel'!K42 -> 0 | L21: ='Data Compare Rel'!L42-'Data Base Rel'!L42 -> 0 | M21: ='Data Compare Rel'!M42-'Data Base Rel'!M42 -> 0 | N21: ='Data Compare Rel'!N42-'Data Base Rel'!N42 -> 0 | O21: ='Data Compare Rel'!O42-'Data Base Rel'!O42 -> 0 | P21: ='Data Compare Rel'!P42-'Data Base Rel'!P42 -> 0 | Q21: ='Data Compare Rel'!Q42-'Data Base Rel'!Q42 -> 0 | R21: ='Data Compare Rel'!R42-'Data Base Rel'!R42 -> 0 | S21: ='Data Compare Rel'!S42-'Data Base Rel'!S42 -> 0 | T21: ='Data Compare Rel'!T42-'Data Base Rel'!T42 -> 0 | U21: ='Data Compare Rel'!U42-'Data Base Rel'!U42 -> 0 | V21: ='Data Compare Rel'!V42-'Data Base Rel'!V42 -> 0 | W21: ='Data Compare Rel'!W42-'Data Base Rel'!W42 -> 0
C22: Gas Removed | D22: ='Data Compare Rel'!D43-'Data Base Rel'!D43 -> 0 | E22: ='Data Compare Rel'!E43-'Data Base Rel'!E43 -> 0 | F22: ='Data Compare Rel'!F43-'Data Base Rel'!F43 -> 0 | G22: ='Data Compare Rel'!G43-'Data Base Rel'!G43 -> 0 | H22: ='Data Compare Rel'!H43-'Data Base Rel'!H43 -> 0 | I22: ='Data Compare Rel'!I43-'Data Base Rel'!I43 -> 0 | J22: ='Data Compare Rel'!J43-'Data Base Rel'!J43 -> 0 | K22: ='Data Compare Rel'!K43-'Data Base Rel'!K43 -> 0 | L22: ='Data Compare Rel'!L43-'Data Base Rel'!L43 -> 0 | M22: ='Data Compare Rel'!M43-'Data Base Rel'!M43 -> 0 | N22: ='Data Compare Rel'!N43-'Data Base Rel'!N43 -> 0 | O22: ='Data Compare Rel'!O43-'Data Base Rel'!O43 -> 0 | P22: ='Data Compare Rel'!P43-'Data Base Rel'!P43 -> 0 | Q22: ='Data Compare Rel'!Q43-'Data Base Rel'!Q43 -> 0 | R22: ='Data Compare Rel'!R43-'Data Base Rel'!R43 -> 0 | S22: ='Data Compare Rel'!S43-'Data Base Rel'!S43 -> 0 | T22: ='Data Compare Rel'!T43-'Data Base Rel'!T43 -> 0 | U22: ='Data Compare Rel'!U43-'Data Base Rel'!U43 -> 0 | V22: ='Data Compare Rel'!V43-'Data Base Rel'!V43 -> 0 | W22: ='Data Compare Rel'!W43-'Data Base Rel'!W43 -> 0
C24: Demand-Side Management
C25: Cumulative | D25: 2019 | E25: 2020 | F25: 2021 | G25: 2022 | H25: 2023 | I25: 2024 | J25: 2025 | K25: 2026 | L25: 2027 | M25: 2028 | N25: 2029 | O25: 2030 | P25: 2031 | Q25: 2032 | R25: 2033 | S25: 2034 | T25: 2035 | U25: 2036 | V25: 2037 | W25: 2038
C26: Class 2 DSM | D26: ='Data Compare Rel'!D51-'Data Base Rel'!D51 -> 0 | E26: ='Data Compare Rel'!E51-'Data Base Rel'!E51 -> -1.65 | F26: ='Data Compare Rel'!F51-'Data Base Rel'!F51 -> -1.65 | G26: ='Data Compare Rel'!G51-'Data Base Rel'!G51 -> -6.08 | H26: ='Data Compare Rel'!H51-'Data Base Rel'!H51 -> -8.74 | I26: ='Data Compare Rel'!I51-'Data Base Rel'!I51 -> -10.9 | J26: ='Data Compare Rel'!J51-'Data Base Rel'!J51 -> -11.09 | K26: ='Data Compare Rel'!K51-'Data Base Rel'!K51 -> -11.27 | L26: ='Data Compare Rel'!L51-'Data Base Rel'!L51 -> -13.15 | M26: ='Data Compare Rel'!M51-'Data Base Rel'!M51 -> -13.21 | N26: ='Data Compare Rel'!N51-'Data Base Rel'!N51 -> -13.46 | O26: ='Data Compare Rel'!O51-'Data Base Rel'!O51 -> -10.74 | P26: ='Data Compare Rel'!P51-'Data Base Rel'!P51 -> -10.78 | Q26: ='Data Compare Rel'!Q51-'Data Base Rel'!Q51 -> -12.79 | R26: ='Data Compare Rel'!R51-'Data Base Rel'!R51 -> -6.42 | S26: ='Data Compare Rel'!S51-'Data Base Rel'!S51 -> -6.34 | T26: ='Data Compare Rel'!T51-'Data Base Rel'!T51 -> -5.91 | U26: ='Data Compare Rel'!U51-'Data Base Rel'!U51 -> -2.16 | V26: ='Data Compare Rel'!V51-'Data Base Rel'!V51 -> 0.89 | W26: ='Data Compare Rel'!W51-'Data Base Rel'!W51 -> 4.92
C27: Class 1 DSM | D27: ='Data Compare Rel'!D52-'Data Base Rel'!D52 -> 0 | E27: ='Data Compare Rel'!E52-'Data Base Rel'!E52 -> 0 | F27: ='Data Compare Rel'!F52-'Data Base Rel'!F52 -> 0 | G27: ='Data Compare Rel'!G52-'Data Base Rel'!G52 -> 0 | H27: ='Data Compare Rel'!H52-'Data Base Rel'!H52 -> 0 | I27: ='Data Compare Rel'!I52-'Data Base Rel'!I52 -> 0 | J27: ='Data Compare Rel'!J52-'Data Base Rel'!J52 -> 0 | K27: ='Data Compare Rel'!K52-'Data Base Rel'!K52 -> 0 | L27: ='Data Compare Rel'!L52-'Data Base Rel'!L52 -> 0 | M27: ='Data Compare Rel'!M52-'Data Base Rel'!M52 -> 0 | N27: ='Data Compare Rel'!N52-'Data Base Rel'!N52 -> -33.501 | O27: ='Data Compare Rel'!O52-'Data Base Rel'!O52 -> -7.512 | P27: ='Data Compare Rel'!P52-'Data Base Rel'!P52 -> -7.512 | Q27: ='Data Compare Rel'!Q52-'Data Base Rel'!Q52 -> 0 | R27: ='Data Compare Rel'!R52-'Data Base Rel'!R52 -> 0 | S27: ='Data Compare Rel'!S52-'Data Base Rel'!S52 -> 0 | T27: ='Data Compare Rel'!T52-'Data Base Rel'!T52 -> -8.335 | U27: ='Data Compare Rel'!U52-'Data Base Rel'!U52 -> -11.989 | V27: ='Data Compare Rel'!V52-'Data Base Rel'!V52 -> -34.457 | W27: ='Data Compare Rel'!W52-'Data Base Rel'!W52 -> -97.356
C29: FOTs
C30: Incremental | D30: 2019 | E30: 2020 | F30: 2021 | G30: 2022 | H30: 2023 | I30: 2024 | J30: 2025 | K30: 2026 | L30: 2027 | M30: 2028 | N30: 2029 | O30: 2030 | P30: 2031 | Q30: 2032 | R30: 2033 | S30: 2034 | T30: 2035 | U30: 2036 | V30: 2037 | W30: 2038
C31: FOT | D31: ='Data Compare Rel'!D56-'Data Base Rel'!D56 -> -0.077 | E31: ='Data Compare Rel'!E56-'Data Base Rel'!E56 -> 0.1 | F31: ='Data Compare Rel'!F56-'Data Base Rel'!F56 -> 0.56 | G31: ='Data Compare Rel'!G56-'Data Base Rel'!G56 -> 1.2 | H31: ='Data Compare Rel'!H56-'Data Base Rel'!H56 -> 1.76 | I31: ='Data Compare Rel'!I56-'Data Base Rel'!I56 -> 44.075 | J31: ='Data Compare Rel'!J56-'Data Base Rel'!J56 -> 42.08 | K31: ='Data Compare Rel'!K56-'Data Base Rel'!K56 -> 6.8 | L31: ='Data Compare Rel'!L56-'Data Base Rel'!L56 -> -20.68 | M31: ='Data Compare Rel'!M56-'Data Base Rel'!M56 -> -57.03 | N31: ='Data Compare Rel'!N56-'Data Base Rel'!N56 -> -75.57 | O31: ='Data Compare Rel'!O56-'Data Base Rel'!O56 -> 101.37 | P31: ='Data Compare Rel'!P56-'Data Base Rel'!P56 -> 106.53 | Q31: ='Data Compare Rel'!Q56-'Data Base Rel'!Q56 -> -61.38 | R31: ='Data Compare Rel'!R56-'Data Base Rel'!R56 -> 2.31 | S31: ='Data Compare Rel'!S56-'Data Base Rel'!S56 -> -18.99 | T31: ='Data Compare Rel'!T56-'Data Base Rel'!T56 -> -22.987 | U31: ='Data Compare Rel'!U56-'Data Base Rel'!U56 -> 86.437 | V31: ='Data Compare Rel'!V56-'Data Base Rel'!V56 -> 0.525 | W31: ='Data Compare Rel'!W56-'Data Base Rel'!W56 -> -12.637
D34: 2019 | E34: 2020 | F34: 2021 | G34: 2022 | H34: 2023 | I34: 2024 | J34: 2025 | K34: 2026 | L34: 2027 | M34: 2028 | N34: 2029 | O34: 2030 | P34: 2031 | Q34: 2032 | R34: 2033 | S34: 2034 | T34: 2035 | U34: 2036 | V34: 2037 | W34: 2038
C35: Coal Removed | D35: =D5 -> 0 | E35: =E5 -> 0 | F35: 0 | G35: 0 | H35: 0 | I35: 0 | J35: 0 | K35: 0 | L35: 0 | M35: 0 | N35: 0 | O35: 0 | P35: 0 | Q35: 0 | R35: 0 | S35: 0 | T35: 0 | U35: 0 | V35: 0 | W35: 0
C36: Wind | D36: =D9 -> 0 | E36: =E9 -> 0 | F36: 0 | G36: 0 | H36: -69.2 | I36: -69.2 | J36: -69.2 | K36: -69.2 | L36: -69.2 | M36: -69.2 | N36: -69.2 | O36: -115.2 | P36: -115.2 | Q36: -115.2 | R36: -115.2 | S36: -115.2 | T36: -115.2 | U36: -115.2 | V36: -115.2 | W36: -115.2
C37: Solar | D37: 0 | E37: =E10 -> 0 | F37: 0 | G37: 0 | H37: 0 | I37: 0 | J37: 0 | K37: 0 | L37: 0 | M37: 0 | N37: 0 | O37: 0 | P37: 0 | Q37: 0 | R37: 0 | S37: 0 | T37: 0 | U37: 0 | V37: 0 | W37: 0
C38: Wind+Bat | D38: 0 | E38: =E11 -> 0 | F38: 0 | G38: 0 | H38: 0 | I38: 0 | J38: 0 | K38: 0 | L38: 0 | M38: 0 | N38: -9.8 | O38: 20.4 | P38: 20.4 | Q38: 36.2 | R38: 36.2 | S38: 36.2 | T38: 36.2 | U38: 36.2 | V38: 25.6 | W38: 25.6
C39: Solar+Bat | D39: 0 | E39: =E12 -> 0 | F39: 0 | G39: 0 | H39: 69.4 | I39: 79 | J39: 79 | K39: 79 | L39: 79 | M39: 79 | N39: 79 | O39: -421 | P39: 79 | Q39: 554 | R39: 179 | S39: 179 | T39: 179 | U39: -240.4 | V39: -245.4 | W39: -240.4
C40: Battery | D40: 0 | E40: =E13 -> 0 | F40: 0 | G40: 0 | H40: 0 | I40: 0 | J40: 0 | K40: 0 | L40: 0 | M40: 60 | N40: -375 | O40: -45 | P40: -75 | Q40: -150 | R40: 45 | S40: 45 | T40: 45 | U40: 45 | V40: 165 | W40: 30
C41: Pumped Storage | D41: 0 | E41: =E14 -> 0 | F41: 0 | G41: 0 | H41: 0 | I41: 0 | J41: 0 | K41: 0 | L41: 0 | M41: 0 | N41: 0 | O41: 0 | P41: 0 | Q41: 0 | R41: 0 | S41: 0 | T41: 0 | U41: 0 | V41: 0 | W41: 0
C42: Gas | D42: =SUM(D19:D22) -> 0 | E42: =SUM(E19:E22) -> 0 | F42: 0 | G42: 0 | H42: 0 | I42: 0 | J42: 0 | K42: -184.9 | L42: -184.9 | M42: -184.9 | N42: -184.9 | O42: 0 | P42: 0 | Q42: 0 | R42: 0 | S42: 0 | T42: 0 | U42: 0 | V42: 0 | W42: 0
C43: Class 1 DSM | D43: =D27 -> 0 | E43: =E27 -> 0 | F43: 0 | G43: 0 | H43: 0 | I43: 0 | J43: 0 | K43: 0 | L43: 0 | M43: 0 | N43: -33.501 | O43: -7.512 | P43: -7.512 | Q43: 0 | R43: 0 | S43: 0 | T43: -8.335 | U43: -11.989 | V43: -34.457 | W43: -97.356
C44: Class 2 DSM | D44: =D26 -> 0 | E44: =E26 -> -1.65 | F44: -1.65 | G44: -6.08 | H44: -8.74 | I44: -10.9 | J44: -11.09 | K44: -11.27 | L44: -13.15 | M44: -13.21 | N44: -13.46 | O44: -10.74 | P44: -10.78 | Q44: -12.79 | R44: -6.42 | S44: -6.34 | T44: -5.91 | U44: -2.16 | V44: 0.89 | W44: 4.92
C45: FOT | D45: =D31 -> -0.077 | E45: =E31 -> 0.1 | F45: 0.56 | G45: 1.2 | H45: 1.76 | I45: 44.075 | J45: 42.08 | K45: 6.8 | L45: -20.68 | M45: -57.03 | N45: -75.57 | O45: 101.37 | P45: 106.53 | Q45: -61.38 | R45: 2.31 | S45: -18.99 | T45: -22.987 | U45: 86.437 | V45: 0.525 | W45: -12.637
C48: Existing Capacity Removed | D48: =D5+D15+D22 -> 0 | E48: =E5+E15+E22 -> 0 | F48: 0 | G48: 0 | H48: 0 | I48: 0 | J48: 0 | K48: 0 | L48: 0 | M48: 0 | N48: 0 | O48: 0 | P48: 0 | Q48: 0 | R48: 0 | S48: 0 | T48: 0 | U48: 0 | V48: 0 | W48: 0
C51: All
C52: Incremental | D52: 2019 | E52: 2020 | F52: 2021 | G52: 2022 | H52: 2023 | I52: 2024 | J52: 2025 | K52: 2026 | L52: 2027 | M52: 2028 | N52: 2029 | O52: 2030 | P52: 2031 | Q52: 2032 | R52: 2033 | S52: 2034 | T52: 2035 | U52: 2036 | V52: 2037 | W52: 2038
C53: Wind | D53: ='Data Compare Rel'!D12-'Data Base Rel'!D12 -> 0 | E53: ='Data Compare Rel'!E12-'Data Base Rel'!E12 -> 0 | F53: ='Data Compare Rel'!F12-'Data Base Rel'!F12 -> 0 | G53: ='Data Compare Rel'!G12-'Data Base Rel'!G12 -> 0 | H53: ='Data Compare Rel'!H12-'Data Base Rel'!H12 -> -69.2 | I53: ='Data Compare Rel'!I12-'Data Base Rel'!I12 -> 0 | J53: ='Data Compare Rel'!J12-'Data Base Rel'!J12 -> 0 | K53: ='Data Compare Rel'!K12-'Data Base Rel'!K12 -> 0 | L53: ='Data Compare Rel'!L12-'Data Base Rel'!L12 -> 0 | M53: ='Data Compare Rel'!M12-'Data Base Rel'!M12 -> 0 | N53: ='Data Compare Rel'!N12-'Data Base Rel'!N12 -> 0 | O53: ='Data Compare Rel'!O12-'Data Base Rel'!O12 -> -46 | P53: ='Data Compare Rel'!P12-'Data Base Rel'!P12 -> 0 | Q53: ='Data Compare Rel'!Q12-'Data Base Rel'!Q12 -> 0 | R53: ='Data Compare Rel'!R12-'Data Base Rel'!R12 -> 0 | S53: ='Data Compare Rel'!S12-'Data Base Rel'!S12 -> 0 | T53: ='Data Compare Rel'!T12-'Data Base Rel'!T12 -> 0 | U53: ='Data Compare Rel'!U12-'Data Base Rel'!U12 -> 0 | V53: ='Data Compare Rel'!V12-'Data Base Rel'!V12 -> 0 | W53: ='Data Compare Rel'!W12-'Data Base Rel'!W12 -> 0
C54: Solar | D54: ='Data Compare Rel'!D13-'Data Base Rel'!D13 -> 0 | E54: ='Data Compare Rel'!E13-'Data Base Rel'!E13 -> 0 | F54: ='Data Compare Rel'!F13-'Data Base Rel'!F13 -> 0 | G54: ='Data Compare Rel'!G13-'Data Base Rel'!G13 -> 0 | H54: ='Data Compare Rel'!H13-'Data Base Rel'!H13 -> 0 | I54: ='Data Compare Rel'!I13-'Data Base Rel'!I13 -> 0 | J54: ='Data Compare Rel'!J13-'Data Base Rel'!J13 -> 0 | K54: ='Data Compare Rel'!K13-'Data Base Rel'!K13 -> 0 | L54: ='Data Compare Rel'!L13-'Data Base Rel'!L13 -> 0 | M54: ='Data Compare Rel'!M13-'Data Base Rel'!M13 -> 0 | N54: ='Data Compare Rel'!N13-'Data Base Rel'!N13 -> 0 | O54: ='Data Compare Rel'!O13-'Data Base Rel'!O13 -> 0 | P54: ='Data Compare Rel'!P13-'Data Base Rel'!P13 -> 0 | Q54: ='Data Compare Rel'!Q13-'Data Base Rel'!Q13 -> 0 | R54: ='Data Compare Rel'!R13-'Data Base Rel'!R13 -> 0 | S54: ='Data Compare Rel'!S13-'Data Base Rel'!S13 -> 0 | T54: ='Data Compare Rel'!T13-'Data Base Rel'!T13 -> 0 | U54: ='Data Compare Rel'!U13-'Data Base Rel'!U13 -> 0 | V54: ='Data Compare Rel'!V13-'Data Base Rel'!V13 -> 0 | W54: ='Data Compare Rel'!W13-'Data Base Rel'!W13 -> 0
C55: Wind+Bat | D55: ='Data Compare Rel'!D14-'Data Base Rel'!D14 -> 0 | E55: ='Data Compare Rel'!E14-'Data Base Rel'!E14 -> 0 | F55: ='Data Compare Rel'!F14-'Data Base Rel'!F14 -> 0 | G55: ='Data Compare Rel'!G14-'Data Base Rel'!G14 -> 0 | H55: ='Data Compare Rel'!H14-'Data Base Rel'!H14 -> 0 | I55: ='Data Compare Rel'!I14-'Data Base Rel'!I14 -> 0 | J55: ='Data Compare Rel'!J14-'Data Base Rel'!J14 -> 0 | K55: ='Data Compare Rel'!K14-'Data Base Rel'!K14 -> 0 | L55: ='Data Compare Rel'!L14-'Data Base Rel'!L14 -> 0 | M55: ='Data Compare Rel'!M14-'Data Base Rel'!M14 -> 0 | N55: ='Data Compare Rel'!N14-'Data Base Rel'!N14 -> -9.8 | O55: ='Data Compare Rel'!O14-'Data Base Rel'!O14 -> 30.2 | P55: ='Data Compare Rel'!P14-'Data Base Rel'!P14 -> 0 | Q55: ='Data Compare Rel'!Q14-'Data Base Rel'!Q14 -> 15.8 | R55: ='Data Compare Rel'!R14-'Data Base Rel'!R14 -> 0 | S55: ='Data Compare Rel'!S14-'Data Base Rel'!S14 -> 0 | T55: ='Data Compare Rel'!T14-'Data Base Rel'!T14 -> 0 | U55: ='Data Compare Rel'!U14-'Data Base Rel'!U14 -> 0 | V55: ='Data Compare Rel'!V14-'Data Base Rel'!V14 -> -10.6 | W55: ='Data Compare Rel'!W14-'Data Base Rel'!W14 -> 0
C56: Solar+Bat | D56: ='Data Compare Rel'!D15-'Data Base Rel'!D15 -> 0 | E56: ='Data Compare Rel'!E15-'Data Base Rel'!E15 -> 0 | F56: ='Data Compare Rel'!F15-'Data Base Rel'!F15 -> 0 | G56: ='Data Compare Rel'!G15-'Data Base Rel'!G15 -> 0 | H56: ='Data Compare Rel'!H15-'Data Base Rel'!H15 -> 69.4 | I56: ='Data Compare Rel'!I15-'Data Base Rel'!I15 -> 9.6 | J56: ='Data Compare Rel'!J15-'Data Base Rel'!J15 -> 0 | K56: ='Data Compare Rel'!K15-'Data Base Rel'!K15 -> 0 | L56: ='Data Compare Rel'!L15-'Data Base Rel'!L15 -> 0 | M56: ='Data Compare Rel'!M15-'Data Base Rel'!M15 -> 0 | N56: ='Data Compare Rel'!N15-'Data Base Rel'!N15 -> 0 | O56: ='Data Compare Rel'!O15-'Data Base Rel'!O15 -> -500 | P56: ='Data Compare Rel'!P15-'Data Base Rel'!P15 -> 500 | Q56: ='Data Compare Rel'!Q15-'Data Base Rel'!Q15 -> 475 | R56: ='Data Compare Rel'!R15-'Data Base Rel'!R15 -> -375 | S56: ='Data Compare Rel'!S15-'Data Base Rel'!S15 -> 0 | T56: ='Data Compare Rel'!T15-'Data Base Rel'!T15 -> 0 | U56: ='Data Compare Rel'!U15-'Data Base Rel'!U15 -> -419.4 | V56: ='Data Compare Rel'!V15-'Data Base Rel'!V15 -> -5 | W56: ='Data Compare Rel'!W15-'Data Base Rel'!W15 -> 5
C57: Battery | D57: ='Data Compare Rel'!D16-'Data Base Rel'!D16 -> 0 | E57: ='Data Compare Rel'!E16-'Data Base Rel'!E16 -> 0 | F57: ='Data Compare Rel'!F16-'Data Base Rel'!F16 -> 0 | G57: ='Data Compare Rel'!G16-'Data Base Rel'!G16 -> 0 | H57: ='Data Compare Rel'!H16-'Data Base Rel'!H16 -> 0 | I57: ='Data Compare Rel'!I16-'Data Base Rel'!I16 -> 0 | J57: ='Data Compare Rel'!J16-'Data Base Rel'!J16 -> 0 | K57: ='Data Compare Rel'!K16-'Data Base Rel'!K16 -> 0 | L57: ='Data Compare Rel'!L16-'Data Base Rel'!L16 -> 0 | M57: ='Data Compare Rel'!M16-'Data Base Rel'!M16 -> 60 | N57: ='Data Compare Rel'!N16-'Data Base Rel'!N16 -> -435 | O57: ='Data Compare Rel'!O16-'Data Base Rel'!O16 -> 330 | P57: ='Data Compare Rel'!P16-'Data Base Rel'!P16 -> -30 | Q57: ='Data Compare Rel'!Q16-'Data Base Rel'!Q16 -> -75 | R57: ='Data Compare Rel'!R16-'Data Base Rel'!R16 -> 195 | S57: ='Data Compare Rel'!S16-'Data Base Rel'!S16 -> 0 | T57: ='Data Compare Rel'!T16-'Data Base Rel'!T16 -> 0 | U57: ='Data Compare Rel'!U16-'Data Base Rel'!U16 -> 0 | V57: ='Data Compare Rel'!V16-'Data Base Rel'!V16 -> 120 | W57: ='Data Compare Rel'!W16-'Data Base Rel'!W16 -> -135
C58: Pumped Storage | D58: ='Data Compare Rel'!D17-'Data Base Rel'!D17 -> 0 | E58: ='Data Compare Rel'!E17-'Data Base Rel'!E17 -> 0 | F58: ='Data Compare Rel'!F17-'Data Base Rel'!F17 -> 0 | G58: ='Data Compare Rel'!G17-'Data Base Rel'!G17 -> 0 | H58: ='Data Compare Rel'!H17-'Data Base Rel'!H17 -> 0 | I58: ='Data Compare Rel'!I17-'Data Base Rel'!I17 -> 0 | J58: ='Data Compare Rel'!J17-'Data Base Rel'!J17 -> 0 | K58: ='Data Compare Rel'!K17-'Data Base Rel'!K17 -> 0 | L58: ='Data Compare Rel'!L17-'Data Base Rel'!L17 -> 0 | M58: ='Data Compare Rel'!M17-'Data Base Rel'!M17 -> 0 | N58: ='Data Compare Rel'!N17-'Data Base Rel'!N17 -> 0 | O58: ='Data Compare Rel'!O17-'Data Base Rel'!O17 -> 0 | P58: ='Data Compare Rel'!P17-'Data Base Rel'!P17 -> 0 | Q58: ='Data Compare Rel'!Q17-'Data Base Rel'!Q17 -> 0 | R58: ='Data Compare Rel'!R17-'Data Base Rel'!R17 -> 0 | S58: ='Data Compare Rel'!S17-'Data Base Rel'!S17 -> 0 | T58: ='Data Compare Rel'!T17-'Data Base Rel'!T17 -> 0 | U58: ='Data Compare Rel'!U17-'Data Base Rel'!U17 -> 0 | V58: ='Data Compare Rel'!V17-'Data Base Rel'!V17 -> 0 | W58: ='Data Compare Rel'!W17-'Data Base Rel'!W17 -> 0
C59: Gas Peaker | D59: ='Data Compare Rel'!D34-'Data Base Rel'!D34 -> 0 | E59: ='Data Compare Rel'!E34-'Data Base Rel'!E34 -> 0 | F59: ='Data Compare Rel'!F34-'Data Base Rel'!F34 -> 0 | G59: ='Data Compare Rel'!G34-'Data Base Rel'!G34 -> 0 | H59: ='Data Compare Rel'!H34-'Data Base Rel'!H34 -> 0 | I59: ='Data Compare Rel'!I34-'Data Base Rel'!I34 -> 0 | J59: ='Data Compare Rel'!J34-'Data Base Rel'!J34 -> 0 | K59: ='Data Compare Rel'!K34-'Data Base Rel'!K34 -> -184.9 | L59: ='Data Compare Rel'!L34-'Data Base Rel'!L34 -> 0 | M59: ='Data Compare Rel'!M34-'Data Base Rel'!M34 -> 0 | N59: ='Data Compare Rel'!N34-'Data Base Rel'!N34 -> 0 | O59: ='Data Compare Rel'!O34-'Data Base Rel'!O34 -> 184.9 | P59: ='Data Compare Rel'!P34-'Data Base Rel'!P34 -> 0 | Q59: ='Data Compare Rel'!Q34-'Data Base Rel'!Q34 -> 0 | R59: ='Data Compare Rel'!R34-'Data Base Rel'!R34 -> 0 | S59: ='Data Compare Rel'!S34-'Data Base Rel'!S34 -> 0 | T59: ='Data Compare Rel'!T34-'Data Base Rel'!T34 -> 0 | U59: ='Data Compare Rel'!U34-'Data Base Rel'!U34 -> 0 | V59: ='Data Compare Rel'!V34-'Data Base Rel'!V34 -> 0 | W59: ='Data Compare Rel'!W34-'Data Base Rel'!W34 -> 0
C60: Gas CCCT | D60: ='Data Compare Rel'!D35-'Data Base Rel'!D35 -> 0 | E60: ='Data Compare Rel'!E35-'Data Base Rel'!E35 -> 0 | F60: ='Data Compare Rel'!F35-'Data Base Rel'!F35 -> 0 | G60: ='Data Compare Rel'!G35-'Data Base Rel'!G35 -> 0 | H60: ='Data Compare Rel'!H35-'Data Base Rel'!H35 -> 0 | I60: ='Data Compare Rel'!I35-'Data Base Rel'!I35 -> 0 | J60: ='Data Compare Rel'!J35-'Data Base Rel'!J35 -> 0 | K60: ='Data Compare Rel'!K35-'Data Base Rel'!K35 -> 0 | L60: ='Data Compare Rel'!L35-'Data Base Rel'!L35 -> 0 | M60: ='Data Compare Rel'!M35-'Data Base Rel'!M35 -> 0 | N60: ='Data Compare Rel'!N35-'Data Base Rel'!N35 -> 0 | O60: ='Data Compare Rel'!O35-'Data Base Rel'!O35 -> 0 | P60: ='Data Compare Rel'!P35-'Data Base Rel'!P35 -> 0 | Q60: ='Data Compare Rel'!Q35-'Data Base Rel'!Q35 -> 0 | R60: ='Data Compare Rel'!R35-'Data Base Rel'!R35 -> 0 | S60: ='Data Compare Rel'!S35-'Data Base Rel'!S35 -> 0 | T60: ='Data Compare Rel'!T35-'Data Base Rel'!T35 -> 0 | U60: ='Data Compare Rel'!U35-'Data Base Rel'!U35 -> 0 | V60: ='Data Compare Rel'!V35-'Data Base Rel'!V35 -> 0 | W60: ='Data Compare Rel'!W35-'Data Base Rel'!W35 -> 0
C61: Class 2 DSM | D61: ='Data Compare Rel'!D47-'Data Base Rel'!D47 -> 0 | E61: ='Data Compare Rel'!E47-'Data Base Rel'!E47 -> -1.65 | F61: ='Data Compare Rel'!F47-'Data Base Rel'!F47 -> 0 | G61: ='Data Compare Rel'!G47-'Data Base Rel'!G47 -> -4.43 | H61: ='Data Compare Rel'!H47-'Data Base Rel'!H47 -> -2.66 | I61: ='Data Compare Rel'!I47-'Data Base Rel'!I47 -> -2.16 | J61: ='Data Compare Rel'!J47-'Data Base Rel'!J47 -> -0.19 | K61: ='Data Compare Rel'!K47-'Data Base Rel'!K47 -> -0.18 | L61: ='Data Compare Rel'!L47-'Data Base Rel'!L47 -> -1.88 | M61: ='Data Compare Rel'!M47-'Data Base Rel'!M47 -> -0.06 | N61: ='Data Compare Rel'!N47-'Data Base Rel'!N47 -> -0.25 | O61: ='Data Compare Rel'!O47-'Data Base Rel'!O47 -> 2.72 | P61: ='Data Compare Rel'!P47-'Data Base Rel'!P47 -> -0.04 | Q61: ='Data Compare Rel'!Q47-'Data Base Rel'!Q47 -> -2.01 | R61: ='Data Compare Rel'!R47-'Data Base Rel'!R47 -> 6.37 | S61: ='Data Compare Rel'!S47-'Data Base Rel'!S47 -> 0.08 | T61: ='Data Compare Rel'!T47-'Data Base Rel'!T47 -> 0.43 | U61: ='Data Compare Rel'!U47-'Data Base Rel'!U47 -> 3.75 | V61: ='Data Compare Rel'!V47-'Data Base Rel'!V47 -> 3.05 | W61: ='Data Compare Rel'!W47-'Data Base Rel'!W47 -> 4.03
C62: Class 1 DSM | D62: ='Data Compare Rel'!D48-'Data Base Rel'!D48 -> 0 | E62: ='Data Compare Rel'!E48-'Data Base Rel'!E48 -> 0 | F62: ='Data Compare Rel'!F48-'Data Base Rel'!F48 -> 0 | G62: ='Data Compare Rel'!G48-'Data Base Rel'!G48 -> 0 | H62: ='Data Compare Rel'!H48-'Data Base Rel'!H48 -> 0 | I62: ='Data Compare Rel'!I48-'Data Base Rel'!I48 -> 0 | J62: ='Data Compare Rel'!J48-'Data Base Rel'!J48 -> 0 | K62: ='Data Compare Rel'!K48-'Data Base Rel'!K48 -> 0 | L62: ='Data Compare Rel'!L48-'Data Base Rel'!L48 -> 0 | M62: ='Data Compare Rel'!M48-'Data Base Rel'!M48 -> 0 | N62: ='Data Compare Rel'!N48-'Data Base Rel'!N48 -> -33.501 | O62: ='Data Compare Rel'!O48-'Data Base Rel'!O48 -> 25.989 | P62: ='Data Compare Rel'!P48-'Data Base Rel'!P48 -> 0 | Q62: ='Data Compare Rel'!Q48-'Data Base Rel'!Q48 -> 7.512 | R62: ='Data Compare Rel'!R48-'Data Base Rel'!R48 -> 0 | S62: ='Data Compare Rel'!S48-'Data Base Rel'!S48 -> 0 | T62: ='Data Compare Rel'!T48-'Data Base Rel'!T48 -> -8.335 | U62: ='Data Compare Rel'!U48-'Data Base Rel'!U48 -> -3.654 | V62: ='Data Compare Rel'!V48-'Data Base Rel'!V48 -> -22.468 | W62: ='Data Compare Rel'!W48-'Data Base Rel'!W48 -> -62.899
C63: FOT | D63: =D45 -> -0.077 | E63: =E45 -> 0.1 | F63: 0.56 | G63: 1.2 | H63: 1.76 | I63: 44.075 | J63: 42.08 | K63: 6.8 | L63: -20.68 | M63: -57.03 | N63: -75.57 | O63: 101.37 | P63: 106.53 | Q63: -61.38 | R63: 2.31 | S63: -18.99 | T63: -22.987 | U63: 86.437 | V63: 0.525 | W63: -12.637
C64: Existing Cap Removed | D64: =('Data Compare Rel'!D5-'Data Base Rel'!D5)+(SUM('Data Compare Rel'!D18:D21)-SUM('Data Base Rel'!D18:D21))+('Data Compare Rel'!D37-'Data Base Rel'!D37) -> 0 | E64: =('Data Compare Rel'!E5-'Data Base Rel'!E5)+(SUM('Data Compare Rel'!E18:E21)-SUM('Data Base Rel'!E18:E21))+('Data Compare Rel'!E37-'Data Base Rel'!E37) -> 0 | F64: =('Data Compare Rel'!F5-'Data Base Rel'!F5)+(SUM('Data Compare Rel'!F18:F21)-SUM('Data Base Rel'!F18:F21))+('Data Compare Rel'!F37-'Data Base Rel'!F37) -> 0 | G64: =('Data Compare Rel'!G5-'Data Base Rel'!G5)+(SUM('Data Compare Rel'!G18:G21)-SUM('Data Base Rel'!G18:G21))+('Data Compare Rel'!G37-'Data Base Rel'!G37) -> 0 | H64: =('Data Compare Rel'!H5-'Data Base Rel'!H5)+(SUM('Data Compare Rel'!H18:H21)-SUM('Data Base Rel'!H18:H21))+('Data Compare Rel'!H37-'Data Base Rel'!H37) -> 0 | I64: =('Data Compare Rel'!I5-'Data Base Rel'!I5)+(SUM('Data Compare Rel'!I18:I21)-SUM('Data Base Rel'!I18:I21))+('Data Compare Rel'!I37-'Data Base Rel'!I37) -> 0 | J64: =('Data Compare Rel'!J5-'Data Base Rel'!J5)+(SUM('Data Compare Rel'!J18:J21)-SUM('Data Base Rel'!J18:J21))+('Data Compare Rel'!J37-'Data Base Rel'!J37) -> 0 | K64: =('Data Compare Rel'!K5-'Data Base Rel'!K5)+(SUM('Data Compare Rel'!K18:K21)-SUM('Data Base Rel'!K18:K21))+('Data Compare Rel'!K37-'Data Base Rel'!K37) -> 0 | L64: =('Data Compare Rel'!L5-'Data Base Rel'!L5)+(SUM('Data Compare Rel'!L18:L21)-SUM('Data Base Rel'!L18:L21))+('Data Compare Rel'!L37-'Data Base Rel'!L37) -> 0 | M64: =('Data Compare Rel'!M5-'Data Base Rel'!M5)+(SUM('Data Compare Rel'!M18:M21)-SUM('Data Base Rel'!M18:M21))+('Data Compare Rel'!M37-'Data Base Rel'!M37) -> 0 | N64: =('Data Compare Rel'!N5-'Data Base Rel'!N5)+(SUM('Data Compare Rel'!N18:N21)-SUM('Data Base Rel'!N18:N21))+('Data Compare Rel'!N37-'Data Base Rel'!N37) -> 0 | O64: =('Data Compare Rel'!O5-'Data Base Rel'!O5)+(SUM('Data Compare Rel'!O18:O21)-SUM('Data Base Rel'!O18:O21))+('Data Compare Rel'!O37-'Data Base Rel'!O37) -> 0 | P64: =('Data Compare Rel'!P5-'Data Base Rel'!P5)+(SUM('Data Compare Rel'!P18:P21)-SUM('Data Base Rel'!P18:P21))+('Data Compare Rel'!P37-'Data Base Rel'!P37) -> 0 | Q64: =('Data Compare Rel'!Q5-'Data Base Rel'!Q5)+(SUM('Data Compare Rel'!Q18:Q21)-SUM('Data Base Rel'!Q18:Q21))+('Data Compare Rel'!Q37-'Data Base Rel'!Q37) -> 0 | R64: =('Data Compare Rel'!R5-'Data Base Rel'!R5)+(SUM('Data Compare Rel'!R18:R21)-SUM('Data Base Rel'!R18:R21))+('Data Compare Rel'!R37-'Data Base Rel'!R37) -> 0 | S64: =('Data Compare Rel'!S5-'Data Base Rel'!S5)+(SUM('Data Compare Rel'!S18:S21)-SUM('Data Base Rel'!S18:S21))+('Data Compare Rel'!S37-'Data Base Rel'!S37) -> 0 | T64: =('Data Compare Rel'!T5-'Data Base Rel'!T5)+(SUM('Data Compare Rel'!T18:T21)-SUM('Data Base Rel'!T18:T21))+('Data Compare Rel'!T37-'Data Base Rel'!T37) -> 0 | U64: =('Data Compare Rel'!U5-'Data Base Rel'!U5)+(SUM('Data Compare Rel'!U18:U21)-SUM('Data Base Rel'!U18:U21))+('Data Compare Rel'!U37-'Data Base Rel'!U37) -> 0 | V64: =('Data Compare Rel'!V5-'Data Base Rel'!V5)+(SUM('Data Compare Rel'!V18:V21)-SUM('Data Base Rel'!V18:V21))+('Data Compare Rel'!V37-'Data Base Rel'!V37) -> 0 | W64: =('Data Compare Rel'!W5-'Data Base Rel'!W5)+(SUM('Data Compare Rel'!W18:W21)-SUM('Data Base Rel'!W18:W21))+('Data Compare Rel'!W37-'Data Base Rel'!W37) -> 0
C66: DR | D66: 0.0692
C69: Replacement Portfolio | D69: Avg | E69: Nom. Lev. Cost
C70: Wind | D70: =AVERAGE(H9:W9) -> -95.075
C71: Solar | D71: 0
C72: Wind+Bat | D72: 16.45
C73: Solar+Bat | D73: 35.3875
C74: Battery | D74: -13.125
C75: Pumped Storage | D75: 0
C76: Gas Peaker | D76: =AVERAGE(H19:W19) -> -46.225
C77: Gas CCCT | D77: =AVERAGE(H20:W20) -> 0
C78: Class 2 DSM | D78: =AVERAGE(H44:W44) -> -8.196875
C79: Class 1 DSM | D79: =AVERAGE(H27:W27) -> -12.541375
C80: FOT | D80: =AVERAGE(H31:W31) -> 7.6633125
C81: Coal Removed | D81: =AVERAGE(H5:W5) -> 0

Sheet Delta Pre-reliability
C3: Coal | AD3: Pre-Reliability
C4: Cumulative | D4: 2019 | E4: 2020 | F4: 2021 | G4: 2022 | H4: 2023 | I4: 2024 | J4: 2025 | K4: 2026 | L4: 2027 | M4: 2028 | N4: 2029 | O4: 2030 | P4: 2031 | Q4: 2032 | R4: 2033 | S4: 2034 | T4: 2035 | U4: 2036 | V4: 2037 | W4: 2038
C5: Coal Removed | D5: ='Data Compare Pre'!D8-'Data Base Pre'!D8 -> 0 | E5: ='Data Compare Pre'!E8-'Data Base Pre'!E8 -> 0 | F5: ='Data Compare Pre'!F8-'Data Base Pre'!F8 -> 0 | G5: ='Data Compare Pre'!G8-'Data Base Pre'!G8 -> 0 | H5: ='Data Compare Pre'!H8-'Data Base Pre'!H8 -> 0 | I5: ='Data Compare Pre'!I8-'Data Base Pre'!I8 -> 0 | J5: ='Data Compare Pre'!J8-'Data Base Pre'!J8 -> 0 | K5: ='Data Compare Pre'!K8-'Data Base Pre'!K8 -> 0 | L5: ='Data Compare Pre'!L8-'Data Base Pre'!L8 -> 0 | M5: ='Data Compare Pre'!M8-'Data Base Pre'!M8 -> 0 | N5: ='Data Compare Pre'!N8-'Data Base Pre'!N8 -> 0 | O5: ='Data Compare Pre'!O8-'Data Base Pre'!O8 -> 0 | P5: ='Data Compare Pre'!P8-'Data Base Pre'!P8 -> 0 | Q5: ='Data Compare Pre'!Q8-'Data Base Pre'!Q8 -> 0 | R5: ='Data Compare Pre'!R8-'Data Base Pre'!R8 -> 0 | S5: ='Data Compare Pre'!S8-'Data Base Pre'!S8 -> 0 | T5: ='Data Compare Pre'!T8-'Data Base Pre'!T8 -> 0 | U5: ='Data Compare Pre'!U8-'Data Base Pre'!U8 -> 0 | V5: ='Data Compare Pre'!V8-'Data Base Pre'!V8 -> 0 | W5: ='Data Compare Pre'!W8-'Data Base Pre'!W8 -> 0
C7: Renewable and Storage
C8: Cumulative | D8: 2019 | E8: 2020 | F8: 2021 | G8: 2022 | H8: 2023 | I8: 2024 | J8: 2025 | K8: 2026 | L8: 2027 | M8: 2028 | N8: 2029 | O8: 2030 | P8: 2031 | Q8: 2032 | R8: 2033 | S8: 2034 | T8: 2035 | U8: 2036 | V8: 2037 | W8: 2038 | Y8: Wind | Z8: Solar | AA8: Battery
C9: Wind | D9: ='Data Compare Pre'!D24-'Data Base Pre'!D24 -> 0 | E9: ='Data Compare Pre'!E24-'Data Base Pre'!E24 -> 0 | F9: ='Data Compare Pre'!F24-'Data Base Pre'!F24 -> 0 | G9: ='Data Compare Pre'!G24-'Data Base Pre'!G24 -> 0 | H9: ='Data Compare Pre'!H24-'Data Base Pre'!H24 -> -69.216 | I9: ='Data Compare Pre'!I24-'Data Base Pre'!I24 -> -69.216 | J9: ='Data Compare Pre'!J24-'Data Base Pre'!J24 -> -69.216 | K9: ='Data Compare Pre'!K24-'Data Base Pre'!K24 -> -69.216 | L9: ='Data Compare Pre'!L24-'Data Base Pre'!L24 -> -69.216 | M9: ='Data Compare Pre'!M24-'Data Base Pre'!M24 -> -69.216 | N9: ='Data Compare Pre'!N24-'Data Base Pre'!N24 -> -69.216 | O9: ='Data Compare Pre'!O24-'Data Base Pre'!O24 -> -115.18 | P9: ='Data Compare Pre'!P24-'Data Base Pre'!P24 -> -115.18 | Q9: ='Data Compare Pre'!Q24-'Data Base Pre'!Q24 -> -115.18 | R9: ='Data Compare Pre'!R24-'Data Base Pre'!R24 -> -115.18 | S9: ='Data Compare Pre'!S24-'Data Base Pre'!S24 -> -115.18 | T9: ='Data Compare Pre'!T24-'Data Base Pre'!T24 -> -115.18 | U9: ='Data Compare Pre'!U24-'Data Base Pre'!U24 -> -115.18 | V9: ='Data Compare Pre'!V24-'Data Base Pre'!V24 -> -115.18 | W9: ='Data Compare Pre'!W24-'Data Base Pre'!W24 -> -115.18 | Y9: ='Data Compare Pre'!Y24-'Data Base Pre'!Y24 -> -89.584 | Z9: ='Data Compare Pre'!Z24-'Data Base Pre'!Z24 -> -240.417 | AA9: =0.25*W11+0.25*W12+W13 -> -173.70525
C10: Solar | D10: ='Data Compare Pre'!D25-'Data Base Pre'!D25 -> 0 | E10: ='Data Compare Pre'!E25-'Data Base Pre'!E25 -> 0 | F10: ='Data Compare Pre'!F25-'Data Base Pre'!F25 -> 0 | G10: ='Data Compare Pre'!G25-'Data Base Pre'!G25 -> 0 | H10: ='Data Compare Pre'!H25-'Data Base Pre'!H25 -> 0 | I10: ='Data Compare Pre'!I25-'Data Base Pre'!I25 -> 0 | J10: ='Data Compare Pre'!J25-'Data Base Pre'!J25 -> 0 | K10: ='Data Compare Pre'!K25-'Data Base Pre'!K25 -> 0 | L10: ='Data Compare Pre'!L25-'Data Base Pre'!L25 -> 0 | M10: ='Data Compare Pre'!M25-'Data Base Pre'!M25 -> 0 | N10: ='Data Compare Pre'!N25-'Data Base Pre'!N25 -> 0 | O10: ='Data Compare Pre'!O25-'Data Base Pre'!O25 -> 0 | P10: ='Data Compare Pre'!P25-'Data Base Pre'!P25 -> 0 | Q10: ='Data Compare Pre'!Q25-'Data Base Pre'!Q25 -> 0 | R10: ='Data Compare Pre'!R25-'Data Base Pre'!R25 -> 0 | S10: ='Data Compare Pre'!S25-'Data Base Pre'!S25 -> 0 | T10: ='Data Compare Pre'!T25-'Data Base Pre'!T25 -> 0 | U10: ='Data Compare Pre'!U25-'Data Base Pre'!U25 -> 0 | V10: ='Data Compare Pre'!V25-'Data Base Pre'!V25 -> 0 | W10: ='Data Compare Pre'!W25-'Data Base Pre'!W25 -> 0
C11: Wind+Bat | D11: ='Data Compare Pre'!D26-'Data Base Pre'!D26 -> 0 | E11: ='Data Compare Pre'!E26-'Data Base Pre'!E26 -> 0 | F11: ='Data Compare Pre'!F26-'Data Base Pre'!F26 -> 0 | G11: ='Data Compare Pre'!G26-'Data Base Pre'!G26 -> 0 | H11: ='Data Compare Pre'!H26-'Data Base Pre'!H26 -> 0 | I11: ='Data Compare Pre'!I26-'Data Base Pre'!I26 -> 0 | J11: ='Data Compare Pre'!J26-'Data Base Pre'!J26 -> 0 | K11: ='Data Compare Pre'!K26-'Data Base Pre'!K26 -> 0 | L11: ='Data Compare Pre'!L26-'Data Base Pre'!L26 -> 0 | M11: ='Data Compare Pre'!M26-'Data Base Pre'!M26 -> 0 | N11: ='Data Compare Pre'!N26-'Data Base Pre'!N26 -> -9.791 | O11: ='Data Compare Pre'!O26-'Data Base Pre'!O26 -> 20.462 | P11: ='Data Compare Pre'!P26-'Data Base Pre'!P26 -> 20.462 | Q11: ='Data Compare Pre'!Q26-'Data Base Pre'!Q26 -> 36.173 | R11: ='Data Compare Pre'!R26-'Data Base Pre'!R26 -> 36.173 | S11: ='Data Compare Pre'!S26-'Data Base Pre'!S26 -> 36.173 | T11: ='Data Compare Pre'!T26-'Data Base Pre'!T26 -> 36.173 | U11: ='Data Compare Pre'!U26-'Data Base Pre'!U26 -> 36.173 | V11: ='Data Compare Pre'!V26-'Data Base Pre'!V26 -> 25.596 | W11: ='Data Compare Pre'!W26-'Data Base Pre'!W26 -> 25.596
C12: Solar+Bat | D12: ='Data Compare Pre'!D27-'Data Base Pre'!D27 -> 0 | E12: ='Data Compare Pre'!E27-'Data Base Pre'!E27 -> 0 | F12: ='Data Compare Pre'!F27-'Data Base Pre'!F27 -> -0.021 | G12: ='Data Compare Pre'!G27-'Data Base Pre'!G27 -> -0.042 | H12: ='Data Compare Pre'!H27-'Data Base Pre'!H27 -> 69.353 | I12: ='Data Compare Pre'!I27-'Data Base Pre'!I27 -> 79.006 | J12: ='Data Compare Pre'!J27-'Data Base Pre'!J27 -> 79.006 | K12: ='Data Compare Pre'!K27-'Data Base Pre'!K27 -> 79.006 | L12: ='Data Compare Pre'!L27-'Data Base Pre'!L27 -> 79.006 | M12: ='Data Compare Pre'!M27-'Data Base Pre'!M27 -> 79.006 | N12: ='Data Compare Pre'!N27-'Data Base Pre'!N27 -> 79.006 | O12: ='Data Compare Pre'!O27-'Data Base Pre'!O27 -> -420.994 | P12: ='Data Compare Pre'!P27-'Data Base Pre'!P27 -> 79.006 | Q12: ='Data Compare Pre'!Q27-'Data Base Pre'!Q27 -> 554.006 | R12: ='Data Compare Pre'!R27-'Data Base Pre'!R27 -> 179.006 | S12: ='Data Compare Pre'!S27-'Data Base Pre'!S27 -> 179.006 | T12: ='Data Compare Pre'!T27-'Data Base Pre'!T27 -> 179.006 | U12: ='Data Compare Pre'!U27-'Data Base Pre'!U27 -> -240.417 | V12: ='Data Compare Pre'!V27-'Data Base Pre'!V27 -> -245.393 | W12: ='Data Compare Pre'!W27-'Data Base Pre'!W27 -> -240.417
C13: Battery | D13: ='Data Compare Pre'!D28-'Data Base Pre'!D28 -> 0 | E13: ='Data Compare Pre'!E28-'Data Base Pre'!E28 -> 0 | F13: ='Data Compare Pre'!F28-'Data Base Pre'!F28 -> 0 | G13: ='Data Compare Pre'!G28-'Data Base Pre'!G28 -> 0 | H13: ='Data Compare Pre'!H28-'Data Base Pre'!H28 -> 0 | I13: ='Data Compare Pre'!I28-'Data Base Pre'!I28 -> 0 | J13: ='Data Compare Pre'!J28-'Data Base Pre'!J28 -> 0 | K13: ='Data Compare Pre'!K28-'Data Base Pre'!K28 -> 0 | L13: ='Data Compare Pre'!L28-'Data Base Pre'!L28 -> 0 | M13: ='Data Compare Pre'!M28-'Data Base Pre'!M28 -> 0 | N13: ='Data Compare Pre'!N28-'Data Base Pre'!N28 -> 0 | O13: ='Data Compare Pre'!O28-'Data Base Pre'!O28 -> 0 | P13: ='Data Compare Pre'!P28-'Data Base Pre'!P28 -> 0 | Q13: ='Data Compare Pre'!Q28-'Data Base Pre'!Q28 -> 0 | R13: ='Data Compare Pre'!R28-'Data Base Pre'!R28 -> 0 | S13: ='Data Compare Pre'!S28-'Data Base Pre'!S28 -> 0 | T13: ='Data Compare Pre'!T28-'Data Base Pre'!T28 -> 0 | U13: ='Data Compare Pre'!U28-'Data Base Pre'!U28 -> 0 | V13: ='Data Compare Pre'!V28-'Data Base Pre'!V28 -> 0 | W13: ='Data Compare Pre'!W28-'Data Base Pre'!W28 -> -120
C14: Pumped Storage | D14: ='Data Compare Pre'!D29-'Data Base Pre'!D29 -> 0 | E14: ='Data Compare Pre'!E29-'Data Base Pre'!E29 -> 0 | F14: ='Data Compare Pre'!F29-'Data Base Pre'!F29 -> 0 | G14: ='Data Compare Pre'!G29-'Data Base Pre'!G29 -> 0 | H14: ='Data Compare Pre'!H29-'Data Base Pre'!H29 -> 0 | I14: ='Data Compare Pre'!I29-'Data Base Pre'!I29 -> 0 | J14: ='Data Compare Pre'!J29-'Data Base Pre'!J29 -> 0 | K14: ='Data Compare Pre'!K29-'Data Base Pre'!K29 -> 0 | L14: ='Data Compare Pre'!L29-'Data Base Pre'!L29 -> 0 | M14: ='Data Compare Pre'!M29-'Data Base Pre'!M29 -> 0 | N14: ='Data Compare Pre'!N29-'Data Base Pre'!N29 -> 0 | O14: ='Data Compare Pre'!O29-'Data Base Pre'!O29 -> 0 | P14: ='Data Compare Pre'!P29-'Data Base Pre'!P29 -> 0 | Q14: ='Data Compare Pre'!Q29-'Data Base Pre'!Q29 -> 0 | R14: ='Data Compare Pre'!R29-'Data Base Pre'!R29 -> 0 | S14: ='Data Compare Pre'!S29-'Data Base Pre'!S29 -> 0 | T14: ='Data Compare Pre'!T29-'Data Base Pre'!T29 -> 0 | U14: ='Data Compare Pre'!U29-'Data Base Pre'!U29 -> 0 | V14: ='Data Compare Pre'!V29-'Data Base Pre'!V29 -> 0 | W14: ='Data Compare Pre'!W29-'Data Base Pre'!W29 -> 0
C15: Renewable Removed | D15: ='Data Compare Pre'!D30-'Data Base Pre'!D30 -> 0 | E15: ='Data Compare Pre'!E30-'Data Base Pre'!E30 -> 0 | F15: ='Data Compare Pre'!F30-'Data Base Pre'!F30 -> 0 | G15: ='Data Compare Pre'!G30-'Data Base Pre'!G30 -> 0 | H15: ='Data Compare Pre'!H30-'Data Base Pre'!H30 -> 0 | I15: ='Data Compare Pre'!I30-'Data Base Pre'!I30 -> 0 | J15: ='Data Compare Pre'!J30-'Data Base Pre'!J30 -> 0 | K15: ='Data Compare Pre'!K30-'Data Base Pre'!K30 -> 0 | L15: ='Data Compare Pre'!L30-'Data Base Pre'!L30 -> 0 | M15: ='Data Compare Pre'!M30-'Data Base Pre'!M30 -> 0 | N15: ='Data Compare Pre'!N30-'Data Base Pre'!N30 -> 0 | O15: ='Data Compare Pre'!O30-'Data Base Pre'!O30 -> 0 | P15: ='Data Compare Pre'!P30-'Data Base Pre'!P30 -> 0 | Q15: ='Data Compare Pre'!Q30-'Data Base Pre'!Q30 -> 0 | R15: ='Data Compare Pre'!R30-'Data Base Pre'!R30 -> 0 | S15: ='Data Compare Pre'!S30-'Data Base Pre'!S30 -> 0 | T15: ='Data Compare Pre'!T30-'Data Base Pre'!T30 -> 0 | U15: ='Data Compare Pre'!U30-'Data Base Pre'!U30 -> 0 | V15: ='Data Compare Pre'!V30-'Data Base Pre'!V30 -> 0 | W15: ='Data Compare Pre'!W30-'Data Base Pre'!W30 -> 0
C17: Gas
C18: Cumulative | D18: 2019 | E18: 2020 | F18: 2021 | G18: 2022 | H18: 2023 | I18: 2024 | J18: 2025 | K18: 2026 | L18: 2027 | M18: 2028 | N18: 2029 | O18: 2030 | P18: 2031 | Q18: 2032 | R18: 2033 | S18: 2034 | T18: 2035 | U18: 2036 | V18: 2037 | W18: 2038
C19: Gas Peaker | D19: ='Data Compare Pre'!D40-'Data Base Pre'!D40 -> 0 | E19: ='Data Compare Pre'!E40-'Data Base Pre'!E40 -> 0 | F19: ='Data Compare Pre'!F40-'Data Base Pre'!F40 -> 0 | G19: ='Data Compare Pre'!G40-'Data Base Pre'!G40 -> 0 | H19: ='Data Compare Pre'!H40-'Data Base Pre'!H40 -> 0 | I19: ='Data Compare Pre'!I40-'Data Base Pre'!I40 -> 0 | J19: ='Data Compare Pre'!J40-'Data Base Pre'!J40 -> 0 | K19: ='Data Compare Pre'!K40-'Data Base Pre'!K40 -> 0 | L19: ='Data Compare Pre'!L40-'Data Base Pre'!L40 -> 0 | M19: ='Data Compare Pre'!M40-'Data Base Pre'!M40 -> 0 | N19: ='Data Compare Pre'!N40-'Data Base Pre'!N40 -> 0 | O19: ='Data Compare Pre'!O40-'Data Base Pre'!O40 -> -184.9 | P19: ='Data Compare Pre'!P40-'Data Base Pre'!P40 -> -369.8 | Q19: ='Data Compare Pre'!Q40-'Data Base Pre'!Q40 -> -369.8 | R19: ='Data Compare Pre'!R40-'Data Base Pre'!R40 -> -369.8 | S19: ='Data Compare Pre'!S40-'Data Base Pre'!S40 -> -369.8 | T19: ='Data Compare Pre'!T40-'Data Base Pre'!T40 -> -369.8 | U19: ='Data Compare Pre'!U40-'Data Base Pre'!U40 -> -369.8 | V19: ='Data Compare Pre'!V40-'Data Base Pre'!V40 -> -221.4 | W19: ='Data Compare Pre'!W40-'Data Base Pre'!W40 -> 0
C20: Gas CCCT | D20: ='Data Compare Pre'!D41-'Data Base Pre'!D41 -> 0 | E20: ='Data Compare Pre'!E41-'Data Base Pre'!E41 -> 0 | F20: ='Data Compare Pre'!F41-'Data Base Pre'!F41 -> 0 | G20: ='Data Compare Pre'!G41-'Data Base Pre'!G41 -> 0 | H20: ='Data Compare Pre'!H41-'Data Base Pre'!H41 -> 0 | I20: ='Data Compare Pre'!I41-'Data Base Pre'!I41 -> 0 | J20: ='Data Compare Pre'!J41-'Data Base Pre'!J41 -> 0 | K20: ='Data Compare Pre'!K41-'Data Base Pre'!K41 -> 0 | L20: ='Data Compare Pre'!L41-'Data Base Pre'!L41 -> 0 | M20: ='Data Compare Pre'!M41-'Data Base Pre'!M41 -> 0 | N20: ='Data Compare Pre'!N41-'Data Base Pre'!N41 -> 0 | O20: ='Data Compare Pre'!O41-'Data Base Pre'!O41 -> 0 | P20: ='Data Compare Pre'!P41-'Data Base Pre'!P41 -> 0 | Q20: ='Data Compare Pre'!Q41-'Data Base Pre'!Q41 -> 0 | R20: ='Data Compare Pre'!R41-'Data Base Pre'!R41 -> 0 | S20: ='Data Compare Pre'!S41-'Data Base Pre'!S41 -> 0 | T20: ='Data Compare Pre'!T41-'Data Base Pre'!T41 -> 0 | U20: ='Data Compare Pre'!U41-'Data Base Pre'!U41 -> 0 | V20: ='Data Compare Pre'!V41-'Data Base Pre'!V41 -> 0 | W20: ='Data Compare Pre'!W41-'Data Base Pre'!W41 -> 0
C21: Gas Conv. | D21: ='Data Compare Pre'!D42-'Data Base Pre'!D42 -> 0 | E21: ='Data Compare Pre'!E42-'Data Base Pre'!E42 -> 0 | F21: ='Data Compare Pre'!F42-'Data Base Pre'!F42 -> 0 | G21: ='Data Compare Pre'!G42-'Data Base Pre'!G42 -> 0 | H21: ='Data Compare Pre'!H42-'Data Base Pre'!H42 -> 0 | I21: ='Data Compare Pre'!I42-'Data Base Pre'!I42 -> 0 | J21: ='Data Compare Pre'!J42-'Data Base Pre'!J42 -> 0 | K21: ='Data Compare Pre'!K42-'Data Base Pre'!K42 -> 0 | L21: ='Data Compare Pre'!L42-'Data Base Pre'!L42 -> 0 | M21: ='Data Compare Pre'!M42-'Data Base Pre'!M42 -> 0 | N21: ='Data Compare Pre'!N42-'Data Base Pre'!N42 -> 0 | O21: ='Data Compare Pre'!O42-'Data Base Pre'!O42 -> 0 | P21: ='Data Compare Pre'!P42-'Data Base Pre'!P42 -> 0 | Q21: ='Data Compare Pre'!Q42-'Data Base Pre'!Q42 -> 0 | R21: ='Data Compare Pre'!R42-'Data Base Pre'!R42 -> 0 | S21: ='Data Compare Pre'!S42-'Data Base Pre'!S42 -> 0 | T21: ='Data Compare Pre'!T42-'Data Base Pre'!T42 -> 0 | U21: ='Data Compare Pre'!U42-'Data Base Pre'!U42 -> 0 | V21: ='Data Compare Pre'!V42-'Data Base Pre'!V42 -> 0 | W21: ='Data Compare Pre'!W42-'Data Base Pre'!W42 -> 0
C22: Gas Removed | D22: ='Data Compare Pre'!D43-'Data Base Pre'!D43 -> 0 | E22: ='Data Compare Pre'!E43-'Data Base Pre'!E43 -> 0 | F22: ='Data Compare Pre'!F43-'Data Base Pre'!F43 -> 0 | G22: ='Data Compare Pre'!G43-'Data Base Pre'!G43 -> 0 | H22: ='Data Compare Pre'!H43-'Data Base Pre'!H43 -> 0 | I22: ='Data Compare Pre'!I43-'Data Base Pre'!I43 -> 0 | J22: ='Data Compare Pre'!J43-'Data Base Pre'!J43 -> 0 | K22: ='Data Compare Pre'!K43-'Data Base Pre'!K43 -> 0 | L22: ='Data Compare Pre'!L43-'Data Base Pre'!L43 -> 0 | M22: ='Data Compare Pre'!M43-'Data Base Pre'!M43 -> 0 | N22: ='Data Compare Pre'!N43-'Data Base Pre'!N43 -> 0 | O22: ='Data Compare Pre'!O43-'Data Base Pre'!O43 -> 0 | P22: ='Data Compare Pre'!P43-'Data Base Pre'!P43 -> 0 | Q22: ='Data Compare Pre'!Q43-'Data Base Pre'!Q43 -> 0 | R22: ='Data Compare Pre'!R43-'Data Base Pre'!R43 -> 0 | S22: ='Data Compare Pre'!S43-'Data Base Pre'!S43 -> 0 | T22: ='Data Compare Pre'!T43-'Data Base Pre'!T43 -> 0 | U22: ='Data Compare Pre'!U43-'Data Base Pre'!U43 -> 0 | V22: ='Data Compare Pre'!V43-'Data Base Pre'!V43 -> 0 | W22: ='Data Compare Pre'!W43-'Data Base Pre'!W43 -> 0
C24: Demand-Side Management
C25: Cumulative | D25: 2019 | E25: 2020 | F25: 2021 | G25: 2022 | H25: 2023 | I25: 2024 | J25: 2025 | K25: 2026 | L25: 2027 | M25: 2028 | N25: 2029 | O25: 2030 | P25: 2031 | Q25: 2032 | R25: 2033 | S25: 2034 | T25: 2035 | U25: 2036 | V25: 2037 | W25: 2038
C26: Class 2 DSM | D26: ='Data Compare Pre'!D51-'Data Base Pre'!D51 -> 0 | E26: ='Data Compare Pre'!E51-'Data Base Pre'!E51 -> 0 | F26: ='Data Compare Pre'!F51-'Data Base Pre'!F51 -> 0 | G26: ='Data Compare Pre'!G51-'Data Base Pre'!G51 -> -1.16 | H26: ='Data Compare Pre'!H51-'Data Base Pre'!H51 -> -1.16 | I26: ='Data Compare Pre'!I51-'Data Base Pre'!I51 -> -3.28 | J26: ='Data Compare Pre'!J51-'Data Base Pre'!J51 -> -3.28 | K26: ='Data Compare Pre'!K51-'Data Base Pre'!K51 -> -7.78 | L26: ='Data Compare Pre'!L51-'Data Base Pre'!L51 -> -14.64 | M26: ='Data Compare Pre'!M51-'Data Base Pre'!M51 -> -17.9 | N26: ='Data Compare Pre'!N51-'Data Base Pre'!N51 -> -17.9 | O26: ='Data Compare Pre'!O51-'Data Base Pre'!O51 -> -17.9 | P26: ='Data Compare Pre'!P51-'Data Base Pre'!P51 -> -20.78 | Q26: ='Data Compare Pre'!Q51-'Data Base Pre'!Q51 -> -20.78 | R26: ='Data Compare Pre'!R51-'Data Base Pre'!R51 -> -20.78 | S26: ='Data Compare Pre'!S51-'Data Base Pre'!S51 -> -21.17 | T26: ='Data Compare Pre'!T51-'Data Base Pre'!T51 -> -21.48 | U26: ='Data Compare Pre'!U51-'Data Base Pre'!U51 -> -21.48 | V26: ='Data Compare Pre'!V51-'Data Base Pre'!V51 -> -21.48 | W26: ='Data Compare Pre'!W51-'Data Base Pre'!W51 -> -21.48
C27: Class 1 DSM | D27: ='Data Compare Pre'!D52-'Data Base Pre'!D52 -> 0 | E27: ='Data Compare Pre'!E52-'Data Base Pre'!E52 -> 0 | F27: ='Data Compare Pre'!F52-'Data Base Pre'!F52 -> 0 | G27: ='Data Compare Pre'!G52-'Data Base Pre'!G52 -> 0 | H27: ='Data Compare Pre'!H52-'Data Base Pre'!H52 -> 0 | I27: ='Data Compare Pre'!I52-'Data Base Pre'!I52 -> 0 | J27: ='Data Compare Pre'!J52-'Data Base Pre'!J52 -> 0 | K27: ='Data Compare Pre'!K52-'Data Base Pre'!K52 -> 0 | L27: ='Data Compare Pre'!L52-'Data Base Pre'!L52 -> 0 | M27: ='Data Compare Pre'!M52-'Data Base Pre'!M52 -> 0 | N27: ='Data Compare Pre'!N52-'Data Base Pre'!N52 -> -33.501 | O27: ='Data Compare Pre'!O52-'Data Base Pre'!O52 -> -7.512 | P27: ='Data Compare Pre'!P52-'Data Base Pre'!P52 -> -7.512 | Q27: ='Data Compare Pre'!Q52-'Data Base Pre'!Q52 -> 0 | R27: ='Data Compare Pre'!R52-'Data Base Pre'!R52 -> 0 | S27: ='Data Compare Pre'!S52-'Data Base Pre'!S52 -> 0 | T27: ='Data Compare Pre'!T52-'Data Base Pre'!T52 -> -8.335 | U27: ='Data Compare Pre'!U52-'Data Base Pre'!U52 -> -11.989 | V27: ='Data Compare Pre'!V52-'Data Base Pre'!V52 -> -34.457 | W27: ='Data Compare Pre'!W52-'Data Base Pre'!W52 -> -97.356
C29: FOTs
C30: Incremental | D30: 2019 | E30: 2020 | F30: 2021 | G30: 2022 | H30: 2023 | I30: 2024 | J30: 2025 | K30: 2026 | L30: 2027 | M30: 2028 | N30: 2029 | O30: 2030 | P30: 2031 | Q30: 2032 | R30: 2033 | S30: 2034 | T30: 2035 | U30: 2036 | V30: 2037 | W30: 2038
C31: FOT | D31: ='Data Compare Pre'!D56-'Data Base Pre'!D56 -> -0.068 | E31: ='Data Compare Pre'!E56-'Data Base Pre'!E56 -> 0.11 | F31: ='Data Compare Pre'!F56-'Data Base Pre'!F56 -> 0.538 | G31: ='Data Compare Pre'!G56-'Data Base Pre'!G56 -> 1.208 | H31: ='Data Compare Pre'!H56-'Data Base Pre'!H56 -> 1.79 | I31: ='Data Compare Pre'!I56-'Data Base Pre'!I56 -> 44.073 | J31: ='Data Compare Pre'!J56-'Data Base Pre'!J56 -> 42.076 | K31: ='Data Compare Pre'!K56-'Data Base Pre'!K56 -> 6.795 | L31: ='Data Compare Pre'!L56-'Data Base Pre'!L56 -> -20.682 | M31: ='Data Compare Pre'!M56-'Data Base Pre'!M56 -> -57.039 | N31: ='Data Compare Pre'!N56-'Data Base Pre'!N56 -> -75.567 | O31: ='Data Compare Pre'!O56-'Data Base Pre'!O56 -> 101.365 | P31: ='Data Compare Pre'!P56-'Data Base Pre'!P56 -> 106.531 | Q31: ='Data Compare Pre'!Q56-'Data Base Pre'!Q56 -> -61.372 | R31: ='Data Compare Pre'!R56-'Data Base Pre'!R56 -> 2.302 | S31: ='Data Compare Pre'!S56-'Data Base Pre'!S56 -> -18.985 | T31: ='Data Compare Pre'!T56-'Data Base Pre'!T56 -> -23.015 | U31: ='Data Compare Pre'!U56-'Data Base Pre'!U56 -> 86.443 | V31: ='Data Compare Pre'!V56-'Data Base Pre'!V56 -> 0.539 | W31: ='Data Compare Pre'!W56-'Data Base Pre'!W56 -> -12.623
D34: 2019 | E34: 2020 | F34: 2021 | G34: 2022 | H34: 2023 | I34: 2024 | J34: 2025 | K34: 2026 | L34: 2027 | M34: 2028 | N34: 2029 | O34: 2030 | P34: 2031 | Q34: 2032 | R34: 2033 | S34: 2034 | T34: 2035 | U34: 2036 | V34: 2037 | W34: 2038
C35: Coal Removed | D35: =D5 -> 0 | E35: =E5 -> 0 | F35: 0 | G35: 0 | H35: 0 | I35: 0 | J35: 0 | K35: 0 | L35: 0 | M35: 0 | N35: 0 | O35: 0 | P35: 0 | Q35: 0 | R35: 0 | S35: 0 | T35: 0 | U35: 0 | V35: 0 | W35: 0
C36: Wind | D36: =D9 -> 0 | E36: 0 | F36: 0 | G36: 0 | H36: -69.216 | I36: -69.216 | J36: -69.216 | K36: -69.216 | L36: -69.216 | M36: -69.216 | N36: -69.216 | O36: -115.18 | P36: -115.18 | Q36: -115.18 | R36: -115.18 | S36: -115.18 | T36: -115.18 | U36: -115.18 | V36: -115.18 | W36: -115.18
C37: Solar | D37: 0 | E37: 0 | F37: 0 | G37: 0 | H37: 0 | I37: 0 | J37: 0 | K37: 0 | L37: 0 | M37: 0 | N37: 0 | O37: 0 | P37: 0 | Q37: 0 | R37: 0 | S37: 0 | T37: 0 | U37: 0 | V37: 0 | W37: 0
C38: Wind+Bat | D38: 0 | E38: 0 | F38: 0 | G38: 0 | H38: 0 | I38: 0 | J38: 0 | K38: 0 | L38: 0 | M38: 0 | N38: -9.791 | O38: 20.462 | P38: 20.462 | Q38: 36.173 | R38: 36.173 | S38: 36.173 | T38: 36.173 | U38: 36.173 | V38: 25.596 | W38: 25.596
C39: Solar+Bat | D39: 0 | E39: 0 | F39: -0.021 | G39: -0.042 | H39: 69.353 | I39: 79.006 | J39: 79.006 | K39: 79.006 | L39: 79.006 | M39: 79.006 | N39: 79.006 | O39: -420.994 | P39: 79.006 | Q39: 554.006 | R39: 179.006 | S39: 179.006 | T39: 179.006 | U39: -240.417 | V39: -245.393 | W39: -240.417
C40: Battery | D40: 0 | E40: 0 | F40: 0 | G40: 0 | H40: 0 | I40: 0 | J40: 0 | K40: 0 | L40: 0 | M40: 0 | N40: 0 | O40: 0 | P40: 0 | Q40: 0 | R40: 0 | S40: 0 | T40: 0 | U40: 0 | V40: 0 | W40: -120
C41: Pumped Storage | D41: 0 | E41: 0 | F41: 0 | G41: 0 | H41: 0 | I41: 0 | J41: 0 | K41: 0 | L41: 0 | M41: 0 | N41: 0 | O41: 0 | P41: 0 | Q41: 0 | R41: 0 | S41: 0 | T41: 0 | U41: 0 | V41: 0 | W41: 0
C42: Gas | D42: =SUM(D19:D22) -> 0 | E42: =SUM(E19:E22) -> 0 | F42: 0 | G42: 0 | H42: 0 | I42: 0 | J42: 0 | K42: 0 | L42: 0 | M42: 0 | N42: 0 | O42: -184.9 | P42: -369.8 | Q42: -369.8 | R42: -369.8 | S42: -369.8 | T42: -369.8 | U42: -369.8 | V42: -221.4 | W42: 0
C43: Class 1 DSM | D43: =D27 -> 0 | E43: =E27 -> 0 | F43: 0 | G43: 0 | H43: 0 | I43: 0 | J43: 0 | K43: 0 | L43: 0 | M43: 0 | N43: -33.501 | O43: -7.512 | P43: -7.512 | Q43: 0 | R43: 0 | S43: 0 | T43: -8.335 | U43: -11.989 | V43: -34.457 | W43: -97.356
C44: Class 2 DSM | D44: =D26 -> 0 | E44: =E26 -> 0 | F44: 0 | G44: -1.16 | H44: -1.16 | I44: -3.28 | J44: -3.28 | K44: -7.78 | L44: -14.64 | M44: -17.9 | N44: -17.9 | O44: -17.9 | P44: -20.78 | Q44: -20.78 | R44: -20.78 | S44: -21.17 | T44: -21.48 | U44: -21.48 | V44: -21.48 | W44: -21.48
C45: FOT | D45: =D31 -> -0.068 | E45: =E31 -> 0.11 | F45: 0.538 | G45: 1.208 | H45: 1.79 | I45: 44.073 | J45: 42.076 | K45: 6.795 | L45: -20.682 | M45: -57.039 | N45: -75.567 | O45: 101.365 | P45: 106.531 | Q45: -61.372 | R45: 2.302 | S45: -18.985 | T45: -23.015 | U45: 86.443 | V45: 0.539 | W45: -12.623
C48: Existing Capacity Removed | D48: =D5+D15+D22 -> 0 | E48: =E5+E15+E22 -> 0 | F48: 0 | G48: 0 | H48: 0 | I48: 0 | J48: 0 | K48: 0 | L48: 0 | M48: 0 | N48: 0 | O48: 0 | P48: 0 | Q48: 0 | R48: 0 | S48: 0 | T48: 0 | U48: 0 | V48: 0 | W48: 0

Sheet Data Base Rel
A1: P45CNW- | C1: =IF(IFERROR(SUM(A68:A302),"Err")=0,"OK","MAPPING ERRORS, left column below") -> OK | Y1: Checks for | Z1: MAPPING ERRORS, left column below
C3: Coal
C4: Incremental | D4: 2019 | E4: 2020 | F4: 2021 | G4: 2022 | H4: 2023 | I4: 2024 | J4: 2025 | K4: 2026 | L4: 2027 | M4: 2028 | N4: 2029 | O4: 2030 | P4: 2031 | Q4: 2032 | R4: 2033 | S4: 2034 | T4: 2035 | U4: 2036 | V4: 2037 | W4: 2038
C5: Coal Removed | D5: =SUMIF($A$69:$A$302,$C5,D$69:D$302) -> 0 | E5: -280 | F5: -387 | G5: 0 | H5: 0 | I5: -350.5 | J5: 0 | K5: -439.3 | L5: -81.5 | M5: -903 | N5: -355.8 | O5: 0 | P5: -76.6 | Q5: 0 | R5: 0 | S5: 0 | T5: 0 | U5: 0 | V5: -909 | W5: -702
C7: Cumulative | D7: 2019 | E7: 2020 | F7: 2021 | G7: 2022 | H7: 2023 | I7: 2024 | J7: 2025 | K7: 2026 | L7: 2027 | M7: 2028 | N7: 2029 | O7: 2030 | P7: 2031 | Q7: 2032 | R7: 2033 | S7: 2034 | T7: 2035 | U7: 2036 | V7: 2037 | W7: 2038
C8: Coal Removed | D8: =D5 -> 0 | E8: =E5+D8 -> -280 | F8: =F5+E8 -> -667 | G8: -667 | H8: -667 | I8: -1017.5 | J8: -1017.5 | K8: -1456.8 | L8: -1538.3 | M8: -2441.3 | N8: -2797.1 | O8: -2797.1 | P8: -2873.7 | Q8: -2873.7 | R8: -2873.7 | S8: -2873.7 | T8: -2873.7 | U8: -2873.7 | V8: -3782.7 | W8: -4484.7
C10: Renewable and Storage
C11: Incremental | D11: 2019 | E11: 2020 | F11: 2021 | G11: 2022 | H11: 2023 | I11: 2024 | J11: 2025 | K11: 2026 | L11: 2027 | M11: 2028 | N11: 2029 | O11: 2030 | P11: 2031 | Q11: 2032 | R11: 2033 | S11: 2034 | T11: 2035 | U11: 2036 | V11: 2037 | W11: 2038
C12: Wind | D12: =SUMIF($A$69:$A$302,$C12,D$69:D$302) -> 0 | E12: 0 | F12: 0 | G12: 0 | H12: 69.2 | I12: 1920 | J12: 0 | K12: 0 | L12: 0 | M12: 0 | N12: =SUMIF($A$69:$A$302,$C12,N$69:N$302) -> 0 | O12: 1039.6 | P12: 0 | Q12: 0 | R12: 0 | S12: 0 | T12: 0 | U12: 0 | V12: 0 | W12: 0
C13: Solar | D13: 0 | E13: 0 | F13: 0 | G13: 0 | H13: 0 | I13: 0 | J13: 0 | K13: 0 | L13: 0 | M13: 0 | N13: 0 | O13: 0 | P13: 0 | Q13: 0 | R13: 0 | S13: 0 | T13: 0 | U13: 0 | V13: 0 | W13: 0
C14: Wind+Bat | D14: 0 | E14: 0 | F14: 0 | G14: 0 | H14: 0 | I14: 0 | J14: 0 | K14: 0 | L14: 0 | M14: 0 | N14: 9.8 | O14: 0 | P14: 0 | Q14: 60.4 | R14: 0 | S14: 0 | T14: 0 | U14: 0 | V14: 10.6 | W14: 0
C15: Solar+Bat | D15: 0 | E15: 0 | F15: 159.2 | G15: 63.8 | H15: 3.4 | I15: 2153.6 | J15: 0 | K15: 0 | L15: 0 | M15: 0 | N15: 359.4 | O15: 500 | P15: 0 | Q15: 0 | R15: 475 | S15: 0 | T15: 0 | U15: 419.4 | V15: 909 | W15: 701.8
C16: Battery | D16: 0 | E16: 0 | F16: 0 | G16: 0 | H16: 0 | I16: 0 | J16: 0 | K16: 0 | L16: 0 | M16: 180 | N16: 435 | O16: 0 | P16: 30 | Q16: 120 | R16: 0 | S16: 0 | T16: 0 | U16: 0 | V16: 0 | W16: 600
C17: Pumped Storage | D17: 0 | E17: 0 | F17: 0 | G17: 0 | H17: 0 | I17: 0 | J17: 0 | K17: 0 | L17: 0 | M17: 0 | N17: 0 | O17: 0 | P17: 0 | Q17: 0 | R17: 0 | S17: 0 | T17: 0 | U17: 0 | V17: 0 | W17: 0
C18: Hydro Removed | D18: 0 | E18: -1.1 | F18: -168.9 | G18: 0 | H18: -0.7 | I18: -20.28 | J18: 0 | K18: -1.4 | L18: 0 | M18: -7.2 | N18: 0 | O18: 0 | P18: -6.4 | Q18: 0 | R18: 0 | S18: -74.9 | T18: 0 | U18: -1.2 | V18: 0 | W18: 0
C19: Wind Removed | D19: 0 | E19: -26.55 | F19: -16.8 | G19: -224 | H19: -0.2 | I19: -41 | J19: 0 | K19: -64.5 | L19: -3 | M19: 0 | N19: -93.4 | O19: -149.1 | P19: -200.2 | Q19: -65 | R19: -200.9 | S19: -80 | T19: 0 | U19: -70 | V19: -90 | W19: 0
C20: Solar Removed | D20: 0 | E20: 0 | F20: 0 | G20: 0 | H20: -0.5 | I20: -0.52 | J20: 0 | K20: 0 | L20: 0 | M20: -2 | N20: 0 | O20: 0 | P20: -67 | Q20: -48.9 | R20: 0 | S20: 0 | T20: -35.9 | U20: -209.1 | V20: -1024.2 | W20: -10.9
C21: Other Removed | D21: 0 | E21: 0 | F21: 0 | G21: 0 | H21: 0 | I21: 0 | J21: 0 | K21: 0 | L21: 0 | M21: 0 | N21: 0 | O21: 0 | P21: 0 | Q21: 0 | R21: 0 | S21: -0.907 | T21: 0 | U21: 0 | V21: 0 | W21: -32.1
C23: Cumulative | D23: 2019 | E23: 2020 | F23: 2021 | G23: 2022 | H23: 2023 | I23: 2024 | J23: 2025 | K23: 2026 | L23: 2027 | M23: 2028 | N23: 2029 | O23: 2030 | P23: 2031 | Q23: 2032 | R23: 2033 | S23: 2034 | T23: 2035 | U23: 2036 | V23: 2037 | W23: 2038 | Y23: Wind | Z23: Solar | AA23: Battery
C24: Wind | D24: =D12 -> 0 | E24: =D24+E12 -> 0 | F24: 0 | G24: 0 | H24: 69.2 | I24: 1989.2 | J24: 1989.2 | K24: 1989.2 | L24: 1989.2 | M24: 1989.2 | N24: 1989.2 | O24: 3028.8 | P24: 3028.8 | Q24: 3028.8 | R24: 3028.8 | S24: 3028.8 | T24: 3028.8 | U24: 3028.8 | V24: 3028.8 | W24: 3028.8 | Y24: =W24+SUM(D19:W19)+W26 -> 1784.95 | Z24: =W25+SUM(D20:W20)+W27 -> 4345.58 | AA24: =0.25*W26+0.25*W27+W28 -> 2821.35
C25: Solar | D25: 0 | E25: =D25+E13 -> 0 | F25: 0 | G25: 0 | H25: 0 | I25: 0 | J25: 0 | K25: 0 | L25: 0 | M25: 0 | N25: 0 | O25: 0 | P25: 0 | Q25: 0 | R25: 0 | S25: 0 | T25: 0 | U25: 0 | V25: 0 | W25: 0
C26: Wind+Bat | D26: 0 | E26: =D26+E14 -> 0 | F26: 0 | G26: 0 | H26: 0 | I26: 0 | J26: 0 | K26: 0 | L26: 0 | M26: 0 | N26: 9.8 | O26: 9.8 | P26: 9.8 | Q26: 70.2 | R26: 70.2 | S26: 70.2 | T26: 70.2 | U26: 70.2 | V26: 80.8 | W26: 80.8
C27: Solar+Bat | D27: 0 | E27: =D27+E15 -> 0 | F27: 159.2 | G27: 223 | H27: 226.4 | I27: 2380 | J27: 2380 | K27: 2380 | L27: 2380 | M27: 2380 | N27: 2739.4 | O27: 3239.4 | P27: 3239.4 | Q27: 3239.4 | R27: 3714.4 | S27: 3714.4 | T27: 3714.4 | U27: 4133.8 | V27: 5042.8 | W27: 5744.6
C28: Battery | D28: 0 | E28: =D28+E16 -> 0 | F28: 0 | G28: 0 | H28: 0 | I28: 0 | J28: 0 | K28: 0 | L28: 0 | M28: 180 | N28: 615 | O28: 615 | P28: 645 | Q28: 765 | R28: 765 | S28: 765 | T28: 765 | U28: 765 | V28: 765 | W28: 1365
C29: Pumped Storage | D29: 0 | E29: =D29+E17 -> 0 | F29: 0 | G29: 0 | H29: 0 | I29: 0 | J29: 0 | K29: 0 | L29: 0 | M29: 0 | N29: 0 | O29: 0 | P29: 0 | Q29: 0 | R29: 0 | S29: 0 | T29: 0 | U29: 0 | V29: 0 | W29: 0
C30: Renewable Removed | D30: =D19+D20+D18+D21 -> 0 | E30: =E19+E20+E18+E21+D30 -> -27.65 | F30: =F19+F20+F18+F21+E30 -> -213.35 | G30: -437.35 | H30: -438.75 | I30: -500.55 | J30: -500.55 | K30: -566.45 | L30: -569.45 | M30: -578.65 | N30: -672.05 | O30: -821.15 | P30: -1094.75 | Q30: -1208.65 | R30: -1409.55 | S30: -1565.357 | T30: -1601.257 | U30: -1881.557 | V30: -2995.757 | W30: -3038.757
C32: Gas
C33: Incremental | D33: 2019 | E33: 2020 | F33: 2021 | G33: 2022 | H33: 2023 | I33: 2024 | J33: 2025 | K33: 2026 | L33: 2027 | M33: 2028 | N33: 2029 | O33: 2030 | P33: 2031 | Q33: 2032 | R33: 2033 | S33: 2034 | T33: 2035 | U33: 2036 | V33: 2037 | W33: 2038
C34: Gas Peaker | D34: =SUMIF($A$69:$A$302,$C34,D$69:D$302) -> 0 | E34: 0 | F34: 0 | G34: 0 | H34: 0 | I34: 0 | J34: 0 | K34: 184.9 | L34: 0 | M34: 0 | N34: =SUMIF($A$69:$A$302,$C34,N$69:N$302) -> 0 | O34: 369.8 | P34: 0 | Q34: 0 | R34: 0 | S34: 0 | T34: 0 | U34: 0 | V34: 812.6 | W34: 0
C35: Gas CCCT | D35: 0 | E35: 0 | F35: 0 | G35: 0 | H35: 0 | I35: 0 | J35: 0 | K35: 0 | L35: 0 | M35: 0 | N35: 0 | O35: 0 | P35: 0 | Q35: 0 | R35: 0 | S35: 0 | T35: 0 | U35: 0 | V35: 505.2 | W35: 0
C36: Gas Conv. | D36: 0 | E36: 247 | F36: 0 | G36: 0 | H36: 0 | I36: 0 | J36: 0 | K36: 0 | L36: 0 | M36: 0 | N36: 0 | O36: -247 | P36: 0 | Q36: 0 | R36: 0 | S36: 0 | T36: 0 | U36: 0 | V36: 0 | W36: 0
C37: Gas Removed | D37: 0 | E37: 0 | F37: 0 | G37: 0 | H37: 0 | I37: 0 | J37: 0 | K37: 0 | L37: 0 | M37: 0 | N37: 0 | O37: 0 | P37: 0 | Q37: 0 | R37: -356.3 | S37: 0 | T37: 0 | U37: 0 | V37: -237 | W37: 0
C39: Cumulative | D39: 2019 | E39: 2020 | F39: 2021 | G39: 2022 | H39: 2023 | I39: 2024 | J39: 2025 | K39: 2026 | L39: 2027 | M39: 2028 | N39: 2029 | O39: 2030 | P39: 2031 | Q39: 2032 | R39: 2033 | S39: 2034 | T39: 2035 | U39: 2036 | V39: 2037 | W39: 2038
C40: Gas Peaker | D40: =D34 -> 0 | E40: =D40+E34 -> 0 | F40: =E40+F34 -> 0 | G40: 0 | H40: 0 | I40: 0 | J40: 0 | K40: 184.9 | L40: 184.9 | M40: 184.9 | N40: 184.9 | O40: 554.7 | P40: 554.7 | Q40: 554.7 | R40: 554.7 | S40: 554.7 | T40: 554.7 | U40: 554.7 | V40: 1367.3 | W40: 1367.3
C41: Gas CCCT | D41: =D35 -> 0 | E41: =D41+E35 -> 0 | F41: =E41+F35 -> 0 | G41: 0 | H41: 0 | I41: 0 | J41: 0 | K41: 0 | L41: 0 | M41: 0 | N41: 0 | O41: 0 | P41: 0 | Q41: 0 | R41: 0 | S41: 0 | T41: 0 | U41: 0 | V41: 505.2 | W41: 505.2
C42: Gas Conv. | D42: =D36 -> 0 | E42: =D42+E36 -> 247 | F42: =E42+F36 -> 247 | G42: 247 | H42: 247 | I42: 247 | J42: 247 | K42: 247 | L42: 247 | M42: 247 | N42: 247 | O42: 0 | P42: 0 | Q42: 0 | R42: 0 | S42: 0 | T42: 0 | U42: 0 | V42: 0 | W42: 0
C43: Gas Removed | D43: =D37 -> 0 | E43: =D43+E37 -> 0 | F43: 0 | G43: 0 | H43: 0 | I43: 0 | J43: 0 | K43: 0 | L43: 0 | M43: 0 | N43: 0 | O43: 0 | P43: 0 | Q43: 0 | R43: -356.3 | S43: -356.3 | T43: -356.3 | U43: -356.3 | V43: -593.3 | W43: -593.3
C45: Demand-Side Management
C46: Incremental | D46: 2019 | E46: 2020 | F46: 2021 | G46: 2022 | H46: 2023 | I46: 2024 | J46: 2025 | K46: 2026 | L46: 2027 | M46: 2028 | N46: 2029 | O46: 2030 | P46: 2031 | Q46: 2032 | R46: 2033 | S46: 2034 | T46: 2035 | U46: 2036 | V46: 2037 | W46: 2038
C47: Class 2 DSM | D47: =SUMIF($A$69:$A$302,$C47,D$69:D$302) -> 126 | E47: 132.06 | F47: 132.69 | G47: 142.58 | H47: 146.74 | I47: 151.06 | J47: 147.19 | K47: 144.01 | L47: 143.26 | M47: 137.82 | N47: =SUMIF($A$69:$A$302,$C47,N$69:N$302) -> 126.4 | O47: 120.44 | P47: 113.54 | Q47: 110.14 | R47: 99.42 | S47: 81.79 | T47: 77.37 | U47: 65.28 | V47: 58.1 | W47: 59.23
C48: Class 1 DSM | D48: 4.06 | E48: 0 | F48: 7.004 | G48: 0 | H48: 18.11 | I48: 0 | J48: 8.211 | K48: 7.166 | L48: 0 | M48: 0 | N48: 132.711 | O48: 8.214 | P48: 0 | Q48: 11.995 | R48: 0 | S48: 0 | T48: 15.343 | U48: 3.654 | V48: 59.272 | W48: 168.649
C50: Cumulative | D50: 2019 | E50: 2020 | F50: 2021 | G50: 2022 | H50: 2023 | I50: 2024 | J50: 2025 | K50: 2026 | L50: 2027 | M50: 2028 | N50: 2029 | O50: 2030 | P50: 2031 | Q50: 2032 | R50: 2033 | S50: 2034 | T50: 2035 | U50: 2036 | V50: 2037 | W50: 2038
C51: Class 2 DSM | D51: =D47 -> 126 | E51: =D51+E47 -> 258.06 | F51: 390.75 | G51: 533.33 | H51: 680.07 | I51: 831.13 | J51: 978.32 | K51: 1122.33 | L51: 1265.59 | M51: 1403.41 | N51: 1529.81 | O51: 1650.25 | P51: 1763.79 | Q51: 1873.93 | R51: 1973.35 | S51: 2055.14 | T51: 2132.51 | U51: 2197.79 | V51: 2255.89 | W51: 2315.12
C52: Class 1 DSM | D52: =D48 -> 4.06 | E52: 4.06 | F52: 11.064 | G52: 11.064 | H52: 29.174 | I52: 29.174 | J52: 37.385 | K52: 44.551 | L52: 44.551 | M52: 44.551 | N52: 177.262 | O52: 185.476 | P52: 185.476 | Q52: 197.471 | R52: 197.471 | S52: 197.471 | T52: 212.814 | U52: 216.468 | V52: 275.74 | W52: 444.389
C54: FOTs
C55: Incremental | D55: 2019 | E55: 2020 | F55: 2021 | G55: 2022 | H55: 2023 | I55: 2024 | J55: 2025 | K55: 2026 | L55: 2027 | M55: 2028 | N55: 2029 | O55: 2030 | P55: 2031 | Q55: 2032 | R55: 2033 | S55: 2034 | T55: 2035 | U55: 2036 | V55: 2037 | W55: 2038
C56: FOT | D56: =SUMIF($A$69:$A$302,$C56,D$69:D$302) -> 997.762 | E56: 719.45 | F56: 493 | G56: 502.68 | H56: 497.88 | I56: 130.95 | J56: 126.445 | K56: 191.24 | L56: 264 | M56: 1162.54 | N56: =SUMIF($A$69:$A$302,$C56,N$69:N$302) -> 1375 | O56: 1273.63 | P56: 1248.79 | Q56: 1281.31 | R56: 1372.69 | S56: 1375 | T56: 1374.475 | U56: 1276.6 | V56: 1374.475 | W56: 1375
C57: Winter FOT | D57: 151.445 | E57: 130.96 | F57: 268.48 | G57: 303.32 | H57: 314 | I57: 44.275 | J57: 50.8 | K57: 52.575 | L57: 99.65 | M57: 231.56 | N57: 222.2 | O57: 172.97 | P57: 191.99 | Q57: 128.03 | R57: 62.76 | S57: 0 | T57: 35.4 | U57: 0 | V57: 0 | W57: 0
C59: Removed Capacity | D59: =D8+D30+D43 -> 0 | E59: =E8+E30+E43 -> -307.65 | F59: -880.35 | G59: -1104.35 | H59: -1105.75 | I59: -1518.05 | J59: -1518.05 | K59: -2023.25 | L59: -2107.75 | M59: -3019.95 | N59: -3469.15 | O59: -3618.25 | P59: -3968.45 | Q59: -4082.35 | R59: -4639.55 | S59: -4795.357 | T59: -4831.257 | U59: -5111.557 | V59: -7371.757 | W59: -8116.757
B64: Study Name: I19-P45CNW-MMR (09-22-19 1006 AM)
D66: Capacity (MW)
C67: Resource | D67: 2019 | E67: 2020 | F67: 2021 | G67: 2022 | H67: 2023 | I67: 2024 | J67: 2025 | K67: 2026 | L67: 2027 | M67: 2028 | N67: 2029 | O67: 2030 | P67: 2031 | Q67: 2032 | R67: 2033 | S67: 2034 | T67: 2035 | U67: 2036 | V67: 2037 | W67: 2038
A68: =IF(AND(B68<>"West",OR(A67="Winter FOT",A67="Done")),"Done",VLOOKUP(C68,'Resource Map'!$B$3:$C$509,2,FALSE)) -> - | B68: East | C68: Existing Plant Retirements and PPA Termination
A69: =IF(AND(B69<>"West",OR(A68="Winter FOT",A68="Done")),"Done",VLOOKUP(C69,'Resource Map'!$B$3:$C$509,2,FALSE)) -> Coal Removed | C69: Craig 1 (Coal Early Retirement/Conversions) | D69: 0 | E69: 0 | F69: 0 | G69: 0 | H69: 0 | I69: 0 | J69: 0 | K69: -82.3 | L69: 0 | M69: 0 | N69: 0 | O69: 0 | P69: 0 | Q69: 0 | R69: 0 | S69: 0 | T69: 0 | U69: 0 | V69: 0 | W69: 0
A70: =IF(AND(B70<>"West",OR(A69="Winter FOT",A69="Done")),"Done",VLOOKUP(C70,'Resource Map'!$B$3:$C$509,2,FALSE)) -> Coal Removed | C70: Craig 2 (Coal Early Retirement/Conversions) | D70: 0 | E70: 0 | F70: 0 | G70: 0 | H70: 0 | I70: 0 | J70: 0 | K70: 0 | L70: -81.5 | M70: 0 | N70: 0 | O70: 0 | P70: 0 | Q70: 0 | R70: 0 | S70: 0 | T70: 0 | U70: 0 | V70: 0 | W70: 0
A71: =IF(AND(B71<>"West",OR(A70="Winter FOT",A70="Done")),"Done",VLOOKUP(C71,'Resource Map'!$B$3:$C$509,2,FALSE)) -> Coal Removed | C71: Hayden 1 | D71: 0 | E71: 0 | F71: 0 | G71: 0 | H71: 0 | I71: 0 | J71: 0 | K71: 0 | L71: 0 | M71: 0 | N71: 0 | O71: 0 | P71: -43.9 | Q71: 0 | R71: 0 | S71: 0 | T71: 0 | U71: 0 | V71: 0 | W71: 0
A72: =IF(AND(B72<>"West",OR(A71="Winter FOT",A71="Done")),"Done",VLOOKUP(C72,'Resource Map'!$B$3:$C$509,2,FALSE)) -> Coal Removed | C72: Hayden 2 | D72: 0 | E72: 0 | F72: 0 | G72: 0 | H72: 0 | I72: 0 | J72: 0 | K72: 0 | L72: 0 | M72: 0 | N72: 0 | O72: 0 | P72: -32.7 | Q72: 0 | R72: 0 | S72: 0 | T72: 0 | U72: 0 | V72: 0 | W72: 0
A73: =IF(AND(B73<>"West",OR(A72="Winter FOT",A72="Done")),"Done",VLOOKUP(C73,'Resource Map'!$B$3:$C$509,2,FALSE)) -> Coal Removed | C73: Huntington 1 | D73: 0 | E73: 0 | F73: 0 | G73: 0 | H73: 0 | I73: 0 | J73: 0 | K73: 0 | L73: 0 | M73: 0 | N73: 0 | O73: 0 | P73: 0 | Q73: 0 | R73: 0 | S73: 0 | T73: 0 | U73: 0 | V73: -459 | W73: 0
A74: =IF(AND(B74<>"West",OR(A73="Winter FOT",A73="Done")),"Done",VLOOKUP(C74,'Resource Map'!$B$3:$C$509,2,FALSE)) -> Coal Removed | C74: Huntington 2 | D74: 0 | E74: 0 | F74: 0 | G74: 0 | H74: 0 | I74: 0 | J74: 0 | K74: 0 | L74: 0 | M74: 0 | N74: 0 | O74: 0 | P74: 0 | Q74: 0 | R74: 0 | S74: 0 | T74: 0 | U74: 0 | V74: -450 | W74: 0
A75: =IF(AND(B75<>"West",OR(A74="Winter FOT",A74="Done")),"Done",VLOOKUP(C75,'Resource Map'!$B$3:$C$509,2,FALSE)) -> Coal Removed | C75: Colstrip 3 (Coal Early Retirement/Conversions) | D75: 0 | E75: 0 | F75: 0 | G75: 0 | H75: 0 | I75: 0 | J75: 0 | K75: 0 | L75: 0 | M75: -74 | N75: 0 | O75: 0 | P75: 0 | Q75: 0 | R75: 0 | S75: 0 | T75: 0 | U75: 0 | V75: 0 | W75: 0
A76: =IF(AND(B76<>"West",OR(A75="Winter FOT",A75="Done")),"Done",VLOOKUP(C76,'Resource Map'!$B$3:$C$509,2,FALSE)) -> Coal Removed | C76: Colstrip 4 (Coal Early Retirement/Conversions) | D76: 0 | E76: 0 | F76: 0 | G76: 0 | H76: 0 | I76: 0 | J76: 0 | K76: 0 | L76: 0 | M76: -74 | N76: 0 | O76: 0 | P76: 0 | Q76: 0 | R76: 0 | S76: 0 | T76: 0 | U76: 0 | V76: 0 | W76: 0
A77: =IF(AND(B77<>"West",OR(A76="Winter FOT",A76="Done")),"Done",VLOOKUP(C77,'Resource Map'!$B$3:$C$509,2,FALSE)) -> Coal Removed | C77: Cholla 4 (Coal Early Retirement/Conversions) | D77: 0 | E77: 0 | F77: -387 | G77: 0 | H77: 0 | I77: 0 | J77: 0 | K77: 0 | L77: 0 | M77: 0 | N77: 0 | O77: 0 | P77: 0 | Q77: 0 | R77: 0 | S77: 0 | T77: 0 | U77: 0 | V77: 0 | W77: 0
A78: =IF(AND(B78<>"West",OR(A77="Winter FOT",A77="Done")),"Done",VLOOKUP(C78,'Resource Map'!$B$3:$C$509,2,FALSE)) -> Coal Removed | C78: DaveJohnston 1 | D78: 0 | E78: 0 | F78: 0 | G78: 0 | H78: 0 | I78: 0 | J78: 0 | K78: 0 | L78: 0 | M78: -99 | N78: 0 | O78: 0 | P78: 0 | Q78: 0 | R78: 0 | S78: 0 | T78: 0 | U78: 0 | V78: 0 | W78: 0
A79: =IF(AND(B79<>"West",OR(A78="Winter FOT",A78="Done")),"Done",VLOOKUP(C79,'Resource Map'!$B$3:$C$509,2,FALSE)) -> Coal Removed | C79: DaveJohnston 2 | D79: 0 | E79: 0 | F79: 0 | G79: 0 | H79: 0 | I79: 0 | J79: 0 | K79: 0 | L79: 0 | M79: -106 | N79: 0 | O79: 0 | P79: 0 | Q79: 0 | R79: 0 | S79: 0 | T79: 0 | U79: 0 | V79: 0 | W79: 0
A80: =IF(AND(B80<>"West",OR(A79="Winter FOT",A79="Done")),"Done",VLOOKUP(C80,'Resource Map'!$B$3:$C$509,2,FALSE)) -> Coal Removed | C80: DaveJohnston 3 | D80: 0 | E80: 0 | F80: 0 | G80: 0 | H80: 0 | I80: 0 | J80: 0 | K80: 0 | L80: 0 | M80: -220 | N80: 0 | O80: 0 | P80: 0 | Q80: 0 | R80: 0 | S80: 0 | T80: 0 | U80: 0 | V80: 0 | W80: 0
A81: =IF(AND(B81<>"West",OR(A80="Winter FOT",A80="Done")),"Done",VLOOKUP(C81,'Resource Map'!$B$3:$C$509,2,FALSE)) -> Coal Removed | C81: DaveJohnston 4 | D81: 0 | E81: 0 | F81: 0 | G81: 0 | H81: 0 | I81: 0 | J81: 0 | K81: 0 | L81: 0 | M81: -330 | N81: 0 | O81: 0 | P81: 0 | Q81: 0 | R81: 0 | S81: 0 | T81: 0 | U81: 0 | V81: 0 | W81: 0
A82: =IF(AND(B82<>"West",OR(A81="Winter FOT",A81="Done")),"Done",VLOOKUP(C82,'Resource Map'!$B$3:$C$509,2,FALSE)) -> Coal Removed | C82: Naughton 1 (Coal Early Retirement/Conversions) | D82: 0 | E82: 0 | F82: 0 | G82: 0 | H82: 0 | I82: 0 | J82: 0 | K82: -156 | L82: 0 | M82: 0 | N82: 0 | O82: 0 | P82: 0 | Q82: 0 | R82: 0 | S82: 0 | T82: 0 | U82: 0 | V82: 0 | W82: 0
A83: =IF(AND(B83<>"West",OR(A82="Winter FOT",A82="Done")),"Done",VLOOKUP(C83,'Resource Map'!$B$3:$C$509,2,FALSE)) -> Coal Removed | C83: Naughton 2 (Coal Early Retirement/Conversions) | D83: 0 | E83: 0 | F83: 0 | G83: 0 | H83: 0 | I83: 0 | J83: 0 | K83: -201 | L83: 0 | M83: 0 | N83: 0 | O83: 0 | P83: 0 | Q83: 0 | R83: 0 | S83: 0 | T83: 0 | U83: 0 | V83: 0 | W83: 0
A84: =IF(AND(B84<>"West",OR(A83="Winter FOT",A83="Done")),"Done",VLOOKUP(C84,'Resource Map'!$B$3:$C$509,2,FALSE)) -> Coal Removed | C84: Naughton 3 (Coal Early Retirement/Conversions) | D84: 0 | E84: -280 | F84: 0 | G84: 0 | H84: 0 | I84: 0 | J84: 0 | K84: 0 | L84: 0 | M84: 0 | N84: 0 | O84: 0 | P84: 0 | Q84: 0 | R84: 0 | S84: 0 | T84: 0 | U84: 0 | V84: 0 | W84: 0
A85: =IF(AND(B85<>"West",OR(A84="Winter FOT",A84="Done")),"Done",VLOOKUP(C85,'Resource Map'!$B$3:$C$509,2,FALSE)) -> Gas Removed | C85: Gadsby 1-6 | D85: 0 | E85: 0 | F85: 0 | G85: 0 | H85: 0 | I85: 0 | J85: 0 | K85: 0 | L85: 0 | M85: 0 | N85: 0 | O85: 0 | P85: 0 | Q85: 0 | R85: -356.3 | S85: 0 | T85: 0 | U85: 0 | V85: 0 | W85: 0
A86: =IF(AND(B86<>"West",OR(A85="Winter FOT",A85="Done")),"Done",VLOOKUP(C86,'Resource Map'!$B$3:$C$509,2,FALSE)) -> Hydro Removed | C86: Retire - Hydro | D86: 0 | E86: 0 | F86: 0 | G86: 0 | H86: 0 | I86: -20.28 | J86: 0 | K86: 0 | L86: 0 | M86: 0 | N86: 0 | O86: 0 | P86: 0 | Q86: 0 | R86: 0 | S86: 0 | T86: 0 | U86: 0 | V86: 0 | W86: 0
A87: =IF(AND(B87<>"West",OR(A86="Winter FOT",A86="Done")),"Done",VLOOKUP(C87,'Resource Map'!$B$3:$C$509,2,FALSE)) -> Wind Removed | C87: Retire - Wind | D87: 0 | E87: 0 | F87: 0 | G87: 0 | H87: 0 | I87: 0 | J87: 0 | K87: 0 | L87: 0 | M87: 0 | N87: 0 | O87: -40.2 | P87: 0 | Q87: 0 | R87: 0 | S87: 0 | T87: 0 | U87: 0 | V87: 0 | W87: 0
A88: =IF(AND(B88<>"West",OR(A87="Winter FOT",A87="Done")),"Done",VLOOKUP(C88,'Resource Map'!$B$3:$C$509,2,FALSE)) -> Wind Removed | C88: Expire - Wind PPA | D88: 0 | E88: -26.55 | F88: -16.8 | G88: -49 | H88: -0.2 | I88: 0 | J88: 0 | K88: -64.5 | L88: -3 | M88: 0 | N88: -18.9 | O88: -99 | P88: -200.2 | Q88: -45 | R88: -180.9 | S88: -80 | T88: 0 | U88: -60 | V88: -80 | W88: 0
A89: =IF(AND(B89<>"West",OR(A88="Winter FOT",A88="Done")),"Done",VLOOKUP(C89,'Resource Map'!$B$3:$C$509,2,FALSE)) -> Solar Removed | C89: Expire - Solar PPA | D89: 0 | E89: 0 | F89: 0 | G89: 0 | H89: -0.5 | I89: -0.52 | J89: 0 | K89: 0 | L89: 0 | M89: 0 | N89: 0 | O89: 0 | P89: 0 | Q89: 0 | R89: 0 | S89: 0 | T89: -35.1 | U89: -94.1 | V89: -849 | W89: 0
A90: =IF(AND(B90<>"West",OR(A89="Winter FOT",A89="Done")),"Done",VLOOKUP(C90,'Resource Map'!$B$3:$C$509,2,FALSE)) -> Other Removed | C90: Retire - Other | D90: 0 | E90: 0 | F90: 0 | G90: 0 | H90: 0 | I90: 0 | J90: 0 | K90: 0 | L90: 0 | M90: 0 | N90: 0 | O90: 0 | P90: 0 | Q90: 0 | R90: 0 | S90: -0.907 | T90: 0 | U90: 0 | V90: 0 | W90: -32.1
A91: =IF(AND(B91<>"West",OR(A90="Winter FOT",A90="Done")),"Done",VLOOKUP(C91,'Resource Map'!$B$3:$C$509,2,FALSE)) -> Gas Conv. | C91: Coal Ret_WY - Gas RePower | D91: 0 | E91: 247 | F91: 0 | G91: 0 | H91: 0 | I91: 0 | J91: 0 | K91: 0 | L91: 0 | M91: 0 | N91: 0 | O91: -247 | P91: 0 | Q91: 0 | R91: 0 | S91: 0 | T91: 0 | U91: 0 | V91: 0 | W91: 0
A92: =IF(AND(B92<>"West",OR(A91="Winter FOT",A91="Done")),"Done",VLOOKUP(C92,'Resource Map'!$B$3:$C$509,2,FALSE)) -> - | C92: Expansion Resources
A93: =IF(AND(B93<>"West",OR(A92="Winter FOT",A92="Done")),"Done",VLOOKUP(C93,'Resource Map'!$B$3:$C$509,2,FALSE)) -> Gas CCCT | C93: CCCT - DJohns - J 1x1 | D93: 0 | E93: 0 | F93: 0 | G93: 0 | H93: 0 | I93: 0 | J93: 0 | K93: 0 | L93: 0 | M93: 0 | N93: 0 | O93: 0 | P93: 0 | Q93: 0 | R93: 0 | S93: 0 | T93: 0 | U93: 0 | V93: 505.2 | W93: 0
A94: =IF(AND(B94<>"West",OR(A93="Winter FOT",A93="Done")),"Done",VLOOKUP(C94,'Resource Map'!$B$3:$C$509,2,FALSE)) -> - | C94: Total CCCT | D94: 0 | E94: 0 | F94: 0 | G94: 0 | H94: 0 | I94: 0 | J94: 0 | K94: 0 | L94: 0 | M94: 0 | N94: 0 | O94: 0 | P94: 0 | Q94: 0 | R94: 0 | S94: 0 | T94: 0 | U94: 0 | V94: 505.2 | W94: 0
A95: =IF(AND(B95<>"West",OR(A94="Winter FOT",A94="Done")),"Done",VLOOKUP(C95,'Resource Map'!$B$3:$C$509,2,FALSE)) -> Gas Peaker | C95: SCCT Frame NTN | D95: 0 | E95: 0 | F95: 0 | G95: 0 | H95: 0 | I95: 0 | J95: 0 | K95: 184.9 | L95: 0 | M95: 0 | N95: 0 | O95: 369.8 | P95: 0 | Q95: 0 | R95: 0 | S95: 0 | T95: 0 | U95: 0 | V95: 0 | W95: 0
A96: =IF(AND(B96<>"West",OR(A95="Winter FOT",A95="Done")),"Done",VLOOKUP(C96,'Resource Map'!$B$3:$C$509,2,FALSE)) -> Gas Peaker | C96: SCCT Frame WYSW | D96: 0 | E96: 0 | F96: 0 | G96: 0 | H96: 0 | I96: 0 | J96: 0 | K96: 0 | L96: 0 | M96: 0 | N96: 0 | O96: 0 | P96: 0 | Q96: 0 | R96: 0 | S96: 0 | T96: 0 | U96: 0 | V96: 369.8 | W96: 0
A97: =IF(AND(B97<>"West",OR(A96="Winter FOT",A96="Done")),"Done",VLOOKUP(C97,'Resource Map'!$B$3:$C$509,2,FALSE)) -> - | C97: Total SCCT | D97: 0 | E97: 0 | F97: 0 | G97: 0 | H97: 0 | I97: 0 | J97: 0 | K97: 184.9 | L97: 0 | M97: 0 | N97: 0 | O97: 369.8 | P97: 0 | Q97: 0 | R97: 0 | S97: 0 | T97: 0 | U97: 0 | V97: 369.8 | W97: 0
A98: =IF(AND(B98<>"West",OR(A97="Winter FOT",A97="Done")),"Done",VLOOKUP(C98,'Resource Map'!$B$3:$C$509,2,FALSE)) -> Wind | C98: Wind, GO | D98: 0 | E98: 0 | F98: 0 | G98: 0 | H98: 0 | I98: 0 | J98: 0 | K98: 0 | L98: 0 | M98: 0 | N98: 0 | O98: 1039.6 | P98: 0 | Q98: 0 | R98: 0 | S98: 0 | T98: 0 | U98: 0 | V98: 0 | W98: 0
A99: =IF(AND(B99<>"West",OR(A98="Winter FOT",A98="Done")),"Done",VLOOKUP(C99,'Resource Map'!$B$3:$C$509,2,FALSE)) -> Wind | C99: Wind, UT | D99: 0 | E99: 0 | F99: 0 | G99: 0 | H99: 69.2 | I99: 0 | J99: 0 | K99: 0 | L99: 0 | M99: 0 | N99: 0 | O99: 0 | P99: 0 | Q99: 0 | R99: 0 | S99: 0 | T99: 0 | U99: 0 | V99: 0 | W99: 0
A100: =IF(AND(B100<>"West",OR(A99="Winter FOT",A99="Done")),"Done",VLOOKUP(C100,'Resource Map'!$B$3:$C$509,2,FALSE)) -> Wind | C100: Wind, WYAE | D100: 0 | E100: 0 | F100: 0 | G100: 0 | H100: 0 | I100: 1920 | J100: 0 | K100: 0 | L100: 0 | M100: 0 | N100: 0 | O100: 0 | P100: 0 | Q100: 0 | R100: 0 | S100: 0 | T100: 0 | U100: 0 | V100: 0 | W100: 0
A101: =IF(AND(B101<>"West",OR(A100="Winter FOT",A100="Done")),"Done",VLOOKUP(C101,'Resource Map'!$B$3:$C$509,2,FALSE)) -> Wind+Bat | C101: Wind+Storage, GO | D101: 0 | E101: 0 | F101: 0 | G101: 0 | H101: 0 | I101: 0 | J101: 0 | K101: 0 | L101: 0 | M101: 0 | N101: 0 | O101: 0 | P101: 0 | Q101: 60.4 | R101: 0 | S101: 0 | T101: 0 | U101: 0 | V101: 0 | W101: 0
A102: =IF(AND(B102<>"West",OR(A101="Winter FOT",A101="Done")),"Done",VLOOKUP(C102,'Resource Map'!$B$3:$C$509,2,FALSE)) -> - | C102: Total Wind | D102: 0 | E102: 0 | F102: 0 | G102: 0 | H102: 69.2 | I102: 1920 | J102: 0 | K102: 0 | L102: 0 | M102: 0 | N102: 0 | O102: 1039.6 | P102: 0 | Q102: 60.4 | R102: 0 | S102: 0 | T102: 0 | U102: 0 | V102: 0 | W102: 0
A103: =IF(AND(B103<>"West",OR(A102="Winter FOT",A102="Done")),"Done",VLOOKUP(C103,'Resource Map'!$B$3:$C$509,2,FALSE)) -> Solar+Bat | C103: Utility Solar+Storage - PV - Utah-S | D103: 0 | E103: 0 | F103: 0 | G103: 0 | H103: 0 | I103: 230.8 | J103: 0 | K103: 0 | L103: 0 | M103: 0 | N103: 0 | O103: 500 | P103: 0 | Q103: 0 | R103: 0 | S103: 0 | T103: 0 | U103: 0 | V103: 0 | W103: 0
A104: =IF(AND(B104<>"West",OR(A103="Winter FOT",A103="Done")),"Done",VLOOKUP(C104,'Resource Map'!$B$3:$C$509,2,FALSE)) -> Solar+Bat | C104: Utility Solar+Storage - PV - Huntington | D104: 0 | E104: 0 | F104: 0 | G104: 0 | H104: 0 | I104: 0 | J104: 0 | K104: 0 | L104: 0 | M104: 0 | N104: 0 | O104: 0 | P104: 0 | Q104: 0 | R104: 0 | S104: 0 | T104: 0 | U104: 0 | V104: 909 | W104: 0
A105: =IF(AND(B105<>"West",OR(A104="Winter FOT",A104="Done")),"Done",VLOOKUP(C105,'Resource Map'!$B$3:$C$509,2,FALSE)) -> Solar+Bat | C105: Utility Solar+Storage - PV - Utah-N | D105: 0 | E105: 0 | F105: 159.2 | G105: 63.8 | H105: 3.4 | I105: 673.6 | J105: 0 | K105: 0 | L105: 0 | M105: 0 | N105: 0 | O105: 0 | P105: 0 | Q105: 0 | R105: 0 | S105: 0 | T105: 0 | U105: 0 | V105: 0 | W105: 0
A106: =IF(AND(B106<>"West",OR(A105="Winter FOT",A105="Done")),"Done",VLOOKUP(C106,'Resource Map'!$B$3:$C$509,2,FALSE)) -> - | C106: Total Solar | D106: 0 | E106: 0 | F106: 159.2 | G106: 63.8 | H106: 3.4 | I106: 904.4 | J106: 0 | K106: 0 | L106: 0 | M106: 0 | N106: 0 | O106: 500 | P106: 0 | Q106: 0 | R106: 0 | S106: 0 | T106: 0 | U106: 0 | V106: 909 | W106: 0
A107: =IF(AND(B107<>"West",OR(A106="Winter FOT",A106="Done")),"Done",VLOOKUP(C107,'Resource Map'!$B$3:$C$509,2,FALSE)) -> Class 1 DSM | C107: Demand Response, ID-Irrigate | D107: 0 | E107: 0 | F107: 0 | G107: 0 | H107: 0 | I107: 0 | J107: 0 | K107: 0 | L107: 0 | M107: 0 | N107: 0 | O107: 0 | P107: 0 | Q107: 5.152 | R107: 0 | S107: 0 | T107: 0 | U107: 3.654 | V107: 0 | W107: 1.789
A108: =IF(AND(B108<>"West",OR(A107="Winter FOT",A107="Done")),"Done",VLOOKUP(C108,'Resource Map'!$B$3:$C$509,2,FALSE)) -> Class 1 DSM | C108: Demand Response, UT-Cool/WH | D108: 4.06 | E108: 0 | F108: 7.004 | G108: 0 | H108: 9.858 | I108: 0 | J108: 0 | K108: 7.166 | L108: 0 | M108: 0 | N108: 6.693 | O108: 0 | P108: 0 | Q108: 6.843 | R108: 0 | S108: 0 | T108: 7.008 | U108: 0 | V108: 0 | W108: 7.237
A109: =IF(AND(B109<>"West",OR(A108="Winter FOT",A108="Done")),"Done",VLOOKUP(C109,'Resource Map'!$B$3:$C$509,2,FALSE)) -> Class 1 DSM | C109: Demand Response, UT-3rd Party Contracts | D109: 0 | E109: 0 | F109: 0 | G109: 0 | H109: 0 | I109: 0 | J109: 0 | K109: 0 | L109: 0 | M109: 0 | N109: 0 | O109: 0 | P109: 0 | Q109: 0 | R109: 0 | S109: 0 | T109: 0 | U109: 0 | V109: 0 | W109: 76.708
A110: =IF(AND(B110<>"West",OR(A109="Winter FOT",A109="Done")),"Done",VLOOKUP(C110,'Resource Map'!$B$3:$C$509,2,FALSE)) -> Class 1 DSM | C110: Demand Response, UT-Irrigate | D110: 0 | E110: 0 | F110: 0 | G110: 0 | H110: 0 | I110: 0 | J110: 0 | K110: 0 | L110: 0 | M110: 0 | N110: 0 | O110: 0 | P110: 0 | Q110: 0 | R110: 0 | S110: 0 | T110: 0 | U110: 0 | V110: 0 | W110: 1.927
A111: =IF(AND(B111<>"West",OR(A110="Winter FOT",A110="Done")),"Done",VLOOKUP(C111,'Resource Map'!$B$3:$C$509,2,FALSE)) -> Class 1 DSM | C111: Demand Response, UT-Thermostat | D111: 0 | E111: 0 | F111: 0 | G111: 0 | H111: 0 | I111: 0 | J111: 0 | K111: 0 | L111: 0 | M111: 0 | N111: 116.655 | O111: 8.214 | P111: 0 | Q111: 0 | R111: 0 | S111: 0 | T111: 8.335 | U111: 0 | V111: 0 | W111: 5.118
A112: =IF(AND(B112<>"West",OR(A111="Winter FOT",A111="Done")),"Done",VLOOKUP(C112,'Resource Map'!$B$3:$C$509,2,FALSE)) -> Class 1 DSM | C112: Demand Response, WY-Cool/WH | D112: 0 | E112: 0 | F112: 0 | G112: 0 | H112: 0 | I112: 0 | J112: 0 | K112: 0 | L112: 0 | M112: 0 | N112: 0 | O112: 0 | P112: 0 | Q112: 0 | R112: 0 | S112: 0 | T112: 0 | U112: 0 | V112: 0 | W112: 5.225
A113: =IF(AND(B113<>"West",OR(A112="Winter FOT",A112="Done")),"Done",VLOOKUP(C113,'Resource Map'!$B$3:$C$509,2,FALSE)) -> Class 1 DSM | C113: Demand Response, WY-3rd Party Contracts | D113: 0 | E113: 0 | F113: 0 | G113: 0 | H113: 0 | I113: 0 | J113: 0 | K113: 0 | L113: 0 | M113: 0 | N113: 0 | O113: 0 | P113: 0 | Q113: 0 | R113: 0 | S113: 0 | T113: 0 | U113: 0 | V113: 0 | W113: 37.33
A114: =IF(AND(B114<>"West",OR(A113="Winter FOT",A113="Done")),"Done",VLOOKUP(C114,'Resource Map'!$B$3:$C$509,2,FALSE)) -> Class 1 DSM | C114: Demand Response, WY-Irrigate | D114: 0 | E114: 0 | F114: 0 | G114: 0 | H114: 0 | I114: 0 | J114: 0 | K114: 0 | L114: 0 | M114: 0 | N114: 0 | O114: 0 | P114: 0 | Q114: 0 | R114: 0 | S114: 0 | T114: 0 | U114: 0 | V114: 1.757 | W114: 0
A115: =IF(AND(B115<>"West",OR(A114="Winter FOT",A114="Done")),"Done",VLOOKUP(C115,'Resource Map'!$B$3:$C$509,2,FALSE)) -> Class 1 DSM | C115: Demand Response, WY-Thermostat | D115: 0 | E115: 0 | F115: 0 | G115: 0 | H115: 0 | I115: 0 | J115: 0 | K115: 0 | L115: 0 | M115: 0 | N115: 0 | O115: 0 | P115: 0 | Q115: 0 | R115: 0 | S115: 0 | T115: 0 | U115: 0 | V115: 5.493 | W115: 1.212
A116: =IF(AND(B116<>"West",OR(A115="Winter FOT",A115="Done")),"Done",VLOOKUP(C116,'Resource Map'!$B$3:$C$509,2,FALSE)) -> Class 1 DSM | C116: Demand Response, UT-Ancillary Services | D116: 0 | E116: 0 | F116: 0 | G116: 0 | H116: 8.252 | I116: 0 | J116: 5.253 | K116: 0 | L116: 0 | M116: 0 | N116: 0 | O116: 0 | P116: 0 | Q116: 0 | R116: 0 | S116: 0 | T116: 0 | U116: 0 | V116: 3.241 | W116: 0
A117: =IF(AND(B117<>"West",OR(A116="Winter FOT",A116="Done")),"Done",VLOOKUP(C117,'Resource Map'!$B$3:$C$509,2,FALSE)) -> Class 1 DSM | C117: Demand Response, WY-Ancillary Services | D117: 0 | E117: 0 | F117: 0 | G117: 0 | H117: 0 | I117: 0 | J117: 2.958 | K117: 0 | L117: 0 | M117: 0 | N117: 0 | O117: 0 | P117: 0 | Q117: 0 | R117: 0 | S117: 0 | T117: 0 | U117: 0 | V117: 0 | W117: 0
A118: =IF(AND(B118<>"West",OR(A117="Winter FOT",A117="Done")),"Done",VLOOKUP(C118,'Resource Map'!$B$3:$C$509,2,FALSE)) -> - | C118: Demand Response Total | D118: 4.06 | E118: 0 | F118: 7.004 | G118: 0 | H118: 18.11 | I118: 0 | J118: 8.211 | K118: 7.166 | L118: 0 | M118: 0 | N118: 123.348 | O118: 8.214 | P118: 0 | Q118: 11.995 | R118: 0 | S118: 0 | T118: 15.343 | U118: 3.654 | V118: 10.491 | W118: 136.546
A119: =IF(AND(B119<>"West",OR(A118="Winter FOT",A118="Done")),"Done",VLOOKUP(C119,'Resource Map'!$B$3:$C$509,2,FALSE)) -> Class 2 DSM | C119: Energy Efficiency, ID | D119: 6 | E119: 6.2 | F119: 6.32 | G119: 6.6 | H119: 7.48 | I119: 7.36 | J119: 7.3 | K119: 7.39 | L119: 7.25 | M119: 7.09 | N119: 6.82 | O119: 6.39 | P119: 6.1 | Q119: 6.05 | R119: 5.48 | S119: 4.42 | T119: 4.02 | U119: 3.27 | V119: 2.78 | W119: 2.89
A120: =IF(AND(B120<>"West",OR(A119="Winter FOT",A119="Done")),"Done",VLOOKUP(C120,'Resource Map'!$B$3:$C$509,2,FALSE)) -> Class 2 DSM | C120: Energy Efficiency, UT | D120: 58 | E120: 67.1 | F120: 67.2 | G120: 67.5 | H120: 68.8 | I120: 68.2 | J120: 67.1 | K120: 64.6 | L120: 64.8 | M120: 62.3 | N120: 57 | O120: 55.8 | P120: 52.3 | Q120: 51.7 | R120: 48 | S120: 35.9 | T120: 32.4 | U120: 24.6 | V120: 21.6 | W120: 23.4
A121: =IF(AND(B121<>"West",OR(A120="Winter FOT",A120="Done")),"Done",VLOOKUP(C121,'Resource Map'!$B$3:$C$509,2,FALSE)) -> Class 2 DSM | C121: Energy Efficiency, WY | D121: 10 | E121: 10.17 | F121: 10.99 | G121: 13.86 | H121: 15.38 | I121: 16.16 | J121: 16.47 | K121: 17.7 | L121: 17.61 | M121: 17.39 | N121: 16.12 | O121: 14.82 | P121: 13.13 | Q121: 12.29 | R121: 11.11 | S121: 8.79 | T121: 8.35 | U121: 6.92 | V121: 5.19 | W121: 5.33
A122: =IF(AND(B122<>"West",OR(A121="Winter FOT",A121="Done")),"Done",VLOOKUP(C122,'Resource Map'!$B$3:$C$509,2,FALSE)) -> - | C122: Energy Efficiency Total | D122: 74 | E122: 83.47 | F122: 84.51 | G122: 87.96 | H122: 91.66 | I122: 91.72 | J122: 90.87 | K122: 89.69 | L122: 89.66 | M122: 86.78 | N122: 79.94 | O122: 77.01 | P122: 71.53 | Q122: 70.04 | R122: 64.59 | S122: 49.11 | T122: 44.77 | U122: 34.79 | V122: 29.57 | W122: 31.62
A123: =IF(AND(B123<>"West",OR(A122="Winter FOT",A122="Done")),"Done",VLOOKUP(C123,'Resource Map'!$B$3:$C$509,2,FALSE)) -> Battery | C123: Battery Storage - Utah-S | D123: 0 | E123: 0 | F123: 0 | G123: 0 | H123: 0 | I123: 0 | J123: 0 | K123: 0 | L123: 0 | M123: 0 | N123: 0 | O123: 0 | P123: 0 | Q123: 0 | R123: 0 | S123: 0 | T123: 0 | U123: 0 | V123: 0 | W123: 195
A124: =IF(AND(B124<>"West",OR(A123="Winter FOT",A123="Done")),"Done",VLOOKUP(C124,'Resource Map'!$B$3:$C$509,2,FALSE)) -> Battery | C124: Battery Storage - WYSW | D124: 0 | E124: 0 | F124: 0 | G124: 0 | H124: 0 | I124: 0 | J124: 0 | K124: 0 | L124: 0 | M124: 0 | N124: 0 | O124: 0 | P124: 0 | Q124: 0 | R124: 0 | S124: 0 | T124: 0 | U124: 0 | V124: 0 | W124: 15
A125: =IF(AND(B125<>"West",OR(A124="Winter FOT",A124="Done")),"Done",VLOOKUP(C125,'Resource Map'!$B$3:$C$509,2,FALSE)) -> Battery | C125: Battery Storage - Idaho | D125: 0 | E125: 0 | F125: 0 | G125: 0 | H125: 0 | I125: 0 | J125: 0 | K125: 0 | L125: 0 | M125: 0 | N125: 0 | O125: 0 | P125: 30 | Q125: 0 | R125: 0 | S125: 0 | T125: 0 | U125: 0 | V125: 0 | W125: 150
A126: =IF(AND(B126<>"West",OR(A125="Winter FOT",A125="Done")),"Done",VLOOKUP(C126,'Resource Map'!$B$3:$C$509,2,FALSE)) -> FOT | C126: FOT East - Summer | D126: 0 | E126: 0 | F126: 0 | G126: 0 | H126: 0 | I126: 0 | J126: 0 | K126: 0 | L126: 0 | M126: 87.54 | N126: 300 | O126: 198.63 | P126: 173.79 | Q126: 206.31 | R126: 297.69 | S126: 300 | T126: 300 | U126: 300 | V126: 300 | W126: 300
A127: =IF(AND(B127<>"West",OR(A126="Winter FOT",A126="Done")),"Done",VLOOKUP(C127,'Resource Map'!$B$3:$C$509,2,FALSE)) -> - | B127: West | C127: Existing Plant Retirements and PPA Termination
A128: =IF(AND(B128<>"West",OR(A127="Winter FOT",A127="Done")),"Done",VLOOKUP(C128,'Resource Map'!$B$3:$C$509,2,FALSE)) -> Coal Removed | C128: JimBridger 1 (Coal Early Retirement/Conversions) | D128: 0 | E128: 0 | F128: 0 | G128: 0 | H128: 0 | I128: -350.5 | J128: 0 | K128: 0 | L128: 0 | M128: 0 | N128: 0 | O128: 0 | P128: 0 | Q128: 0 | R128: 0 | S128: 0 | T128: 0 | U128: 0 | V128: 0 | W128: 0
A129: =IF(AND(B129<>"West",OR(A128="Winter FOT",A128="Done")),"Done",VLOOKUP(C129,'Resource Map'!$B$3:$C$509,2,FALSE)) -> Coal Removed | C129: JimBridger 2 (Coal Early Retirement/Conversions) | D129: 0 | E129: 0 | F129: 0 | G129: 0 | H129: 0 | I129: 0 | J129: 0 | K129: 0 | L129: 0 | M129: 0 | N129: -355.8 | O129: 0 | P129: 0 | Q129: 0 | R129: 0 | S129: 0 | T129: 0 | U129: 0 | V129: 0 | W129: 0
A130: =IF(AND(B130<>"West",OR(A129="Winter FOT",A129="Done")),"Done",VLOOKUP(C130,'Resource Map'!$B$3:$C$509,2,FALSE)) -> Coal Removed | C130: JimBridger 3 | D130: 0 | E130: 0 | F130: 0 | G130: 0 | H130: 0 | I130: 0 | J130: 0 | K130: 0 | L130: 0 | M130: 0 | N130: 0 | O130: 0 | P130: 0 | Q130: 0 | R130: 0 | S130: 0 | T130: 0 | U130: 0 | V130: 0 | W130: -348.7
A131: =IF(AND(B131<>"West",OR(A130="Winter FOT",A130="Done")),"Done",VLOOKUP(C131,'Resource Map'!$B$3:$C$509,2,FALSE)) -> Coal Removed | C131: JimBridger 4 | D131: 0 | E131: 0 | F131: 0 | G131: 0 | H131: 0 | I131: 0 | J131: 0 | K131: 0 | L131: 0 | M131: 0 | N131: 0 | O131: 0 | P131: 0 | Q131: 0 | R131: 0 | S131: 0 | T131: 0 | U131: 0 | V131: 0 | W131: -353.3
A132: =IF(AND(B132<>"West",OR(A131="Winter FOT",A131="Done")),"Done",VLOOKUP(C132,'Resource Map'!$B$3:$C$509,2,FALSE)) -> Gas Removed | C132: Hermiston | D132: 0 | E132: 0 | F132: 0 | G132: 0 | H132: 0 | I132: 0 | J132: 0 | K132: 0 | L132: 0 | M132: 0 | N132: 0 | O132: 0 | P132: 0 | Q132: 0 | R132: 0 | S132: 0 | T132: 0 | U132: 0 | V132: -237 | W132: 0
A133: =IF(AND(B133<>"West",OR(A132="Winter FOT",A132="Done")),"Done",VLOOKUP(C133,'Resource Map'!$B$3:$C$509,2,FALSE)) -> Hydro Removed | C133: Retire - Hydro | D133: 0 | E133: -1.1 | F133: -168.9 | G133: 0 | H133: -0.7 | I133: 0 | J133: 0 | K133: -1.4 | L133: 0 | M133: -7.2 | N133: 0 | O133: 0 | P133: -6.4 | Q133: 0 | R133: 0 | S133: -74.9 | T133: 0 | U133: -1.2 | V133: 0 | W133: 0
A134: =IF(AND(B134<>"West",OR(A133="Winter FOT",A133="Done")),"Done",VLOOKUP(C134,'Resource Map'!$B$3:$C$509,2,FALSE)) -> Wind Removed | C134: Expire - Wind PPA | D134: 0 | E134: 0 | F134: 0 | G134: -175 | H134: 0 | I134: -41 | J134: 0 | K134: 0 | L134: 0 | M134: 0 | N134: -74.5 | O134: -9.9 | P134: 0 | Q134: -20 | R134: -20 | S134: 0 | T134: 0 | U134: -10 | V134: -10 | W134: 0
A135: =IF(AND(B135<>"West",OR(A134="Winter FOT",A134="Done")),"Done",VLOOKUP(C135,'Resource Map'!$B$3:$C$509,2,FALSE)) -> Solar Removed | C135: Expire - Solar PPA | D135: 0 | E135: 0 | F135: 0 | G135: 0 | H135: 0 | I135: 0 | J135: 0 | K135: 0 | L135: 0 | M135: -2 | N135: 0 | O135: 0 | P135: -67 | Q135: -48.9 | R135: 0 | S135: 0 | T135: -0.8 | U135: -115 | V135: -175.2 | W135: -10.9
A136: =IF(AND(B136<>"West",OR(A135="Winter FOT",A135="Done")),"Done",VLOOKUP(C136,'Resource Map'!$B$3:$C$509,2,FALSE)) -> - | C136: Expansion Resources
A137: =IF(AND(B137<>"West",OR(A136="Winter FOT",A136="Done")),"Done",VLOOKUP(C137,'Resource Map'!$B$3:$C$509,2,FALSE)) -> Gas Peaker | C137: SCCT Frame WV | D137: 0 | E137: 0 | F137: 0 | G137: 0 | H137: 0 | I137: 0 | J137: 0 | K137: 0 | L137: 0 | M137: 0 | N137: 0 | O137: 0 | P137: 0 | Q137: 0 | R137: 0 | S137: 0 | T137: 0 | U137: 0 | V137: 442.8 | W137: 0
A138: =IF(AND(B138<>"West",OR(A137="Winter FOT",A137="Done")),"Done",VLOOKUP(C138,'Resource Map'!$B$3:$C$509,2,FALSE)) -> - | C138: Total SCCT | D138: 0 | E138: 0 | F138: 0 | G138: 0 | H138: 0 | I138: 0 | J138: 0 | K138: 0 | L138: 0 | M138: 0 | N138: 0 | O138: 0 | P138: 0 | Q138: 0 | R138: 0 | S138: 0 | T138: 0 | U138: 0 | V138: 442.8 | W138: 0
A139: =IF(AND(B139<>"West",OR(A138="Winter FOT",A138="Done")),"Done",VLOOKUP(C139,'Resource Map'!$B$3:$C$509,2,FALSE)) -> Wind+Bat | C139: Wind+Storage, YK | D139: 0 | E139: 0 | F139: 0 | G139: 0 | H139: 0 | I139: 0 | J139: 0 | K139: 0 | L139: 0 | M139: 0 | N139: 9.8 | O139: 0 | P139: 0 | Q139: 0 | R139: 0 | S139: 0 | T139: 0 | U139: 0 | V139: 10.6 | W139: 0
A140: =IF(AND(B140<>"West",OR(A139="Winter FOT",A139="Done")),"Done",VLOOKUP(C140,'Resource Map'!$B$3:$C$509,2,FALSE)) -> - | C140: Total Wind | D140: 0 | E140: 0 | F140: 0 | G140: 0 | H140: 0 | I140: 0 | J140: 0 | K140: 0 | L140: 0 | M140: 0 | N140: 9.8 | O140: 0 | P140: 0 | Q140: 0 | R140: 0 | S140: 0 | T140: 0 | U140: 0 | V140: 10.6 | W140: 0
A141: =IF(AND(B141<>"West",OR(A140="Winter FOT",A140="Done")),"Done",VLOOKUP(C141,'Resource Map'!$B$3:$C$509,2,FALSE)) -> Solar+Bat | C141: Utility Solar+Storage - PV - Jbridger | D141: 0 | E141: 0 | F141: 0 | G141: 0 | H141: 0 | I141: 354 | J141: 0 | K141: 0 | L141: 0 | M141: 0 | N141: 359.4 | O141: 0 | P141: 0 | Q141: 0 | R141: 0 | S141: 0 | T141: 0 | U141: 0 | V141: 0 | W141: 701.8
A142: =IF(AND(B142<>"West",OR(A141="Winter FOT",A141="Done")),"Done",VLOOKUP(C142,'Resource Map'!$B$3:$C$509,2,FALSE)) -> Solar+Bat | C142: Utility Solar+Storage - PV - S-Oregon | D142: 0 | E142: 0 | F142: 0 | G142: 0 | H142: 0 | I142: 500 | J142: 0 | K142: 0 | L142: 0 | M142: 0 | N142: 0 | O142: 0 | P142: 0 | Q142: 0 | R142: 475 | S142: 0 | T142: 0 | U142: 0 | V142: 0 | W142: 0
A143: =IF(AND(B143<>"West",OR(A142="Winter FOT",A142="Done")),"Done",VLOOKUP(C143,'Resource Map'!$B$3:$C$509,2,FALSE)) -> Solar+Bat | C143: Utility Solar+Storage - PV - Yakima | D143: 0 | E143: 0 | F143: 0 | G143: 0 | H143: 0 | I143: 395.2 | J143: 0 | K143: 0 | L143: 0 | M143: 0 | N143: 0 | O143: 0 | P143: 0 | Q143: 0 | R143: 0 | S143: 0 | T143: 0 | U143: 419.4 | V143: 0 | W143: 0
A144: =IF(AND(B144<>"West",OR(A143="Winter FOT",A143="Done")),"Done",VLOOKUP(C144,'Resource Map'!$B$3:$C$509,2,FALSE)) -> - | C144: Total Solar | D144: 0 | E144: 0 | F144: 0 | G144: 0 | H144: 0 | I144: 1249.2 | J144: 0 | K144: 0 | L144: 0 | M144: 0 | N144: 359.4 | O144: 0 | P144: 0 | Q144: 0 | R144: 475 | S144: 0 | T144: 0 | U144: 419.4 | V144: 0 | W144: 701.8
A145: =IF(AND(B145<>"West",OR(A144="Winter FOT",A144="Done")),"Done",VLOOKUP(C145,'Resource Map'!$B$3:$C$509,2,FALSE)) -> Class 1 DSM | C145: Demand Response, OR-Ancillary Services | D145: 0 | E145: 0 | F145: 0 | G145: 0 | H145: 0 | I145: 0 | J145: 0 | K145: 0 | L145: 0 | M145: 0 | N145: 7.512 | O145: 0 | P145: 0 | Q145: 0 | R145: 0 | S145: 0 | T145: 0 | U145: 0 | V145: 0 | W145: 0
A146: =IF(AND(B146<>"West",OR(A145="Winter FOT",A145="Done")),"Done",VLOOKUP(C146,'Resource Map'!$B$3:$C$509,2,FALSE)) -> Class 1 DSM | C146: Demand Response, WA-Ancillary Services | D146: 0 | E146: 0 | F146: 0 | G146: 0 | H146: 0 | I146: 0 | J146: 0 | K146: 0 | L146: 0 | M146: 0 | N146: 1.851 | O146: 0 | P146: 0 | Q146: 0 | R146: 0 | S146: 0 | T146: 0 | U146: 0 | V146: 0 | W146: 0
A147: =IF(AND(B147<>"West",OR(A146="Winter FOT",A146="Done")),"Done",VLOOKUP(C147,'Resource Map'!$B$3:$C$509,2,FALSE)) -> Class 1 DSM | C147: Demand Response, CA-Cool/WH | D147: 0 | E147: 0 | F147: 0 | G147: 0 | H147: 0 | I147: 0 | J147: 0 | K147: 0 | L147: 0 | M147: 0 | N147: 0 | O147: 0 | P147: 0 | Q147: 0 | R147: 0 | S147: 0 | T147: 0 | U147: 0 | V147: 0 | W147: 1.53
A148: =IF(AND(B148<>"West",OR(A147="Winter FOT",A147="Done")),"Done",VLOOKUP(C148,'Resource Map'!$B$3:$C$509,2,FALSE)) -> Class 1 DSM | C148: Demand Response, CA-3rd Party Contracts | D148: 0 | E148: 0 | F148: 0 | G148: 0 | H148: 0 | I148: 0 | J148: 0 | K148: 0 | L148: 0 | M148: 0 | N148: 0 | O148: 0 | P148: 0 | Q148: 0 | R148: 0 | S148: 0 | T148: 0 | U148: 0 | V148: 0 | W148: 1.103
A149: =IF(AND(B149<>"West",OR(A148="Winter FOT",A148="Done")),"Done",VLOOKUP(C149,'Resource Map'!$B$3:$C$509,2,FALSE)) -> Class 1 DSM | C149: Demand Response, CA-Irrigate | D149: 0 | E149: 0 | F149: 0 | G149: 0 | H149: 0 | I149: 0 | J149: 0 | K149: 0 | L149: 0 | M149: 0 | N149: 0 | O149: 0 | P149: 0 | Q149: 0 | R149: 0 | S149: 0 | T149: 0 | U149: 0 | V149: 4.775 | W149: 0
A150: =IF(AND(B150<>"West",OR(A149="Winter FOT",A149="Done")),"Done",VLOOKUP(C150,'Resource Map'!$B$3:$C$509,2,FALSE)) -> Class 1 DSM | C150: Demand Response, CA-Thermostat | D150: 0 | E150: 0 | F150: 0 | G150: 0 | H150: 0 | I150: 0 | J150: 0 | K150: 0 | L150: 0 | M150: 0 | N150: 0 | O150: 0 | P150: 0 | Q150: 0 | R150: 0 | S150: 0 | T150: 0 | U150: 0 | V150: 5.801 | W150: 0
A151: =IF(AND(B151<>"West",OR(A150="Winter FOT",A150="Done")),"Done",VLOOKUP(C151,'Resource Map'!$B$3:$C$509,2,FALSE)) -> Class 1 DSM | C151: Demand Response, OR-3rd Party Contracts | D151: 0 | E151: 0 | F151: 0 | G151: 0 | H151: 0 | I151: 0 | J151: 0 | K151: 0 | L151: 0 | M151: 0 | N151: 0 | O151: 0 | P151: 0 | Q151: 0 | R151: 0 | S151: 0 | T151: 0 | U151: 0 | V151: 0 | W151: 10.881
A152: =IF(AND(B152<>"West",OR(A151="Winter FOT",A151="Done")),"Done",VLOOKUP(C152,'Resource Map'!$B$3:$C$509,2,FALSE)) -> Class 1 DSM | C152: Demand Response, OR-Irrigate | D152: 0 | E152: 0 | F152: 0 | G152: 0 | H152: 0 | I152: 0 | J152: 0 | K152: 0 | L152: 0 | M152: 0 | N152: 0 | O152: 0 | P152: 0 | Q152: 0 | R152: 0 | S152: 0 | T152: 0 | U152: 0 | V152: 13.268 | W152: 0
A153: =IF(AND(B153<>"West",OR(A152="Winter FOT",A152="Done")),"Done",VLOOKUP(C153,'Resource Map'!$B$3:$C$509,2,FALSE)) -> Class 1 DSM | C153: Demand Response, WA-Cool/WH | D153: 0 | E153: 0 | F153: 0 | G153: 0 | H153: 0 | I153: 0 | J153: 0 | K153: 0 | L153: 0 | M153: 0 | N153: 0 | O153: 0 | P153: 0 | Q153: 0 | R153: 0 | S153: 0 | T153: 0 | U153: 0 | V153: 0 | W153: 7.681
A154: =IF(AND(B154<>"West",OR(A153="Winter FOT",A153="Done")),"Done",VLOOKUP(C154,'Resource Map'!$B$3:$C$509,2,FALSE)) -> Class 1 DSM | C154: Demand Response, WA-3rd Party Contracts | D154: 0 | E154: 0 | F154: 0 | G154: 0 | H154: 0 | I154: 0 | J154: 0 | K154: 0 | L154: 0 | M154: 0 | N154: 0 | O154: 0 | P154: 0 | Q154: 0 | R154: 0 | S154: 0 | T154: 0 | U154: 0 | V154: 0 | W154: 10.908
A155: =IF(AND(B155<>"West",OR(A154="Winter FOT",A154="Done")),"Done",VLOOKUP(C155,'Resource Map'!$B$3:$C$509,2,FALSE)) -> Class 1 DSM | C155: Demand Response, WA-Irrigate | D155: 0 | E155: 0 | F155: 0 | G155: 0 | H155: 0 | I155: 0 | J155: 0 | K155: 0 | L155: 0 | M155: 0 | N155: 0 | O155: 0 | P155: 0 | Q155: 0 | R155: 0 | S155: 0 | T155: 0 | U155: 0 | V155: 8.306 | W155: 0
A156: =IF(AND(B156<>"West",OR(A155="Winter FOT",A155="Done")),"Done",VLOOKUP(C156,'Resource Map'!$B$3:$C$509,2,FALSE)) -> Class 1 DSM | C156: Demand Response, WA-Thermostat | D156: 0 | E156: 0 | F156: 0 | G156: 0 | H156: 0 | I156: 0 | J156: 0 | K156: 0 | L156: 0 | M156: 0 | N156: 0 | O156: 0 | P156: 0 | Q156: 0 | R156: 0 | S156: 0 | T156: 0 | U156: 0 | V156: 16.631 | W156: 0
A157: =IF(AND(B157<>"West",OR(A156="Winter FOT",A156="Done")),"Done",VLOOKUP(C157,'Resource Map'!$B$3:$C$509,2,FALSE)) -> - | C157: Demand Response Total | D157: 0 | E157: 0 | F157: 0 | G157: 0 | H157: 0 | I157: 0 | J157: 0 | K157: 0 | L157: 0 | M157: 0 | N157: 9.363 | O157: 0 | P157: 0 | Q157: 0 | R157: 0 | S157: 0 | T157: 0 | U157: 0 | V157: 48.781 | W157: 32.103
A158: =IF(AND(B158<>"West",OR(A157="Winter FOT",A157="Done")),"Done",VLOOKUP(C158,'Resource Map'!$B$3:$C$509,2,FALSE)) -> Class 2 DSM | C158: Energy Efficiency, CA | D158: 1 | E158: 1.64 | F158: 1.53 | G158: 1.62 | H158: 1.85 | I158: 1.83 | J158: 2.02 | K158: 2.03 | L158: 2.01 | M158: 2.09 | N158: 2.08 | O158: 1.95 | P158: 1.92 | Q158: 1.84 | R158: 1.66 | S158: 1.3 | T158: 1.41 | U158: 1.17 | V158: 0.98 | W158: 0.85
A159: =IF(AND(B159<>"West",OR(A158="Winter FOT",A158="Done")),"Done",VLOOKUP(C159,'Resource Map'!$B$3:$C$509,2,FALSE)) -> Class 2 DSM | C159: Energy Efficiency, OR | D159: 40 | E159: 37 | F159: 36.5 | G159: 41.7 | H159: 41.4 | I159: 45.6 | J159: 42.7 | K159: 41.1 | L159: 40.5 | M159: 38.2 | N159: 34.6 | O159: 32.1 | P159: 31.3 | Q159: 30.1 | R159: 25.5 | S159: 25.5 | T159: 25.3 | U159: 24.6 | V159: 23.5 | W159: 22.7
A160: =IF(AND(B160<>"West",OR(A159="Winter FOT",A159="Done")),"Done",VLOOKUP(C160,'Resource Map'!$B$3:$C$509,2,FALSE)) -> Class 2 DSM | C160: Energy Efficiency, WA | D160: 11 | E160: 9.95 | F160: 10.15 | G160: 11.3 | H160: 11.83 | I160: 11.91 | J160: 11.6 | K160: 11.19 | L160: 11.09 | M160: 10.75 | N160: 9.78 | O160: 9.38 | P160: 8.79 | Q160: 8.16 | R160: 7.67 | S160: 5.88 | T160: 5.89 | U160: 4.72 | V160: 4.05 | W160: 4.06
A161: =IF(AND(B161<>"West",OR(A160="Winter FOT",A160="Done")),"Done",VLOOKUP(C161,'Resource Map'!$B$3:$C$509,2,FALSE)) -> - | C161: Energy Efficiency Total | D161: 52 | E161: 48.59 | F161: 48.18 | G161: 54.62 | H161: 55.08 | I161: 59.34 | J161: 56.32 | K161: 54.32 | L161: 53.6 | M161: 51.04 | N161: 46.46 | O161: 43.43 | P161: 42.01 | Q161: 40.1 | R161: 34.83 | S161: 32.68 | T161: 32.6 | U161: 30.49 | V161: 28.53 | W161: 27.61
A162: =IF(AND(B162<>"West",OR(A161="Winter FOT",A161="Done")),"Done",VLOOKUP(C162,'Resource Map'!$B$3:$C$509,2,FALSE)) -> Battery | C162: Battery Storage - S-Oregon | D162: 0 | E162: 0 | F162: 0 | G162: 0 | H162: 0 | I162: 0 | J162: 0 | K162: 0 | L162: 0 | M162: 0 | N162: 210 | O162: 0 | P162: 0 | Q162: 60 | R162: 0 | S162: 0 | T162: 0 | U162: 0 | V162: 0 | W162: 180
A163: =IF(AND(B163<>"West",OR(A162="Winter FOT",A162="Done")),"Done",VLOOKUP(C163,'Resource Map'!$B$3:$C$509,2,FALSE)) -> Battery | C163: Battery Storage - Willamette Valley | D163: 0 | E163: 0 | F163: 0 | G163: 0 | H163: 0 | I163: 0 | J163: 0 | K163: 0 | L163: 0 | M163: 75 | N163: 45 | O163: 0 | P163: 0 | Q163: 0 | R163: 0 | S163: 0 | T163: 0 | U163: 0 | V163: 0 | W163: 0
A164: =IF(AND(B164<>"West",OR(A163="Winter FOT",A163="Done")),"Done",VLOOKUP(C164,'Resource Map'!$B$3:$C$509,2,FALSE)) -> Battery | C164: Battery Storage - Portland NC | D164: 0 | E164: 0 | F164: 0 | G164: 0 | H164: 0 | I164: 0 | J164: 0 | K164: 0 | L164: 0 | M164: 0 | N164: 105 | O164: 0 | P164: 0 | Q164: 0 | R164: 0 | S164: 0 | T164: 0 | U164: 0 | V164: 0 | W164: 0
A165: =IF(AND(B165<>"West",OR(A164="Winter FOT",A164="Done")),"Done",VLOOKUP(C165,'Resource Map'!$B$3:$C$509,2,FALSE)) -> Battery | C165: Battery Storage - Walla Walla | D165: 0 | E165: 0 | F165: 0 | G165: 0 | H165: 0 | I165: 0 | J165: 0 | K165: 0 | L165: 0 | M165: 0 | N165: 75 | O165: 0 | P165: 0 | Q165: 60 | R165: 0 | S165: 0 | T165: 0 | U165: 0 | V165: 0 | W165: 60
A166: =IF(AND(B166<>"West",OR(A165="Winter FOT",A165="Done")),"Done",VLOOKUP(C166,'Resource Map'!$B$3:$C$509,2,FALSE)) -> Battery | C166: Battery Storage - Yakima | D166: 0 | E166: 0 | F166: 0 | G166: 0 | H166: 0 | I166: 0 | J166: 0 | K166: 0 | L166: 0 | M166: 105 | N166: 0 | O166: 0 | P166: 0 | Q166: 0 | R166: 0 | S166: 0 | T166: 0 | U166: 0 | V166: 0 | W166: 0
A167: =IF(AND(B167<>"West",OR(A166="Winter FOT",A166="Done")),"Done",VLOOKUP(C167,'Resource Map'!$B$3:$C$509,2,FALSE)) -> FOT | C167: FOT West - Summer | D167: 997.762 | E167: 719.45 | F167: 493 | G167: 502.68 | H167: 497.88 | I167: 130.95 | J167: 126.445 | K167: 191.24 | L167: 264 | M167: 1075 | N167: 1075 | O167: 1075 | P167: 1075 | Q167: 1075 | R167: 1075 | S167: 1075 | T167: 1074.475 | U167: 976.6 | V167: 1074.475 | W167: 1075
A168: =IF(AND(B168<>"West",OR(A167="Winter FOT",A167="Done")),"Done",VLOOKUP(C168,'Resource Map'!$B$3:$C$509,2,FALSE)) -> Winter FOT | C168: FOT West - Winter | D168: 151.445 | E168: 130.96 | F168: 268.48 | G168: 303.32 | H168: 314 | I168: 44.275 | J168: 50.8 | K168: 52.575 | L168: 99.65 | M168: 231.56 | N168: 222.2 | O168: 172.97 | P168: 191.99 | Q168: 128.03 | R168: 62.76 | S168: 0 | T168: 35.4 | U168: 0 | V168: 0 | W168: 0
A169: =IF(AND(B169<>"West",OR(A168="Winter FOT",A168="Done")),"Done",VLOOKUP(C169,'Resource Map'!$B$3:$C$509,2,FALSE)) -> Done
A170: =IF(AND(B170<>"West",OR(A169="Winter FOT",A169="Done")),"Done",VLOOKUP(C170,'Resource Map'!$B$3:$C$509,2,FALSE)) -> Done
A171: =IF(AND(B171<>"West",OR(A170="Winter FOT",A170="Done")),"Done",VLOOKUP(C171,'Resource Map'!$B$3:$C$509,2,FALSE)) -> Done
A172: =IF(AND(B172<>"West",OR(A171="Winter FOT",A171="Done")),"Done",VLOOKUP(C172,'Resource Map'!$B$3:$C$509,2,FALSE)) -> Done
A173: =IF(AND(B173<>"West",OR(A172="Winter FOT",A172="Done")),"Done",VLOOKUP(C173,'Resource Map'!$B$3:$C$509,2,FALSE)) -> Done
A174: =IF(AND(B174<>"West",OR(A173="Winter FOT",A173="Done")),"Done",VLOOKUP(C174,'Resource Map'!$B$3:$C$509,2,FALSE)) -> Done
A175: =IF(AND(B175<>"West",OR(A174="Winter FOT",A174="Done")),"Done",VLOOKUP(C175,'Resource Map'!$B$3:$C$509,2,FALSE)) -> Done
A176: =IF(AND(B176<>"West",OR(A175="Winter FOT",A175="Done")),"Done",VLOOKUP(C176,'Resource Map'!$B$3:$C$509,2,FALSE)) -> Done
A177: =IF(AND(B177<>"West",OR(A176="Winter FOT",A176="Done")),"Done",VLOOKUP(C177,'Resource Map'!$B$3:$C$509,2,FALSE)) -> Done
A178: =IF(AND(B178<>"West",OR(A177="Winter FOT",A177="Done")),"Done",VLOOKUP(C178,'Resource Map'!$B$3:$C$509,2,FALSE)) -> Done
A179: =IF(AND(B179<>"West",OR(A178="Winter FOT",A178="Done")),"Done",VLOOKUP(C179,'Resource Map'!$B$3:$C$509,2,FALSE)) -> Done
A180: =IF(AND(B180<>"West",OR(A179="Winter FOT",A179="Done")),"Done",VLOOKUP(C180,'Resource Map'!$B$3:$C$509,2,FALSE)) -> Done
A181: =IF(AND(B181<>"West",OR(A180="Winter FOT",A180="Done")),"Done",VLOOKUP(C181,'Resource Map'!$B$3:$C$509,2,FALSE)) -> Done
A182: =IF(AND(B182<>"West",OR(A181="Winter FOT",A181="Done")),"Done",VLOOKUP(C182,'Resource Map'!$B$3:$C$509,2,FALSE)) -> Done
A183: =IF(AND(B183<>"West",OR(A182="Winter FOT",A182="Done")),"Done",VLOOKUP(C183,'Resource Map'!$B$3:$C$509,2,FALSE)) -> Done
A184: =IF(AND(B184<>"West",OR(A183="Winter FOT",A183="Done")),"Done",VLOOKUP(C184,'Resource Map'!$B$3:$C$509,2,FALSE)) -> Done
A185: =IF(AND(B185<>"West",OR(A184="Winter FOT",A184="Done")),"Done",VLOOKUP(C185,'Resource Map'!$B$3:$C$509,2,FALSE)) -> Done
A186: =IF(AND(B186<>"West",OR(A185="Winter FOT",A185="Done")),"Done",VLOOKUP(C186,'Resource Map'!$B$3:$C$509,2,FALSE)) -> Done
A187: =IF(AND(B187<>"West",OR(A186="Winter FOT",A186="Done")),"Done",VLOOKUP(C187,'Resource Map'!$B$3:$C$509,2,FALSE)) -> Done
A188: =IF(AND(B188<>"West",OR(A187="Winter FOT",A187="Done")),"Done",VLOOKUP(C188,'Resource Map'!$B$3:$C$509,2,FALSE)) -> Done
A189: =IF(AND(B189<>"West",OR(A188="Winter FOT",A188="Done")),"Done",VLOOKUP(C189,'Resource Map'!$B$3:$C$509,2,FALSE)) -> Done
A190: =IF(AND(B190<>"West",OR(A189="Winter FOT",A189="Done")),"Done",VLOOKUP(C190,'Resource Map'!$B$3:$C$509,2,FALSE)) -> Done
A191: =IF(AND(B191<>"West",OR(A190="Winter FOT",A190="Done")),"Done",VLOOKUP(C191,'Resource Map'!$B$3:$C$509,2,FALSE)) -> Done
A192: =IF(AND(B192<>"West",OR(A191="Winter FOT",A191="Done")),"Done",VLOOKUP(C192,'Resource Map'!$B$3:$C$509,2,FALSE)) -> Done
A193: =IF(AND(B193<>"West",OR(A192="Winter FOT",A192="Done")),"Done",VLOOKUP(C193,'Resource Map'!$B$3:$C$509,2,FALSE)) -> Done
A194: =IF(AND(B194<>"West",OR(A193="Winter FOT",A193="Done")),"Done",VLOOKUP(C194,'Resource Map'!$B$3:$C$509,2,FALSE)) -> Done
A195: =IF(AND(B195<>"West",OR(A194="Winter FOT",A194="Done")),"Done",VLOOKUP(C195,'Resource Map'!$B$3:$C$509,2,FALSE)) -> Done
A196: =IF(AND(B196<>"West",OR(A195="Winter FOT",A195="Done")),"Done",VLOOKUP(C196,'Resource Map'!$B$3:$C$509,2,FALSE)) -> Done
A197: =IF(AND(B197<>"West",OR(A196="Winter FOT",A196="Done")),"Done",VLOOKUP(C197,'Resource Map'!$B$3:$C$509,2,FALSE)) -> Done
A198: =IF(AND(B198<>"West",OR(A197="Winter FOT",A197="Done")),"Done",VLOOKUP(C198,'Resource Map'!$B$3:$C$509,2,FALSE)) -> Done
A199: =IF(AND(B199<>"West",OR(A198="Winter FOT",A198="Done")),"Done",VLOOKUP(C199,'Resource Map'!$B$3:$C$509,2,FALSE)) -> Done
A200: =IF(AND(B200<>"West",OR(A199="Winter FOT",A199="Done")),"Done",VLOOKUP(C200,'Resource Map'!$B$3:$C$509,2,FALSE)) -> Done
A201: =IF(AND(B201<>"West",OR(A200="Winter FOT",A200="Done")),"Done",VLOOKUP(C201,'Resource Map'!$B$3:$C$509,2,FALSE)) -> Done
A202: =IF(AND(B202<>"West",OR(A201="Winter FOT",A201="Done")),"Done",VLOOKUP(C202,'Resource Map'!$B$3:$C$509,2,FALSE)) -> Done
A203: =IF(AND(B203<>"West",OR(A202="Winter FOT",A202="Done")),"Done",VLOOKUP(C203,'Resource Map'!$B$3:$C$509,2,FALSE)) -> Done
A204: =IF(AND(B204<>"West",OR(A203="Winter FOT",A203="Done")),"Done",VLOOKUP(C204,'Resource Map'!$B$3:$C$509,2,FALSE)) -> Done
A205: =IF(AND(B205<>"West",OR(A204="Winter FOT",A204="Done")),"Done",VLOOKUP(C205,'Resource Map'!$B$3:$C$509,2,FALSE)) -> Done
A206: =IF(AND(B206<>"West",OR(A205="Winter FOT",A205="Done")),"Done",VLOOKUP(C206,'Resource Map'!$B$3:$C$509,2,FALSE)) -> Done
A207: =IF(AND(B207<>"West",OR(A206="Winter FOT",A206="Done")),"Done",VLOOKUP(C207,'Resource Map'!$B$3:$C$509,2,FALSE)) -> Done
A208: =IF(AND(B208<>"West",OR(A207="Winter FOT",A207="Done")),"Done",VLOOKUP(C208,'Resource Map'!$B$3:$C$509,2,FALSE)) -> Done
A209: =IF(AND(B209<>"West",OR(A208="Winter FOT",A208="Done")),"Done",VLOOKUP(C209,'Resource Map'!$B$3:$C$509,2,FALSE)) -> Done
A210: =IF(AND(B210<>"West",OR(A209="Winter FOT",A209="Done")),"Done",VLOOKUP(C210,'Resource Map'!$B$3:$C$509,2,FALSE)) -> Done
A211: =IF(AND(B211<>"West",OR(A210="Winter FOT",A210="Done")),"Done",VLOOKUP(C211,'Resource Map'!$B$3:$C$509,2,FALSE)) -> Done
A212: =IF(AND(B212<>"West",OR(A211="Winter FOT",A211="Done")),"Done",VLOOKUP(C212,'Resource Map'!$B$3:$C$509,2,FALSE)) -> Done
A213: =IF(AND(B213<>"West",OR(A212="Winter FOT",A212="Done")),"Done",VLOOKUP(C213,'Resource Map'!$B$3:$C$509,2,FALSE)) -> Done
A214: =IF(AND(B214<>"West",OR(A213="Winter FOT",A213="Done")),"Done",VLOOKUP(C214,'Resource Map'!$B$3:$C$509,2,FALSE)) -> Done
A215: =IF(AND(B215<>"West",OR(A214="Winter FOT",A214="Done")),"Done",VLOOKUP(C215,'Resource Map'!$B$3:$C$509,2,FALSE)) -> Done
... 87 more rows

Sheet Data Base Pre
A1: P45CNW- | C1: =IF(IFERROR(SUM(A68:A302),"Err")=0,"OK","MAPPING ERRORS, left column below") -> OK | Y1: Checks for | Z1: MAPPING ERRORS, left column below
C3: Coal
C4: Incremental | D4: 2019 | E4: 2020 | F4: 2021 | G4: 2022 | H4: 2023 | I4: 2024 | J4: 2025 | K4: 2026 | L4: 2027 | M4: 2028 | N4: 2029 | O4: 2030 | P4: 2031 | Q4: 2032 | R4: 2033 | S4: 2034 | T4: 2035 | U4: 2036 | V4: 2037 | W4: 2038
C5: Coal Removed | D5: =SUMIF($A$69:$A$302,$C5,D$69:D$302) -> 0 | E5: -280 | F5: -387 | G5: 0 | H5: 0 | I5: -350.5 | J5: 0 | K5: -439.3 | L5: -81.5 | M5: -903 | N5: -355.8 | O5: 0 | P5: -76.6 | Q5: 0 | R5: 0 | S5: 0 | T5: 0 | U5: 0 | V5: -909 | W5: -702
C7: Cumulative | D7: 2019 | E7: 2020 | F7: 2021 | G7: 2022 | H7: 2023 | I7: 2024 | J7: 2025 | K7: 2026 | L7: 2027 | M7: 2028 | N7: 2029 | O7: 2030 | P7: 2031 | Q7: 2032 | R7: 2033 | S7: 2034 | T7: 2035 | U7: 2036 | V7: 2037 | W7: 2038
C8: Coal Removed | D8: =D5 -> 0 | E8: =E5+D8 -> -280 | F8: =F5+E8 -> -667 | G8: -667 | H8: -667 | I8: -1017.5 | J8: -1017.5 | K8: -1456.8 | L8: -1538.3 | M8: -2441.3 | N8: -2797.1 | O8: -2797.1 | P8: -2873.7 | Q8: -2873.7 | R8: -2873.7 | S8: -2873.7 | T8: -2873.7 | U8: -2873.7 | V8: -3782.7 | W8: -4484.7
C10: Renewable and Storage
C11: Incremental | D11: 2019 | E11: 2020 | F11: 2021 | G11: 2022 | H11: 2023 | I11: 2024 | J11: 2025 | K11: 2026 | L11: 2027 | M11: 2028 | N11: 2029 | O11: 2030 | P11: 2031 | Q11: 2032 | R11: 2033 | S11: 2034 | T11: 2035 | U11: 2036 | V11: 2037 | W11: 2038
C12: Wind | D12: =SUMIF($A$69:$A$302,$C12,D$69:D$302) -> 0 | E12: 0 | F12: 0 | G12: 0 | H12: 69.216 | I12: 1920 | J12: 0 | K12: 0 | L12: 0 | M12: 0 | N12: =SUMIF($A$69:$A$302,$C12,N$69:N$302) -> 0 | O12: 1039.516 | P12: 0 | Q12: 0 | R12: 0 | S12: 0 | T12: 0 | U12: 0 | V12: 0 | W12: 0
C13: Solar | D13: 0 | E13: 0 | F13: 0 | G13: 0 | H13: 0 | I13: 0 | J13: 0 | K13: 0 | L13: 0 | M13: 0 | N13: 0 | O13: 0 | P13: 0 | Q13: 0 | R13: 0 | S13: 0 | T13: 0 | U13: 0 | V13: 0 | W13: 0
C14: Wind+Bat | D14: 0 | E14: 0 | F14: 0 | G14: 0 | H14: 0 | I14: 0 | J14: 0 | K14: 0 | L14: 0 | M14: 0 | N14: 9.791 | O14: 0 | P14: 0 | Q14: 60.484 | R14: 0 | S14: 0 | T14: 0 | U14: 0 | V14: 10.577 | W14: 0
C15: Solar+Bat | D15: 0 | E15: 0 | F15: 159.255 | G15: 63.768 | H15: 3.43 | I15: 2153.54 | J15: 0 | K15: 0 | L15: 0 | M15: 0 | N15: 359.3 | O15: 500 | P15: 0 | Q15: 0 | R15: 475 | S15: 0 | T15: 0 | U15: 419.423 | V15: 909 | W15: 701.7
C16: Battery | D16: 0 | E16: 0 | F16: 0 | G16: 0 | H16: 0 | I16: 0 | J16: 0 | K16: 0 | L16: 0 | M16: 0 | N16: 0 | O16: 0 | P16: 0 | Q16: 0 | R16: 0 | S16: 0 | T16: 0 | U16: 0 | V16: 0 | W16: 450
C17: Pumped Storage | D17: 0 | E17: 0 | F17: 0 | G17: 0 | H17: 0 | I17: 0 | J17: 0 | K17: 0 | L17: 0 | M17: 0 | N17: 0 | O17: 0 | P17: 0 | Q17: 0 | R17: 0 | S17: 0 | T17: 0 | U17: 0 | V17: 0 | W17: 0
C18: Hydro Removed | D18: 0 | E18: -1.1 | F18: -168.9 | G18: 0 | H18: -0.7 | I18: -20.28 | J18: 0 | K18: -1.4 | L18: 0 | M18: -7.2 | N18: 0 | O18: 0 | P18: -6.4 | Q18: 0 | R18: 0 | S18: -74.9 | T18: 0 | U18: -1.2 | V18: 0 | W18: 0
C19: Wind Removed | D19: 0 | E19: -26.55 | F19: -16.8 | G19: -224 | H19: -0.2 | I19: -41 | J19: 0 | K19: -64.5 | L19: -3 | M19: 0 | N19: -93.4 | O19: -149.1 | P19: -200.2 | Q19: -65 | R19: -200.9 | S19: -80 | T19: 0 | U19: -70 | V19: -90 | W19: 0
C20: Solar Removed | D20: 0 | E20: 0 | F20: 0 | G20: 0 | H20: -0.5 | I20: -0.52 | J20: 0 | K20: 0 | L20: 0 | M20: -2 | N20: 0 | O20: 0 | P20: -67 | Q20: -48.9 | R20: 0 | S20: 0 | T20: -35.9 | U20: -209.1 | V20: -1024.2 | W20: -10.9
C21: Other Removed | D21: 0 | E21: 0 | F21: 0 | G21: 0 | H21: 0 | I21: 0 | J21: 0 | K21: 0 | L21: 0 | M21: 0 | N21: 0 | O21: 0 | P21: 0 | Q21: 0 | R21: 0 | S21: -0.907 | T21: 0 | U21: 0 | V21: 0 | W21: -32.1
C23: Cumulative | D23: 2019 | E23: 2020 | F23: 2021 | G23: 2022 | H23: 2023 | I23: 2024 | J23: 2025 | K23: 2026 | L23: 2027 | M23: 2028 | N23: 2029 | O23: 2030 | P23: 2031 | Q23: 2032 | R23: 2033 | S23: 2034 | T23: 2035 | U23: 2036 | V23: 2037 | W23: 2038 | Y23: Wind | Z23: Solar | AA23: Battery
C24: Wind | D24: =D12 -> 0 | E24: =D24+E12 -> 0 | F24: 0 | G24: 0 | H24: 69.216 | I24: 1989.216 | J24: 1989.216 | K24: 1989.216 | L24: 1989.216 | M24: 1989.216 | N24: 1989.216 | O24: 3028.732 | P24: 3028.732 | Q24: 3028.732 | R24: 3028.732 | S24: 3028.732 | T24: 3028.732 | U24: 3028.732 | V24: 3028.732 | W24: 3028.732 | Y24: =W24+SUM(D19:W19)+W26 -> 1784.934 | Z24: =W25+SUM(D20:W20)+W27 -> 4345.396 | AA24: =0.25*W26+0.25*W27+W28 -> 1906.317
C25: Solar | D25: 0 | E25: 0 | F25: 0 | G25: 0 | H25: 0 | I25: 0 | J25: 0 | K25: 0 | L25: 0 | M25: 0 | N25: 0 | O25: 0 | P25: 0 | Q25: 0 | R25: 0 | S25: 0 | T25: 0 | U25: 0 | V25: 0 | W25: 0
C26: Wind+Bat | D26: 0 | E26: 0 | F26: 0 | G26: 0 | H26: 0 | I26: 0 | J26: 0 | K26: 0 | L26: 0 | M26: 0 | N26: 9.791 | O26: 9.791 | P26: 9.791 | Q26: 70.275 | R26: 70.275 | S26: 70.275 | T26: 70.275 | U26: 70.275 | V26: 80.852 | W26: 80.852
C27: Solar+Bat | D27: 0 | E27: 0 | F27: 159.255 | G27: 223.023 | H27: 226.453 | I27: 2379.993 | J27: 2379.993 | K27: 2379.993 | L27: 2379.993 | M27: 2379.993 | N27: 2739.293 | O27: 3239.293 | P27: 3239.293 | Q27: 3239.293 | R27: 3714.293 | S27: 3714.293 | T27: 3714.293 | U27: 4133.716 | V27: 5042.716 | W27: 5744.416
C28: Battery | D28: 0 | E28: 0 | F28: 0 | G28: 0 | H28: 0 | I28: 0 | J28: 0 | K28: 0 | L28: 0 | M28: 0 | N28: 0 | O28: 0 | P28: 0 | Q28: 0 | R28: 0 | S28: 0 | T28: 0 | U28: 0 | V28: 0 | W28: 450
C29: Pumped Storage | D29: 0 | E29: 0 | F29: 0 | G29: 0 | H29: 0 | I29: 0 | J29: 0 | K29: 0 | L29: 0 | M29: 0 | N29: 0 | O29: 0 | P29: 0 | Q29: 0 | R29: 0 | S29: 0 | T29: 0 | U29: 0 | V29: 0 | W29: 0
C30: Renewable Removed | D30: =D19+D20+D18+D21 -> 0 | E30: =E19+E20+E18+E21+D30 -> -27.65 | F30: =F19+F20+F18+F21+E30 -> -213.35 | G30: -437.35 | H30: -438.75 | I30: -500.55 | J30: -500.55 | K30: -566.45 | L30: -569.45 | M30: -578.65 | N30: -672.05 | O30: -821.15 | P30: -1094.75 | Q30: -1208.65 | R30: -1409.55 | S30: -1565.357 | T30: -1601.257 | U30: -1881.557 | V30: -2995.757 | W30: -3038.757
C32: Gas
C33: Incremental | D33: 2019 | E33: 2020 | F33: 2021 | G33: 2022 | H33: 2023 | I33: 2024 | J33: 2025 | K33: 2026 | L33: 2027 | M33: 2028 | N33: 2029 | O33: 2030 | P33: 2031 | Q33: 2032 | R33: 2033 | S33: 2034 | T33: 2035 | U33: 2036 | V33: 2037 | W33: 2038
C34: Gas Peaker | D34: =SUMIF($A$69:$A$302,$C34,D$69:D$302) -> 0 | E34: 0 | F34: 0 | G34: 0 | H34: 0 | I34: 0 | J34: 0 | K34: 0 | L34: 0 | M34: 0 | N34: =SUMIF($A$69:$A$302,$C34,N$69:N$302) -> 0 | O34: 184.9 | P34: 184.9 | Q34: 0 | R34: 184.9 | S34: 0 | T34: 0 | U34: 0 | V34: 812.6 | W34: 0
C35: Gas CCCT | D35: 0 | E35: 0 | F35: 0 | G35: 0 | H35: 0 | I35: 0 | J35: 0 | K35: 0 | L35: 0 | M35: 0 | N35: 0 | O35: 0 | P35: 0 | Q35: 0 | R35: 0 | S35: 0 | T35: 0 | U35: 0 | V35: 505.2 | W35: 0
C36: Gas Conv. | D36: 0 | E36: 247 | F36: 0 | G36: 0 | H36: 0 | I36: 0 | J36: 0 | K36: 0 | L36: 0 | M36: 0 | N36: 0 | O36: -247 | P36: 0 | Q36: 0 | R36: 0 | S36: 0 | T36: 0 | U36: 0 | V36: 0 | W36: 0
C37: Gas Removed | D37: 0 | E37: 0 | F37: 0 | G37: 0 | H37: 0 | I37: 0 | J37: 0 | K37: 0 | L37: 0 | M37: 0 | N37: 0 | O37: 0 | P37: 0 | Q37: 0 | R37: -356.3 | S37: 0 | T37: 0 | U37: 0 | V37: -237 | W37: 0
C39: Cumulative | D39: 2019 | E39: 2020 | F39: 2021 | G39: 2022 | H39: 2023 | I39: 2024 | J39: 2025 | K39: 2026 | L39: 2027 | M39: 2028 | N39: 2029 | O39: 2030 | P39: 2031 | Q39: 2032 | R39: 2033 | S39: 2034 | T39: 2035 | U39: 2036 | V39: 2037 | W39: 2038
C40: Gas Peaker | D40: =D34 -> 0 | E40: =D40+E34 -> 0 | F40: =E40+F34 -> 0 | G40: 0 | H40: 0 | I40: 0 | J40: 0 | K40: 0 | L40: 0 | M40: 0 | N40: 0 | O40: 184.9 | P40: 369.8 | Q40: 369.8 | R40: 554.7 | S40: 554.7 | T40: 554.7 | U40: 554.7 | V40: 1367.3 | W40: 1367.3
C41: Gas CCCT | D41: =D35 -> 0 | E41: =D41+E35 -> 0 | F41: =E41+F35 -> 0 | G41: 0 | H41: 0 | I41: 0 | J41: 0 | K41: 0 | L41: 0 | M41: 0 | N41: 0 | O41: 0 | P41: 0 | Q41: 0 | R41: 0 | S41: 0 | T41: 0 | U41: 0 | V41: 505.2 | W41: 505.2
C42: Gas Conv. | D42: =D36 -> 0 | E42: =D42+E36 -> 247 | F42: =E42+F36 -> 247 | G42: 247 | H42: 247 | I42: 247 | J42: 247 | K42: 247 | L42: 247 | M42: 247 | N42: 247 | O42: 0 | P42: 0 | Q42: 0 | R42: 0 | S42: 0 | T42: 0 | U42: 0 | V42: 0 | W42: 0
C43: Gas Removed | D43: =D37 -> 0 | E43: =D43+E37 -> 0 | F43: 0 | G43: 0 | H43: 0 | I43: 0 | J43: 0 | K43: 0 | L43: 0 | M43: 0 | N43: 0 | O43: 0 | P43: 0 | Q43: 0 | R43: -356.3 | S43: -356.3 | T43: -356.3 | U43: -356.3 | V43: -593.3 | W43: -593.3
C45: Demand-Side Management
C46: Incremental | D46: 2019 | E46: 2020 | F46: 2021 | G46: 2022 | H46: 2023 | I46: 2024 | J46: 2025 | K46: 2026 | L46: 2027 | M46: 2028 | N46: 2029 | O46: 2030 | P46: 2031 | Q46: 2032 | R46: 2033 | S46: 2034 | T46: 2035 | U46: 2036 | V46: 2037 | W46: 2038
C47: Class 2 DSM | D47: =SUMIF($A$69:$A$302,$C47,D$69:D$302) -> 126 | E47: 118.47 | F47: 118.78 | G47: 126.02 | H47: 135.81 | I47: 135.37 | J47: 132.22 | K47: 133.09 | L47: 134.23 | M47: 131.66 | N47: =SUMIF($A$69:$A$302,$C47,N$69:N$302) -> 120.14 | O47: 115.35 | P47: 111.45 | Q47: 105.9 | R47: 100.11 | S47: 81.99 | T47: 76.41 | U47: 65.45 | V47: 58.58 | W47: 60.77
C48: Class 1 DSM | D48: 4.06 | E48: 0 | F48: 7.004 | G48: 0 | H48: 18.11 | I48: 0 | J48: 8.211 | K48: 7.166 | L48: 0 | M48: 0 | N48: 132.711 | O48: 8.214 | P48: 0 | Q48: 11.995 | R48: 0 | S48: 0 | T48: 15.343 | U48: 3.654 | V48: 59.272 | W48: 168.649
C50: Cumulative | D50: 2019 | E50: 2020 | F50: 2021 | G50: 2022 | H50: 2023 | I50: 2024 | J50: 2025 | K50: 2026 | L50: 2027 | M50: 2028 | N50: 2029 | O50: 2030 | P50: 2031 | Q50: 2032 | R50: 2033 | S50: 2034 | T50: 2035 | U50: 2036 | V50: 2037 | W50: 2038
C51: Class 2 DSM | D51: =D47 -> 126 | E51: =D51+E47 -> 244.47 | F51: 363.25 | G51: 489.27 | H51: 625.08 | I51: 760.45 | J51: 892.67 | K51: 1025.76 | L51: 1159.99 | M51: 1291.65 | N51: 1411.79 | O51: 1527.14 | P51: 1638.59 | Q51: 1744.49 | R51: 1844.6 | S51: 1926.59 | T51: 2003 | U51: 2068.45 | V51: 2127.03 | W51: 2187.8
C52: Class 1 DSM | D52: =D48 -> 4.06 | E52: 4.06 | F52: 11.064 | G52: 11.064 | H52: 29.174 | I52: 29.174 | J52: 37.385 | K52: 44.551 | L52: 44.551 | M52: 44.551 | N52: 177.262 | O52: 185.476 | P52: 185.476 | Q52: 197.471 | R52: 197.471 | S52: 197.471 | T52: 212.814 | U52: 216.468 | V52: 275.74 | W52: 444.389
C54: FOTs
C55: Incremental | D55: 2019 | E55: 2020 | F55: 2021 | G55: 2022 | H55: 2023 | I55: 2024 | J55: 2025 | K55: 2026 | L55: 2027 | M55: 2028 | N55: 2029 | O55: 2030 | P55: 2031 | Q55: 2032 | R55: 2033 | S55: 2034 | T55: 2035 | U55: 2036 | V55: 2037 | W55: 2038
C56: FOT | D56: =SUMIF($A$69:$A$302,$C56,D$69:D$302) -> 997.753 | E56: 719.445 | F56: 493.005 | G56: 502.687 | H56: 497.868 | I56: 130.953 | J56: 126.44 | K56: 191.253 | L56: 263.991 | M56: 1162.545 | N56: 1375 | O56: 1273.635 | P56: 1248.793 | Q56: 1281.308 | R56: 1372.698 | S56: 1375 | T56: 1374.488 | U56: 1276.605 | V56: 1374.461 | W56: 1375
C57: Winter FOT | D57: 151.438 | E57: 130.955 | F57: 268.492 | G57: 303.316 | H57: 314.008 | I57: 44.277 | J57: 50.793 | K57: 52.579 | L57: 99.66 | M57: 231.574 | N57: 222.184 | O57: 172.966 | P57: 191.977 | Q57: 128.005 | R57: 62.75 | S57: 0 | T57: 35.382 | U57: 0 | V57: 0 | W57: 0
C59: Removed Capacity | D59: =D8+D30+D43 -> 0 | E59: =E8+E30+E43 -> -307.65 | F59: -880.35 | G59: -1104.35 | H59: -1105.75 | I59: -1518.05 | J59: -1518.05 | K59: -2023.25 | L59: -2107.75 | M59: -3019.95 | N59: -3469.15 | O59: -3618.25 | P59: -3968.45 | Q59: -4082.35 | R59: -4639.55 | S59: -4795.357 | T59: -4831.257 | U59: -5111.557 | V59: -7371.757 | W59: -8116.757
B64: Study Name: I19-P45CNW-MM (09-19-19 0628 PM)
D66: Capacity (MW)
C67: Resource | D67: 2019 | E67: 2020 | F67: 2021 | G67: 2022 | H67: 2023 | I67: 2024 | J67: 2025 | K67: 2026 | L67: 2027 | M67: 2028 | N67: 2029 | O67: 2030 | P67: 2031 | Q67: 2032 | R67: 2033 | S67: 2034 | T67: 2035 | U67: 2036 | V67: 2037 | W67: 2038
A68: =IF(AND(B68<>"West",OR(A67="Winter FOT",A67="Done")),"Done",VLOOKUP(C68,'Resource Map'!$B$3:$C$509,2,FALSE)) -> - | B68: East | C68: Existing Plant Retirements and PPA Termination
A69: =IF(AND(B69<>"West",OR(A68="Winter FOT",A68="Done")),"Done",VLOOKUP(C69,'Resource Map'!$B$3:$C$509,2,FALSE)) -> Coal Removed | C69: Craig 1 (Coal Early Retirement/Conversions) | D69: 0 | E69: 0 | F69: 0 | G69: 0 | H69: 0 | I69: 0 | J69: 0 | K69: -82.3 | L69: 0 | M69: 0 | N69: 0 | O69: 0 | P69: 0 | Q69: 0 | R69: 0 | S69: 0 | T69: 0 | U69: 0 | V69: 0 | W69: 0
A70: =IF(AND(B70<>"West",OR(A69="Winter FOT",A69="Done")),"Done",VLOOKUP(C70,'Resource Map'!$B$3:$C$509,2,FALSE)) -> Coal Removed | C70: Craig 2 (Coal Early Retirement/Conversions) | D70: 0 | E70: 0 | F70: 0 | G70: 0 | H70: 0 | I70: 0 | J70: 0 | K70: 0 | L70: -81.5 | M70: 0 | N70: 0 | O70: 0 | P70: 0 | Q70: 0 | R70: 0 | S70: 0 | T70: 0 | U70: 0 | V70: 0 | W70: 0
A71: =IF(AND(B71<>"West",OR(A70="Winter FOT",A70="Done")),"Done",VLOOKUP(C71,'Resource Map'!$B$3:$C$509,2,FALSE)) -> Coal Removed | C71: Hayden 1 | D71: 0 | E71: 0 | F71: 0 | G71: 0 | H71: 0 | I71: 0 | J71: 0 | K71: 0 | L71: 0 | M71: 0 | N71: 0 | O71: 0 | P71: -43.9 | Q71: 0 | R71: 0 | S71: 0 | T71: 0 | U71: 0 | V71: 0 | W71: 0
A72: =IF(AND(B72<>"West",OR(A71="Winter FOT",A71="Done")),"Done",VLOOKUP(C72,'Resource Map'!$B$3:$C$509,2,FALSE)) -> Coal Removed | C72: Hayden 2 | D72: 0 | E72: 0 | F72: 0 | G72: 0 | H72: 0 | I72: 0 | J72: 0 | K72: 0 | L72: 0 | M72: 0 | N72: 0 | O72: 0 | P72: -32.7 | Q72: 0 | R72: 0 | S72: 0 | T72: 0 | U72: 0 | V72: 0 | W72: 0
A73: =IF(AND(B73<>"West",OR(A72="Winter FOT",A72="Done")),"Done",VLOOKUP(C73,'Resource Map'!$B$3:$C$509,2,FALSE)) -> Coal Removed | C73: Huntington 1 | D73: 0 | E73: 0 | F73: 0 | G73: 0 | H73: 0 | I73: 0 | J73: 0 | K73: 0 | L73: 0 | M73: 0 | N73: 0 | O73: 0 | P73: 0 | Q73: 0 | R73: 0 | S73: 0 | T73: 0 | U73: 0 | V73: -459 | W73: 0
A74: =IF(AND(B74<>"West",OR(A73="Winter FOT",A73="Done")),"Done",VLOOKUP(C74,'Resource Map'!$B$3:$C$509,2,FALSE)) -> Coal Removed | C74: Huntington 2 | D74: 0 | E74: 0 | F74: 0 | G74: 0 | H74: 0 | I74: 0 | J74: 0 | K74: 0 | L74: 0 | M74: 0 | N74: 0 | O74: 0 | P74: 0 | Q74: 0 | R74: 0 | S74: 0 | T74: 0 | U74: 0 | V74: -450 | W74: 0
A75: =IF(AND(B75<>"West",OR(A74="Winter FOT",A74="Done")),"Done",VLOOKUP(C75,'Resource Map'!$B$3:$C$509,2,FALSE)) -> Coal Removed | C75: Colstrip 3 (Coal Early Retirement/Conversions) | D75: 0 | E75: 0 | F75: 0 | G75: 0 | H75: 0 | I75: 0 | J75: 0 | K75: 0 | L75: 0 | M75: -74 | N75: 0 | O75: 0 | P75: 0 | Q75: 0 | R75: 0 | S75: 0 | T75: 0 | U75: 0 | V75: 0 | W75: 0
A76: =IF(AND(B76<>"West",OR(A75="Winter FOT",A75="Done")),"Done",VLOOKUP(C76,'Resource Map'!$B$3:$C$509,2,FALSE)) -> Coal Removed | C76: Colstrip 4 (Coal Early Retirement/Conversions) | D76: 0 | E76: 0 | F76: 0 | G76: 0 | H76: 0 | I76: 0 | J76: 0 | K76: 0 | L76: 0 | M76: -74 | N76: 0 | O76: 0 | P76: 0 | Q76: 0 | R76: 0 | S76: 0 | T76: 0 | U76: 0 | V76: 0 | W76: 0
A77: =IF(AND(B77<>"West",OR(A76="Winter FOT",A76="Done")),"Done",VLOOKUP(C77,'Resource Map'!$B$3:$C$509,2,FALSE)) -> Coal Removed | C77: Cholla 4 (Coal Early Retirement/Conversions) | D77: 0 | E77: 0 | F77: -387 | G77: 0 | H77: 0 | I77: 0 | J77: 0 | K77: 0 | L77: 0 | M77: 0 | N77: 0 | O77: 0 | P77: 0 | Q77: 0 | R77: 0 | S77: 0 | T77: 0 | U77: 0 | V77: 0 | W77: 0
A78: =IF(AND(B78<>"West",OR(A77="Winter FOT",A77="Done")),"Done",VLOOKUP(C78,'Resource Map'!$B$3:$C$509,2,FALSE)) -> Coal Removed | C78: DaveJohnston 1 | D78: 0 | E78: 0 | F78: 0 | G78: 0 | H78: 0 | I78: 0 | J78: 0 | K78: 0 | L78: 0 | M78: -99 | N78: 0 | O78: 0 | P78: 0 | Q78: 0 | R78: 0 | S78: 0 | T78: 0 | U78: 0 | V78: 0 | W78: 0
A79: =IF(AND(B79<>"West",OR(A78="Winter FOT",A78="Done")),"Done",VLOOKUP(C79,'Resource Map'!$B$3:$C$509,2,FALSE)) -> Coal Removed | C79: DaveJohnston 2 | D79: 0 | E79: 0 | F79: 0 | G79: 0 | H79: 0 | I79: 0 | J79: 0 | K79: 0 | L79: 0 | M79: -106 | N79: 0 | O79: 0 | P79: 0 | Q79: 0 | R79: 0 | S79: 0 | T79: 0 | U79: 0 | V79: 0 | W79: 0
A80: =IF(AND(B80<>"West",OR(A79="Winter FOT",A79="Done")),"Done",VLOOKUP(C80,'Resource Map'!$B$3:$C$509,2,FALSE)) -> Coal Removed | C80: DaveJohnston 3 | D80: 0 | E80: 0 | F80: 0 | G80: 0 | H80: 0 | I80: 0 | J80: 0 | K80: 0 | L80: 0 | M80: -220 | N80: 0 | O80: 0 | P80: 0 | Q80: 0 | R80: 0 | S80: 0 | T80: 0 | U80: 0 | V80: 0 | W80: 0
A81: =IF(AND(B81<>"West",OR(A80="Winter FOT",A80="Done")),"Done",VLOOKUP(C81,'Resource Map'!$B$3:$C$509,2,FALSE)) -> Coal Removed | C81: DaveJohnston 4 | D81: 0 | E81: 0 | F81: 0 | G81: 0 | H81: 0 | I81: 0 | J81: 0 | K81: 0 | L81: 0 | M81: -330 | N81: 0 | O81: 0 | P81: 0 | Q81: 0 | R81: 0 | S81: 0 | T81: 0 | U81: 0 | V81: 0 | W81: 0
A82: =IF(AND(B82<>"West",OR(A81="Winter FOT",A81="Done")),"Done",VLOOKUP(C82,'Resource Map'!$B$3:$C$509,2,FALSE)) -> Coal Removed | C82: Naughton 1 (Coal Early Retirement/Conversions) | D82: 0 | E82: 0 | F82: 0 | G82: 0 | H82: 0 | I82: 0 | J82: 0 | K82: -156 | L82: 0 | M82: 0 | N82: 0 | O82: 0 | P82: 0 | Q82: 0 | R82: 0 | S82: 0 | T82: 0 | U82: 0 | V82: 0 | W82: 0
A83: =IF(AND(B83<>"West",OR(A82="Winter FOT",A82="Done")),"Done",VLOOKUP(C83,'Resource Map'!$B$3:$C$509,2,FALSE)) -> Coal Removed | C83: Naughton 2 (Coal Early Retirement/Conversions) | D83: 0 | E83: 0 | F83: 0 | G83: 0 | H83: 0 | I83: 0 | J83: 0 | K83: -201 | L83: 0 | M83: 0 | N83: 0 | O83: 0 | P83: 0 | Q83: 0 | R83: 0 | S83: 0 | T83: 0 | U83: 0 | V83: 0 | W83: 0
A84: =IF(AND(B84<>"West",OR(A83="Winter FOT",A83="Done")),"Done",VLOOKUP(C84,'Resource Map'!$B$3:$C$509,2,FALSE)) -> Coal Removed | C84: Naughton 3 (Coal Early Retirement/Conversions) | D84: 0 | E84: -280 | F84: 0 | G84: 0 | H84: 0 | I84: 0 | J84: 0 | K84: 0 | L84: 0 | M84: 0 | N84: 0 | O84: 0 | P84: 0 | Q84: 0 | R84: 0 | S84: 0 | T84: 0 | U84: 0 | V84: 0 | W84: 0
A85: =IF(AND(B85<>"West",OR(A84="Winter FOT",A84="Done")),"Done",VLOOKUP(C85,'Resource Map'!$B$3:$C$509,2,FALSE)) -> Gas Removed | C85: Gadsby 1-6 | D85: 0 | E85: 0 | F85: 0 | G85: 0 | H85: 0 | I85: 0 | J85: 0 | K85: 0 | L85: 0 | M85: 0 | N85: 0 | O85: 0 | P85: 0 | Q85: 0 | R85: -356.3 | S85: 0 | T85: 0 | U85: 0 | V85: 0 | W85: 0
A86: =IF(AND(B86<>"West",OR(A85="Winter FOT",A85="Done")),"Done",VLOOKUP(C86,'Resource Map'!$B$3:$C$509,2,FALSE)) -> Hydro Removed | C86: Retire - Hydro | D86: 0 | E86: 0 | F86: 0 | G86: 0 | H86: 0 | I86: -20.28 | J86: 0 | K86: 0 | L86: 0 | M86: 0 | N86: 0 | O86: 0 | P86: 0 | Q86: 0 | R86: 0 | S86: 0 | T86: 0 | U86: 0 | V86: 0 | W86: 0
A87: =IF(AND(B87<>"West",OR(A86="Winter FOT",A86="Done")),"Done",VLOOKUP(C87,'Resource Map'!$B$3:$C$509,2,FALSE)) -> Wind Removed | C87: Retire - Wind | D87: 0 | E87: 0 | F87: 0 | G87: 0 | H87: 0 | I87: 0 | J87: 0 | K87: 0 | L87: 0 | M87: 0 | N87: 0 | O87: -40.2 | P87: 0 | Q87: 0 | R87: 0 | S87: 0 | T87: 0 | U87: 0 | V87: 0 | W87: 0
A88: =IF(AND(B88<>"West",OR(A87="Winter FOT",A87="Done")),"Done",VLOOKUP(C88,'Resource Map'!$B$3:$C$509,2,FALSE)) -> Wind Removed | C88: Expire - Wind PPA | D88: 0 | E88: -26.55 | F88: -16.8 | G88: -49 | H88: -0.2 | I88: 0 | J88: 0 | K88: -64.5 | L88: -3 | M88: 0 | N88: -18.9 | O88: -99 | P88: -200.2 | Q88: -45 | R88: -180.9 | S88: -80 | T88: 0 | U88: -60 | V88: -80 | W88: 0
A89: =IF(AND(B89<>"West",OR(A88="Winter FOT",A88="Done")),"Done",VLOOKUP(C89,'Resource Map'!$B$3:$C$509,2,FALSE)) -> Solar Removed | C89: Expire - Solar PPA | D89: 0 | E89: 0 | F89: 0 | G89: 0 | H89: -0.5 | I89: -0.52 | J89: 0 | K89: 0 | L89: 0 | M89: 0 | N89: 0 | O89: 0 | P89: 0 | Q89: 0 | R89: 0 | S89: 0 | T89: -35.1 | U89: -94.1 | V89: -849 | W89: 0
A90: =IF(AND(B90<>"West",OR(A89="Winter FOT",A89="Done")),"Done",VLOOKUP(C90,'Resource Map'!$B$3:$C$509,2,FALSE)) -> Other Removed | C90: Retire - Other | D90: 0 | E90: 0 | F90: 0 | G90: 0 | H90: 0 | I90: 0 | J90: 0 | K90: 0 | L90: 0 | M90: 0 | N90: 0 | O90: 0 | P90: 0 | Q90: 0 | R90: 0 | S90: -0.907 | T90: 0 | U90: 0 | V90: 0 | W90: -32.1
A91: =IF(AND(B91<>"West",OR(A90="Winter FOT",A90="Done")),"Done",VLOOKUP(C91,'Resource Map'!$B$3:$C$509,2,FALSE)) -> Gas Conv. | C91: Coal Ret_WY - Gas RePower | D91: 0 | E91: 247 | F91: 0 | G91: 0 | H91: 0 | I91: 0 | J91: 0 | K91: 0 | L91: 0 | M91: 0 | N91: 0 | O91: -247 | P91: 0 | Q91: 0 | R91: 0 | S91: 0 | T91: 0 | U91: 0 | V91: 0 | W91: 0
A92: =IF(AND(B92<>"West",OR(A91="Winter FOT",A91="Done")),"Done",VLOOKUP(C92,'Resource Map'!$B$3:$C$509,2,FALSE)) -> - | C92: Expansion Resources
A93: =IF(AND(B93<>"West",OR(A92="Winter FOT",A92="Done")),"Done",VLOOKUP(C93,'Resource Map'!$B$3:$C$509,2,FALSE)) -> Gas CCCT | C93: CCCT - DJohns - J 1x1 | D93: 0 | E93: 0 | F93: 0 | G93: 0 | H93: 0 | I93: 0 | J93: 0 | K93: 0 | L93: 0 | M93: 0 | N93: 0 | O93: 0 | P93: 0 | Q93: 0 | R93: 0 | S93: 0 | T93: 0 | U93: 0 | V93: 505.2 | W93: 0
A94: =IF(AND(B94<>"West",OR(A93="Winter FOT",A93="Done")),"Done",VLOOKUP(C94,'Resource Map'!$B$3:$C$509,2,FALSE)) -> - | C94: Total CCCT | D94: 0 | E94: 0 | F94: 0 | G94: 0 | H94: 0 | I94: 0 | J94: 0 | K94: 0 | L94: 0 | M94: 0 | N94: 0 | O94: 0 | P94: 0 | Q94: 0 | R94: 0 | S94: 0 | T94: 0 | U94: 0 | V94: 505.2 | W94: 0
A95: =IF(AND(B95<>"West",OR(A94="Winter FOT",A94="Done")),"Done",VLOOKUP(C95,'Resource Map'!$B$3:$C$509,2,FALSE)) -> Gas Peaker | C95: SCCT Frame NTN | D95: 0 | E95: 0 | F95: 0 | G95: 0 | H95: 0 | I95: 0 | J95: 0 | K95: 0 | L95: 0 | M95: 0 | N95: 0 | O95: 184.9 | P95: 184.9 | Q95: 0 | R95: 184.9 | S95: 0 | T95: 0 | U95: 0 | V95: 0 | W95: 0
A96: =IF(AND(B96<>"West",OR(A95="Winter FOT",A95="Done")),"Done",VLOOKUP(C96,'Resource Map'!$B$3:$C$509,2,FALSE)) -> Gas Peaker | C96: SCCT Frame WYSW | D96: 0 | E96: 0 | F96: 0 | G96: 0 | H96: 0 | I96: 0 | J96: 0 | K96: 0 | L96: 0 | M96: 0 | N96: 0 | O96: 0 | P96: 0 | Q96: 0 | R96: 0 | S96: 0 | T96: 0 | U96: 0 | V96: 369.8 | W96: 0
A97: =IF(AND(B97<>"West",OR(A96="Winter FOT",A96="Done")),"Done",VLOOKUP(C97,'Resource Map'!$B$3:$C$509,2,FALSE)) -> - | C97: Total SCCT | D97: 0 | E97: 0 | F97: 0 | G97: 0 | H97: 0 | I97: 0 | J97: 0 | K97: 0 | L97: 0 | M97: 0 | N97: 0 | O97: 184.9 | P97: 184.9 | Q97: 0 | R97: 184.9 | S97: 0 | T97: 0 | U97: 0 | V97: 369.8 | W97: 0
A98: =IF(AND(B98<>"West",OR(A97="Winter FOT",A97="Done")),"Done",VLOOKUP(C98,'Resource Map'!$B$3:$C$509,2,FALSE)) -> Wind | C98: Wind, GO | D98: 0 | E98: 0 | F98: 0 | G98: 0 | H98: 0 | I98: 0 | J98: 0 | K98: 0 | L98: 0 | M98: 0 | N98: 0 | O98: 1039.516 | P98: 0 | Q98: 0 | R98: 0 | S98: 0 | T98: 0 | U98: 0 | V98: 0 | W98: 0
A99: =IF(AND(B99<>"West",OR(A98="Winter FOT",A98="Done")),"Done",VLOOKUP(C99,'Resource Map'!$B$3:$C$509,2,FALSE)) -> Wind | C99: Wind, UT | D99: 0 | E99: 0 | F99: 0 | G99: 0 | H99: 69.216 | I99: 0 | J99: 0 | K99: 0 | L99: 0 | M99: 0 | N99: 0 | O99: 0 | P99: 0 | Q99: 0 | R99: 0 | S99: 0 | T99: 0 | U99: 0 | V99: 0 | W99: 0
A100: =IF(AND(B100<>"West",OR(A99="Winter FOT",A99="Done")),"Done",VLOOKUP(C100,'Resource Map'!$B$3:$C$509,2,FALSE)) -> Wind | C100: Wind, WYAE | D100: 0 | E100: 0 | F100: 0 | G100: 0 | H100: 0 | I100: 1920 | J100: 0 | K100: 0 | L100: 0 | M100: 0 | N100: 0 | O100: 0 | P100: 0 | Q100: 0 | R100: 0 | S100: 0 | T100: 0 | U100: 0 | V100: 0 | W100: 0
A101: =IF(AND(B101<>"West",OR(A100="Winter FOT",A100="Done")),"Done",VLOOKUP(C101,'Resource Map'!$B$3:$C$509,2,FALSE)) -> Wind+Bat | C101: Wind+Storage, GO | D101: 0 | E101: 0 | F101: 0 | G101: 0 | H101: 0 | I101: 0 | J101: 0 | K101: 0 | L101: 0 | M101: 0 | N101: 0 | O101: 0 | P101: 0 | Q101: 60.484 | R101: 0 | S101: 0 | T101: 0 | U101: 0 | V101: 0 | W101: 0
A102: =IF(AND(B102<>"West",OR(A101="Winter FOT",A101="Done")),"Done",VLOOKUP(C102,'Resource Map'!$B$3:$C$509,2,FALSE)) -> - | C102: Total Wind | D102: 0 | E102: 0 | F102: 0 | G102: 0 | H102: 69.216 | I102: 1920 | J102: 0 | K102: 0 | L102: 0 | M102: 0 | N102: 0 | O102: 1039.516 | P102: 0 | Q102: 60.484 | R102: 0 | S102: 0 | T102: 0 | U102: 0 | V102: 0 | W102: 0
A103: =IF(AND(B103<>"West",OR(A102="Winter FOT",A102="Done")),"Done",VLOOKUP(C103,'Resource Map'!$B$3:$C$509,2,FALSE)) -> Solar+Bat | C103: Utility Solar+Storage - PV - Utah-S | D103: 0 | E103: 0 | F103: 0 | G103: 0 | H103: 0 | I103: 230.784 | J103: 0 | K103: 0 | L103: 0 | M103: 0 | N103: 0 | O103: 500 | P103: 0 | Q103: 0 | R103: 0 | S103: 0 | T103: 0 | U103: 0 | V103: 0 | W103: 0
A104: =IF(AND(B104<>"West",OR(A103="Winter FOT",A103="Done")),"Done",VLOOKUP(C104,'Resource Map'!$B$3:$C$509,2,FALSE)) -> Solar+Bat | C104: Utility Solar+Storage - PV - Huntington | D104: 0 | E104: 0 | F104: 0 | G104: 0 | H104: 0 | I104: 0 | J104: 0 | K104: 0 | L104: 0 | M104: 0 | N104: 0 | O104: 0 | P104: 0 | Q104: 0 | R104: 0 | S104: 0 | T104: 0 | U104: 0 | V104: 909 | W104: 0
A105: =IF(AND(B105<>"West",OR(A104="Winter FOT",A104="Done")),"Done",VLOOKUP(C105,'Resource Map'!$B$3:$C$509,2,FALSE)) -> Solar+Bat | C105: Utility Solar+Storage - PV - Utah-N | D105: 0 | E105: 0 | F105: 159.255 | G105: 63.768 | H105: 3.43 | I105: 673.547 | J105: 0 | K105: 0 | L105: 0 | M105: 0 | N105: 0 | O105: 0 | P105: 0 | Q105: 0 | R105: 0 | S105: 0 | T105: 0 | U105: 0 | V105: 0 | W105: 0
A106: =IF(AND(B106<>"West",OR(A105="Winter FOT",A105="Done")),"Done",VLOOKUP(C106,'Resource Map'!$B$3:$C$509,2,FALSE)) -> - | C106: Total Solar | D106: 0 | E106: 0 | F106: 159.255 | G106: 63.768 | H106: 3.43 | I106: 904.331 | J106: 0 | K106: 0 | L106: 0 | M106: 0 | N106: 0 | O106: 500 | P106: 0 | Q106: 0 | R106: 0 | S106: 0 | T106: 0 | U106: 0 | V106: 909 | W106: 0
A107: =IF(AND(B107<>"West",OR(A106="Winter FOT",A106="Done")),"Done",VLOOKUP(C107,'Resource Map'!$B$3:$C$509,2,FALSE)) -> Class 1 DSM | C107: Demand Response, ID-Irrigate | D107: 0 | E107: 0 | F107: 0 | G107: 0 | H107: 0 | I107: 0 | J107: 0 | K107: 0 | L107: 0 | M107: 0 | N107: 0 | O107: 0 | P107: 0 | Q107: 5.152 | R107: 0 | S107: 0 | T107: 0 | U107: 3.654 | V107: 0 | W107: 1.789
A108: =IF(AND(B108<>"West",OR(A107="Winter FOT",A107="Done")),"Done",VLOOKUP(C108,'Resource Map'!$B$3:$C$509,2,FALSE)) -> Class 1 DSM | C108: Demand Response, UT-Cool/WH | D108: 4.06 | E108: 0 | F108: 7.004 | G108: 0 | H108: 9.858 | I108: 0 | J108: 0 | K108: 7.166 | L108: 0 | M108: 0 | N108: 6.693 | O108: 0 | P108: 0 | Q108: 6.843 | R108: 0 | S108: 0 | T108: 7.008 | U108: 0 | V108: 0 | W108: 7.237
A109: =IF(AND(B109<>"West",OR(A108="Winter FOT",A108="Done")),"Done",VLOOKUP(C109,'Resource Map'!$B$3:$C$509,2,FALSE)) -> Class 1 DSM | C109: Demand Response, UT-3rd Party Contracts | D109: 0 | E109: 0 | F109: 0 | G109: 0 | H109: 0 | I109: 0 | J109: 0 | K109: 0 | L109: 0 | M109: 0 | N109: 0 | O109: 0 | P109: 0 | Q109: 0 | R109: 0 | S109: 0 | T109: 0 | U109: 0 | V109: 0 | W109: 76.708
A110: =IF(AND(B110<>"West",OR(A109="Winter FOT",A109="Done")),"Done",VLOOKUP(C110,'Resource Map'!$B$3:$C$509,2,FALSE)) -> Class 1 DSM | C110: Demand Response, UT-Irrigate | D110: 0 | E110: 0 | F110: 0 | G110: 0 | H110: 0 | I110: 0 | J110: 0 | K110: 0 | L110: 0 | M110: 0 | N110: 0 | O110: 0 | P110: 0 | Q110: 0 | R110: 0 | S110: 0 | T110: 0 | U110: 0 | V110: 0 | W110: 1.927
A111: =IF(AND(B111<>"West",OR(A110="Winter FOT",A110="Done")),"Done",VLOOKUP(C111,'Resource Map'!$B$3:$C$509,2,FALSE)) -> Class 1 DSM | C111: Demand Response, UT-Thermostat | D111: 0 | E111: 0 | F111: 0 | G111: 0 | H111: 0 | I111: 0 | J111: 0 | K111: 0 | L111: 0 | M111: 0 | N111: 116.655 | O111: 8.214 | P111: 0 | Q111: 0 | R111: 0 | S111: 0 | T111: 8.335 | U111: 0 | V111: 0 | W111: 5.118
A112: =IF(AND(B112<>"West",OR(A111="Winter FOT",A111="Done")),"Done",VLOOKUP(C112,'Resource Map'!$B$3:$C$509,2,FALSE)) -> Class 1 DSM | C112: Demand Response, WY-Cool/WH | D112: 0 | E112: 0 | F112: 0 | G112: 0 | H112: 0 | I112: 0 | J112: 0 | K112: 0 | L112: 0 | M112: 0 | N112: 0 | O112: 0 | P112: 0 | Q112: 0 | R112: 0 | S112: 0 | T112: 0 | U112: 0 | V112: 0 | W112: 5.225
A113: =IF(AND(B113<>"West",OR(A112="Winter FOT",A112="Done")),"Done",VLOOKUP(C113,'Resource Map'!$B$3:$C$509,2,FALSE)) -> Class 1 DSM | C113: Demand Response, WY-3rd Party Contracts | D113: 0 | E113: 0 | F113: 0 | G113: 0 | H113: 0 | I113: 0 | J113: 0 | K113: 0 | L113: 0 | M113: 0 | N113: 0 | O113: 0 | P113: 0 | Q113: 0 | R113: 0 | S113: 0 | T113: 0 | U113: 0 | V113: 0 | W113: 37.33
A114: =IF(AND(B114<>"West",OR(A113="Winter FOT",A113="Done")),"Done",VLOOKUP(C114,'Resource Map'!$B$3:$C$509,2,FALSE)) -> Class 1 DSM | C114: Demand Response, WY-Irrigate | D114: 0 | E114: 0 | F114: 0 | G114: 0 | H114: 0 | I114: 0 | J114: 0 | K114: 0 | L114: 0 | M114: 0 | N114: 0 | O114: 0 | P114: 0 | Q114: 0 | R114: 0 | S114: 0 | T114: 0 | U114: 0 | V114: 1.757 | W114: 0
A115: =IF(AND(B115<>"West",OR(A114="Winter FOT",A114="Done")),"Done",VLOOKUP(C115,'Resource Map'!$B$3:$C$509,2,FALSE)) -> Class 1 DSM | C115: Demand Response, WY-Thermostat | D115: 0 | E115: 0 | F115: 0 | G115: 0 | H115: 0 | I115: 0 | J115: 0 | K115: 0 | L115: 0 | M115: 0 | N115: 0 | O115: 0 | P115: 0 | Q115: 0 | R115: 0 | S115: 0 | T115: 0 | U115: 0 | V115: 5.493 | W115: 1.212
A116: =IF(AND(B116<>"West",OR(A115="Winter FOT",A115="Done")),"Done",VLOOKUP(C116,'Resource Map'!$B$3:$C$509,2,FALSE)) -> Class 1 DSM | C116: Demand Response, UT-Ancillary Services | D116: 0 | E116: 0 | F116: 0 | G116: 0 | H116: 8.252 | I116: 0 | J116: 5.253 | K116: 0 | L116: 0 | M116: 0 | N116: 0 | O116: 0 | P116: 0 | Q116: 0 | R116: 0 | S116: 0 | T116: 0 | U116: 0 | V116: 3.241 | W116: 0
A117: =IF(AND(B117<>"West",OR(A116="Winter FOT",A116="Done")),"Done",VLOOKUP(C117,'Resource Map'!$B$3:$C$509,2,FALSE)) -> Class 1 DSM | C117: Demand Response, WY-Ancillary Services | D117: 0 | E117: 0 | F117: 0 | G117: 0 | H117: 0 | I117: 0 | J117: 2.958 | K117: 0 | L117: 0 | M117: 0 | N117: 0 | O117: 0 | P117: 0 | Q117: 0 | R117: 0 | S117: 0 | T117: 0 | U117: 0 | V117: 0 | W117: 0
A118: =IF(AND(B118<>"West",OR(A117="Winter FOT",A117="Done")),"Done",VLOOKUP(C118,'Resource Map'!$B$3:$C$509,2,FALSE)) -> - | C118: Demand Response Total | D118: 4.06 | E118: 0 | F118: 7.004 | G118: 0 | H118: 18.11 | I118: 0 | J118: 8.211 | K118: 7.166 | L118: 0 | M118: 0 | N118: 123.348 | O118: 8.214 | P118: 0 | Q118: 11.995 | R118: 0 | S118: 0 | T118: 15.343 | U118: 3.654 | V118: 10.491 | W118: 136.546
A119: =IF(AND(B119<>"West",OR(A118="Winter FOT",A118="Done")),"Done",VLOOKUP(C119,'Resource Map'!$B$3:$C$509,2,FALSE)) -> Class 2 DSM | C119: Energy Efficiency, ID | D119: 6 | E119: 5.25 | F119: 5.34 | G119: 6.6 | H119: 7.03 | I119: 6.92 | J119: 6.89 | K119: 6.84 | L119: 7.07 | M119: 6.92 | N119: 6.45 | O119: 6.23 | P119: 6.1 | Q119: 5.86 | R119: 5.58 | S119: 4.42 | T119: 4.02 | U119: 3.27 | V119: 2.96 | W119: 2.98
A120: =IF(AND(B120<>"West",OR(A119="Winter FOT",A119="Done")),"Done",VLOOKUP(C120,'Resource Map'!$B$3:$C$509,2,FALSE)) -> Class 2 DSM | C120: Energy Efficiency, UT | D120: 58 | E120: 60.5 | F120: 60.3 | G120: 60.4 | H120: 68.8 | I120: 66.3 | J120: 65 | K120: 62.5 | L120: 59.4 | M120: 59.2 | N120: 54.2 | O120: 53.2 | P120: 52.3 | Q120: 49.9 | R120: 48.7 | S120: 35.9 | T120: 32.4 | U120: 24.6 | V120: 21.9 | W120: 25.1
A121: =IF(AND(B121<>"West",OR(A120="Winter FOT",A120="Done")),"Done",VLOOKUP(C121,'Resource Map'!$B$3:$C$509,2,FALSE)) -> Class 2 DSM | C121: Energy Efficiency, WY | D121: 10 | E121: 10.17 | F121: 10.99 | G121: 12.01 | H121: 13.33 | I121: 16.16 | J121: 16.47 | K121: 16.67 | L121: 16.57 | M121: 16.84 | N121: 15.35 | O121: 14.44 | P121: 13.13 | Q121: 12.05 | R121: 11.21 | S121: 8.99 | T121: 8.35 | U121: 7.09 | V121: 5.19 | W121: 5.33
A122: =IF(AND(B122<>"West",OR(A121="Winter FOT",A121="Done")),"Done",VLOOKUP(C122,'Resource Map'!$B$3:$C$509,2,FALSE)) -> - | C122: Energy Efficiency Total | D122: 74 | E122: 75.92 | F122: 76.63 | G122: 79.01 | H122: 89.16 | I122: 89.38 | J122: 88.36 | K122: 86.01 | L122: 83.04 | M122: 82.96 | N122: 76 | O122: 73.87 | P122: 71.53 | Q122: 67.81 | R122: 65.49 | S122: 49.31 | T122: 44.77 | U122: 34.96 | V122: 30.05 | W122: 33.41
A123: =IF(AND(B123<>"West",OR(A122="Winter FOT",A122="Done")),"Done",VLOOKUP(C123,'Resource Map'!$B$3:$C$509,2,FALSE)) -> Battery | C123: Battery Storage - Idaho | D123: 0 | E123: 0 | F123: 0 | G123: 0 | H123: 0 | I123: 0 | J123: 0 | K123: 0 | L123: 0 | M123: 0 | N123: 0 | O123: 0 | P123: 0 | Q123: 0 | R123: 0 | S123: 0 | T123: 0 | U123: 0 | V123: 0 | W123: 255
A124: =IF(AND(B124<>"West",OR(A123="Winter FOT",A123="Done")),"Done",VLOOKUP(C124,'Resource Map'!$B$3:$C$509,2,FALSE)) -> FOT | C124: FOT East - Summer | D124: 0 | E124: 0 | F124: 0 | G124: 0 | H124: 0 | I124: 0 | J124: 0 | K124: 0 | L124: 0 | M124: 87.545 | N124: 300 | O124: 198.635 | P124: 173.793 | Q124: 206.308 | R124: 297.698 | S124: 300 | T124: 300 | U124: 300 | V124: 300 | W124: 300
A125: =IF(AND(B125<>"West",OR(A124="Winter FOT",A124="Done")),"Done",VLOOKUP(C125,'Resource Map'!$B$3:$C$509,2,FALSE)) -> - | B125: West | C125: Existing Plant Retirements and PPA Termination
A126: =IF(AND(B126<>"West",OR(A125="Winter FOT",A125="Done")),"Done",VLOOKUP(C126,'Resource Map'!$B$3:$C$509,2,FALSE)) -> Coal Removed | C126: JimBridger 1 (Coal Early Retirement/Conversions) | D126: 0 | E126: 0 | F126: 0 | G126: 0 | H126: 0 | I126: -350.5 | J126: 0 | K126: 0 | L126: 0 | M126: 0 | N126: 0 | O126: 0 | P126: 0 | Q126: 0 | R126: 0 | S126: 0 | T126: 0 | U126: 0 | V126: 0 | W126: 0
A127: =IF(AND(B127<>"West",OR(A126="Winter FOT",A126="Done")),"Done",VLOOKUP(C127,'Resource Map'!$B$3:$C$509,2,FALSE)) -> Coal Removed | C127: JimBridger 2 (Coal Early Retirement/Conversions) | D127: 0 | E127: 0 | F127: 0 | G127: 0 | H127: 0 | I127: 0 | J127: 0 | K127: 0 | L127: 0 | M127: 0 | N127: -355.8 | O127: 0 | P127: 0 | Q127: 0 | R127: 0 | S127: 0 | T127: 0 | U127: 0 | V127: 0 | W127: 0
A128: =IF(AND(B128<>"West",OR(A127="Winter FOT",A127="Done")),"Done",VLOOKUP(C128,'Resource Map'!$B$3:$C$509,2,FALSE)) -> Coal Removed | C128: JimBridger 3 | D128: 0 | E128: 0 | F128: 0 | G128: 0 | H128: 0 | I128: 0 | J128: 0 | K128: 0 | L128: 0 | M128: 0 | N128: 0 | O128: 0 | P128: 0 | Q128: 0 | R128: 0 | S128: 0 | T128: 0 | U128: 0 | V128: 0 | W128: -348.7
A129: =IF(AND(B129<>"West",OR(A128="Winter FOT",A128="Done")),"Done",VLOOKUP(C129,'Resource Map'!$B$3:$C$509,2,FALSE)) -> Coal Removed | C129: JimBridger 4 | D129: 0 | E129: 0 | F129: 0 | G129: 0 | H129: 0 | I129: 0 | J129: 0 | K129: 0 | L129: 0 | M129: 0 | N129: 0 | O129: 0 | P129: 0 | Q129: 0 | R129: 0 | S129: 0 | T129: 0 | U129: 0 | V129: 0 | W129: -353.3
A130: =IF(AND(B130<>"West",OR(A129="Winter FOT",A129="Done")),"Done",VLOOKUP(C130,'Resource Map'!$B$3:$C$509,2,FALSE)) -> Gas Removed | C130: Hermiston | D130: 0 | E130: 0 | F130: 0 | G130: 0 | H130: 0 | I130: 0 | J130: 0 | K130: 0 | L130: 0 | M130: 0 | N130: 0 | O130: 0 | P130: 0 | Q130: 0 | R130: 0 | S130: 0 | T130: 0 | U130: 0 | V130: -237 | W130: 0
A131: =IF(AND(B131<>"West",OR(A130="Winter FOT",A130="Done")),"Done",VLOOKUP(C131,'Resource Map'!$B$3:$C$509,2,FALSE)) -> Hydro Removed | C131: Retire - Hydro | D131: 0 | E131: -1.1 | F131: -168.9 | G131: 0 | H131: -0.7 | I131: 0 | J131: 0 | K131: -1.4 | L131: 0 | M131: -7.2 | N131: 0 | O131: 0 | P131: -6.4 | Q131: 0 | R131: 0 | S131: -74.9 | T131: 0 | U131: -1.2 | V131: 0 | W131: 0
A132: =IF(AND(B132<>"West",OR(A131="Winter FOT",A131="Done")),"Done",VLOOKUP(C132,'Resource Map'!$B$3:$C$509,2,FALSE)) -> Wind Removed | C132: Expire - Wind PPA | D132: 0 | E132: 0 | F132: 0 | G132: -175 | H132: 0 | I132: -41 | J132: 0 | K132: 0 | L132: 0 | M132: 0 | N132: -74.5 | O132: -9.9 | P132: 0 | Q132: -20 | R132: -20 | S132: 0 | T132: 0 | U132: -10 | V132: -10 | W132: 0
A133: =IF(AND(B133<>"West",OR(A132="Winter FOT",A132="Done")),"Done",VLOOKUP(C133,'Resource Map'!$B$3:$C$509,2,FALSE)) -> Solar Removed | C133: Expire - Solar PPA | D133: 0 | E133: 0 | F133: 0 | G133: 0 | H133: 0 | I133: 0 | J133: 0 | K133: 0 | L133: 0 | M133: -2 | N133: 0 | O133: 0 | P133: -67 | Q133: -48.9 | R133: 0 | S133: 0 | T133: -0.8 | U133: -115 | V133: -175.2 | W133: -10.9
A134: =IF(AND(B134<>"West",OR(A133="Winter FOT",A133="Done")),"Done",VLOOKUP(C134,'Resource Map'!$B$3:$C$509,2,FALSE)) -> - | C134: Expansion Resources
A135: =IF(AND(B135<>"West",OR(A134="Winter FOT",A134="Done")),"Done",VLOOKUP(C135,'Resource Map'!$B$3:$C$509,2,FALSE)) -> Gas Peaker | C135: SCCT Frame WV | D135: 0 | E135: 0 | F135: 0 | G135: 0 | H135: 0 | I135: 0 | J135: 0 | K135: 0 | L135: 0 | M135: 0 | N135: 0 | O135: 0 | P135: 0 | Q135: 0 | R135: 0 | S135: 0 | T135: 0 | U135: 0 | V135: 442.8 | W135: 0
A136: =IF(AND(B136<>"West",OR(A135="Winter FOT",A135="Done")),"Done",VLOOKUP(C136,'Resource Map'!$B$3:$C$509,2,FALSE)) -> - | C136: Total SCCT | D136: 0 | E136: 0 | F136: 0 | G136: 0 | H136: 0 | I136: 0 | J136: 0 | K136: 0 | L136: 0 | M136: 0 | N136: 0 | O136: 0 | P136: 0 | Q136: 0 | R136: 0 | S136: 0 | T136: 0 | U136: 0 | V136: 442.8 | W136: 0
A137: =IF(AND(B137<>"West",OR(A136="Winter FOT",A136="Done")),"Done",VLOOKUP(C137,'Resource Map'!$B$3:$C$509,2,FALSE)) -> Wind+Bat | C137: Wind+Storage, YK | D137: 0 | E137: 0 | F137: 0 | G137: 0 | H137: 0 | I137: 0 | J137: 0 | K137: 0 | L137: 0 | M137: 0 | N137: 9.791 | O137: 0 | P137: 0 | Q137: 0 | R137: 0 | S137: 0 | T137: 0 | U137: 0 | V137: 10.577 | W137: 0
A138: =IF(AND(B138<>"West",OR(A137="Winter FOT",A137="Done")),"Done",VLOOKUP(C138,'Resource Map'!$B$3:$C$509,2,FALSE)) -> - | C138: Total Wind | D138: 0 | E138: 0 | F138: 0 | G138: 0 | H138: 0 | I138: 0 | J138: 0 | K138: 0 | L138: 0 | M138: 0 | N138: 9.791 | O138: 0 | P138: 0 | Q138: 0 | R138: 0 | S138: 0 | T138: 0 | U138: 0 | V138: 10.577 | W138: 0
A139: =IF(AND(B139<>"West",OR(A138="Winter FOT",A138="Done")),"Done",VLOOKUP(C139,'Resource Map'!$B$3:$C$509,2,FALSE)) -> Solar+Bat | C139: Utility Solar+Storage - PV - Jbridger | D139: 0 | E139: 0 | F139: 0 | G139: 0 | H139: 0 | I139: 354 | J139: 0 | K139: 0 | L139: 0 | M139: 0 | N139: 359.3 | O139: 0 | P139: 0 | Q139: 0 | R139: 0 | S139: 0 | T139: 0 | U139: 0 | V139: 0 | W139: 701.7
A140: =IF(AND(B140<>"West",OR(A139="Winter FOT",A139="Done")),"Done",VLOOKUP(C140,'Resource Map'!$B$3:$C$509,2,FALSE)) -> Solar+Bat | C140: Utility Solar+Storage - PV - S-Oregon | D140: 0 | E140: 0 | F140: 0 | G140: 0 | H140: 0 | I140: 500 | J140: 0 | K140: 0 | L140: 0 | M140: 0 | N140: 0 | O140: 0 | P140: 0 | Q140: 0 | R140: 475 | S140: 0 | T140: 0 | U140: 0 | V140: 0 | W140: 0
A141: =IF(AND(B141<>"West",OR(A140="Winter FOT",A140="Done")),"Done",VLOOKUP(C141,'Resource Map'!$B$3:$C$509,2,FALSE)) -> Solar+Bat | C141: Utility Solar+Storage - PV - Yakima | D141: 0 | E141: 0 | F141: 0 | G141: 0 | H141: 0 | I141: 395.209 | J141: 0 | K141: 0 | L141: 0 | M141: 0 | N141: 0 | O141: 0 | P141: 0 | Q141: 0 | R141: 0 | S141: 0 | T141: 0 | U141: 419.423 | V141: 0 | W141: 0
A142: =IF(AND(B142<>"West",OR(A141="Winter FOT",A141="Done")),"Done",VLOOKUP(C142,'Resource Map'!$B$3:$C$509,2,FALSE)) -> - | C142: Total Solar | D142: 0 | E142: 0 | F142: 0 | G142: 0 | H142: 0 | I142: 1249.209 | J142: 0 | K142: 0 | L142: 0 | M142: 0 | N142: 359.3 | O142: 0 | P142: 0 | Q142: 0 | R142: 475 | S142: 0 | T142: 0 | U142: 419.423 | V142: 0 | W142: 701.7
A143: =IF(AND(B143<>"West",OR(A142="Winter FOT",A142="Done")),"Done",VLOOKUP(C143,'Resource Map'!$B$3:$C$509,2,FALSE)) -> Class 1 DSM | C143: Demand Response, OR-Ancillary Services | D143: 0 | E143: 0 | F143: 0 | G143: 0 | H143: 0 | I143: 0 | J143: 0 | K143: 0 | L143: 0 | M143: 0 | N143: 7.512 | O143: 0 | P143: 0 | Q143: 0 | R143: 0 | S143: 0 | T143: 0 | U143: 0 | V143: 0 | W143: 0
A144: =IF(AND(B144<>"West",OR(A143="Winter FOT",A143="Done")),"Done",VLOOKUP(C144,'Resource Map'!$B$3:$C$509,2,FALSE)) -> Class 1 DSM | C144: Demand Response, WA-Ancillary Services | D144: 0 | E144: 0 | F144: 0 | G144: 0 | H144: 0 | I144: 0 | J144: 0 | K144: 0 | L144: 0 | M144: 0 | N144: 1.851 | O144: 0 | P144: 0 | Q144: 0 | R144: 0 | S144: 0 | T144: 0 | U144: 0 | V144: 0 | W144: 0
A145: =IF(AND(B145<>"West",OR(A144="Winter FOT",A144="Done")),"Done",VLOOKUP(C145,'Resource Map'!$B$3:$C$509,2,FALSE)) -> Class 1 DSM | C145: Demand Response, CA-Cool/WH | D145: 0 | E145: 0 | F145: 0 | G145: 0 | H145: 0 | I145: 0 | J145: 0 | K145: 0 | L145: 0 | M145: 0 | N145: 0 | O145: 0 | P145: 0 | Q145: 0 | R145: 0 | S145: 0 | T145: 0 | U145: 0 | V145: 0 | W145: 1.53
A146: =IF(AND(B146<>"West",OR(A145="Winter FOT",A145="Done")),"Done",VLOOKUP(C146,'Resource Map'!$B$3:$C$509,2,FALSE)) -> Class 1 DSM | C146: Demand Response, CA-3rd Party Contracts | D146: 0 | E146: 0 | F146: 0 | G146: 0 | H146: 0 | I146: 0 | J146: 0 | K146: 0 | L146: 0 | M146: 0 | N146: 0 | O146: 0 | P146: 0 | Q146: 0 | R146: 0 | S146: 0 | T146: 0 | U146: 0 | V146: 0 | W146: 1.103
A147: =IF(AND(B147<>"West",OR(A146="Winter FOT",A146="Done")),"Done",VLOOKUP(C147,'Resource Map'!$B$3:$C$509,2,FALSE)) -> Class 1 DSM | C147: Demand Response, CA-Irrigate | D147: 0 | E147: 0 | F147: 0 | G147: 0 | H147: 0 | I147: 0 | J147: 0 | K147: 0 | L147: 0 | M147: 0 | N147: 0 | O147: 0 | P147: 0 | Q147: 0 | R147: 0 | S147: 0 | T147: 0 | U147: 0 | V147: 4.775 | W147: 0
A148: =IF(AND(B148<>"West",OR(A147="Winter FOT",A147="Done")),"Done",VLOOKUP(C148,'Resource Map'!$B$3:$C$509,2,FALSE)) -> Class 1 DSM | C148: Demand Response, CA-Thermostat | D148: 0 | E148: 0 | F148: 0 | G148: 0 | H148: 0 | I148: 0 | J148: 0 | K148: 0 | L148: 0 | M148: 0 | N148: 0 | O148: 0 | P148: 0 | Q148: 0 | R148: 0 | S148: 0 | T148: 0 | U148: 0 | V148: 5.801 | W148: 0
A149: =IF(AND(B149<>"West",OR(A148="Winter FOT",A148="Done")),"Done",VLOOKUP(C149,'Resource Map'!$B$3:$C$509,2,FALSE)) -> Class 1 DSM | C149: Demand Response, OR-3rd Party Contracts | D149: 0 | E149: 0 | F149: 0 | G149: 0 | H149: 0 | I149: 0 | J149: 0 | K149: 0 | L149: 0 | M149: 0 | N149: 0 | O149: 0 | P149: 0 | Q149: 0 | R149: 0 | S149: 0 | T149: 0 | U149: 0 | V149: 0 | W149: 10.881
A150: =IF(AND(B150<>"West",OR(A149="Winter FOT",A149="Done")),"Done",VLOOKUP(C150,'Resource Map'!$B$3:$C$509,2,FALSE)) -> Class 1 DSM | C150: Demand Response, OR-Irrigate | D150: 0 | E150: 0 | F150: 0 | G150: 0 | H150: 0 | I150: 0 | J150: 0 | K150: 0 | L150: 0 | M150: 0 | N150: 0 | O150: 0 | P150: 0 | Q150: 0 | R150: 0 | S150: 0 | T150: 0 | U150: 0 | V150: 13.268 | W150: 0
A151: =IF(AND(B151<>"West",OR(A150="Winter FOT",A150="Done")),"Done",VLOOKUP(C151,'Resource Map'!$B$3:$C$509,2,FALSE)) -> Class 1 DSM | C151: Demand Response, WA-Cool/WH | D151: 0 | E151: 0 | F151: 0 | G151: 0 | H151: 0 | I151: 0 | J151: 0 | K151: 0 | L151: 0 | M151: 0 | N151: 0 | O151: 0 | P151: 0 | Q151: 0 | R151: 0 | S151: 0 | T151: 0 | U151: 0 | V151: 0 | W151: 7.681
A152: =IF(AND(B152<>"West",OR(A151="Winter FOT",A151="Done")),"Done",VLOOKUP(C152,'Resource Map'!$B$3:$C$509,2,FALSE)) -> Class 1 DSM | C152: Demand Response, WA-3rd Party Contracts | D152: 0 | E152: 0 | F152: 0 | G152: 0 | H152: 0 | I152: 0 | J152: 0 | K152: 0 | L152: 0 | M152: 0 | N152: 0 | O152: 0 | P152: 0 | Q152: 0 | R152: 0 | S152: 0 | T152: 0 | U152: 0 | V152: 0 | W152: 10.908
A153: =IF(AND(B153<>"West",OR(A152="Winter FOT",A152="Done")),"Done",VLOOKUP(C153,'Resource Map'!$B$3:$C$509,2,FALSE)) -> Class 1 DSM | C153: Demand Response, WA-Irrigate | D153: 0 | E153: 0 | F153: 0 | G153: 0 | H153: 0 | I153: 0 | J153: 0 | K153: 0 | L153: 0 | M153: 0 | N153: 0 | O153: 0 | P153: 0 | Q153: 0 | R153: 0 | S153: 0 | T153: 0 | U153: 0 | V153: 8.306 | W153: 0
A154: =IF(AND(B154<>"West",OR(A153="Winter FOT",A153="Done")),"Done",VLOOKUP(C154,'Resource Map'!$B$3:$C$509,2,FALSE)) -> Class 1 DSM | C154: Demand Response, WA-Thermostat | D154: 0 | E154: 0 | F154: 0 | G154: 0 | H154: 0 | I154: 0 | J154: 0 | K154: 0 | L154: 0 | M154: 0 | N154: 0 | O154: 0 | P154: 0 | Q154: 0 | R154: 0 | S154: 0 | T154: 0 | U154: 0 | V154: 16.631 | W154: 0
A155: =IF(AND(B155<>"West",OR(A154="Winter FOT",A154="Done")),"Done",VLOOKUP(C155,'Resource Map'!$B$3:$C$509,2,FALSE)) -> - | C155: Demand Response Total | D155: 0 | E155: 0 | F155: 0 | G155: 0 | H155: 0 | I155: 0 | J155: 0 | K155: 0 | L155: 0 | M155: 0 | N155: 9.363 | O155: 0 | P155: 0 | Q155: 0 | R155: 0 | S155: 0 | T155: 0 | U155: 0 | V155: 48.781 | W155: 32.103
A156: =IF(AND(B156<>"West",OR(A155="Winter FOT",A155="Done")),"Done",VLOOKUP(C156,'Resource Map'!$B$3:$C$509,2,FALSE)) -> Class 2 DSM | C156: Energy Efficiency, CA | D156: 1 | E156: 1.5 | F156: 1.41 | G156: 1.62 | H156: 1.74 | I156: 1.73 | J156: 1.76 | K156: 1.81 | L156: 1.88 | M156: 1.92 | N156: 1.89 | O156: 1.88 | P156: 1.88 | Q156: 1.76 | R156: 1.66 | S156: 1.3 | T156: 1.41 | U156: 1.17 | V156: 0.98 | W156: 0.83
A157: =IF(AND(B157<>"West",OR(A156="Winter FOT",A156="Done")),"Done",VLOOKUP(C157,'Resource Map'!$B$3:$C$509,2,FALSE)) -> Class 2 DSM | C157: Energy Efficiency, OR | D157: 40 | E157: 31.8 | F157: 31.3 | G157: 35.7 | H157: 34 | I157: 33.5 | J157: 31.3 | K157: 34.8 | L157: 38.8 | M157: 36.5 | N157: 32.9 | O157: 30.6 | P157: 29.6 | Q157: 28.5 | R157: 25.5 | S157: 25.5 | T157: 24.4 | U157: 24.6 | V157: 23.5 | W157: 22.7
A158: =IF(AND(B158<>"West",OR(A157="Winter FOT",A157="Done")),"Done",VLOOKUP(C158,'Resource Map'!$B$3:$C$509,2,FALSE)) -> Class 2 DSM | C158: Energy Efficiency, WA | D158: 11 | E158: 9.25 | F158: 9.44 | G158: 9.69 | H158: 10.91 | I158: 10.76 | J158: 10.8 | K158: 10.47 | L158: 10.51 | M158: 10.28 | N158: 9.35 | O158: 9 | P158: 8.44 | Q158: 7.83 | R158: 7.46 | S158: 5.88 | T158: 5.83 | U158: 4.72 | V158: 4.05 | W158: 3.83
A159: =IF(AND(B159<>"West",OR(A158="Winter FOT",A158="Done")),"Done",VLOOKUP(C159,'Resource Map'!$B$3:$C$509,2,FALSE)) -> - | C159: Energy Efficiency Total | D159: 52 | E159: 42.55 | F159: 42.15 | G159: 47.01 | H159: 46.65 | I159: 45.99 | J159: 43.86 | K159: 47.08 | L159: 51.19 | M159: 48.7 | N159: 44.14 | O159: 41.48 | P159: 39.92 | Q159: 38.09 | R159: 34.62 | S159: 32.68 | T159: 31.64 | U159: 30.49 | V159: 28.53 | W159: 27.36
A160: =IF(AND(B160<>"West",OR(A159="Winter FOT",A159="Done")),"Done",VLOOKUP(C160,'Resource Map'!$B$3:$C$509,2,FALSE)) -> Battery | C160: Battery Storage - S-Oregon | D160: 0 | E160: 0 | F160: 0 | G160: 0 | H160: 0 | I160: 0 | J160: 0 | K160: 0 | L160: 0 | M160: 0 | N160: 0 | O160: 0 | P160: 0 | Q160: 0 | R160: 0 | S160: 0 | T160: 0 | U160: 0 | V160: 0 | W160: 45
A161: =IF(AND(B161<>"West",OR(A160="Winter FOT",A160="Done")),"Done",VLOOKUP(C161,'Resource Map'!$B$3:$C$509,2,FALSE)) -> Battery | C161: Battery Storage - Walla Walla | D161: 0 | E161: 0 | F161: 0 | G161: 0 | H161: 0 | I161: 0 | J161: 0 | K161: 0 | L161: 0 | M161: 0 | N161: 0 | O161: 0 | P161: 0 | Q161: 0 | R161: 0 | S161: 0 | T161: 0 | U161: 0 | V161: 0 | W161: 45
A162: =IF(AND(B162<>"West",OR(A161="Winter FOT",A161="Done")),"Done",VLOOKUP(C162,'Resource Map'!$B$3:$C$509,2,FALSE)) -> Battery | C162: Battery Storage - Yakima | D162: 0 | E162: 0 | F162: 0 | G162: 0 | H162: 0 | I162: 0 | J162: 0 | K162: 0 | L162: 0 | M162: 0 | N162: 0 | O162: 0 | P162: 0 | Q162: 0 | R162: 0 | S162: 0 | T162: 0 | U162: 0 | V162: 0 | W162: 105
A163: =IF(AND(B163<>"West",OR(A162="Winter FOT",A162="Done")),"Done",VLOOKUP(C163,'Resource Map'!$B$3:$C$509,2,FALSE)) -> FOT | C163: FOT West - Summer | D163: 997.753 | E163: 719.445 | F163: 493.005 | G163: 502.687 | H163: 497.868 | I163: 130.953 | J163: 126.44 | K163: 191.253 | L163: 263.991 | M163: 1075 | N163: 1075 | O163: 1075 | P163: 1075 | Q163: 1075 | R163: 1075 | S163: 1075 | T163: 1074.488 | U163: 976.605 | V163: 1074.461 | W163: 1075
A164: =IF(AND(B164<>"West",OR(A163="Winter FOT",A163="Done")),"Done",VLOOKUP(C164,'Resource Map'!$B$3:$C$509,2,FALSE)) -> Winter FOT | C164: FOT West - Winter | D164: 151.438 | E164: 130.955 | F164: 268.492 | G164: 303.316 | H164: 314.008 | I164: 44.277 | J164: 50.793 | K164: 52.579 | L164: 99.66 | M164: 231.574 | N164: 222.184 | O164: 172.966 | P164: 191.977 | Q164: 128.005 | R164: 62.75 | S164: 0 | T164: 35.382 | U164: 0 | V164: 0 | W164: 0
A165: =IF(AND(B165<>"West",OR(A164="Winter FOT",A164="Done")),"Done",VLOOKUP(C165,'Resource Map'!$B$3:$C$509,2,FALSE)) -> Done
A166: =IF(AND(B166<>"West",OR(A165="Winter FOT",A165="Done")),"Done",VLOOKUP(C166,'Resource Map'!$B$3:$C$509,2,FALSE)) -> Done
A167: =IF(AND(B167<>"West",OR(A166="Winter FOT",A166="Done")),"Done",VLOOKUP(C167,'Resource Map'!$B$3:$C$509,2,FALSE)) -> Done
A168: =IF(AND(B168<>"West",OR(A167="Winter FOT",A167="Done")),"Done",VLOOKUP(C168,'Resource Map'!$B$3:$C$509,2,FALSE)) -> Done
A169: =IF(AND(B169<>"West",OR(A168="Winter FOT",A168="Done")),"Done",VLOOKUP(C169,'Resource Map'!$B$3:$C$509,2,FALSE)) -> Done
A170: =IF(AND(B170<>"West",OR(A169="Winter FOT",A169="Done")),"Done",VLOOKUP(C170,'Resource Map'!$B$3:$C$509,2,FALSE)) -> Done
A171: =IF(AND(B171<>"West",OR(A170="Winter FOT",A170="Done")),"Done",VLOOKUP(C171,'Resource Map'!$B$3:$C$509,2,FALSE)) -> Done
A172: =IF(AND(B172<>"West",OR(A171="Winter FOT",A171="Done")),"Done",VLOOKUP(C172,'Resource Map'!$B$3:$C$509,2,FALSE)) -> Done
A173: =IF(AND(B173<>"West",OR(A172="Winter FOT",A172="Done")),"Done",VLOOKUP(C173,'Resource Map'!$B$3:$C$509,2,FALSE)) -> Done
A174: =IF(AND(B174<>"West",OR(A173="Winter FOT",A173="Done")),"Done",VLOOKUP(C174,'Resource Map'!$B$3:$C$509,2,FALSE)) -> Done
A175: =IF(AND(B175<>"West",OR(A174="Winter FOT",A174="Done")),"Done",VLOOKUP(C175,'Resource Map'!$B$3:$C$509,2,FALSE)) -> Done
A176: =IF(AND(B176<>"West",OR(A175="Winter FOT",A175="Done")),"Done",VLOOKUP(C176,'Resource Map'!$B$3:$C$509,2,FALSE)) -> Done
A177: =IF(AND(B177<>"West",OR(A176="Winter FOT",A176="Done")),"Done",VLOOKUP(C177,'Resource Map'!$B$3:$C$509,2,FALSE)) -> Done
A178: =IF(AND(B178<>"West",OR(A177="Winter FOT",A177="Done")),"Done",VLOOKUP(C178,'Resource Map'!$B$3:$C$509,2,FALSE)) -> Done
A179: =IF(AND(B179<>"West",OR(A178="Winter FOT",A178="Done")),"Done",VLOOKUP(C179,'Resource Map'!$B$3:$C$509,2,FALSE)) -> Done
A180: =IF(AND(B180<>"West",OR(A179="Winter FOT",A179="Done")),"Done",VLOOKUP(C180,'Resource Map'!$B$3:$C$509,2,FALSE)) -> Done
A181: =IF(AND(B181<>"West",OR(A180="Winter FOT",A180="Done")),"Done",VLOOKUP(C181,'Resource Map'!$B$3:$C$509,2,FALSE)) -> Done
A182: =IF(AND(B182<>"West",OR(A181="Winter FOT",A181="Done")),"Done",VLOOKUP(C182,'Resource Map'!$B$3:$C$509,2,FALSE)) -> Done
A183: =IF(AND(B183<>"West",OR(A182="Winter FOT",A182="Done")),"Done",VLOOKUP(C183,'Resource Map'!$B$3:$C$509,2,FALSE)) -> Done
A184: =IF(AND(B184<>"West",OR(A183="Winter FOT",A183="Done")),"Done",VLOOKUP(C184,'Resource Map'!$B$3:$C$509,2,FALSE)) -> Done
A185: =IF(AND(B185<>"West",OR(A184="Winter FOT",A184="Done")),"Done",VLOOKUP(C185,'Resource Map'!$B$3:$C$509,2,FALSE)) -> Done
A186: =IF(AND(B186<>"West",OR(A185="Winter FOT",A185="Done")),"Done",VLOOKUP(C186,'Resource Map'!$B$3:$C$509,2,FALSE)) -> Done
A187: =IF(AND(B187<>"West",OR(A186="Winter FOT",A186="Done")),"Done",VLOOKUP(C187,'Resource Map'!$B$3:$C$509,2,FALSE)) -> Done
A188: =IF(AND(B188<>"West",OR(A187="Winter FOT",A187="Done")),"Done",VLOOKUP(C188,'Resource Map'!$B$3:$C$509,2,FALSE)) -> Done
A189: =IF(AND(B189<>"West",OR(A188="Winter FOT",A188="Done")),"Done",VLOOKUP(C189,'Resource Map'!$B$3:$C$509,2,FALSE)) -> Done
A190: =IF(AND(B190<>"West",OR(A189="Winter FOT",A189="Done")),"Done",VLOOKUP(C190,'Resource Map'!$B$3:$C$509,2,FALSE)) -> Done
A191: =IF(AND(B191<>"West",OR(A190="Winter FOT",A190="Done")),"Done",VLOOKUP(C191,'Resource Map'!$B$3:$C$509,2,FALSE)) -> Done
A192: =IF(AND(B192<>"West",OR(A191="Winter FOT",A191="Done")),"Done",VLOOKUP(C192,'Resource Map'!$B$3:$C$509,2,FALSE)) -> Done
A193: =IF(AND(B193<>"West",OR(A192="Winter FOT",A192="Done")),"Done",VLOOKUP(C193,'Resource Map'!$B$3:$C$509,2,FALSE)) -> Done
A194: =IF(AND(B194<>"West",OR(A193="Winter FOT",A193="Done")),"Done",VLOOKUP(C194,'Resource Map'!$B$3:$C$509,2,FALSE)) -> Done
A195: =IF(AND(B195<>"West",OR(A194="Winter FOT",A194="Done")),"Done",VLOOKUP(C195,'Resource Map'!$B$3:$C$509,2,FALSE)) -> Done
A196: =IF(AND(B196<>"West",OR(A195="Winter FOT",A195="Done")),"Done",VLOOKUP(C196,'Resource Map'!$B$3:$C$509,2,FALSE)) -> Done
A197: =IF(AND(B197<>"West",OR(A196="Winter FOT",A196="Done")),"Done",VLOOKUP(C197,'Resource Map'!$B$3:$C$509,2,FALSE)) -> Done
A198: =IF(AND(B198<>"West",OR(A197="Winter FOT",A197="Done")),"Done",VLOOKUP(C198,'Resource Map'!$B$3:$C$509,2,FALSE)) -> Done
A199: =IF(AND(B199<>"West",OR(A198="Winter FOT",A198="Done")),"Done",VLOOKUP(C199,'Resource Map'!$B$3:$C$509,2,FALSE)) -> Done
A200: =IF(AND(B200<>"West",OR(A199="Winter FOT",A199="Done")),"Done",VLOOKUP(C200,'Resource Map'!$B$3:$C$509,2,FALSE)) -> Done
A201: =IF(AND(B201<>"West",OR(A200="Winter FOT",A200="Done")),"Done",VLOOKUP(C201,'Resource Map'!$B$3:$C$509,2,FALSE)) -> Done
A202: =IF(AND(B202<>"West",OR(A201="Winter FOT",A201="Done")),"Done",VLOOKUP(C202,'Resource Map'!$B$3:$C$509,2,FALSE)) -> Done
A203: =IF(AND(B203<>"West",OR(A202="Winter FOT",A202="Done")),"Done",VLOOKUP(C203,'Resource Map'!$B$3:$C$509,2,FALSE)) -> Done
A204: =IF(AND(B204<>"West",OR(A203="Winter FOT",A203="Done")),"Done",VLOOKUP(C204,'Resource Map'!$B$3:$C$509,2,FALSE)) -> Done
A205: =IF(AND(B205<>"West",OR(A204="Winter FOT",A204="Done")),"Done",VLOOKUP(C205,'Resource Map'!$B$3:$C$509,2,FALSE)) -> Done
A206: =IF(AND(B206<>"West",OR(A205="Winter FOT",A205="Done")),"Done",VLOOKUP(C206,'Resource Map'!$B$3:$C$509,2,FALSE)) -> Done
A207: =IF(AND(B207<>"West",OR(A206="Winter FOT",A206="Done")),"Done",VLOOKUP(C207,'Resource Map'!$B$3:$C$509,2,FALSE)) -> Done
A208: =IF(AND(B208<>"West",OR(A207="Winter FOT",A207="Done")),"Done",VLOOKUP(C208,'Resource Map'!$B$3:$C$509,2,FALSE)) -> Done
A209: =IF(AND(B209<>"West",OR(A208="Winter FOT",A208="Done")),"Done",VLOOKUP(C209,'Resource Map'!$B$3:$C$509,2,FALSE)) -> Done
A210: =IF(AND(B210<>"West",OR(A209="Winter FOT",A209="Done")),"Done",VLOOKUP(C210,'Resource Map'!$B$3:$C$509,2,FALSE)) -> Done
A211: =IF(AND(B211<>"West",OR(A210="Winter FOT",A210="Done")),"Done",VLOOKUP(C211,'Resource Map'!$B$3:$C$509,2,FALSE)) -> Done
A212: =IF(AND(B212<>"West",OR(A211="Winter FOT",A211="Done")),"Done",VLOOKUP(C212,'Resource Map'!$B$3:$C$509,2,FALSE)) -> Done
A213: =IF(AND(B213<>"West",OR(A212="Winter FOT",A212="Done")),"Done",VLOOKUP(C213,'Resource Map'!$B$3:$C$509,2,FALSE)) -> Done
A214: =IF(AND(B214<>"West",OR(A213="Winter FOT",A213="Done")),"Done",VLOOKUP(C214,'Resource Map'!$B$3:$C$509,2,FALSE)) -> Done
A215: =IF(AND(B215<>"West",OR(A214="Winter FOT",A214="Done")),"Done",VLOOKUP(C215,'Resource Map'!$B$3:$C$509,2,FALSE)) -> Done
... 87 more rows

Sheet Delta Base Rel - Pre
C3: Coal
C4: Cumulative | D4: 2019 | E4: 2020 | F4: 2021 | G4: 2022 | H4: 2023 | I4: 2024 | J4: 2025 | K4: 2026 | L4: 2027 | M4: 2028 | N4: 2029 | O4: 2030 | P4: 2031 | Q4: 2032 | R4: 2033 | S4: 2034 | T4: 2035 | U4: 2036 | V4: 2037 | W4: 2038
C5: Coal Removed | D5: ='Data Base Rel'!D8-'Data Base Pre'!D8 -> 0 | E5: ='Data Base Rel'!E8-'Data Base Pre'!E8 -> 0 | F5: ='Data Base Rel'!F8-'Data Base Pre'!F8 -> 0 | G5: ='Data Base Rel'!G8-'Data Base Pre'!G8 -> 0 | H5: ='Data Base Rel'!H8-'Data Base Pre'!H8 -> 0 | I5: ='Data Base Rel'!I8-'Data Base Pre'!I8 -> 0 | J5: ='Data Base Rel'!J8-'Data Base Pre'!J8 -> 0 | K5: ='Data Base Rel'!K8-'Data Base Pre'!K8 -> 0 | L5: ='Data Base Rel'!L8-'Data Base Pre'!L8 -> 0 | M5: ='Data Base Rel'!M8-'Data Base Pre'!M8 -> 0 | N5: ='Data Base Rel'!N8-'Data Base Pre'!N8 -> 0 | O5: ='Data Base Rel'!O8-'Data Base Pre'!O8 -> 0 | P5: ='Data Base Rel'!P8-'Data Base Pre'!P8 -> 0 | Q5: ='Data Base Rel'!Q8-'Data Base Pre'!Q8 -> 0 | R5: ='Data Base Rel'!R8-'Data Base Pre'!R8 -> 0 | S5: ='Data Base Rel'!S8-'Data Base Pre'!S8 -> 0 | T5: ='Data Base Rel'!T8-'Data Base Pre'!T8 -> 0 | U5: ='Data Base Rel'!U8-'Data Base Pre'!U8 -> 0 | V5: ='Data Base Rel'!V8-'Data Base Pre'!V8 -> 0 | W5: ='Data Base Rel'!W8-'Data Base Pre'!W8 -> 0
C7: Renewable and Storage
C8: Cumulative | D8: 2019 | E8: 2020 | F8: 2021 | G8: 2022 | H8: 2023 | I8: 2024 | J8: 2025 | K8: 2026 | L8: 2027 | M8: 2028 | N8: 2029 | O8: 2030 | P8: 2031 | Q8: 2032 | R8: 2033 | S8: 2034 | T8: 2035 | U8: 2036 | V8: 2037 | W8: 2038 | Y8: Wind | Z8: Solar | AA8: Battery
C9: Wind | D9: ='Data Base Rel'!D24-'Data Base Pre'!D24 -> 0 | E9: ='Data Base Rel'!E24-'Data Base Pre'!E24 -> 0 | F9: ='Data Base Rel'!F24-'Data Base Pre'!F24 -> 0 | G9: ='Data Base Rel'!G24-'Data Base Pre'!G24 -> 0 | H9: ='Data Base Rel'!H24-'Data Base Pre'!H24 -> -0.016 | I9: ='Data Base Rel'!I24-'Data Base Pre'!I24 -> -0.016 | J9: ='Data Base Rel'!J24-'Data Base Pre'!J24 -> -0.016 | K9: ='Data Base Rel'!K24-'Data Base Pre'!K24 -> -0.016 | L9: ='Data Base Rel'!L24-'Data Base Pre'!L24 -> -0.016 | M9: ='Data Base Rel'!M24-'Data Base Pre'!M24 -> -0.016 | N9: ='Data Base Rel'!N24-'Data Base Pre'!N24 -> -0.016 | O9: ='Data Base Rel'!O24-'Data Base Pre'!O24 -> 0.068 | P9: ='Data Base Rel'!P24-'Data Base Pre'!P24 -> 0.068 | Q9: ='Data Base Rel'!Q24-'Data Base Pre'!Q24 -> 0.068 | R9: ='Data Base Rel'!R24-'Data Base Pre'!R24 -> 0.068 | S9: ='Data Base Rel'!S24-'Data Base Pre'!S24 -> 0.068 | T9: ='Data Base Rel'!T24-'Data Base Pre'!T24 -> 0.068 | U9: ='Data Base Rel'!U24-'Data Base Pre'!U24 -> 0.068 | V9: ='Data Base Rel'!V24-'Data Base Pre'!V24 -> 0.068 | W9: ='Data Base Rel'!W24-'Data Base Pre'!W24 -> 0.068 | Y9: ='Data Base Rel'!Y24-'Data Base Pre'!Y24 -> 0.016 | Z9: ='Data Base Rel'!Z24-'Data Base Pre'!Z24 -> 0.184 | AA9: =0.25*W11+0.25*W12+W13 -> 915.033
C10: Solar | D10: ='Data Base Rel'!D25-'Data Base Pre'!D25 -> 0 | E10: ='Data Base Rel'!E25-'Data Base Pre'!E25 -> 0 | F10: ='Data Base Rel'!F25-'Data Base Pre'!F25 -> 0 | G10: ='Data Base Rel'!G25-'Data Base Pre'!G25 -> 0 | H10: ='Data Base Rel'!H25-'Data Base Pre'!H25 -> 0 | I10: ='Data Base Rel'!I25-'Data Base Pre'!I25 -> 0 | J10: ='Data Base Rel'!J25-'Data Base Pre'!J25 -> 0 | K10: ='Data Base Rel'!K25-'Data Base Pre'!K25 -> 0 | L10: ='Data Base Rel'!L25-'Data Base Pre'!L25 -> 0 | M10: ='Data Base Rel'!M25-'Data Base Pre'!M25 -> 0 | N10: ='Data Base Rel'!N25-'Data Base Pre'!N25 -> 0 | O10: ='Data Base Rel'!O25-'Data Base Pre'!O25 -> 0 | P10: ='Data Base Rel'!P25-'Data Base Pre'!P25 -> 0 | Q10: ='Data Base Rel'!Q25-'Data Base Pre'!Q25 -> 0 | R10: ='Data Base Rel'!R25-'Data Base Pre'!R25 -> 0 | S10: ='Data Base Rel'!S25-'Data Base Pre'!S25 -> 0 | T10: ='Data Base Rel'!T25-'Data Base Pre'!T25 -> 0 | U10: ='Data Base Rel'!U25-'Data Base Pre'!U25 -> 0 | V10: ='Data Base Rel'!V25-'Data Base Pre'!V25 -> 0 | W10: ='Data Base Rel'!W25-'Data Base Pre'!W25 -> 0
C11: Wind+Bat | D11: ='Data Base Rel'!D26-'Data Base Pre'!D26 -> 0 | E11: ='Data Base Rel'!E26-'Data Base Pre'!E26 -> 0 | F11: ='Data Base Rel'!F26-'Data Base Pre'!F26 -> 0 | G11: ='Data Base Rel'!G26-'Data Base Pre'!G26 -> 0 | H11: ='Data Base Rel'!H26-'Data Base Pre'!H26 -> 0 | I11: ='Data Base Rel'!I26-'Data Base Pre'!I26 -> 0 | J11: ='Data Base Rel'!J26-'Data Base Pre'!J26 -> 0 | K11: ='Data Base Rel'!K26-'Data Base Pre'!K26 -> 0 | L11: ='Data Base Rel'!L26-'Data Base Pre'!L26 -> 0 | M11: ='Data Base Rel'!M26-'Data Base Pre'!M26 -> 0 | N11: ='Data Base Rel'!N26-'Data Base Pre'!N26 -> 0.009 | O11: ='Data Base Rel'!O26-'Data Base Pre'!O26 -> 0.009 | P11: ='Data Base Rel'!P26-'Data Base Pre'!P26 -> 0.009 | Q11: ='Data Base Rel'!Q26-'Data Base Pre'!Q26 -> -0.075 | R11: ='Data Base Rel'!R26-'Data Base Pre'!R26 -> -0.075 | S11: ='Data Base Rel'!S26-'Data Base Pre'!S26 -> -0.075 | T11: ='Data Base Rel'!T26-'Data Base Pre'!T26 -> -0.075 | U11: ='Data Base Rel'!U26-'Data Base Pre'!U26 -> -0.075 | V11: ='Data Base Rel'!V26-'Data Base Pre'!V26 -> -0.052 | W11: ='Data Base Rel'!W26-'Data Base Pre'!W26 -> -0.052
C12: Solar+Bat | D12: ='Data Base Rel'!D27-'Data Base Pre'!D27 -> 0 | E12: ='Data Base Rel'!E27-'Data Base Pre'!E27 -> 0 | F12: ='Data Base Rel'!F27-'Data Base Pre'!F27 -> -0.055 | G12: ='Data Base Rel'!G27-'Data Base Pre'!G27 -> -0.023 | H12: ='Data Base Rel'!H27-'Data Base Pre'!H27 -> -0.053 | I12: ='Data Base Rel'!I27-'Data Base Pre'!I27 -> 0.007 | J12: ='Data Base Rel'!J27-'Data Base Pre'!J27 -> 0.007 | K12: ='Data Base Rel'!K27-'Data Base Pre'!K27 -> 0.007 | L12: ='Data Base Rel'!L27-'Data Base Pre'!L27 -> 0.007 | M12: ='Data Base Rel'!M27-'Data Base Pre'!M27 -> 0.007 | N12: ='Data Base Rel'!N27-'Data Base Pre'!N27 -> 0.107 | O12: ='Data Base Rel'!O27-'Data Base Pre'!O27 -> 0.107 | P12: ='Data Base Rel'!P27-'Data Base Pre'!P27 -> 0.107 | Q12: ='Data Base Rel'!Q27-'Data Base Pre'!Q27 -> 0.107 | R12: ='Data Base Rel'!R27-'Data Base Pre'!R27 -> 0.107 | S12: ='Data Base Rel'!S27-'Data Base Pre'!S27 -> 0.107 | T12: ='Data Base Rel'!T27-'Data Base Pre'!T27 -> 0.107 | U12: ='Data Base Rel'!U27-'Data Base Pre'!U27 -> 0.084 | V12: ='Data Base Rel'!V27-'Data Base Pre'!V27 -> 0.084 | W12: ='Data Base Rel'!W27-'Data Base Pre'!W27 -> 0.184
C13: Battery | D13: ='Data Base Rel'!D28-'Data Base Pre'!D28 -> 0 | E13: ='Data Base Rel'!E28-'Data Base Pre'!E28 -> 0 | F13: ='Data Base Rel'!F28-'Data Base Pre'!F28 -> 0 | G13: ='Data Base Rel'!G28-'Data Base Pre'!G28 -> 0 | H13: ='Data Base Rel'!H28-'Data Base Pre'!H28 -> 0 | I13: ='Data Base Rel'!I28-'Data Base Pre'!I28 -> 0 | J13: ='Data Base Rel'!J28-'Data Base Pre'!J28 -> 0 | K13: ='Data Base Rel'!K28-'Data Base Pre'!K28 -> 0 | L13: ='Data Base Rel'!L28-'Data Base Pre'!L28 -> 0 | M13: ='Data Base Rel'!M28-'Data Base Pre'!M28 -> 180 | N13: ='Data Base Rel'!N28-'Data Base Pre'!N28 -> 615 | O13: ='Data Base Rel'!O28-'Data Base Pre'!O28 -> 615 | P13: ='Data Base Rel'!P28-'Data Base Pre'!P28 -> 645 | Q13: ='Data Base Rel'!Q28-'Data Base Pre'!Q28 -> 765 | R13: ='Data Base Rel'!R28-'Data Base Pre'!R28 -> 765 | S13: ='Data Base Rel'!S28-'Data Base Pre'!S28 -> 765 | T13: ='Data Base Rel'!T28-'Data Base Pre'!T28 -> 765 | U13: ='Data Base Rel'!U28-'Data Base Pre'!U28 -> 765 | V13: ='Data Base Rel'!V28-'Data Base Pre'!V28 -> 765 | W13: ='Data Base Rel'!W28-'Data Base Pre'!W28 -> 915
C14: Pumped Storage | D14: ='Data Base Rel'!D29-'Data Base Pre'!D29 -> 0 | E14: ='Data Base Rel'!E29-'Data Base Pre'!E29 -> 0 | F14: ='Data Base Rel'!F29-'Data Base Pre'!F29 -> 0 | G14: ='Data Base Rel'!G29-'Data Base Pre'!G29 -> 0 | H14: ='Data Base Rel'!H29-'Data Base Pre'!H29 -> 0 | I14: ='Data Base Rel'!I29-'Data Base Pre'!I29 -> 0 | J14: ='Data Base Rel'!J29-'Data Base Pre'!J29 -> 0 | K14: ='Data Base Rel'!K29-'Data Base Pre'!K29 -> 0 | L14: ='Data Base Rel'!L29-'Data Base Pre'!L29 -> 0 | M14: ='Data Base Rel'!M29-'Data Base Pre'!M29 -> 0 | N14: ='Data Base Rel'!N29-'Data Base Pre'!N29 -> 0 | O14: ='Data Base Rel'!O29-'Data Base Pre'!O29 -> 0 | P14: ='Data Base Rel'!P29-'Data Base Pre'!P29 -> 0 | Q14: ='Data Base Rel'!Q29-'Data Base Pre'!Q29 -> 0 | R14: ='Data Base Rel'!R29-'Data Base Pre'!R29 -> 0 | S14: ='Data Base Rel'!S29-'Data Base Pre'!S29 -> 0 | T14: ='Data Base Rel'!T29-'Data Base Pre'!T29 -> 0 | U14: ='Data Base Rel'!U29-'Data Base Pre'!U29 -> 0 | V14: ='Data Base Rel'!V29-'Data Base Pre'!V29 -> 0 | W14: ='Data Base Rel'!W29-'Data Base Pre'!W29 -> 0
C15: Renewable Removed | D15: ='Data Base Rel'!D30-'Data Base Pre'!D30 -> 0 | E15: ='Data Base Rel'!E30-'Data Base Pre'!E30 -> 0 | F15: ='Data Base Rel'!F30-'Data Base Pre'!F30 -> 0 | G15: ='Data Base Rel'!G30-'Data Base Pre'!G30 -> 0 | H15: ='Data Base Rel'!H30-'Data Base Pre'!H30 -> 0 | I15: ='Data Base Rel'!I30-'Data Base Pre'!I30 -> 0 | J15: ='Data Base Rel'!J30-'Data Base Pre'!J30 -> 0 | K15: ='Data Base Rel'!K30-'Data Base Pre'!K30 -> 0 | L15: ='Data Base Rel'!L30-'Data Base Pre'!L30 -> 0 | M15: ='Data Base Rel'!M30-'Data Base Pre'!M30 -> 0 | N15: ='Data Base Rel'!N30-'Data Base Pre'!N30 -> 0 | O15: ='Data Base Rel'!O30-'Data Base Pre'!O30 -> 0 | P15: ='Data Base Rel'!P30-'Data Base Pre'!P30 -> 0 | Q15: ='Data Base Rel'!Q30-'Data Base Pre'!Q30 -> 0 | R15: ='Data Base Rel'!R30-'Data Base Pre'!R30 -> 0 | S15: ='Data Base Rel'!S30-'Data Base Pre'!S30 -> 0 | T15: ='Data Base Rel'!T30-'Data Base Pre'!T30 -> 0 | U15: ='Data Base Rel'!U30-'Data Base Pre'!U30 -> 0 | V15: ='Data Base Rel'!V30-'Data Base Pre'!V30 -> 0 | W15: ='Data Base Rel'!W30-'Data Base Pre'!W30 -> 0
C17: Gas
C18: Cumulative | D18: 2019 | E18: 2020 | F18: 2021 | G18: 2022 | H18: 2023 | I18: 2024 | J18: 2025 | K18: 2026 | L18: 2027 | M18: 2028 | N18: 2029 | O18: 2030 | P18: 2031 | Q18: 2032 | R18: 2033 | S18: 2034 | T18: 2035 | U18: 2036 | V18: 2037 | W18: 2038
C19: Gas Peaker | D19: ='Data Base Rel'!D40-'Data Base Pre'!D40 -> 0 | E19: ='Data Base Rel'!E40-'Data Base Pre'!E40 -> 0 | F19: ='Data Base Rel'!F40-'Data Base Pre'!F40 -> 0 | G19: ='Data Base Rel'!G40-'Data Base Pre'!G40 -> 0 | H19: ='Data Base Rel'!H40-'Data Base Pre'!H40 -> 0 | I19: ='Data Base Rel'!I40-'Data Base Pre'!I40 -> 0 | J19: ='Data Base Rel'!J40-'Data Base Pre'!J40 -> 0 | K19: ='Data Base Rel'!K40-'Data Base Pre'!K40 -> 184.9 | L19: ='Data Base Rel'!L40-'Data Base Pre'!L40 -> 184.9 | M19: ='Data Base Rel'!M40-'Data Base Pre'!M40 -> 184.9 | N19: ='Data Base Rel'!N40-'Data Base Pre'!N40 -> 184.9 | O19: ='Data Base Rel'!O40-'Data Base Pre'!O40 -> 369.8 | P19: ='Data Base Rel'!P40-'Data Base Pre'!P40 -> 184.9 | Q19: ='Data Base Rel'!Q40-'Data Base Pre'!Q40 -> 184.9 | R19: ='Data Base Rel'!R40-'Data Base Pre'!R40 -> 0 | S19: ='Data Base Rel'!S40-'Data Base Pre'!S40 -> 0 | T19: ='Data Base Rel'!T40-'Data Base Pre'!T40 -> 0 | U19: ='Data Base Rel'!U40-'Data Base Pre'!U40 -> 0 | V19: ='Data Base Rel'!V40-'Data Base Pre'!V40 -> 0 | W19: ='Data Base Rel'!W40-'Data Base Pre'!W40 -> 0
C20: Gas CCCT | D20: ='Data Base Rel'!D41-'Data Base Pre'!D41 -> 0 | E20: ='Data Base Rel'!E41-'Data Base Pre'!E41 -> 0 | F20: ='Data Base Rel'!F41-'Data Base Pre'!F41 -> 0 | G20: ='Data Base Rel'!G41-'Data Base Pre'!G41 -> 0 | H20: ='Data Base Rel'!H41-'Data Base Pre'!H41 -> 0 | I20: ='Data Base Rel'!I41-'Data Base Pre'!I41 -> 0 | J20: ='Data Base Rel'!J41-'Data Base Pre'!J41 -> 0 | K20: ='Data Base Rel'!K41-'Data Base Pre'!K41 -> 0 | L20: ='Data Base Rel'!L41-'Data Base Pre'!L41 -> 0 | M20: ='Data Base Rel'!M41-'Data Base Pre'!M41 -> 0 | N20: ='Data Base Rel'!N41-'Data Base Pre'!N41 -> 0 | O20: ='Data Base Rel'!O41-'Data Base Pre'!O41 -> 0 | P20: ='Data Base Rel'!P41-'Data Base Pre'!P41 -> 0 | Q20: ='Data Base Rel'!Q41-'Data Base Pre'!Q41 -> 0 | R20: ='Data Base Rel'!R41-'Data Base Pre'!R41 -> 0 | S20: ='Data Base Rel'!S41-'Data Base Pre'!S41 -> 0 | T20: ='Data Base Rel'!T41-'Data Base Pre'!T41 -> 0 | U20: ='Data Base Rel'!U41-'Data Base Pre'!U41 -> 0 | V20: ='Data Base Rel'!V41-'Data Base Pre'!V41 -> 0 | W20: ='Data Base Rel'!W41-'Data Base Pre'!W41 -> 0
C21: Gas Conv. | D21: ='Data Base Rel'!D42-'Data Base Pre'!D42 -> 0 | E21: ='Data Base Rel'!E42-'Data Base Pre'!E42 -> 0 | F21: ='Data Base Rel'!F42-'Data Base Pre'!F42 -> 0 | G21: ='Data Base Rel'!G42-'Data Base Pre'!G42 -> 0 | H21: ='Data Base Rel'!H42-'Data Base Pre'!H42 -> 0 | I21: ='Data Base Rel'!I42-'Data Base Pre'!I42 -> 0 | J21: ='Data Base Rel'!J42-'Data Base Pre'!J42 -> 0 | K21: ='Data Base Rel'!K42-'Data Base Pre'!K42 -> 0 | L21: ='Data Base Rel'!L42-'Data Base Pre'!L42 -> 0 | M21: ='Data Base Rel'!M42-'Data Base Pre'!M42 -> 0 | N21: ='Data Base Rel'!N42-'Data Base Pre'!N42 -> 0 | O21: ='Data Base Rel'!O42-'Data Base Pre'!O42 -> 0 | P21: ='Data Base Rel'!P42-'Data Base Pre'!P42 -> 0 | Q21: ='Data Base Rel'!Q42-'Data Base Pre'!Q42 -> 0 | R21: ='Data Base Rel'!R42-'Data Base Pre'!R42 -> 0 | S21: ='Data Base Rel'!S42-'Data Base Pre'!S42 -> 0 | T21: ='Data Base Rel'!T42-'Data Base Pre'!T42 -> 0 | U21: ='Data Base Rel'!U42-'Data Base Pre'!U42 -> 0 | V21: ='Data Base Rel'!V42-'Data Base Pre'!V42 -> 0 | W21: ='Data Base Rel'!W42-'Data Base Pre'!W42 -> 0
C22: Gas Removed | D22: ='Data Base Rel'!D43-'Data Base Pre'!D43 -> 0 | E22: ='Data Base Rel'!E43-'Data Base Pre'!E43 -> 0 | F22: ='Data Base Rel'!F43-'Data Base Pre'!F43 -> 0 | G22: ='Data Base Rel'!G43-'Data Base Pre'!G43 -> 0 | H22: ='Data Base Rel'!H43-'Data Base Pre'!H43 -> 0 | I22: ='Data Base Rel'!I43-'Data Base Pre'!I43 -> 0 | J22: ='Data Base Rel'!J43-'Data Base Pre'!J43 -> 0 | K22: ='Data Base Rel'!K43-'Data Base Pre'!K43 -> 0 | L22: ='Data Base Rel'!L43-'Data Base Pre'!L43 -> 0 | M22: ='Data Base Rel'!M43-'Data Base Pre'!M43 -> 0 | N22: ='Data Base Rel'!N43-'Data Base Pre'!N43 -> 0 | O22: ='Data Base Rel'!O43-'Data Base Pre'!O43 -> 0 | P22: ='Data Base Rel'!P43-'Data Base Pre'!P43 -> 0 | Q22: ='Data Base Rel'!Q43-'Data Base Pre'!Q43 -> 0 | R22: ='Data Base Rel'!R43-'Data Base Pre'!R43 -> 0 | S22: ='Data Base Rel'!S43-'Data Base Pre'!S43 -> 0 | T22: ='Data Base Rel'!T43-'Data Base Pre'!T43 -> 0 | U22: ='Data Base Rel'!U43-'Data Base Pre'!U43 -> 0 | V22: ='Data Base Rel'!V43-'Data Base Pre'!V43 -> 0 | W22: ='Data Base Rel'!W43-'Data Base Pre'!W43 -> 0
C24: Demand-Side Management
C25: Cumulative | D25: 2019 | E25: 2020 | F25: 2021 | G25: 2022 | H25: 2023 | I25: 2024 | J25: 2025 | K25: 2026 | L25: 2027 | M25: 2028 | N25: 2029 | O25: 2030 | P25: 2031 | Q25: 2032 | R25: 2033 | S25: 2034 | T25: 2035 | U25: 2036 | V25: 2037 | W25: 2038
C26: Class 2 DSM | D26: ='Data Base Rel'!D51-'Data Base Pre'!D51 -> 0 | E26: ='Data Base Rel'!E51-'Data Base Pre'!E51 -> 13.59 | F26: ='Data Base Rel'!F51-'Data Base Pre'!F51 -> 27.5 | G26: ='Data Base Rel'!G51-'Data Base Pre'!G51 -> 44.06 | H26: ='Data Base Rel'!H51-'Data Base Pre'!H51 -> 54.99 | I26: ='Data Base Rel'!I51-'Data Base Pre'!I51 -> 70.68 | J26: ='Data Base Rel'!J51-'Data Base Pre'!J51 -> 85.65 | K26: ='Data Base Rel'!K51-'Data Base Pre'!K51 -> 96.57 | L26: ='Data Base Rel'!L51-'Data Base Pre'!L51 -> 105.6 | M26: ='Data Base Rel'!M51-'Data Base Pre'!M51 -> 111.76 | N26: ='Data Base Rel'!N51-'Data Base Pre'!N51 -> 118.02 | O26: ='Data Base Rel'!O51-'Data Base Pre'!O51 -> 123.11 | P26: ='Data Base Rel'!P51-'Data Base Pre'!P51 -> 125.2 | Q26: ='Data Base Rel'!Q51-'Data Base Pre'!Q51 -> 129.44 | R26: ='Data Base Rel'!R51-'Data Base Pre'!R51 -> 128.75 | S26: ='Data Base Rel'!S51-'Data Base Pre'!S51 -> 128.55 | T26: ='Data Base Rel'!T51-'Data Base Pre'!T51 -> 129.51 | U26: ='Data Base Rel'!U51-'Data Base Pre'!U51 -> 129.34 | V26: ='Data Base Rel'!V51-'Data Base Pre'!V51 -> 128.86 | W26: ='Data Base Rel'!W51-'Data Base Pre'!W51 -> 127.32
C27: Class 1 DSM | D27: ='Data Base Rel'!D52-'Data Base Pre'!D52 -> 0 | E27: ='Data Base Rel'!E52-'Data Base Pre'!E52 -> 0 | F27: ='Data Base Rel'!F52-'Data Base Pre'!F52 -> 0 | G27: ='Data Base Rel'!G52-'Data Base Pre'!G52 -> 0 | H27: ='Data Base Rel'!H52-'Data Base Pre'!H52 -> 0 | I27: ='Data Base Rel'!I52-'Data Base Pre'!I52 -> 0 | J27: ='Data Base Rel'!J52-'Data Base Pre'!J52 -> 0 | K27: ='Data Base Rel'!K52-'Data Base Pre'!K52 -> 0 | L27: ='Data Base Rel'!L52-'Data Base Pre'!L52 -> 0 | M27: ='Data Base Rel'!M52-'Data Base Pre'!M52 -> 0 | N27: ='Data Base Rel'!N52-'Data Base Pre'!N52 -> 0 | O27: ='Data Base Rel'!O52-'Data Base Pre'!O52 -> 0 | P27: ='Data Base Rel'!P52-'Data Base Pre'!P52 -> 0 | Q27: ='Data Base Rel'!Q52-'Data Base Pre'!Q52 -> 0 | R27: ='Data Base Rel'!R52-'Data Base Pre'!R52 -> 0 | S27: ='Data Base Rel'!S52-'Data Base Pre'!S52 -> 0 | T27: ='Data Base Rel'!T52-'Data Base Pre'!T52 -> 0 | U27: ='Data Base Rel'!U52-'Data Base Pre'!U52 -> 0 | V27: ='Data Base Rel'!V52-'Data Base Pre'!V52 -> 0 | W27: ='Data Base Rel'!W52-'Data Base Pre'!W52 -> 0
C29: FOTs
C30: Incremental | D30: 2019 | E30: 2020 | F30: 2021 | G30: 2022 | H30: 2023 | I30: 2024 | J30: 2025 | K30: 2026 | L30: 2027 | M30: 2028 | N30: 2029 | O30: 2030 | P30: 2031 | Q30: 2032 | R30: 2033 | S30: 2034 | T30: 2035 | U30: 2036 | V30: 2037 | W30: 2038
C31: FOT | D31: ='Data Base Rel'!D56-'Data Base Pre'!D56 -> 0.009 | E31: ='Data Base Rel'!E56-'Data Base Pre'!E56 -> 0.005 | F31: ='Data Base Rel'!F56-'Data Base Pre'!F56 -> -0.005 | G31: ='Data Base Rel'!G56-'Data Base Pre'!G56 -> -0.007 | H31: ='Data Base Rel'!H56-'Data Base Pre'!H56 -> 0.012 | I31: ='Data Base Rel'!I56-'Data Base Pre'!I56 -> -0.003 | J31: ='Data Base Rel'!J56-'Data Base Pre'!J56 -> 0.005 | K31: ='Data Base Rel'!K56-'Data Base Pre'!K56 -> -0.013 | L31: ='Data Base Rel'!L56-'Data Base Pre'!L56 -> 0.009 | M31: ='Data Base Rel'!M56-'Data Base Pre'!M56 -> -0.005 | N31: ='Data Base Rel'!N56-'Data Base Pre'!N56 -> 0 | O31: ='Data Base Rel'!O56-'Data Base Pre'!O56 -> -0.005 | P31: ='Data Base Rel'!P56-'Data Base Pre'!P56 -> -0.003 | Q31: ='Data Base Rel'!Q56-'Data Base Pre'!Q56 -> 0.002 | R31: ='Data Base Rel'!R56-'Data Base Pre'!R56 -> -0.008 | S31: ='Data Base Rel'!S56-'Data Base Pre'!S56 -> 0 | T31: ='Data Base Rel'!T56-'Data Base Pre'!T56 -> -0.013 | U31: ='Data Base Rel'!U56-'Data Base Pre'!U56 -> -0.005 | V31: ='Data Base Rel'!V56-'Data Base Pre'!V56 -> 0.014 | W31: ='Data Base Rel'!W56-'Data Base Pre'!W56 -> 0
D34: 2019 | E34: 2020 | F34: 2021 | G34: 2022 | H34: 2023 | I34: 2024 | J34: 2025 | K34: 2026 | L34: 2027 | M34: 2028 | N34: 2029 | O34: 2030 | P34: 2031 | Q34: 2032 | R34: 2033 | S34: 2034 | T34: 2035 | U34: 2036 | V34: 2037 | W34: 2038
C35: Coal Removed | D35: =D5 -> 0 | E35: =E5 -> 0 | F35: 0 | G35: 0 | H35: 0 | I35: 0 | J35: 0 | K35: 0 | L35: 0 | M35: 0 | N35: 0 | O35: 0 | P35: 0 | Q35: 0 | R35: 0 | S35: 0 | T35: 0 | U35: 0 | V35: 0 | W35: 0
C36: Wind | D36: =D9 -> 0 | E36: 0 | F36: 0 | G36: 0 | H36: -0.016 | I36: -0.016 | J36: -0.016 | K36: -0.016 | L36: -0.016 | M36: -0.016 | N36: -0.016 | O36: 0.068 | P36: 0.068 | Q36: 0.068 | R36: 0.068 | S36: 0.068 | T36: 0.068 | U36: 0.068 | V36: 0.068 | W36: 0.068
C37: Solar | D37: =D10 -> 0 | E37: 0 | F37: 0 | G37: 0 | H37: 0 | I37: 0 | J37: 0 | K37: 0 | L37: 0 | M37: 0 | N37: 0 | O37: 0 | P37: 0 | Q37: 0 | R37: 0 | S37: 0 | T37: 0 | U37: 0 | V37: 0 | W37: 0
C38: Wind+Bat | D38: =D11 -> 0 | E38: 0 | F38: 0 | G38: 0 | H38: 0 | I38: 0 | J38: 0 | K38: 0 | L38: 0 | M38: 0 | N38: 0.009 | O38: 0.009 | P38: 0.009 | Q38: -0.075 | R38: -0.075 | S38: -0.075 | T38: -0.075 | U38: -0.075 | V38: -0.052 | W38: -0.052
C39: Solar+Bat | D39: =D12 -> 0 | E39: 0 | F39: -0.055 | G39: -0.023 | H39: -0.053 | I39: 0.007 | J39: 0.007 | K39: 0.007 | L39: 0.007 | M39: 0.007 | N39: 0.107 | O39: 0.107 | P39: 0.107 | Q39: 0.107 | R39: 0.107 | S39: 0.107 | T39: 0.107 | U39: 0.084 | V39: 0.084 | W39: 0.184
C40: Battery | D40: =D13 -> 0 | E40: 0 | F40: 0 | G40: 0 | H40: 0 | I40: 0 | J40: 0 | K40: 0 | L40: 0 | M40: 180 | N40: 615 | O40: 615 | P40: 645 | Q40: 765 | R40: 765 | S40: 765 | T40: 765 | U40: 765 | V40: 765 | W40: 915
C41: Pumped Storage | D41: =D14 -> 0 | E41: 0 | F41: 0 | G41: 0 | H41: 0 | I41: 0 | J41: 0 | K41: 0 | L41: 0 | M41: 0 | N41: 0 | O41: 0 | P41: 0 | Q41: 0 | R41: 0 | S41: 0 | T41: 0 | U41: 0 | V41: 0 | W41: 0
C42: Gas | D42: =SUM(D19:D22) -> 0 | E42: =SUM(E19:E22) -> 0 | F42: 0 | G42: 0 | H42: 0 | I42: 0 | J42: 0 | K42: 184.9 | L42: 184.9 | M42: 184.9 | N42: 184.9 | O42: 369.8 | P42: 184.9 | Q42: 184.9 | R42: 0 | S42: 0 | T42: 0 | U42: 0 | V42: 0 | W42: 0
C43: Class 1 DSM | D43: =D27 -> 0 | E43: =E27 -> 0 | F43: 0 | G43: 0 | H43: 0 | I43: 0 | J43: 0 | K43: 0 | L43: 0 | M43: 0 | N43: 0 | O43: 0 | P43: 0 | Q43: 0 | R43: 0 | S43: 0 | T43: 0 | U43: 0 | V43: 0 | W43: 0
C44: Class 2 DSM | D44: =D26 -> 0 | E44: =E26 -> 13.59 | F44: 27.5 | G44: 44.06 | H44: 54.99 | I44: 70.68 | J44: 85.65 | K44: 96.57 | L44: 105.6 | M44: 111.76 | N44: 118.02 | O44: 123.11 | P44: 125.2 | Q44: 129.44 | R44: 128.75 | S44: 128.55 | T44: 129.51 | U44: 129.34 | V44: 128.86 | W44: 127.32
C45: FOT | D45: =D31 -> 0.009 | E45: =E31 -> 0.005 | F45: -0.005 | G45: -0.007 | H45: 0.012 | I45: -0.003 | J45: 0.005 | K45: -0.013 | L45: 0.009 | M45: -0.005 | N45: 0 | O45: -0.005 | P45: -0.003 | Q45: 0.002 | R45: -0.008 | S45: 0 | T45: -0.013 | U45: -0.005 | V45: 0.014 | W45: 0
C48: Existing Capacity Removed | D48: =D5+D15+D22 -> 0 | E48: =E5+E15+E22 -> 0 | F48: 0 | G48: 0 | H48: 0 | I48: 0 | J48: 0 | K48: 0 | L48: 0 | M48: 0 | N48: 0 | O48: 0 | P48: 0 | Q48: 0 | R48: 0 | S48: 0 | T48: 0 | U48: 0 | V48: 0 | W48: 0

Sheet Data Compare Rel
A1: S05-MMR | C1: =IF(IFERROR(SUM(A68:A302),"Err")=0,"OK","MAPPING ERRORS, left column below") -> OK | Y1: Checks for | Z1: MAPPING ERRORS, left column below
C3: Coal
C4: Incremental | D4: 2019 | E4: 2020 | F4: 2021 | G4: 2022 | H4: 2023 | I4: 2024 | J4: 2025 | K4: 2026 | L4: 2027 | M4: 2028 | N4: 2029 | O4: 2030 | P4: 2031 | Q4: 2032 | R4: 2033 | S4: 2034 | T4: 2035 | U4: 2036 | V4: 2037 | W4: 2038
C5: Coal Removed | D5: =SUMIF($A$69:$A$302,$C5,D$69:D$302) -> 0 | E5: =SUMIF($A$69:$A$302,$C5,E$69:E$302) -> -280 | F5: -387 | G5: 0 | H5: 0 | I5: -350.5 | J5: 0 | K5: -439.3 | L5: -81.5 | M5: -903 | N5: -355.8 | O5: 0 | P5: -76.6 | Q5: 0 | R5: 0 | S5: 0 | T5: 0 | U5: 0 | V5: -909 | W5: -702
C7: Cumulative | D7: 2019 | E7: 2020 | F7: 2021 | G7: 2022 | H7: 2023 | I7: 2024 | J7: 2025 | K7: 2026 | L7: 2027 | M7: 2028 | N7: 2029 | O7: 2030 | P7: 2031 | Q7: 2032 | R7: 2033 | S7: 2034 | T7: 2035 | U7: 2036 | V7: 2037 | W7: 2038
C8: Coal Removed | D8: =D5 -> 0 | E8: =E5+D8 -> -280 | F8: =F5+E8 -> -667 | G8: -667 | H8: -667 | I8: -1017.5 | J8: -1017.5 | K8: -1456.8 | L8: -1538.3 | M8: -2441.3 | N8: -2797.1 | O8: -2797.1 | P8: -2873.7 | Q8: -2873.7 | R8: -2873.7 | S8: -2873.7 | T8: -2873.7 | U8: -2873.7 | V8: -3782.7 | W8: -4484.7
C10: Renewable and Storage
C11: Incremental | D11: 2019 | E11: 2020 | F11: 2021 | G11: 2022 | H11: 2023 | I11: 2024 | J11: 2025 | K11: 2026 | L11: 2027 | M11: 2028 | N11: 2029 | O11: 2030 | P11: 2031 | Q11: 2032 | R11: 2033 | S11: 2034 | T11: 2035 | U11: 2036 | V11: 2037 | W11: 2038
C12: Wind | D12: =SUMIF($A$69:$A$302,$C12,D$69:D$302) -> 0 | E12: 0 | F12: 0 | G12: 0 | H12: 0 | I12: 1920 | J12: 0 | K12: 0 | L12: 0 | M12: 0 | N12: =SUMIF($A$69:$A$302,$C12,N$69:N$302) -> 0 | O12: 993.6 | P12: 0 | Q12: 0 | R12: 0 | S12: 0 | T12: 0 | U12: 0 | V12: 0 | W12: 0
C13: Solar | D13: 0 | E13: 0 | F13: 0 | G13: 0 | H13: 0 | I13: 0 | J13: 0 | K13: 0 | L13: 0 | M13: 0 | N13: 0 | O13: 0 | P13: 0 | Q13: 0 | R13: 0 | S13: 0 | T13: 0 | U13: 0 | V13: 0 | W13: 0
C14: Wind+Bat | D14: 0 | E14: 0 | F14: 0 | G14: 0 | H14: 0 | I14: 0 | J14: 0 | K14: 0 | L14: 0 | M14: 0 | N14: 0 | O14: 30.2 | P14: 0 | Q14: 76.2 | R14: 0 | S14: 0 | T14: 0 | U14: 0 | V14: 0 | W14: 0
C15: Solar+Bat | D15: 0 | E15: 0 | F15: 159.2 | G15: 63.8 | H15: 72.8 | I15: 2163.2 | J15: 0 | K15: 0 | L15: 0 | M15: 0 | N15: 359.4 | O15: 0 | P15: 500 | Q15: 475 | R15: 100 | S15: 0 | T15: 0 | U15: 0 | V15: 904 | W15: 706.8
C16: Battery | D16: 0 | E16: 0 | F16: 0 | G16: 0 | H16: 0 | I16: 0 | J16: 0 | K16: 0 | L16: 0 | M16: 240 | N16: 0 | O16: 330 | P16: 0 | Q16: 45 | R16: 195 | S16: 0 | T16: 0 | U16: 0 | V16: 120 | W16: 465
C17: Pumped Storage | D17: 0 | E17: 0 | F17: 0 | G17: 0 | H17: 0 | I17: 0 | J17: 0 | K17: 0 | L17: 0 | M17: 0 | N17: 0 | O17: 0 | P17: 0 | Q17: 0 | R17: 0 | S17: 0 | T17: 0 | U17: 0 | V17: 0 | W17: 0
C18: Hydro Removed | D18: 0 | E18: -1.1 | F18: -168.9 | G18: 0 | H18: -0.7 | I18: -20.28 | J18: 0 | K18: -1.4 | L18: 0 | M18: -7.2 | N18: 0 | O18: 0 | P18: -6.4 | Q18: 0 | R18: 0 | S18: -74.9 | T18: 0 | U18: -1.2 | V18: 0 | W18: 0
C19: Wind Removed | D19: 0 | E19: -26.55 | F19: -16.8 | G19: -224 | H19: -0.2 | I19: -41 | J19: 0 | K19: -64.5 | L19: -3 | M19: 0 | N19: -93.4 | O19: -149.1 | P19: -200.2 | Q19: -65 | R19: -200.9 | S19: -80 | T19: 0 | U19: -70 | V19: -90 | W19: 0
C20: Solar Removed | D20: 0 | E20: 0 | F20: 0 | G20: 0 | H20: -0.5 | I20: -0.52 | J20: 0 | K20: 0 | L20: 0 | M20: -2 | N20: 0 | O20: 0 | P20: -67 | Q20: -48.9 | R20: 0 | S20: 0 | T20: -35.9 | U20: -209.1 | V20: -1024.2 | W20: -10.9
C21: Other Removed | D21: 0 | E21: 0 | F21: 0 | G21: 0 | H21: 0 | I21: 0 | J21: 0 | K21: 0 | L21: 0 | M21: 0 | N21: 0 | O21: 0 | P21: 0 | Q21: 0 | R21: 0 | S21: -0.907 | T21: 0 | U21: 0 | V21: 0 | W21: -32.1
C23: Cumulative | D23: 2019 | E23: 2020 | F23: 2021 | G23: 2022 | H23: 2023 | I23: 2024 | J23: 2025 | K23: 2026 | L23: 2027 | M23: 2028 | N23: 2029 | O23: 2030 | P23: 2031 | Q23: 2032 | R23: 2033 | S23: 2034 | T23: 2035 | U23: 2036 | V23: 2037 | W23: 2038 | Y23: Wind | Z23: Solar | AA23: Battery
C24: Wind | D24: =D12 -> 0 | E24: =D24+E12 -> 0 | F24: 0 | G24: 0 | H24: 0 | I24: 1920 | J24: 1920 | K24: 1920 | L24: 1920 | M24: 1920 | N24: 1920 | O24: 2913.6 | P24: 2913.6 | Q24: 2913.6 | R24: 2913.6 | S24: 2913.6 | T24: 2913.6 | U24: 2913.6 | V24: 2913.6 | W24: 2913.6 | Y24: =W24+SUM(D19:W19)+W26 -> 1695.35 | Z24: =W25+SUM(D20:W20)+W27 -> 4105.18 | AA24: =0.25*W26+0.25*W27+W28 -> 2797.65
C25: Solar | D25: 0 | E25: =D25+E13 -> 0 | F25: 0 | G25: 0 | H25: 0 | I25: 0 | J25: 0 | K25: 0 | L25: 0 | M25: 0 | N25: 0 | O25: 0 | P25: 0 | Q25: 0 | R25: 0 | S25: 0 | T25: 0 | U25: 0 | V25: 0 | W25: 0
C26: Wind+Bat | D26: 0 | E26: =D26+E14 -> 0 | F26: 0 | G26: 0 | H26: 0 | I26: 0 | J26: 0 | K26: 0 | L26: 0 | M26: 0 | N26: 0 | O26: 30.2 | P26: 30.2 | Q26: 106.4 | R26: 106.4 | S26: 106.4 | T26: 106.4 | U26: 106.4 | V26: 106.4 | W26: 106.4
C27: Solar+Bat | D27: 0 | E27: =D27+E15 -> 0 | F27: 159.2 | G27: 223 | H27: 295.8 | I27: 2459 | J27: 2459 | K27: 2459 | L27: 2459 | M27: 2459 | N27: 2818.4 | O27: 2818.4 | P27: 3318.4 | Q27: 3793.4 | R27: 3893.4 | S27: 3893.4 | T27: 3893.4 | U27: 3893.4 | V27: 4797.4 | W27: 5504.2
C28: Battery | D28: 0 | E28: =D28+E16 -> 0 | F28: 0 | G28: 0 | H28: 0 | I28: 0 | J28: 0 | K28: 0 | L28: 0 | M28: 240 | N28: 240 | O28: 570 | P28: 570 | Q28: 615 | R28: 810 | S28: 810 | T28: 810 | U28: 810 | V28: 930 | W28: 1395
C29: Pumped Storage | D29: 0 | E29: =D29+E17 -> 0 | F29: 0 | G29: 0 | H29: 0 | I29: 0 | J29: 0 | K29: 0 | L29: 0 | M29: 0 | N29: 0 | O29: 0 | P29: 0 | Q29: 0 | R29: 0 | S29: 0 | T29: 0 | U29: 0 | V29: 0 | W29: 0
C30: Renewable Removed | D30: =D19+D20+D18+D21 -> 0 | E30: =E19+E20+E18+E21+D30 -> -27.65 | F30: =F19+F20+F18+F21+E30 -> -213.35 | G30: -437.35 | H30: -438.75 | I30: -500.55 | J30: -500.55 | K30: -566.45 | L30: -569.45 | M30: -578.65 | N30: -672.05 | O30: -821.15 | P30: -1094.75 | Q30: -1208.65 | R30: -1409.55 | S30: -1565.357 | T30: -1601.257 | U30: -1881.557 | V30: -2995.757 | W30: -3038.757
C32: Gas
C33: Incremental | D33: 2019 | E33: 2020 | F33: 2021 | G33: 2022 | H33: 2023 | I33: 2024 | J33: 2025 | K33: 2026 | L33: 2027 | M33: 2028 | N33: 2029 | O33: 2030 | P33: 2031 | Q33: 2032 | R33: 2033 | S33: 2034 | T33: 2035 | U33: 2036 | V33: 2037 | W33: 2038
C34: Gas Peaker | D34: =SUMIF($A$69:$A$302,$C34,D$69:D$302) -> 0 | E34: 0 | F34: 0 | G34: 0 | H34: 0 | I34: 0 | J34: 0 | K34: 0 | L34: 0 | M34: 0 | N34: =SUMIF($A$69:$A$302,$C34,N$69:N$302) -> 0 | O34: 554.7 | P34: 0 | Q34: 0 | R34: 0 | S34: 0 | T34: 0 | U34: 0 | V34: 812.6 | W34: 0
C35: Gas CCCT | D35: 0 | E35: 0 | F35: 0 | G35: 0 | H35: 0 | I35: 0 | J35: 0 | K35: 0 | L35: 0 | M35: 0 | N35: 0 | O35: 0 | P35: 0 | Q35: 0 | R35: 0 | S35: 0 | T35: 0 | U35: 0 | V35: 505.2 | W35: 0
C36: Gas Conv. | D36: 0 | E36: 247 | F36: 0 | G36: 0 | H36: 0 | I36: 0 | J36: 0 | K36: 0 | L36: 0 | M36: 0 | N36: 0 | O36: -247 | P36: 0 | Q36: 0 | R36: 0 | S36: 0 | T36: 0 | U36: 0 | V36: 0 | W36: 0
C37: Gas Removed | D37: 0 | E37: 0 | F37: 0 | G37: 0 | H37: 0 | I37: 0 | J37: 0 | K37: 0 | L37: 0 | M37: 0 | N37: 0 | O37: 0 | P37: 0 | Q37: 0 | R37: -356.3 | S37: 0 | T37: 0 | U37: 0 | V37: -237 | W37: 0
C39: Cumulative | D39: 2019 | E39: 2020 | F39: 2021 | G39: 2022 | H39: 2023 | I39: 2024 | J39: 2025 | K39: 2026 | L39: 2027 | M39: 2028 | N39: 2029 | O39: 2030 | P39: 2031 | Q39: 2032 | R39: 2033 | S39: 2034 | T39: 2035 | U39: 2036 | V39: 2037 | W39: 2038
C40: Gas Peaker | D40: =D34 -> 0 | E40: =D40+E34 -> 0 | F40: =E40+F34 -> 0 | G40: 0 | H40: 0 | I40: 0 | J40: 0 | K40: 0 | L40: 0 | M40: 0 | N40: 0 | O40: 554.7 | P40: 554.7 | Q40: 554.7 | R40: 554.7 | S40: 554.7 | T40: 554.7 | U40: 554.7 | V40: 1367.3 | W40: 1367.3
C41: Gas CCCT | D41: =D35 -> 0 | E41: =D41+E35 -> 0 | F41: =E41+F35 -> 0 | G41: 0 | H41: 0 | I41: 0 | J41: 0 | K41: 0 | L41: 0 | M41: 0 | N41: 0 | O41: 0 | P41: 0 | Q41: 0 | R41: 0 | S41: 0 | T41: 0 | U41: 0 | V41: 505.2 | W41: 505.2
C42: Gas Conv. | D42: =D36 -> 0 | E42: =D42+E36 -> 247 | F42: =E42+F36 -> 247 | G42: 247 | H42: 247 | I42: 247 | J42: 247 | K42: 247 | L42: 247 | M42: 247 | N42: 247 | O42: 0 | P42: 0 | Q42: 0 | R42: 0 | S42: 0 | T42: 0 | U42: 0 | V42: 0 | W42: 0
C43: Gas Removed | D43: =D37 -> 0 | E43: =D43+E37 -> 0 | F43: 0 | G43: 0 | H43: 0 | I43: 0 | J43: 0 | K43: 0 | L43: 0 | M43: 0 | N43: 0 | O43: 0 | P43: 0 | Q43: 0 | R43: -356.3 | S43: -356.3 | T43: -356.3 | U43: -356.3 | V43: -593.3 | W43: -593.3
C45: Demand-Side Management
C46: Incremental | D46: 2019 | E46: 2020 | F46: 2021 | G46: 2022 | H46: 2023 | I46: 2024 | J46: 2025 | K46: 2026 | L46: 2027 | M46: 2028 | N46: 2029 | O46: 2030 | P46: 2031 | Q46: 2032 | R46: 2033 | S46: 2034 | T46: 2035 | U46: 2036 | V46: 2037 | W46: 2038
C47: Class 2 DSM | D47: =SUMIF($A$69:$A$302,$C47,D$69:D$302) -> 126 | E47: 130.41 | F47: 132.69 | G47: 138.15 | H47: 144.08 | I47: 148.9 | J47: 147 | K47: 143.83 | L47: 141.38 | M47: 137.76 | N47: =SUMIF($A$69:$A$302,$C47,N$69:N$302) -> 126.15 | O47: 123.16 | P47: 113.5 | Q47: 108.13 | R47: 105.79 | S47: 81.87 | T47: 77.8 | U47: 69.03 | V47: 61.15 | W47: 63.26
C48: Class 1 DSM | D48: 4.06 | E48: 0 | F48: 7.004 | G48: 0 | H48: 18.11 | I48: 0 | J48: 8.211 | K48: 7.166 | L48: 0 | M48: 0 | N48: 99.21 | O48: 34.203 | P48: 0 | Q48: 19.507 | R48: 0 | S48: 0 | T48: 7.008 | U48: 0 | V48: 36.804 | W48: 105.75
C50: Cumulative | D50: 2019 | E50: 2020 | F50: 2021 | G50: 2022 | H50: 2023 | I50: 2024 | J50: 2025 | K50: 2026 | L50: 2027 | M50: 2028 | N50: 2029 | O50: 2030 | P50: 2031 | Q50: 2032 | R50: 2033 | S50: 2034 | T50: 2035 | U50: 2036 | V50: 2037 | W50: 2038
C51: Class 2 DSM | D51: =D47 -> 126 | E51: =D51+E47 -> 256.41 | F51: 389.1 | G51: 527.25 | H51: 671.33 | I51: 820.23 | J51: 967.23 | K51: 1111.06 | L51: 1252.44 | M51: 1390.2 | N51: 1516.35 | O51: 1639.51 | P51: 1753.01 | Q51: 1861.14 | R51: 1966.93 | S51: 2048.8 | T51: 2126.6 | U51: 2195.63 | V51: 2256.78 | W51: 2320.04
C52: Class 1 DSM | D52: =D48 -> 4.06 | E52: 4.06 | F52: 11.064 | G52: 11.064 | H52: 29.174 | I52: 29.174 | J52: 37.385 | K52: 44.551 | L52: 44.551 | M52: 44.551 | N52: 143.761 | O52: 177.964 | P52: 177.964 | Q52: 197.471 | R52: 197.471 | S52: 197.471 | T52: 204.479 | U52: 204.479 | V52: 241.283 | W52: 347.033
C54: FOTs
C55: Incremental | D55: 2019 | E55: 2020 | F55: 2021 | G55: 2022 | H55: 2023 | I55: 2024 | J55: 2025 | K55: 2026 | L55: 2027 | M55: 2028 | N55: 2029 | O55: 2030 | P55: 2031 | Q55: 2032 | R55: 2033 | S55: 2034 | T55: 2035 | U55: 2036 | V55: 2037 | W55: 2038
C56: FOT | D56: =SUMIF($A$69:$A$302,$C56,D$69:D$302) -> 997.685 | E56: 719.55 | F56: 493.56 | G56: 503.88 | H56: 499.64 | I56: 175.025 | J56: 168.525 | K56: 198.04 | L56: 243.32 | M56: 1105.51 | N56: 1299.43 | O56: 1375 | P56: 1355.32 | Q56: 1219.93 | R56: 1375 | S56: 1356.01 | T56: 1351.488 | U56: 1363.037 | V56: 1375 | W56: 1362.363
C57: Winter FOT | D57: 151.445 | E57: 130.91 | F57: 268.4 | G57: 303.28 | H57: 313.96 | I57: 50.15 | J57: 56.55 | K57: 60.3 | L57: 109.85 | M57: 241.68 | N57: 261.64 | O57: 225.94 | P57: 247.21 | Q57: 127.51 | R57: 75.48 | S57: 6.92 | T57: 22.24 | U57: 175 | V57: 0 | W57: 0
C59: Removed Capacity | D59: =D8+D30+D43 -> 0 | E59: =E8+E30+E43 -> -307.65 | F59: -880.35 | G59: -1104.35 | H59: -1105.75 | I59: -1518.05 | J59: -1518.05 | K59: -2023.25 | L59: -2107.75 | M59: -3019.95 | N59: -3469.15 | O59: -3618.25 | P59: -3968.45 | Q59: -4082.35 | R59: -4639.55 | S59: -4795.357 | T59: -4831.257 | U59: -5111.557 | V59: -7371.757 | W59: -8116.757
B64: Study Name: I19-S05-MMR (09-28-19 0929 PM)
D66: Capacity (MW)
C67: Resource | D67: 2019 | E67: 2020 | F67: 2021 | G67: 2022 | H67: 2023 | I67: 2024 | J67: 2025 | K67: 2026 | L67: 2027 | M67: 2028 | N67: 2029 | O67: 2030 | P67: 2031 | Q67: 2032 | R67: 2033 | S67: 2034 | T67: 2035 | U67: 2036 | V67: 2037 | W67: 2038
A68: =IF(AND(B68<>"West",OR(A67="Winter FOT",A67="Done")),"Done",VLOOKUP(C68,'Resource Map'!$B$3:$C$509,2,FALSE)) -> - | B68: East | C68: Existing Plant Retirements and PPA Termination
A69: =IF(AND(B69<>"West",OR(A68="Winter FOT",A68="Done")),"Done",VLOOKUP(C69,'Resource Map'!$B$3:$C$509,2,FALSE)) -> Coal Removed | C69: Craig 1 (Coal Early Retirement/Conversions) | D69: 0 | E69: 0 | F69: 0 | G69: 0 | H69: 0 | I69: 0 | J69: 0 | K69: -82.3 | L69: 0 | M69: 0 | N69: 0 | O69: 0 | P69: 0 | Q69: 0 | R69: 0 | S69: 0 | T69: 0 | U69: 0 | V69: 0 | W69: 0
A70: =IF(AND(B70<>"West",OR(A69="Winter FOT",A69="Done")),"Done",VLOOKUP(C70,'Resource Map'!$B$3:$C$509,2,FALSE)) -> Coal Removed | C70: Craig 2 (Coal Early Retirement/Conversions) | D70: 0 | E70: 0 | F70: 0 | G70: 0 | H70: 0 | I70: 0 | J70: 0 | K70: 0 | L70: -81.5 | M70: 0 | N70: 0 | O70: 0 | P70: 0 | Q70: 0 | R70: 0 | S70: 0 | T70: 0 | U70: 0 | V70: 0 | W70: 0
A71: =IF(AND(B71<>"West",OR(A70="Winter FOT",A70="Done")),"Done",VLOOKUP(C71,'Resource Map'!$B$3:$C$509,2,FALSE)) -> Coal Removed | C71: Hayden 1 | D71: 0 | E71: 0 | F71: 0 | G71: 0 | H71: 0 | I71: 0 | J71: 0 | K71: 0 | L71: 0 | M71: 0 | N71: 0 | O71: 0 | P71: -43.9 | Q71: 0 | R71: 0 | S71: 0 | T71: 0 | U71: 0 | V71: 0 | W71: 0
A72: =IF(AND(B72<>"West",OR(A71="Winter FOT",A71="Done")),"Done",VLOOKUP(C72,'Resource Map'!$B$3:$C$509,2,FALSE)) -> Coal Removed | C72: Hayden 2 | D72: 0 | E72: 0 | F72: 0 | G72: 0 | H72: 0 | I72: 0 | J72: 0 | K72: 0 | L72: 0 | M72: 0 | N72: 0 | O72: 0 | P72: -32.7 | Q72: 0 | R72: 0 | S72: 0 | T72: 0 | U72: 0 | V72: 0 | W72: 0
A73: =IF(AND(B73<>"West",OR(A72="Winter FOT",A72="Done")),"Done",VLOOKUP(C73,'Resource Map'!$B$3:$C$509,2,FALSE)) -> Coal Removed | C73: Huntington 1 | D73: 0 | E73: 0 | F73: 0 | G73: 0 | H73: 0 | I73: 0 | J73: 0 | K73: 0 | L73: 0 | M73: 0 | N73: 0 | O73: 0 | P73: 0 | Q73: 0 | R73: 0 | S73: 0 | T73: 0 | U73: 0 | V73: -459 | W73: 0
A74: =IF(AND(B74<>"West",OR(A73="Winter FOT",A73="Done")),"Done",VLOOKUP(C74,'Resource Map'!$B$3:$C$509,2,FALSE)) -> Coal Removed | C74: Huntington 2 | D74: 0 | E74: 0 | F74: 0 | G74: 0 | H74: 0 | I74: 0 | J74: 0 | K74: 0 | L74: 0 | M74: 0 | N74: 0 | O74: 0 | P74: 0 | Q74: 0 | R74: 0 | S74: 0 | T74: 0 | U74: 0 | V74: -450 | W74: 0
A75: =IF(AND(B75<>"West",OR(A74="Winter FOT",A74="Done")),"Done",VLOOKUP(C75,'Resource Map'!$B$3:$C$509,2,FALSE)) -> Coal Removed | C75: Colstrip 3 (Coal Early Retirement/Conversions) | D75: 0 | E75: 0 | F75: 0 | G75: 0 | H75: 0 | I75: 0 | J75: 0 | K75: 0 | L75: 0 | M75: -74 | N75: 0 | O75: 0 | P75: 0 | Q75: 0 | R75: 0 | S75: 0 | T75: 0 | U75: 0 | V75: 0 | W75: 0
A76: =IF(AND(B76<>"West",OR(A75="Winter FOT",A75="Done")),"Done",VLOOKUP(C76,'Resource Map'!$B$3:$C$509,2,FALSE)) -> Coal Removed | C76: Colstrip 4 (Coal Early Retirement/Conversions) | D76: 0 | E76: 0 | F76: 0 | G76: 0 | H76: 0 | I76: 0 | J76: 0 | K76: 0 | L76: 0 | M76: -74 | N76: 0 | O76: 0 | P76: 0 | Q76: 0 | R76: 0 | S76: 0 | T76: 0 | U76: 0 | V76: 0 | W76: 0
A77: =IF(AND(B77<>"West",OR(A76="Winter FOT",A76="Done")),"Done",VLOOKUP(C77,'Resource Map'!$B$3:$C$509,2,FALSE)) -> Coal Removed | C77: Cholla 4 (Coal Early Retirement/Conversions) | D77: 0 | E77: 0 | F77: -387 | G77: 0 | H77: 0 | I77: 0 | J77: 0 | K77: 0 | L77: 0 | M77: 0 | N77: 0 | O77: 0 | P77: 0 | Q77: 0 | R77: 0 | S77: 0 | T77: 0 | U77: 0 | V77: 0 | W77: 0
A78: =IF(AND(B78<>"West",OR(A77="Winter FOT",A77="Done")),"Done",VLOOKUP(C78,'Resource Map'!$B$3:$C$509,2,FALSE)) -> Coal Removed | C78: DaveJohnston 1 | D78: 0 | E78: 0 | F78: 0 | G78: 0 | H78: 0 | I78: 0 | J78: 0 | K78: 0 | L78: 0 | M78: -99 | N78: 0 | O78: 0 | P78: 0 | Q78: 0 | R78: 0 | S78: 0 | T78: 0 | U78: 0 | V78: 0 | W78: 0
A79: =IF(AND(B79<>"West",OR(A78="Winter FOT",A78="Done")),"Done",VLOOKUP(C79,'Resource Map'!$B$3:$C$509,2,FALSE)) -> Coal Removed | C79: DaveJohnston 2 | D79: 0 | E79: 0 | F79: 0 | G79: 0 | H79: 0 | I79: 0 | J79: 0 | K79: 0 | L79: 0 | M79: -106 | N79: 0 | O79: 0 | P79: 0 | Q79: 0 | R79: 0 | S79: 0 | T79: 0 | U79: 0 | V79: 0 | W79: 0
A80: =IF(AND(B80<>"West",OR(A79="Winter FOT",A79="Done")),"Done",VLOOKUP(C80,'Resource Map'!$B$3:$C$509,2,FALSE)) -> Coal Removed | C80: DaveJohnston 3 | D80: 0 | E80: 0 | F80: 0 | G80: 0 | H80: 0 | I80: 0 | J80: 0 | K80: 0 | L80: 0 | M80: -220 | N80: 0 | O80: 0 | P80: 0 | Q80: 0 | R80: 0 | S80: 0 | T80: 0 | U80: 0 | V80: 0 | W80: 0
A81: =IF(AND(B81<>"West",OR(A80="Winter FOT",A80="Done")),"Done",VLOOKUP(C81,'Resource Map'!$B$3:$C$509,2,FALSE)) -> Coal Removed | C81: DaveJohnston 4 | D81: 0 | E81: 0 | F81: 0 | G81: 0 | H81: 0 | I81: 0 | J81: 0 | K81: 0 | L81: 0 | M81: -330 | N81: 0 | O81: 0 | P81: 0 | Q81: 0 | R81: 0 | S81: 0 | T81: 0 | U81: 0 | V81: 0 | W81: 0
A82: =IF(AND(B82<>"West",OR(A81="Winter FOT",A81="Done")),"Done",VLOOKUP(C82,'Resource Map'!$B$3:$C$509,2,FALSE)) -> Coal Removed | C82: Naughton 1 (Coal Early Retirement/Conversions) | D82: 0 | E82: 0 | F82: 0 | G82: 0 | H82: 0 | I82: 0 | J82: 0 | K82: -156 | L82: 0 | M82: 0 | N82: 0 | O82: 0 | P82: 0 | Q82: 0 | R82: 0 | S82: 0 | T82: 0 | U82: 0 | V82: 0 | W82: 0
A83: =IF(AND(B83<>"West",OR(A82="Winter FOT",A82="Done")),"Done",VLOOKUP(C83,'Resource Map'!$B$3:$C$509,2,FALSE)) -> Coal Removed | C83: Naughton 2 (Coal Early Retirement/Conversions) | D83: 0 | E83: 0 | F83: 0 | G83: 0 | H83: 0 | I83: 0 | J83: 0 | K83: -201 | L83: 0 | M83: 0 | N83: 0 | O83: 0 | P83: 0 | Q83: 0 | R83: 0 | S83: 0 | T83: 0 | U83: 0 | V83: 0 | W83: 0
A84: =IF(AND(B84<>"West",OR(A83="Winter FOT",A83="Done")),"Done",VLOOKUP(C84,'Resource Map'!$B$3:$C$509,2,FALSE)) -> Coal Removed | C84: Naughton 3 (Coal Early Retirement/Conversions) | D84: 0 | E84: -280 | F84: 0 | G84: 0 | H84: 0 | I84: 0 | J84: 0 | K84: 0 | L84: 0 | M84: 0 | N84: 0 | O84: 0 | P84: 0 | Q84: 0 | R84: 0 | S84: 0 | T84: 0 | U84: 0 | V84: 0 | W84: 0
A85: =IF(AND(B85<>"West",OR(A84="Winter FOT",A84="Done")),"Done",VLOOKUP(C85,'Resource Map'!$B$3:$C$509,2,FALSE)) -> Gas Removed | C85: Gadsby 1-6 | D85: 0 | E85: 0 | F85: 0 | G85: 0 | H85: 0 | I85: 0 | J85: 0 | K85: 0 | L85: 0 | M85: 0 | N85: 0 | O85: 0 | P85: 0 | Q85: 0 | R85: -356.3 | S85: 0 | T85: 0 | U85: 0 | V85: 0 | W85: 0
A86: =IF(AND(B86<>"West",OR(A85="Winter FOT",A85="Done")),"Done",VLOOKUP(C86,'Resource Map'!$B$3:$C$509,2,FALSE)) -> Hydro Removed | C86: Retire - Hydro | D86: 0 | E86: 0 | F86: 0 | G86: 0 | H86: 0 | I86: -20.28 | J86: 0 | K86: 0 | L86: 0 | M86: 0 | N86: 0 | O86: 0 | P86: 0 | Q86: 0 | R86: 0 | S86: 0 | T86: 0 | U86: 0 | V86: 0 | W86: 0
A87: =IF(AND(B87<>"West",OR(A86="Winter FOT",A86="Done")),"Done",VLOOKUP(C87,'Resource Map'!$B$3:$C$509,2,FALSE)) -> Wind Removed | C87: Retire - Wind | D87: 0 | E87: 0 | F87: 0 | G87: 0 | H87: 0 | I87: 0 | J87: 0 | K87: 0 | L87: 0 | M87: 0 | N87: 0 | O87: -40.2 | P87: 0 | Q87: 0 | R87: 0 | S87: 0 | T87: 0 | U87: 0 | V87: 0 | W87: 0
A88: =IF(AND(B88<>"West",OR(A87="Winter FOT",A87="Done")),"Done",VLOOKUP(C88,'Resource Map'!$B$3:$C$509,2,FALSE)) -> Wind Removed | C88: Expire - Wind PPA | D88: 0 | E88: -26.55 | F88: -16.8 | G88: -49 | H88: -0.2 | I88: 0 | J88: 0 | K88: -64.5 | L88: -3 | M88: 0 | N88: -18.9 | O88: -99 | P88: -200.2 | Q88: -45 | R88: -180.9 | S88: -80 | T88: 0 | U88: -60 | V88: -80 | W88: 0
A89: =IF(AND(B89<>"West",OR(A88="Winter FOT",A88="Done")),"Done",VLOOKUP(C89,'Resource Map'!$B$3:$C$509,2,FALSE)) -> Solar Removed | C89: Expire - Solar PPA | D89: 0 | E89: 0 | F89: 0 | G89: 0 | H89: -0.5 | I89: -0.52 | J89: 0 | K89: 0 | L89: 0 | M89: 0 | N89: 0 | O89: 0 | P89: 0 | Q89: 0 | R89: 0 | S89: 0 | T89: -35.1 | U89: -94.1 | V89: -849 | W89: 0
A90: =IF(AND(B90<>"West",OR(A89="Winter FOT",A89="Done")),"Done",VLOOKUP(C90,'Resource Map'!$B$3:$C$509,2,FALSE)) -> Other Removed | C90: Retire - Other | D90: 0 | E90: 0 | F90: 0 | G90: 0 | H90: 0 | I90: 0 | J90: 0 | K90: 0 | L90: 0 | M90: 0 | N90: 0 | O90: 0 | P90: 0 | Q90: 0 | R90: 0 | S90: -0.907 | T90: 0 | U90: 0 | V90: 0 | W90: -32.1
A91: =IF(AND(B91<>"West",OR(A90="Winter FOT",A90="Done")),"Done",VLOOKUP(C91,'Resource Map'!$B$3:$C$509,2,FALSE)) -> Gas Conv. | C91: Coal Ret_WY - Gas RePower | D91: 0 | E91: 247 | F91: 0 | G91: 0 | H91: 0 | I91: 0 | J91: 0 | K91: 0 | L91: 0 | M91: 0 | N91: 0 | O91: -247 | P91: 0 | Q91: 0 | R91: 0 | S91: 0 | T91: 0 | U91: 0 | V91: 0 | W91: 0
A92: =IF(AND(B92<>"West",OR(A91="Winter FOT",A91="Done")),"Done",VLOOKUP(C92,'Resource Map'!$B$3:$C$509,2,FALSE)) -> - | C92: Expansion Resources
A93: =IF(AND(B93<>"West",OR(A92="Winter FOT",A92="Done")),"Done",VLOOKUP(C93,'Resource Map'!$B$3:$C$509,2,FALSE)) -> Gas CCCT | C93: CCCT - DJohns - J 1x1 | D93: 0 | E93: 0 | F93: 0 | G93: 0 | H93: 0 | I93: 0 | J93: 0 | K93: 0 | L93: 0 | M93: 0 | N93: 0 | O93: 0 | P93: 0 | Q93: 0 | R93: 0 | S93: 0 | T93: 0 | U93: 0 | V93: 505.2 | W93: 0
A94: =IF(AND(B94<>"West",OR(A93="Winter FOT",A93="Done")),"Done",VLOOKUP(C94,'Resource Map'!$B$3:$C$509,2,FALSE)) -> - | C94: Total CCCT | D94: 0 | E94: 0 | F94: 0 | G94: 0 | H94: 0 | I94: 0 | J94: 0 | K94: 0 | L94: 0 | M94: 0 | N94: 0 | O94: 0 | P94: 0 | Q94: 0 | R94: 0 | S94: 0 | T94: 0 | U94: 0 | V94: 505.2 | W94: 0
A95: =IF(AND(B95<>"West",OR(A94="Winter FOT",A94="Done")),"Done",VLOOKUP(C95,'Resource Map'!$B$3:$C$509,2,FALSE)) -> Gas Peaker | C95: SCCT Frame NTN | D95: 0 | E95: 0 | F95: 0 | G95: 0 | H95: 0 | I95: 0 | J95: 0 | K95: 0 | L95: 0 | M95: 0 | N95: 0 | O95: 554.7 | P95: 0 | Q95: 0 | R95: 0 | S95: 0 | T95: 0 | U95: 0 | V95: 0 | W95: 0
A96: =IF(AND(B96<>"West",OR(A95="Winter FOT",A95="Done")),"Done",VLOOKUP(C96,'Resource Map'!$B$3:$C$509,2,FALSE)) -> Gas Peaker | C96: SCCT Frame WYSW | D96: 0 | E96: 0 | F96: 0 | G96: 0 | H96: 0 | I96: 0 | J96: 0 | K96: 0 | L96: 0 | M96: 0 | N96: 0 | O96: 0 | P96: 0 | Q96: 0 | R96: 0 | S96: 0 | T96: 0 | U96: 0 | V96: 369.8 | W96: 0
A97: =IF(AND(B97<>"West",OR(A96="Winter FOT",A96="Done")),"Done",VLOOKUP(C97,'Resource Map'!$B$3:$C$509,2,FALSE)) -> - | C97: Total SCCT | D97: 0 | E97: 0 | F97: 0 | G97: 0 | H97: 0 | I97: 0 | J97: 0 | K97: 0 | L97: 0 | M97: 0 | N97: 0 | O97: 554.7 | P97: 0 | Q97: 0 | R97: 0 | S97: 0 | T97: 0 | U97: 0 | V97: 369.8 | W97: 0
A98: =IF(AND(B98<>"West",OR(A97="Winter FOT",A97="Done")),"Done",VLOOKUP(C98,'Resource Map'!$B$3:$C$509,2,FALSE)) -> Wind | C98: Wind, GO | D98: 0 | E98: 0 | F98: 0 | G98: 0 | H98: 0 | I98: 0 | J98: 0 | K98: 0 | L98: 0 | M98: 0 | N98: 0 | O98: 993.6 | P98: 0 | Q98: 0 | R98: 0 | S98: 0 | T98: 0 | U98: 0 | V98: 0 | W98: 0
A99: =IF(AND(B99<>"West",OR(A98="Winter FOT",A98="Done")),"Done",VLOOKUP(C99,'Resource Map'!$B$3:$C$509,2,FALSE)) -> Wind | C99: Wind, WYAE | D99: 0 | E99: 0 | F99: 0 | G99: 0 | H99: 0 | I99: 1920 | J99: 0 | K99: 0 | L99: 0 | M99: 0 | N99: 0 | O99: 0 | P99: 0 | Q99: 0 | R99: 0 | S99: 0 | T99: 0 | U99: 0 | V99: 0 | W99: 0
A100: =IF(AND(B100<>"West",OR(A99="Winter FOT",A99="Done")),"Done",VLOOKUP(C100,'Resource Map'!$B$3:$C$509,2,FALSE)) -> Wind+Bat | C100: Wind+Storage, GO | D100: 0 | E100: 0 | F100: 0 | G100: 0 | H100: 0 | I100: 0 | J100: 0 | K100: 0 | L100: 0 | M100: 0 | N100: 0 | O100: 30.2 | P100: 0 | Q100: 76.2 | R100: 0 | S100: 0 | T100: 0 | U100: 0 | V100: 0 | W100: 0
A101: =IF(AND(B101<>"West",OR(A100="Winter FOT",A100="Done")),"Done",VLOOKUP(C101,'Resource Map'!$B$3:$C$509,2,FALSE)) -> - | C101: Total Wind | D101: 0 | E101: 0 | F101: 0 | G101: 0 | H101: 0 | I101: 1920 | J101: 0 | K101: 0 | L101: 0 | M101: 0 | N101: 0 | O101: 1023.8 | P101: 0 | Q101: 76.2 | R101: 0 | S101: 0 | T101: 0 | U101: 0 | V101: 0 | W101: 0
A102: =IF(AND(B102<>"West",OR(A101="Winter FOT",A101="Done")),"Done",VLOOKUP(C102,'Resource Map'!$B$3:$C$509,2,FALSE)) -> Solar+Bat | C102: Utility Solar+Storage - PV - Utah-S | D102: 0 | E102: 0 | F102: 0 | G102: 0 | H102: 0 | I102: 300 | J102: 0 | K102: 0 | L102: 0 | M102: 0 | N102: 0 | O102: 0 | P102: 500 | Q102: 0 | R102: 0 | S102: 0 | T102: 0 | U102: 0 | V102: 0 | W102: 0
A103: =IF(AND(B103<>"West",OR(A102="Winter FOT",A102="Done")),"Done",VLOOKUP(C103,'Resource Map'!$B$3:$C$509,2,FALSE)) -> Solar+Bat | C103: Utility Solar+Storage - PV - WYSW | D103: 0 | E103: 0 | F103: 0 | G103: 0 | H103: 0 | I103: 0 | J103: 0 | K103: 0 | L103: 0 | M103: 0 | N103: 0 | O103: 0 | P103: 0 | Q103: 0 | R103: 100 | S103: 0 | T103: 0 | U103: 0 | V103: 0 | W103: 0
A104: =IF(AND(B104<>"West",OR(A103="Winter FOT",A103="Done")),"Done",VLOOKUP(C104,'Resource Map'!$B$3:$C$509,2,FALSE)) -> Solar+Bat | C104: Utility Solar+Storage - PV - Huntington | D104: 0 | E104: 0 | F104: 0 | G104: 0 | H104: 0 | I104: 0 | J104: 0 | K104: 0 | L104: 0 | M104: 0 | N104: 0 | O104: 0 | P104: 0 | Q104: 0 | R104: 0 | S104: 0 | T104: 0 | U104: 0 | V104: 904 | W104: 5
A105: =IF(AND(B105<>"West",OR(A104="Winter FOT",A104="Done")),"Done",VLOOKUP(C105,'Resource Map'!$B$3:$C$509,2,FALSE)) -> Solar+Bat | C105: Utility Solar+Storage - PV - Utah-N | D105: 0 | E105: 0 | F105: 159.2 | G105: 63.8 | H105: 72.8 | I105: 604.2 | J105: 0 | K105: 0 | L105: 0 | M105: 0 | N105: 0 | O105: 0 | P105: 0 | Q105: 0 | R105: 0 | S105: 0 | T105: 0 | U105: 0 | V105: 0 | W105: 0
A106: =IF(AND(B106<>"West",OR(A105="Winter FOT",A105="Done")),"Done",VLOOKUP(C106,'Resource Map'!$B$3:$C$509,2,FALSE)) -> - | C106: Total Solar | D106: 0 | E106: 0 | F106: 159.2 | G106: 63.8 | H106: 72.8 | I106: 904.2 | J106: 0 | K106: 0 | L106: 0 | M106: 0 | N106: 0 | O106: 0 | P106: 500 | Q106: 0 | R106: 100 | S106: 0 | T106: 0 | U106: 0 | V106: 904 | W106: 5
A107: =IF(AND(B107<>"West",OR(A106="Winter FOT",A106="Done")),"Done",VLOOKUP(C107,'Resource Map'!$B$3:$C$509,2,FALSE)) -> Class 1 DSM | C107: Demand Response, ID-3rd Party Contracts | D107: 0 | E107: 0 | F107: 0 | G107: 0 | H107: 0 | I107: 0 | J107: 0 | K107: 0 | L107: 0 | M107: 0 | N107: 0 | O107: 0 | P107: 0 | Q107: 0 | R107: 0 | S107: 0 | T107: 0 | U107: 0 | V107: 0 | W107: 1.827
A108: =IF(AND(B108<>"West",OR(A107="Winter FOT",A107="Done")),"Done",VLOOKUP(C108,'Resource Map'!$B$3:$C$509,2,FALSE)) -> Class 1 DSM | C108: Demand Response, ID-Irrigate | D108: 0 | E108: 0 | F108: 0 | G108: 0 | H108: 0 | I108: 0 | J108: 0 | K108: 0 | L108: 0 | M108: 0 | N108: 0 | O108: 0 | P108: 0 | Q108: 5.152 | R108: 0 | S108: 0 | T108: 0 | U108: 0 | V108: 3.654 | W108: 1.789
A109: =IF(AND(B109<>"West",OR(A108="Winter FOT",A108="Done")),"Done",VLOOKUP(C109,'Resource Map'!$B$3:$C$509,2,FALSE)) -> Class 1 DSM | C109: Demand Response, UT-Cool/WH | D109: 4.06 | E109: 0 | F109: 7.004 | G109: 0 | H109: 9.858 | I109: 0 | J109: 0 | K109: 7.166 | L109: 0 | M109: 0 | N109: 6.693 | O109: 0 | P109: 0 | Q109: 6.843 | R109: 0 | S109: 0 | T109: 7.008 | U109: 0 | V109: 0 | W109: 7.237
A110: =IF(AND(B110<>"West",OR(A109="Winter FOT",A109="Done")),"Done",VLOOKUP(C110,'Resource Map'!$B$3:$C$509,2,FALSE)) -> Class 1 DSM | C110: Demand Response, UT-3rd Party Contracts | D110: 0 | E110: 0 | F110: 0 | G110: 0 | H110: 0 | I110: 0 | J110: 0 | K110: 0 | L110: 0 | M110: 0 | N110: 0 | O110: 0 | P110: 0 | Q110: 0 | R110: 0 | S110: 0 | T110: 0 | U110: 0 | V110: 0 | W110: 48.395
A111: =IF(AND(B111<>"West",OR(A110="Winter FOT",A110="Done")),"Done",VLOOKUP(C111,'Resource Map'!$B$3:$C$509,2,FALSE)) -> Class 1 DSM | C111: Demand Response, UT-Irrigate | D111: 0 | E111: 0 | F111: 0 | G111: 0 | H111: 0 | I111: 0 | J111: 0 | K111: 0 | L111: 0 | M111: 0 | N111: 0 | O111: 0 | P111: 0 | Q111: 0 | R111: 0 | S111: 0 | T111: 0 | U111: 0 | V111: 0 | W111: 1.927
A112: =IF(AND(B112<>"West",OR(A111="Winter FOT",A111="Done")),"Done",VLOOKUP(C112,'Resource Map'!$B$3:$C$509,2,FALSE)) -> Class 1 DSM | C112: Demand Response, UT-Thermostat | D112: 0 | E112: 0 | F112: 0 | G112: 0 | H112: 0 | I112: 0 | J112: 0 | K112: 0 | L112: 0 | M112: 0 | N112: 92.517 | O112: 32.352 | P112: 0 | Q112: 0 | R112: 0 | S112: 0 | T112: 0 | U112: 0 | V112: 8.335 | W112: 5.118
A113: =IF(AND(B113<>"West",OR(A112="Winter FOT",A112="Done")),"Done",VLOOKUP(C113,'Resource Map'!$B$3:$C$509,2,FALSE)) -> Class 1 DSM | C113: Demand Response, WY-3rd Party Contracts | D113: 0 | E113: 0 | F113: 0 | G113: 0 | H113: 0 | I113: 0 | J113: 0 | K113: 0 | L113: 0 | M113: 0 | N113: 0 | O113: 0 | P113: 0 | Q113: 0 | R113: 0 | S113: 0 | T113: 0 | U113: 0 | V113: 0 | W113: 2.05
A114: =IF(AND(B114<>"West",OR(A113="Winter FOT",A113="Done")),"Done",VLOOKUP(C114,'Resource Map'!$B$3:$C$509,2,FALSE)) -> Class 1 DSM | C114: Demand Response, WY-Irrigate | D114: 0 | E114: 0 | F114: 0 | G114: 0 | H114: 0 | I114: 0 | J114: 0 | K114: 0 | L114: 0 | M114: 0 | N114: 0 | O114: 0 | P114: 0 | Q114: 0 | R114: 0 | S114: 0 | T114: 0 | U114: 0 | V114: 0 | W114: 1.757
A115: =IF(AND(B115<>"West",OR(A114="Winter FOT",A114="Done")),"Done",VLOOKUP(C115,'Resource Map'!$B$3:$C$509,2,FALSE)) -> Class 1 DSM | C115: Demand Response, WY-Thermostat | D115: 0 | E115: 0 | F115: 0 | G115: 0 | H115: 0 | I115: 0 | J115: 0 | K115: 0 | L115: 0 | M115: 0 | N115: 0 | O115: 0 | P115: 0 | Q115: 0 | R115: 0 | S115: 0 | T115: 0 | U115: 0 | V115: 0 | W115: 19.921
A116: =IF(AND(B116<>"West",OR(A115="Winter FOT",A115="Done")),"Done",VLOOKUP(C116,'Resource Map'!$B$3:$C$509,2,FALSE)) -> Class 1 DSM | C116: Demand Response, UT-Ancillary Services | D116: 0 | E116: 0 | F116: 0 | G116: 0 | H116: 8.252 | I116: 0 | J116: 5.253 | K116: 0 | L116: 0 | M116: 0 | N116: 0 | O116: 0 | P116: 0 | Q116: 0 | R116: 0 | S116: 0 | T116: 0 | U116: 0 | V116: 3.241 | W116: 0
A117: =IF(AND(B117<>"West",OR(A116="Winter FOT",A116="Done")),"Done",VLOOKUP(C117,'Resource Map'!$B$3:$C$509,2,FALSE)) -> Class 1 DSM | C117: Demand Response, WY-Ancillary Services | D117: 0 | E117: 0 | F117: 0 | G117: 0 | H117: 0 | I117: 0 | J117: 2.958 | K117: 0 | L117: 0 | M117: 0 | N117: 0 | O117: 0 | P117: 0 | Q117: 0 | R117: 0 | S117: 0 | T117: 0 | U117: 0 | V117: 0 | W117: 0
A118: =IF(AND(B118<>"West",OR(A117="Winter FOT",A117="Done")),"Done",VLOOKUP(C118,'Resource Map'!$B$3:$C$509,2,FALSE)) -> - | C118: Demand Response Total | D118: 4.06 | E118: 0 | F118: 7.004 | G118: 0 | H118: 18.11 | I118: 0 | J118: 8.211 | K118: 7.166 | L118: 0 | M118: 0 | N118: 99.21 | O118: 32.352 | P118: 0 | Q118: 11.995 | R118: 0 | S118: 0 | T118: 7.008 | U118: 0 | V118: 15.23 | W118: 90.021
A119: =IF(AND(B119<>"West",OR(A118="Winter FOT",A118="Done")),"Done",VLOOKUP(C119,'Resource Map'!$B$3:$C$509,2,FALSE)) -> Class 2 DSM | C119: Energy Efficiency, ID | D119: 6 | E119: 5.25 | F119: 6.32 | G119: 6.6 | H119: 7.03 | I119: 7.36 | J119: 7.3 | K119: 7.21 | L119: 7.07 | M119: 7.09 | N119: 6.62 | O119: 6.39 | P119: 6.1 | Q119: 5.86 | R119: 5.77 | S119: 4.42 | T119: 4.02 | U119: 3.45 | V119: 3.04 | W119: 2.98
A120: =IF(AND(B120<>"West",OR(A119="Winter FOT",A119="Done")),"Done",VLOOKUP(C120,'Resource Map'!$B$3:$C$509,2,FALSE)) -> Class 2 DSM | C120: Energy Efficiency, UT | D120: 58 | E120: 67.1 | F120: 67.2 | G120: 67.5 | H120: 68.8 | I120: 66.3 | J120: 67.1 | K120: 64.6 | L120: 64.8 | M120: 62.3 | N120: 57 | O120: 57.9 | P120: 52.3 | Q120: 49.9 | R120: 50.5 | S120: 35.9 | T120: 32.4 | U120: 26.2 | V120: 22.9 | W120: 26.2
A121: =IF(AND(B121<>"West",OR(A120="Winter FOT",A120="Done")),"Done",VLOOKUP(C121,'Resource Map'!$B$3:$C$509,2,FALSE)) -> Class 2 DSM | C121: Energy Efficiency, WY | D121: 10 | E121: 10.17 | F121: 10.99 | G121: 12.01 | H121: 15.38 | I121: 16.16 | J121: 16.47 | K121: 17.7 | L121: 17.61 | M121: 17.39 | N121: 16.12 | O121: 15.13 | P121: 13.13 | Q121: 12.05 | R121: 11.43 | S121: 8.79 | T121: 8.18 | U121: 7.09 | V121: 5.19 | W121: 5.33
A122: =IF(AND(B122<>"West",OR(A121="Winter FOT",A121="Done")),"Done",VLOOKUP(C122,'Resource Map'!$B$3:$C$509,2,FALSE)) -> - | C122: Energy Efficiency Total | D122: 74 | E122: 82.52 | F122: 84.51 | G122: 86.11 | H122: 91.21 | I122: 89.82 | J122: 90.87 | K122: 89.51 | L122: 89.48 | M122: 86.78 | N122: 79.74 | O122: 79.42 | P122: 71.53 | Q122: 67.81 | R122: 67.7 | S122: 49.11 | T122: 44.6 | U122: 36.74 | V122: 31.13 | W122: 34.51
A123: =IF(AND(B123<>"West",OR(A122="Winter FOT",A122="Done")),"Done",VLOOKUP(C123,'Resource Map'!$B$3:$C$509,2,FALSE)) -> Battery | C123: Battery Storage - Utah-S | D123: 0 | E123: 0 | F123: 0 | G123: 0 | H123: 0 | I123: 0 | J123: 0 | K123: 0 | L123: 0 | M123: 0 | N123: 0 | O123: 0 | P123: 0 | Q123: 0 | R123: 0 | S123: 0 | T123: 0 | U123: 0 | V123: 0 | W123: 420
A124: =IF(AND(B124<>"West",OR(A123="Winter FOT",A123="Done")),"Done",VLOOKUP(C124,'Resource Map'!$B$3:$C$509,2,FALSE)) -> Battery | C124: Battery Storage - WYSW | D124: 0 | E124: 0 | F124: 0 | G124: 0 | H124: 0 | I124: 0 | J124: 0 | K124: 0 | L124: 0 | M124: 0 | N124: 0 | O124: 0 | P124: 0 | Q124: 0 | R124: 0 | S124: 0 | T124: 0 | U124: 0 | V124: 0 | W124: 15
A125: =IF(AND(B125<>"West",OR(A124="Winter FOT",A124="Done")),"Done",VLOOKUP(C125,'Resource Map'!$B$3:$C$509,2,FALSE)) -> Battery | C125: Battery Storage - Idaho | D125: 0 | E125: 0 | F125: 0 | G125: 0 | H125: 0 | I125: 0 | J125: 0 | K125: 0 | L125: 0 | M125: 0 | N125: 0 | O125: 90 | P125: 0 | Q125: 45 | R125: 0 | S125: 0 | T125: 0 | U125: 0 | V125: 0 | W125: 30
A126: =IF(AND(B126<>"West",OR(A125="Winter FOT",A125="Done")),"Done",VLOOKUP(C126,'Resource Map'!$B$3:$C$509,2,FALSE)) -> FOT | C126: FOT East - Summer | D126: 0 | E126: 0 | F126: 0 | G126: 0 | H126: 0 | I126: 0 | J126: 0 | K126: 0 | L126: 0 | M126: 30.51 | N126: 224.43 | O126: 300 | P126: 280.32 | Q126: 144.93 | R126: 300 | S126: 281.01 | T126: 300 | U126: 300 | V126: 300 | W126: 300
A127: =IF(AND(B127<>"West",OR(A126="Winter FOT",A126="Done")),"Done",VLOOKUP(C127,'Resource Map'!$B$3:$C$509,2,FALSE)) -> - | B127: West | C127: Existing Plant Retirements and PPA Termination
A128: =IF(AND(B128<>"West",OR(A127="Winter FOT",A127="Done")),"Done",VLOOKUP(C128,'Resource Map'!$B$3:$C$509,2,FALSE)) -> Coal Removed | C128: JimBridger 1 (Coal Early Retirement/Conversions) | D128: 0 | E128: 0 | F128: 0 | G128: 0 | H128: 0 | I128: -350.5 | J128: 0 | K128: 0 | L128: 0 | M128: 0 | N128: 0 | O128: 0 | P128: 0 | Q128: 0 | R128: 0 | S128: 0 | T128: 0 | U128: 0 | V128: 0 | W128: 0
A129: =IF(AND(B129<>"West",OR(A128="Winter FOT",A128="Done")),"Done",VLOOKUP(C129,'Resource Map'!$B$3:$C$509,2,FALSE)) -> Coal Removed | C129: JimBridger 2 (Coal Early Retirement/Conversions) | D129: 0 | E129: 0 | F129: 0 | G129: 0 | H129: 0 | I129: 0 | J129: 0 | K129: 0 | L129: 0 | M129: 0 | N129: -355.8 | O129: 0 | P129: 0 | Q129: 0 | R129: 0 | S129: 0 | T129: 0 | U129: 0 | V129: 0 | W129: 0
A130: =IF(AND(B130<>"West",OR(A129="Winter FOT",A129="Done")),"Done",VLOOKUP(C130,'Resource Map'!$B$3:$C$509,2,FALSE)) -> Coal Removed | C130: JimBridger 3 | D130: 0 | E130: 0 | F130: 0 | G130: 0 | H130: 0 | I130: 0 | J130: 0 | K130: 0 | L130: 0 | M130: 0 | N130: 0 | O130: 0 | P130: 0 | Q130: 0 | R130: 0 | S130: 0 | T130: 0 | U130: 0 | V130: 0 | W130: -348.7
A131: =IF(AND(B131<>"West",OR(A130="Winter FOT",A130="Done")),"Done",VLOOKUP(C131,'Resource Map'!$B$3:$C$509,2,FALSE)) -> Coal Removed | C131: JimBridger 4 | D131: 0 | E131: 0 | F131: 0 | G131: 0 | H131: 0 | I131: 0 | J131: 0 | K131: 0 | L131: 0 | M131: 0 | N131: 0 | O131: 0 | P131: 0 | Q131: 0 | R131: 0 | S131: 0 | T131: 0 | U131: 0 | V131: 0 | W131: -353.3
A132: =IF(AND(B132<>"West",OR(A131="Winter FOT",A131="Done")),"Done",VLOOKUP(C132,'Resource Map'!$B$3:$C$509,2,FALSE)) -> Gas Removed | C132: Hermiston | D132: 0 | E132: 0 | F132: 0 | G132: 0 | H132: 0 | I132: 0 | J132: 0 | K132: 0 | L132: 0 | M132: 0 | N132: 0 | O132: 0 | P132: 0 | Q132: 0 | R132: 0 | S132: 0 | T132: 0 | U132: 0 | V132: -237 | W132: 0
A133: =IF(AND(B133<>"West",OR(A132="Winter FOT",A132="Done")),"Done",VLOOKUP(C133,'Resource Map'!$B$3:$C$509,2,FALSE)) -> Hydro Removed | C133: Retire - Hydro | D133: 0 | E133: -1.1 | F133: -168.9 | G133: 0 | H133: -0.7 | I133: 0 | J133: 0 | K133: -1.4 | L133: 0 | M133: -7.2 | N133: 0 | O133: 0 | P133: -6.4 | Q133: 0 | R133: 0 | S133: -74.9 | T133: 0 | U133: -1.2 | V133: 0 | W133: 0
A134: =IF(AND(B134<>"West",OR(A133="Winter FOT",A133="Done")),"Done",VLOOKUP(C134,'Resource Map'!$B$3:$C$509,2,FALSE)) -> Wind Removed | C134: Expire - Wind PPA | D134: 0 | E134: 0 | F134: 0 | G134: -175 | H134: 0 | I134: -41 | J134: 0 | K134: 0 | L134: 0 | M134: 0 | N134: -74.5 | O134: -9.9 | P134: 0 | Q134: -20 | R134: -20 | S134: 0 | T134: 0 | U134: -10 | V134: -10 | W134: 0
A135: =IF(AND(B135<>"West",OR(A134="Winter FOT",A134="Done")),"Done",VLOOKUP(C135,'Resource Map'!$B$3:$C$509,2,FALSE)) -> Solar Removed | C135: Expire - Solar PPA | D135: 0 | E135: 0 | F135: 0 | G135: 0 | H135: 0 | I135: 0 | J135: 0 | K135: 0 | L135: 0 | M135: -2 | N135: 0 | O135: 0 | P135: -67 | Q135: -48.9 | R135: 0 | S135: 0 | T135: -0.8 | U135: -115 | V135: -175.2 | W135: -10.9
A136: =IF(AND(B136<>"West",OR(A135="Winter FOT",A135="Done")),"Done",VLOOKUP(C136,'Resource Map'!$B$3:$C$509,2,FALSE)) -> - | C136: Expansion Resources
A137: =IF(AND(B137<>"West",OR(A136="Winter FOT",A136="Done")),"Done",VLOOKUP(C137,'Resource Map'!$B$3:$C$509,2,FALSE)) -> Gas Peaker | C137: SCCT Frame WV | D137: 0 | E137: 0 | F137: 0 | G137: 0 | H137: 0 | I137: 0 | J137: 0 | K137: 0 | L137: 0 | M137: 0 | N137: 0 | O137: 0 | P137: 0 | Q137: 0 | R137: 0 | S137: 0 | T137: 0 | U137: 0 | V137: 442.8 | W137: 0
A138: =IF(AND(B138<>"West",OR(A137="Winter FOT",A137="Done")),"Done",VLOOKUP(C138,'Resource Map'!$B$3:$C$509,2,FALSE)) -> - | C138: Total SCCT | D138: 0 | E138: 0 | F138: 0 | G138: 0 | H138: 0 | I138: 0 | J138: 0 | K138: 0 | L138: 0 | M138: 0 | N138: 0 | O138: 0 | P138: 0 | Q138: 0 | R138: 0 | S138: 0 | T138: 0 | U138: 0 | V138: 442.8 | W138: 0
A139: =IF(AND(B139<>"West",OR(A138="Winter FOT",A138="Done")),"Done",VLOOKUP(C139,'Resource Map'!$B$3:$C$509,2,FALSE)) -> Solar+Bat | C139: Utility Solar+Storage - PV - Jbridger | D139: 0 | E139: 0 | F139: 0 | G139: 0 | H139: 0 | I139: 354 | J139: 0 | K139: 0 | L139: 0 | M139: 0 | N139: 359.4 | O139: 0 | P139: 0 | Q139: 0 | R139: 0 | S139: 0 | T139: 0 | U139: 0 | V139: 0 | W139: 701.8
A140: =IF(AND(B140<>"West",OR(A139="Winter FOT",A139="Done")),"Done",VLOOKUP(C140,'Resource Map'!$B$3:$C$509,2,FALSE)) -> Solar+Bat | C140: Utility Solar+Storage - PV - S-Oregon | D140: 0 | E140: 0 | F140: 0 | G140: 0 | H140: 0 | I140: 500 | J140: 0 | K140: 0 | L140: 0 | M140: 0 | N140: 0 | O140: 0 | P140: 0 | Q140: 475 | R140: 0 | S140: 0 | T140: 0 | U140: 0 | V140: 0 | W140: 0
A141: =IF(AND(B141<>"West",OR(A140="Winter FOT",A140="Done")),"Done",VLOOKUP(C141,'Resource Map'!$B$3:$C$509,2,FALSE)) -> Solar+Bat | C141: Utility Solar+Storage - PV - Yakima | D141: 0 | E141: 0 | F141: 0 | G141: 0 | H141: 0 | I141: 405 | J141: 0 | K141: 0 | L141: 0 | M141: 0 | N141: 0 | O141: 0 | P141: 0 | Q141: 0 | R141: 0 | S141: 0 | T141: 0 | U141: 0 | V141: 0 | W141: 0
A142: =IF(AND(B142<>"West",OR(A141="Winter FOT",A141="Done")),"Done",VLOOKUP(C142,'Resource Map'!$B$3:$C$509,2,FALSE)) -> - | C142: Total Solar | D142: 0 | E142: 0 | F142: 0 | G142: 0 | H142: 0 | I142: 1259 | J142: 0 | K142: 0 | L142: 0 | M142: 0 | N142: 359.4 | O142: 0 | P142: 0 | Q142: 475 | R142: 0 | S142: 0 | T142: 0 | U142: 0 | V142: 0 | W142: 701.8
A143: =IF(AND(B143<>"West",OR(A142="Winter FOT",A142="Done")),"Done",VLOOKUP(C143,'Resource Map'!$B$3:$C$509,2,FALSE)) -> Class 1 DSM | C143: Demand Response, OR-Ancillary Services | D143: 0 | E143: 0 | F143: 0 | G143: 0 | H143: 0 | I143: 0 | J143: 0 | K143: 0 | L143: 0 | M143: 0 | N143: 0 | O143: 0 | P143: 0 | Q143: 7.512 | R143: 0 | S143: 0 | T143: 0 | U143: 0 | V143: 0 | W143: 0
A144: =IF(AND(B144<>"West",OR(A143="Winter FOT",A143="Done")),"Done",VLOOKUP(C144,'Resource Map'!$B$3:$C$509,2,FALSE)) -> Class 1 DSM | C144: Demand Response, WA-Ancillary Services | D144: 0 | E144: 0 | F144: 0 | G144: 0 | H144: 0 | I144: 0 | J144: 0 | K144: 0 | L144: 0 | M144: 0 | N144: 0 | O144: 1.851 | P144: 0 | Q144: 0 | R144: 0 | S144: 0 | T144: 0 | U144: 0 | V144: 0 | W144: 0
A145: =IF(AND(B145<>"West",OR(A144="Winter FOT",A144="Done")),"Done",VLOOKUP(C145,'Resource Map'!$B$3:$C$509,2,FALSE)) -> Class 1 DSM | C145: Demand Response, OR-Cool/WH | D145: 0 | E145: 0 | F145: 0 | G145: 0 | H145: 0 | I145: 0 | J145: 0 | K145: 0 | L145: 0 | M145: 0 | N145: 0 | O145: 0 | P145: 0 | Q145: 0 | R145: 0 | S145: 0 | T145: 0 | U145: 0 | V145: 0 | W145: 3.027
A146: =IF(AND(B146<>"West",OR(A145="Winter FOT",A145="Done")),"Done",VLOOKUP(C146,'Resource Map'!$B$3:$C$509,2,FALSE)) -> Class 1 DSM | C146: Demand Response, OR-3rd Party Contracts | D146: 0 | E146: 0 | F146: 0 | G146: 0 | H146: 0 | I146: 0 | J146: 0 | K146: 0 | L146: 0 | M146: 0 | N146: 0 | O146: 0 | P146: 0 | Q146: 0 | R146: 0 | S146: 0 | T146: 0 | U146: 0 | V146: 0 | W146: 7.394
A147: =IF(AND(B147<>"West",OR(A146="Winter FOT",A146="Done")),"Done",VLOOKUP(C147,'Resource Map'!$B$3:$C$509,2,FALSE)) -> Class 1 DSM | C147: Demand Response, OR-Irrigate | D147: 0 | E147: 0 | F147: 0 | G147: 0 | H147: 0 | I147: 0 | J147: 0 | K147: 0 | L147: 0 | M147: 0 | N147: 0 | O147: 0 | P147: 0 | Q147: 0 | R147: 0 | S147: 0 | T147: 0 | U147: 0 | V147: 13.268 | W147: 0
A148: =IF(AND(B148<>"West",OR(A147="Winter FOT",A147="Done")),"Done",VLOOKUP(C148,'Resource Map'!$B$3:$C$509,2,FALSE)) -> Class 1 DSM | C148: Demand Response, WA-Irrigate | D148: 0 | E148: 0 | F148: 0 | G148: 0 | H148: 0 | I148: 0 | J148: 0 | K148: 0 | L148: 0 | M148: 0 | N148: 0 | O148: 0 | P148: 0 | Q148: 0 | R148: 0 | S148: 0 | T148: 0 | U148: 0 | V148: 8.306 | W148: 0
A149: =IF(AND(B149<>"West",OR(A148="Winter FOT",A148="Done")),"Done",VLOOKUP(C149,'Resource Map'!$B$3:$C$509,2,FALSE)) -> Class 1 DSM | C149: Demand Response, WA-Thermostat | D149: 0 | E149: 0 | F149: 0 | G149: 0 | H149: 0 | I149: 0 | J149: 0 | K149: 0 | L149: 0 | M149: 0 | N149: 0 | O149: 0 | P149: 0 | Q149: 0 | R149: 0 | S149: 0 | T149: 0 | U149: 0 | V149: 0 | W149: 5.308
A150: =IF(AND(B150<>"West",OR(A149="Winter FOT",A149="Done")),"Done",VLOOKUP(C150,'Resource Map'!$B$3:$C$509,2,FALSE)) -> - | C150: Demand Response Total | D150: 0 | E150: 0 | F150: 0 | G150: 0 | H150: 0 | I150: 0 | J150: 0 | K150: 0 | L150: 0 | M150: 0 | N150: 0 | O150: 1.851 | P150: 0 | Q150: 7.512 | R150: 0 | S150: 0 | T150: 0 | U150: 0 | V150: 21.574 | W150: 15.729
A151: =IF(AND(B151<>"West",OR(A150="Winter FOT",A150="Done")),"Done",VLOOKUP(C151,'Resource Map'!$B$3:$C$509,2,FALSE)) -> Class 2 DSM | C151: Energy Efficiency, CA | D151: 1 | E151: 1.64 | F151: 1.53 | G151: 1.62 | H151: 1.74 | I151: 1.83 | J151: 1.84 | K151: 2.03 | L151: 2.01 | M151: 2.03 | N151: 2.03 | O151: 2.06 | P151: 1.88 | Q151: 1.84 | R151: 1.8 | S151: 1.3 | T151: 1.41 | U151: 1.2 | V151: 1.04 | W151: 0.89
A152: =IF(AND(B152<>"West",OR(A151="Winter FOT",A151="Done")),"Done",VLOOKUP(C152,'Resource Map'!$B$3:$C$509,2,FALSE)) -> Class 2 DSM | C152: Energy Efficiency, OR | D152: 40 | E152: 37 | F152: 36.5 | G152: 39.7 | H152: 39.3 | I152: 45.6 | J152: 42.7 | K152: 41.1 | L152: 38.8 | M152: 38.2 | N152: 34.6 | O152: 32.3 | P152: 31.3 | Q152: 30.1 | R152: 28.2 | S152: 25.5 | T152: 25.9 | U152: 26.2 | V152: 24.7 | W152: 23.8
A153: =IF(AND(B153<>"West",OR(A152="Winter FOT",A152="Done")),"Done",VLOOKUP(C153,'Resource Map'!$B$3:$C$509,2,FALSE)) -> Class 2 DSM | C153: Energy Efficiency, WA | D153: 11 | E153: 9.25 | F153: 10.15 | G153: 10.72 | H153: 11.83 | I153: 11.65 | J153: 11.59 | K153: 11.19 | L153: 11.09 | M153: 10.75 | N153: 9.78 | O153: 9.38 | P153: 8.79 | Q153: 8.38 | R153: 8.09 | S153: 5.96 | T153: 5.89 | U153: 4.89 | V153: 4.28 | W153: 4.06
A154: =IF(AND(B154<>"West",OR(A153="Winter FOT",A153="Done")),"Done",VLOOKUP(C154,'Resource Map'!$B$3:$C$509,2,FALSE)) -> - | C154: Energy Efficiency Total | D154: 52 | E154: 47.89 | F154: 48.18 | G154: 52.04 | H154: 52.87 | I154: 59.08 | J154: 56.13 | K154: 54.32 | L154: 51.9 | M154: 50.98 | N154: 46.41 | O154: 43.74 | P154: 41.97 | Q154: 40.32 | R154: 38.09 | S154: 32.76 | T154: 33.2 | U154: 32.29 | V154: 30.02 | W154: 28.75
A155: =IF(AND(B155<>"West",OR(A154="Winter FOT",A154="Done")),"Done",VLOOKUP(C155,'Resource Map'!$B$3:$C$509,2,FALSE)) -> Battery | C155: Battery Storage - S-Oregon | D155: 0 | E155: 0 | F155: 0 | G155: 0 | H155: 0 | I155: 0 | J155: 0 | K155: 0 | L155: 0 | M155: 15 | N155: 0 | O155: 120 | P155: 0 | Q155: 0 | R155: 150 | S155: 0 | T155: 0 | U155: 0 | V155: 60 | W155: 0
A156: =IF(AND(B156<>"West",OR(A155="Winter FOT",A155="Done")),"Done",VLOOKUP(C156,'Resource Map'!$B$3:$C$509,2,FALSE)) -> Battery | C156: Battery Storage - Willamette Valley | D156: 0 | E156: 0 | F156: 0 | G156: 0 | H156: 0 | I156: 0 | J156: 0 | K156: 0 | L156: 0 | M156: 0 | N156: 0 | O156: 75 | P156: 0 | Q156: 0 | R156: 0 | S156: 0 | T156: 0 | U156: 0 | V156: 0 | W156: 0
A157: =IF(AND(B157<>"West",OR(A156="Winter FOT",A156="Done")),"Done",VLOOKUP(C157,'Resource Map'!$B$3:$C$509,2,FALSE)) -> Battery | C157: Battery Storage - Portland NC | D157: 0 | E157: 0 | F157: 0 | G157: 0 | H157: 0 | I157: 0 | J157: 0 | K157: 0 | L157: 0 | M157: 0 | N157: 0 | O157: 45 | P157: 0 | Q157: 0 | R157: 30 | S157: 0 | T157: 0 | U157: 0 | V157: 0 | W157: 0
A158: =IF(AND(B158<>"West",OR(A157="Winter FOT",A157="Done")),"Done",VLOOKUP(C158,'Resource Map'!$B$3:$C$509,2,FALSE)) -> Battery | C158: Battery Storage - Walla Walla | D158: 0 | E158: 0 | F158: 0 | G158: 0 | H158: 0 | I158: 0 | J158: 0 | K158: 0 | L158: 0 | M158: 120 | N158: 0 | O158: 0 | P158: 0 | Q158: 0 | R158: 15 | S158: 0 | T158: 0 | U158: 0 | V158: 60 | W158: 0
A159: =IF(AND(B159<>"West",OR(A158="Winter FOT",A158="Done")),"Done",VLOOKUP(C159,'Resource Map'!$B$3:$C$509,2,FALSE)) -> Battery | C159: Battery Storage - Yakima | D159: 0 | E159: 0 | F159: 0 | G159: 0 | H159: 0 | I159: 0 | J159: 0 | K159: 0 | L159: 0 | M159: 105 | N159: 0 | O159: 0 | P159: 0 | Q159: 0 | R159: 0 | S159: 0 | T159: 0 | U159: 0 | V159: 0 | W159: 0
A160: =IF(AND(B160<>"West",OR(A159="Winter FOT",A159="Done")),"Done",VLOOKUP(C160,'Resource Map'!$B$3:$C$509,2,FALSE)) -> FOT | C160: FOT West - Summer | D160: 997.685 | E160: 719.55 | F160: 493.56 | G160: 503.88 | H160: 499.64 | I160: 175.025 | J160: 168.525 | K160: 198.04 | L160: 243.32 | M160: 1075 | N160: 1075 | O160: 1075 | P160: 1075 | Q160: 1075 | R160: 1075 | S160: 1075 | T160: 1051.488 | U160: 1063.037 | V160: 1075 | W160: 1062.363
A161: =IF(AND(B161<>"West",OR(A160="Winter FOT",A160="Done")),"Done",VLOOKUP(C161,'Resource Map'!$B$3:$C$509,2,FALSE)) -> Winter FOT | C161: FOT West - Winter | D161: 151.445 | E161: 130.91 | F161: 268.4 | G161: 303.28 | H161: 313.96 | I161: 50.15 | J161: 56.55 | K161: 60.3 | L161: 109.85 | M161: 241.68 | N161: 261.64 | O161: 225.94 | P161: 247.21 | Q161: 127.51 | R161: 75.48 | S161: 6.92 | T161: 22.24 | U161: 175 | V161: 0 | W161: 0
A162: =IF(AND(B162<>"West",OR(A161="Winter FOT",A161="Done")),"Done",VLOOKUP(C162,'Resource Map'!$B$3:$C$509,2,FALSE)) -> Done
A163: =IF(AND(B163<>"West",OR(A162="Winter FOT",A162="Done")),"Done",VLOOKUP(C163,'Resource Map'!$B$3:$C$509,2,FALSE)) -> Done
A164: =IF(AND(B164<>"West",OR(A163="Winter FOT",A163="Done")),"Done",VLOOKUP(C164,'Resource Map'!$B$3:$C$509,2,FALSE)) -> Done
A165: =IF(AND(B165<>"West",OR(A164="Winter FOT",A164="Done")),"Done",VLOOKUP(C165,'Resource Map'!$B$3:$C$509,2,FALSE)) -> Done
A166: =IF(AND(B166<>"West",OR(A165="Winter FOT",A165="Done")),"Done",VLOOKUP(C166,'Resource Map'!$B$3:$C$509,2,FALSE)) -> Done
A167: =IF(AND(B167<>"West",OR(A166="Winter FOT",A166="Done")),"Done",VLOOKUP(C167,'Resource Map'!$B$3:$C$509,2,FALSE)) -> Done
A168: =IF(AND(B168<>"West",OR(A167="Winter FOT",A167="Done")),"Done",VLOOKUP(C168,'Resource Map'!$B$3:$C$509,2,FALSE)) -> Done
A169: =IF(AND(B169<>"West",OR(A168="Winter FOT",A168="Done")),"Done",VLOOKUP(C169,'Resource Map'!$B$3:$C$509,2,FALSE)) -> Done
A170: =IF(AND(B170<>"West",OR(A169="Winter FOT",A169="Done")),"Done",VLOOKUP(C170,'Resource Map'!$B$3:$C$509,2,FALSE)) -> Done
A171: =IF(AND(B171<>"West",OR(A170="Winter FOT",A170="Done")),"Done",VLOOKUP(C171,'Resource Map'!$B$3:$C$509,2,FALSE)) -> Done
A172: =IF(AND(B172<>"West",OR(A171="Winter FOT",A171="Done")),"Done",VLOOKUP(C172,'Resource Map'!$B$3:$C$509,2,FALSE)) -> Done
A173: =IF(AND(B173<>"West",OR(A172="Winter FOT",A172="Done")),"Done",VLOOKUP(C173,'Resource Map'!$B$3:$C$509,2,FALSE)) -> Done
A174: =IF(AND(B174<>"West",OR(A173="Winter FOT",A173="Done")),"Done",VLOOKUP(C174,'Resource Map'!$B$3:$C$509,2,FALSE)) -> Done
A175: =IF(AND(B175<>"West",OR(A174="Winter FOT",A174="Done")),"Done",VLOOKUP(C175,'Resource Map'!$B$3:$C$509,2,FALSE)) -> Done
A176: =IF(AND(B176<>"West",OR(A175="Winter FOT",A175="Done")),"Done",VLOOKUP(C176,'Resource Map'!$B$3:$C$509,2,FALSE)) -> Done
A177: =IF(AND(B177<>"West",OR(A176="Winter FOT",A176="Done")),"Done",VLOOKUP(C177,'Resource Map'!$B$3:$C$509,2,FALSE)) -> Done
A178: =IF(AND(B178<>"West",OR(A177="Winter FOT",A177="Done")),"Done",VLOOKUP(C178,'Resource Map'!$B$3:$C$509,2,FALSE)) -> Done
A179: =IF(AND(B179<>"West",OR(A178="Winter FOT",A178="Done")),"Done",VLOOKUP(C179,'Resource Map'!$B$3:$C$509,2,FALSE)) -> Done
A180: =IF(AND(B180<>"West",OR(A179="Winter FOT",A179="Done")),"Done",VLOOKUP(C180,'Resource Map'!$B$3:$C$509,2,FALSE)) -> Done
A181: =IF(AND(B181<>"West",OR(A180="Winter FOT",A180="Done")),"Done",VLOOKUP(C181,'Resource Map'!$B$3:$C$509,2,FALSE)) -> Done
A182: =IF(AND(B182<>"West",OR(A181="Winter FOT",A181="Done")),"Done",VLOOKUP(C182,'Resource Map'!$B$3:$C$509,2,FALSE)) -> Done
A183: =IF(AND(B183<>"West",OR(A182="Winter FOT",A182="Done")),"Done",VLOOKUP(C183,'Resource Map'!$B$3:$C$509,2,FALSE)) -> Done
A184: =IF(AND(B184<>"West",OR(A183="Winter FOT",A183="Done")),"Done",VLOOKUP(C184,'Resource Map'!$B$3:$C$509,2,FALSE)) -> Done
A185: =IF(AND(B185<>"West",OR(A184="Winter FOT",A184="Done")),"Done",VLOOKUP(C185,'Resource Map'!$B$3:$C$509,2,FALSE)) -> Done
A186: =IF(AND(B186<>"West",OR(A185="Winter FOT",A185="Done")),"Done",VLOOKUP(C186,'Resource Map'!$B$3:$C$509,2,FALSE)) -> Done
A187: =IF(AND(B187<>"West",OR(A186="Winter FOT",A186="Done")),"Done",VLOOKUP(C187,'Resource Map'!$B$3:$C$509,2,FALSE)) -> Done
A188: =IF(AND(B188<>"West",OR(A187="Winter FOT",A187="Done")),"Done",VLOOKUP(C188,'Resource Map'!$B$3:$C$509,2,FALSE)) -> Done
A189: =IF(AND(B189<>"West",OR(A188="Winter FOT",A188="Done")),"Done",VLOOKUP(C189,'Resource Map'!$B$3:$C$509,2,FALSE)) -> Done
A190: =IF(AND(B190<>"West",OR(A189="Winter FOT",A189="Done")),"Done",VLOOKUP(C190,'Resource Map'!$B$3:$C$509,2,FALSE)) -> Done
A191: =IF(AND(B191<>"West",OR(A190="Winter FOT",A190="Done")),"Done",VLOOKUP(C191,'Resource Map'!$B$3:$C$509,2,FALSE)) -> Done
A192: =IF(AND(B192<>"West",OR(A191="Winter FOT",A191="Done")),"Done",VLOOKUP(C192,'Resource Map'!$B$3:$C$509,2,FALSE)) -> Done
A193: =IF(AND(B193<>"West",OR(A192="Winter FOT",A192="Done")),"Done",VLOOKUP(C193,'Resource Map'!$B$3:$C$509,2,FALSE)) -> Done
A194: =IF(AND(B194<>"West",OR(A193="Winter FOT",A193="Done")),"Done",VLOOKUP(C194,'Resource Map'!$B$3:$C$509,2,FALSE)) -> Done
A195: =IF(AND(B195<>"West",OR(A194="Winter FOT",A194="Done")),"Done",VLOOKUP(C195,'Resource Map'!$B$3:$C$509,2,FALSE)) -> Done
A196: =IF(AND(B196<>"West",OR(A195="Winter FOT",A195="Done")),"Done",VLOOKUP(C196,'Resource Map'!$B$3:$C$509,2,FALSE)) -> Done
A197: =IF(AND(B197<>"West",OR(A196="Winter FOT",A196="Done")),"Done",VLOOKUP(C197,'Resource Map'!$B$3:$C$509,2,FALSE)) -> Done
A198: =IF(AND(B198<>"West",OR(A197="Winter FOT",A197="Done")),"Done",VLOOKUP(C198,'Resource Map'!$B$3:$C$509,2,FALSE)) -> Done
A199: =IF(AND(B199<>"West",OR(A198="Winter FOT",A198="Done")),"Done",VLOOKUP(C199,'Resource Map'!$B$3:$C$509,2,FALSE)) -> Done
A200: =IF(AND(B200<>"West",OR(A199="Winter FOT",A199="Done")),"Done",VLOOKUP(C200,'Resource Map'!$B$3:$C$509,2,FALSE)) -> Done
A201: =IF(AND(B201<>"West",OR(A200="Winter FOT",A200="Done")),"Done",VLOOKUP(C201,'Resource Map'!$B$3:$C$509,2,FALSE)) -> Done
A202: =IF(AND(B202<>"West",OR(A201="Winter FOT",A201="Done")),"Done",VLOOKUP(C202,'Resource Map'!$B$3:$C$509,2,FALSE)) -> Done
A203: =IF(AND(B203<>"West",OR(A202="Winter FOT",A202="Done")),"Done",VLOOKUP(C203,'Resource Map'!$B$3:$C$509,2,FALSE)) -> Done
A204: =IF(AND(B204<>"West",OR(A203="Winter FOT",A203="Done")),"Done",VLOOKUP(C204,'Resource Map'!$B$3:$C$509,2,FALSE)) -> Done
A205: =IF(AND(B205<>"West",OR(A204="Winter FOT",A204="Done")),"Done",VLOOKUP(C205,'Resource Map'!$B$3:$C$509,2,FALSE)) -> Done
A206: =IF(AND(B206<>"West",OR(A205="Winter FOT",A205="Done")),"Done",VLOOKUP(C206,'Resource Map'!$B$3:$C$509,2,FALSE)) -> Done
A207: =IF(AND(B207<>"West",OR(A206="Winter FOT",A206="Done")),"Done",VLOOKUP(C207,'Resource Map'!$B$3:$C$509,2,FALSE)) -> Done
A208: =IF(AND(B208<>"West",OR(A207="Winter FOT",A207="Done")),"Done",VLOOKUP(C208,'Resource Map'!$B$3:$C$509,2,FALSE)) -> Done
A209: =IF(AND(B209<>"West",OR(A208="Winter FOT",A208="Done")),"Done",VLOOKUP(C209,'Resource Map'!$B$3:$C$509,2,FALSE)) -> Done
A210: =IF(AND(B210<>"West",OR(A209="Winter FOT",A209="Done")),"Done",VLOOKUP(C210,'Resource Map'!$B$3:$C$509,2,FALSE)) -> Done
A211: =IF(AND(B211<>"West",OR(A210="Winter FOT",A210="Done")),"Done",VLOOKUP(C211,'Resource Map'!$B$3:$C$509,2,FALSE)) -> Done
A212: =IF(AND(B212<>"West",OR(A211="Winter FOT",A211="Done")),"Done",VLOOKUP(C212,'Resource Map'!$B$3:$C$509,2,FALSE)) -> Done
A213: =IF(AND(B213<>"West",OR(A212="Winter FOT",A212="Done")),"Done",VLOOKUP(C213,'Resource Map'!$B$3:$C$509,2,FALSE)) -> Done
A214: =IF(AND(B214<>"West",OR(A213="Winter FOT",A213="Done")),"Done",VLOOKUP(C214,'Resource Map'!$B$3:$C$509,2,FALSE)) -> Done
A215: =IF(AND(B215<>"West",OR(A214="Winter FOT",A214="Done")),"Done",VLOOKUP(C215,'Resource Map'!$B$3:$C$509,2,FALSE)) -> Done
... 87 more rows

Sheet Data Compare Pre
A1: S05-MM_ | C1: =IF(IFERROR(SUM(A68:A302),"Err")=0,"OK","MAPPING ERRORS, left column below") -> OK | Y1: Checks for | Z1: MAPPING ERRORS, left column below
C3: Coal
C4: Incremental | D4: 2019 | E4: 2020 | F4: 2021 | G4: 2022 | H4: 2023 | I4: 2024 | J4: 2025 | K4: 2026 | L4: 2027 | M4: 2028 | N4: 2029 | O4: 2030 | P4: 2031 | Q4: 2032 | R4: 2033 | S4: 2034 | T4: 2035 | U4: 2036 | V4: 2037 | W4: 2038
C5: Coal Removed | D5: =SUMIF($A$69:$A$302,$C5,D$69:D$302) -> 0 | E5: -280 | F5: -387 | G5: 0 | H5: 0 | I5: -350.5 | J5: 0 | K5: -439.3 | L5: -81.5 | M5: -903 | N5: -355.8 | O5: 0 | P5: -76.6 | Q5: 0 | R5: 0 | S5: 0 | T5: 0 | U5: 0 | V5: -909 | W5: -702
C7: Cumulative | D7: 2019 | E7: 2020 | F7: 2021 | G7: 2022 | H7: 2023 | I7: 2024 | J7: 2025 | K7: 2026 | L7: 2027 | M7: 2028 | N7: 2029 | O7: 2030 | P7: 2031 | Q7: 2032 | R7: 2033 | S7: 2034 | T7: 2035 | U7: 2036 | V7: 2037 | W7: 2038
C8: Coal Removed | D8: =D5 -> 0 | E8: =E5+D8 -> -280 | F8: =F5+E8 -> -667 | G8: -667 | H8: -667 | I8: -1017.5 | J8: -1017.5 | K8: -1456.8 | L8: -1538.3 | M8: -2441.3 | N8: -2797.1 | O8: -2797.1 | P8: -2873.7 | Q8: -2873.7 | R8: -2873.7 | S8: -2873.7 | T8: -2873.7 | U8: -2873.7 | V8: -3782.7 | W8: -4484.7
C10: Renewable and Storage
C11: Incremental | D11: 2019 | E11: 2020 | F11: 2021 | G11: 2022 | H11: 2023 | I11: 2024 | J11: 2025 | K11: 2026 | L11: 2027 | M11: 2028 | N11: 2029 | O11: 2030 | P11: 2031 | Q11: 2032 | R11: 2033 | S11: 2034 | T11: 2035 | U11: 2036 | V11: 2037 | W11: 2038
C12: Wind | D12: =SUMIF($A$69:$A$302,$C12,D$69:D$302) -> 0 | E12: 0 | F12: 0 | G12: 0 | H12: 0 | I12: 1920 | J12: 0 | K12: 0 | L12: 0 | M12: 0 | N12: =SUMIF($A$69:$A$302,$C12,N$69:N$302) -> 0 | O12: 993.552 | P12: 0 | Q12: 0 | R12: 0 | S12: 0 | T12: 0 | U12: 0 | V12: 0 | W12: 0
C13: Solar | D13: 0 | E13: 0 | F13: 0 | G13: 0 | H13: 0 | I13: 0 | J13: 0 | K13: 0 | L13: 0 | M13: 0 | N13: 0 | O13: 0 | P13: 0 | Q13: 0 | R13: 0 | S13: 0 | T13: 0 | U13: 0 | V13: 0 | W13: 0
C14: Wind+Bat | D14: 0 | E14: 0 | F14: 0 | G14: 0 | H14: 0 | I14: 0 | J14: 0 | K14: 0 | L14: 0 | M14: 0 | N14: 0 | O14: 30.253 | P14: 0 | Q14: 76.195 | R14: 0 | S14: 0 | T14: 0 | U14: 0 | V14: 0 | W14: 0
C15: Solar+Bat | D15: 0 | E15: 0 | F15: 159.234 | G15: 63.747 | H15: 72.825 | I15: 2163.193 | J15: 0 | K15: 0 | L15: 0 | M15: 0 | N15: 359.3 | O15: 0 | P15: 500 | Q15: 475 | R15: 100 | S15: 0 | T15: 0 | U15: 0 | V15: 904.024 | W15: 706.676
C16: Battery | D16: 0 | E16: 0 | F16: 0 | G16: 0 | H16: 0 | I16: 0 | J16: 0 | K16: 0 | L16: 0 | M16: 0 | N16: 0 | O16: 0 | P16: 0 | Q16: 0 | R16: 0 | S16: 0 | T16: 0 | U16: 0 | V16: 0 | W16: 330
C17: Pumped Storage | D17: 0 | E17: 0 | F17: 0 | G17: 0 | H17: 0 | I17: 0 | J17: 0 | K17: 0 | L17: 0 | M17: 0 | N17: 0 | O17: 0 | P17: 0 | Q17: 0 | R17: 0 | S17: 0 | T17: 0 | U17: 0 | V17: 0 | W17: 0
C18: Hydro Removed | D18: 0 | E18: -1.1 | F18: -168.9 | G18: 0 | H18: -0.7 | I18: -20.28 | J18: 0 | K18: -1.4 | L18: 0 | M18: -7.2 | N18: 0 | O18: 0 | P18: -6.4 | Q18: 0 | R18: 0 | S18: -74.9 | T18: 0 | U18: -1.2 | V18: 0 | W18: 0
C19: Wind Removed | D19: 0 | E19: -26.55 | F19: -16.8 | G19: -224 | H19: -0.2 | I19: -41 | J19: 0 | K19: -64.5 | L19: -3 | M19: 0 | N19: -93.4 | O19: -149.1 | P19: -200.2 | Q19: -65 | R19: -200.9 | S19: -80 | T19: 0 | U19: -70 | V19: -90 | W19: 0
C20: Solar Removed | D20: 0 | E20: 0 | F20: 0 | G20: 0 | H20: -0.5 | I20: -0.52 | J20: 0 | K20: 0 | L20: 0 | M20: -2 | N20: 0 | O20: 0 | P20: -67 | Q20: -48.9 | R20: 0 | S20: 0 | T20: -35.9 | U20: -209.1 | V20: -1024.2 | W20: -10.9
C21: Other Removed | D21: 0 | E21: 0 | F21: 0 | G21: 0 | H21: 0 | I21: 0 | J21: 0 | K21: 0 | L21: 0 | M21: 0 | N21: 0 | O21: 0 | P21: 0 | Q21: 0 | R21: 0 | S21: -0.907 | T21: 0 | U21: 0 | V21: 0 | W21: -32.1
C23: Cumulative | D23: 2019 | E23: 2020 | F23: 2021 | G23: 2022 | H23: 2023 | I23: 2024 | J23: 2025 | K23: 2026 | L23: 2027 | M23: 2028 | N23: 2029 | O23: 2030 | P23: 2031 | Q23: 2032 | R23: 2033 | S23: 2034 | T23: 2035 | U23: 2036 | V23: 2037 | W23: 2038 | Y23: Wind | Z23: Solar | AA23: Battery
C24: Wind | D24: =D12 -> 0 | E24: =D24+E12 -> 0 | F24: 0 | G24: 0 | H24: 0 | I24: 1920 | J24: 1920 | K24: 1920 | L24: 1920 | M24: 1920 | N24: 1920 | O24: 2913.552 | P24: 2913.552 | Q24: 2913.552 | R24: 2913.552 | S24: 2913.552 | T24: 2913.552 | U24: 2913.552 | V24: 2913.552 | W24: 2913.552 | Y24: =W24+SUM(D19:W19)+W26 -> 1695.35 | Z24: =W25+SUM(D20:W20)+W27 -> 4104.979 | AA24: =0.25*W26+0.25*W27+W28 -> 1732.61175
C25: Solar | D25: 0 | E25: 0 | F25: 0 | G25: 0 | H25: 0 | I25: 0 | J25: 0 | K25: 0 | L25: 0 | M25: 0 | N25: 0 | O25: 0 | P25: 0 | Q25: 0 | R25: 0 | S25: 0 | T25: 0 | U25: 0 | V25: 0 | W25: 0
C26: Wind+Bat | D26: 0 | E26: 0 | F26: 0 | G26: 0 | H26: 0 | I26: 0 | J26: 0 | K26: 0 | L26: 0 | M26: 0 | N26: 0 | O26: 30.253 | P26: 30.253 | Q26: 106.448 | R26: 106.448 | S26: 106.448 | T26: 106.448 | U26: 106.448 | V26: 106.448 | W26: 106.448
C27: Solar+Bat | D27: 0 | E27: 0 | F27: 159.234 | G27: 222.981 | H27: 295.806 | I27: 2458.999 | J27: 2458.999 | K27: 2458.999 | L27: 2458.999 | M27: 2458.999 | N27: 2818.299 | O27: 2818.299 | P27: 3318.299 | Q27: 3793.299 | R27: 3893.299 | S27: 3893.299 | T27: 3893.299 | U27: 3893.299 | V27: 4797.323 | W27: 5503.999
C28: Battery | D28: 0 | E28: 0 | F28: 0 | G28: 0 | H28: 0 | I28: 0 | J28: 0 | K28: 0 | L28: 0 | M28: 0 | N28: 0 | O28: 0 | P28: 0 | Q28: 0 | R28: 0 | S28: 0 | T28: 0 | U28: 0 | V28: 0 | W28: 330
C29: Pumped Storage | D29: 0 | E29: 0 | F29: 0 | G29: 0 | H29: 0 | I29: 0 | J29: 0 | K29: 0 | L29: 0 | M29: 0 | N29: 0 | O29: 0 | P29: 0 | Q29: 0 | R29: 0 | S29: 0 | T29: 0 | U29: 0 | V29: 0 | W29: 0
C30: Renewable Removed | D30: =D19+D20+D18+D21 -> 0 | E30: =E19+E20+E18+E21+D30 -> -27.65 | F30: =F19+F20+F18+F21+E30 -> -213.35 | G30: -437.35 | H30: -438.75 | I30: -500.55 | J30: -500.55 | K30: -566.45 | L30: -569.45 | M30: -578.65 | N30: -672.05 | O30: -821.15 | P30: -1094.75 | Q30: -1208.65 | R30: -1409.55 | S30: -1565.357 | T30: -1601.257 | U30: -1881.557 | V30: -2995.757 | W30: -3038.757
C32: Gas
C33: Incremental | D33: 2019 | E33: 2020 | F33: 2021 | G33: 2022 | H33: 2023 | I33: 2024 | J33: 2025 | K33: 2026 | L33: 2027 | M33: 2028 | N33: 2029 | O33: 2030 | P33: 2031 | Q33: 2032 | R33: 2033 | S33: 2034 | T33: 2035 | U33: 2036 | V33: 2037 | W33: 2038
C34: Gas Peaker | D34: =SUMIF($A$69:$A$302,$C34,D$69:D$302) -> 0 | E34: 0 | F34: 0 | G34: 0 | H34: 0 | I34: 0 | J34: 0 | K34: 0 | L34: 0 | M34: 0 | N34: =SUMIF($A$69:$A$302,$C34,N$69:N$302) -> 0 | O34: 0 | P34: 0 | Q34: 0 | R34: 184.9 | S34: 0 | T34: 0 | U34: 0 | V34: 961 | W34: 221.4
C35: Gas CCCT | D35: 0 | E35: 0 | F35: 0 | G35: 0 | H35: 0 | I35: 0 | J35: 0 | K35: 0 | L35: 0 | M35: 0 | N35: 0 | O35: 0 | P35: 0 | Q35: 0 | R35: 0 | S35: 0 | T35: 0 | U35: 0 | V35: 505.2 | W35: 0
C36: Gas Conv. | D36: 0 | E36: 247 | F36: 0 | G36: 0 | H36: 0 | I36: 0 | J36: 0 | K36: 0 | L36: 0 | M36: 0 | N36: 0 | O36: -247 | P36: 0 | Q36: 0 | R36: 0 | S36: 0 | T36: 0 | U36: 0 | V36: 0 | W36: 0
C37: Gas Removed | D37: 0 | E37: 0 | F37: 0 | G37: 0 | H37: 0 | I37: 0 | J37: 0 | K37: 0 | L37: 0 | M37: 0 | N37: 0 | O37: 0 | P37: 0 | Q37: 0 | R37: -356.3 | S37: 0 | T37: 0 | U37: 0 | V37: -237 | W37: 0
C39: Cumulative | D39: 2019 | E39: 2020 | F39: 2021 | G39: 2022 | H39: 2023 | I39: 2024 | J39: 2025 | K39: 2026 | L39: 2027 | M39: 2028 | N39: 2029 | O39: 2030 | P39: 2031 | Q39: 2032 | R39: 2033 | S39: 2034 | T39: 2035 | U39: 2036 | V39: 2037 | W39: 2038
C40: Gas Peaker | D40: =D34 -> 0 | E40: =D40+E34 -> 0 | F40: =E40+F34 -> 0 | G40: 0 | H40: 0 | I40: 0 | J40: 0 | K40: 0 | L40: 0 | M40: 0 | N40: 0 | O40: 0 | P40: 0 | Q40: 0 | R40: 184.9 | S40: 184.9 | T40: 184.9 | U40: 184.9 | V40: 1145.9 | W40: 1367.3
C41: Gas CCCT | D41: =D35 -> 0 | E41: =D41+E35 -> 0 | F41: =E41+F35 -> 0 | G41: 0 | H41: 0 | I41: 0 | J41: 0 | K41: 0 | L41: 0 | M41: 0 | N41: 0 | O41: 0 | P41: 0 | Q41: 0 | R41: 0 | S41: 0 | T41: 0 | U41: 0 | V41: 505.2 | W41: 505.2
C42: Gas Conv. | D42: =D36 -> 0 | E42: =D42+E36 -> 247 | F42: =E42+F36 -> 247 | G42: 247 | H42: 247 | I42: 247 | J42: 247 | K42: 247 | L42: 247 | M42: 247 | N42: 247 | O42: 0 | P42: 0 | Q42: 0 | R42: 0 | S42: 0 | T42: 0 | U42: 0 | V42: 0 | W42: 0
C43: Gas Removed | D43: =D37 -> 0 | E43: =D43+E37 -> 0 | F43: 0 | G43: 0 | H43: 0 | I43: 0 | J43: 0 | K43: 0 | L43: 0 | M43: 0 | N43: 0 | O43: 0 | P43: 0 | Q43: 0 | R43: -356.3 | S43: -356.3 | T43: -356.3 | U43: -356.3 | V43: -593.3 | W43: -593.3
C45: Demand-Side Management
C46: Incremental | D46: 2019 | E46: 2020 | F46: 2021 | G46: 2022 | H46: 2023 | I46: 2024 | J46: 2025 | K46: 2026 | L46: 2027 | M46: 2028 | N46: 2029 | O46: 2030 | P46: 2031 | Q46: 2032 | R46: 2033 | S46: 2034 | T46: 2035 | U46: 2036 | V46: 2037 | W46: 2038
C47: Class 2 DSM | D47: =SUMIF($A$69:$A$302,$C47,D$69:D$302) -> 126 | E47: 118.47 | F47: 118.78 | G47: 124.86 | H47: 135.81 | I47: 133.25 | J47: 132.22 | K47: 128.59 | L47: 127.37 | M47: 128.4 | N47: =SUMIF($A$69:$A$302,$C47,N$69:N$302) -> 120.14 | O47: 115.35 | P47: 108.57 | Q47: 105.9 | R47: 100.11 | S47: 81.6 | T47: 76.1 | U47: 65.45 | V47: 58.58 | W47: 60.77
C48: Class 1 DSM | D48: 4.06 | E48: 0 | F48: 7.004 | G48: 0 | H48: 18.11 | I48: 0 | J48: 8.211 | K48: 7.166 | L48: 0 | M48: 0 | N48: 99.21 | O48: 34.203 | P48: 0 | Q48: 19.507 | R48: 0 | S48: 0 | T48: 7.008 | U48: 0 | V48: 36.804 | W48: 105.75
C50: Cumulative | D50: 2019 | E50: 2020 | F50: 2021 | G50: 2022 | H50: 2023 | I50: 2024 | J50: 2025 | K50: 2026 | L50: 2027 | M50: 2028 | N50: 2029 | O50: 2030 | P50: 2031 | Q50: 2032 | R50: 2033 | S50: 2034 | T50: 2035 | U50: 2036 | V50: 2037 | W50: 2038
C51: Class 2 DSM | D51: =D47 -> 126 | E51: =D51+E47 -> 244.47 | F51: 363.25 | G51: 488.11 | H51: 623.92 | I51: 757.17 | J51: 889.39 | K51: 1017.98 | L51: 1145.35 | M51: 1273.75 | N51: 1393.89 | O51: 1509.24 | P51: 1617.81 | Q51: 1723.71 | R51: 1823.82 | S51: 1905.42 | T51: 1981.52 | U51: 2046.97 | V51: 2105.55 | W51: 2166.32
C52: Class 1 DSM | D52: =D48 -> 4.06 | E52: 4.06 | F52: 11.064 | G52: 11.064 | H52: 29.174 | I52: 29.174 | J52: 37.385 | K52: 44.551 | L52: 44.551 | M52: 44.551 | N52: 143.761 | O52: 177.964 | P52: 177.964 | Q52: 197.471 | R52: 197.471 | S52: 197.471 | T52: 204.479 | U52: 204.479 | V52: 241.283 | W52: 347.033
C54: FOTs
C55: Incremental | D55: 2019 | E55: 2020 | F55: 2021 | G55: 2022 | H55: 2023 | I55: 2024 | J55: 2025 | K55: 2026 | L55: 2027 | M55: 2028 | N55: 2029 | O55: 2030 | P55: 2031 | Q55: 2032 | R55: 2033 | S55: 2034 | T55: 2035 | U55: 2036 | V55: 2037 | W55: 2038
C56: FOT | D56: =SUMIF($A$69:$A$302,$C56,D$69:D$302) -> 997.685 | E56: 719.555 | F56: 493.543 | G56: 503.895 | H56: 499.658 | I56: 175.026 | J56: 168.516 | K56: 198.048 | L56: 243.309 | M56: 1105.506 | N56: 1299.433 | O56: 1375 | P56: 1355.324 | Q56: 1219.936 | R56: 1375 | S56: 1356.015 | T56: 1351.473 | U56: 1363.048 | V56: 1375 | W56: 1362.377
C57: Winter FOT | D57: 151.427 | E57: 130.923 | F57: 268.415 | G57: 303.282 | H57: 313.946 | I57: 50.144 | J57: 56.544 | K57: 60.297 | L57: 109.849 | M57: 241.696 | N57: 261.638 | O57: 225.957 | P57: 247.199 | Q57: 127.506 | R57: 75.488 | S57: 6.915 | T57: 22.235 | U57: 175.016 | V57: 0 | W57: 0
C59: Removed Capacity | D59: =D8+D30+D43 -> 0 | E59: =E8+E30+E43 -> -307.65 | F59: -880.35 | G59: -1104.35 | H59: -1105.75 | I59: -1518.05 | J59: -1518.05 | K59: -2023.25 | L59: -2107.75 | M59: -3019.95 | N59: -3469.15 | O59: -3618.25 | P59: -3968.45 | Q59: -4082.35 | R59: -4639.55 | S59: -4795.357 | T59: -4831.257 | U59: -5111.557 | V59: -7371.757 | W59: -8116.757
B64: Study Name: I19-S05-MM (09-24-19 0428 PM)
D66: Capacity (MW)
C67: Resource | D67: 2019 | E67: 2020 | F67: 2021 | G67: 2022 | H67: 2023 | I67: 2024 | J67: 2025 | K67: 2026 | L67: 2027 | M67: 2028 | N67: 2029 | O67: 2030 | P67: 2031 | Q67: 2032 | R67: 2033 | S67: 2034 | T67: 2035 | U67: 2036 | V67: 2037 | W67: 2038
A68: =IF(AND(B68<>"West",OR(A67="Winter FOT",A67="Done")),"Done",VLOOKUP(C68,'Resource Map'!$B$3:$C$509,2,FALSE)) -> - | B68: East | C68: Existing Plant Retirements and PPA Termination
A69: =IF(AND(B69<>"West",OR(A68="Winter FOT",A68="Done")),"Done",VLOOKUP(C69,'Resource Map'!$B$3:$C$509,2,FALSE)) -> Coal Removed | C69: Craig 1 (Coal Early Retirement/Conversions) | D69: 0 | E69: 0 | F69: 0 | G69: 0 | H69: 0 | I69: 0 | J69: 0 | K69: -82.3 | L69: 0 | M69: 0 | N69: 0 | O69: 0 | P69: 0 | Q69: 0 | R69: 0 | S69: 0 | T69: 0 | U69: 0 | V69: 0 | W69: 0
A70: =IF(AND(B70<>"West",OR(A69="Winter FOT",A69="Done")),"Done",VLOOKUP(C70,'Resource Map'!$B$3:$C$509,2,FALSE)) -> Coal Removed | C70: Craig 2 (Coal Early Retirement/Conversions) | D70: 0 | E70: 0 | F70: 0 | G70: 0 | H70: 0 | I70: 0 | J70: 0 | K70: 0 | L70: -81.5 | M70: 0 | N70: 0 | O70: 0 | P70: 0 | Q70: 0 | R70: 0 | S70: 0 | T70: 0 | U70: 0 | V70: 0 | W70: 0
A71: =IF(AND(B71<>"West",OR(A70="Winter FOT",A70="Done")),"Done",VLOOKUP(C71,'Resource Map'!$B$3:$C$509,2,FALSE)) -> Coal Removed | C71: Hayden 1 | D71: 0 | E71: 0 | F71: 0 | G71: 0 | H71: 0 | I71: 0 | J71: 0 | K71: 0 | L71: 0 | M71: 0 | N71: 0 | O71: 0 | P71: -43.9 | Q71: 0 | R71: 0 | S71: 0 | T71: 0 | U71: 0 | V71: 0 | W71: 0
A72: =IF(AND(B72<>"West",OR(A71="Winter FOT",A71="Done")),"Done",VLOOKUP(C72,'Resource Map'!$B$3:$C$509,2,FALSE)) -> Coal Removed | C72: Hayden 2 | D72: 0 | E72: 0 | F72: 0 | G72: 0 | H72: 0 | I72: 0 | J72: 0 | K72: 0 | L72: 0 | M72: 0 | N72: 0 | O72: 0 | P72: -32.7 | Q72: 0 | R72: 0 | S72: 0 | T72: 0 | U72: 0 | V72: 0 | W72: 0
A73: =IF(AND(B73<>"West",OR(A72="Winter FOT",A72="Done")),"Done",VLOOKUP(C73,'Resource Map'!$B$3:$C$509,2,FALSE)) -> Coal Removed | C73: Huntington 1 | D73: 0 | E73: 0 | F73: 0 | G73: 0 | H73: 0 | I73: 0 | J73: 0 | K73: 0 | L73: 0 | M73: 0 | N73: 0 | O73: 0 | P73: 0 | Q73: 0 | R73: 0 | S73: 0 | T73: 0 | U73: 0 | V73: -459 | W73: 0
A74: =IF(AND(B74<>"West",OR(A73="Winter FOT",A73="Done")),"Done",VLOOKUP(C74,'Resource Map'!$B$3:$C$509,2,FALSE)) -> Coal Removed | C74: Huntington 2 | D74: 0 | E74: 0 | F74: 0 | G74: 0 | H74: 0 | I74: 0 | J74: 0 | K74: 0 | L74: 0 | M74: 0 | N74: 0 | O74: 0 | P74: 0 | Q74: 0 | R74: 0 | S74: 0 | T74: 0 | U74: 0 | V74: -450 | W74: 0
A75: =IF(AND(B75<>"West",OR(A74="Winter FOT",A74="Done")),"Done",VLOOKUP(C75,'Resource Map'!$B$3:$C$509,2,FALSE)) -> Coal Removed | C75: Colstrip 3 (Coal Early Retirement/Conversions) | D75: 0 | E75: 0 | F75: 0 | G75: 0 | H75: 0 | I75: 0 | J75: 0 | K75: 0 | L75: 0 | M75: -74 | N75: 0 | O75: 0 | P75: 0 | Q75: 0 | R75: 0 | S75: 0 | T75: 0 | U75: 0 | V75: 0 | W75: 0
A76: =IF(AND(B76<>"West",OR(A75="Winter FOT",A75="Done")),"Done",VLOOKUP(C76,'Resource Map'!$B$3:$C$509,2,FALSE)) -> Coal Removed | C76: Colstrip 4 (Coal Early Retirement/Conversions) | D76: 0 | E76: 0 | F76: 0 | G76: 0 | H76: 0 | I76: 0 | J76: 0 | K76: 0 | L76: 0 | M76: -74 | N76: 0 | O76: 0 | P76: 0 | Q76: 0 | R76: 0 | S76: 0 | T76: 0 | U76: 0 | V76: 0 | W76: 0
A77: =IF(AND(B77<>"West",OR(A76="Winter FOT",A76="Done")),"Done",VLOOKUP(C77,'Resource Map'!$B$3:$C$509,2,FALSE)) -> Coal Removed | C77: Cholla 4 (Coal Early Retirement/Conversions) | D77: 0 | E77: 0 | F77: -387 | G77: 0 | H77: 0 | I77: 0 | J77: 0 | K77: 0 | L77: 0 | M77: 0 | N77: 0 | O77: 0 | P77: 0 | Q77: 0 | R77: 0 | S77: 0 | T77: 0 | U77: 0 | V77: 0 | W77: 0
A78: =IF(AND(B78<>"West",OR(A77="Winter FOT",A77="Done")),"Done",VLOOKUP(C78,'Resource Map'!$B$3:$C$509,2,FALSE)) -> Coal Removed | C78: DaveJohnston 1 | D78: 0 | E78: 0 | F78: 0 | G78: 0 | H78: 0 | I78: 0 | J78: 0 | K78: 0 | L78: 0 | M78: -99 | N78: 0 | O78: 0 | P78: 0 | Q78: 0 | R78: 0 | S78: 0 | T78: 0 | U78: 0 | V78: 0 | W78: 0
A79: =IF(AND(B79<>"West",OR(A78="Winter FOT",A78="Done")),"Done",VLOOKUP(C79,'Resource Map'!$B$3:$C$509,2,FALSE)) -> Coal Removed | C79: DaveJohnston 2 | D79: 0 | E79: 0 | F79: 0 | G79: 0 | H79: 0 | I79: 0 | J79: 0 | K79: 0 | L79: 0 | M79: -106 | N79: 0 | O79: 0 | P79: 0 | Q79: 0 | R79: 0 | S79: 0 | T79: 0 | U79: 0 | V79: 0 | W79: 0
A80: =IF(AND(B80<>"West",OR(A79="Winter FOT",A79="Done")),"Done",VLOOKUP(C80,'Resource Map'!$B$3:$C$509,2,FALSE)) -> Coal Removed | C80: DaveJohnston 3 | D80: 0 | E80: 0 | F80: 0 | G80: 0 | H80: 0 | I80: 0 | J80: 0 | K80: 0 | L80: 0 | M80: -220 | N80: 0 | O80: 0 | P80: 0 | Q80: 0 | R80: 0 | S80: 0 | T80: 0 | U80: 0 | V80: 0 | W80: 0
A81: =IF(AND(B81<>"West",OR(A80="Winter FOT",A80="Done")),"Done",VLOOKUP(C81,'Resource Map'!$B$3:$C$509,2,FALSE)) -> Coal Removed | C81: DaveJohnston 4 | D81: 0 | E81: 0 | F81: 0 | G81: 0 | H81: 0 | I81: 0 | J81: 0 | K81: 0 | L81: 0 | M81: -330 | N81: 0 | O81: 0 | P81: 0 | Q81: 0 | R81: 0 | S81: 0 | T81: 0 | U81: 0 | V81: 0 | W81: 0
A82: =IF(AND(B82<>"West",OR(A81="Winter FOT",A81="Done")),"Done",VLOOKUP(C82,'Resource Map'!$B$3:$C$509,2,FALSE)) -> Coal Removed | C82: Naughton 1 (Coal Early Retirement/Conversions) | D82: 0 | E82: 0 | F82: 0 | G82: 0 | H82: 0 | I82: 0 | J82: 0 | K82: -156 | L82: 0 | M82: 0 | N82: 0 | O82: 0 | P82: 0 | Q82: 0 | R82: 0 | S82: 0 | T82: 0 | U82: 0 | V82: 0 | W82: 0
A83: =IF(AND(B83<>"West",OR(A82="Winter FOT",A82="Done")),"Done",VLOOKUP(C83,'Resource Map'!$B$3:$C$509,2,FALSE)) -> Coal Removed | C83: Naughton 2 (Coal Early Retirement/Conversions) | D83: 0 | E83: 0 | F83: 0 | G83: 0 | H83: 0 | I83: 0 | J83: 0 | K83: -201 | L83: 0 | M83: 0 | N83: 0 | O83: 0 | P83: 0 | Q83: 0 | R83: 0 | S83: 0 | T83: 0 | U83: 0 | V83: 0 | W83: 0
A84: =IF(AND(B84<>"West",OR(A83="Winter FOT",A83="Done")),"Done",VLOOKUP(C84,'Resource Map'!$B$3:$C$509,2,FALSE)) -> Coal Removed | C84: Naughton 3 (Coal Early Retirement/Conversions) | D84: 0 | E84: -280 | F84: 0 | G84: 0 | H84: 0 | I84: 0 | J84: 0 | K84: 0 | L84: 0 | M84: 0 | N84: 0 | O84: 0 | P84: 0 | Q84: 0 | R84: 0 | S84: 0 | T84: 0 | U84: 0 | V84: 0 | W84: 0
A85: =IF(AND(B85<>"West",OR(A84="Winter FOT",A84="Done")),"Done",VLOOKUP(C85,'Resource Map'!$B$3:$C$509,2,FALSE)) -> Gas Removed | C85: Gadsby 1-6 | D85: 0 | E85: 0 | F85: 0 | G85: 0 | H85: 0 | I85: 0 | J85: 0 | K85: 0 | L85: 0 | M85: 0 | N85: 0 | O85: 0 | P85: 0 | Q85: 0 | R85: -356.3 | S85: 0 | T85: 0 | U85: 0 | V85: 0 | W85: 0
A86: =IF(AND(B86<>"West",OR(A85="Winter FOT",A85="Done")),"Done",VLOOKUP(C86,'Resource Map'!$B$3:$C$509,2,FALSE)) -> Hydro Removed | C86: Retire - Hydro | D86: 0 | E86: 0 | F86: 0 | G86: 0 | H86: 0 | I86: -20.28 | J86: 0 | K86: 0 | L86: 0 | M86: 0 | N86: 0 | O86: 0 | P86: 0 | Q86: 0 | R86: 0 | S86: 0 | T86: 0 | U86: 0 | V86: 0 | W86: 0
A87: =IF(AND(B87<>"West",OR(A86="Winter FOT",A86="Done")),"Done",VLOOKUP(C87,'Resource Map'!$B$3:$C$509,2,FALSE)) -> Wind Removed | C87: Retire - Wind | D87: 0 | E87: 0 | F87: 0 | G87: 0 | H87: 0 | I87: 0 | J87: 0 | K87: 0 | L87: 0 | M87: 0 | N87: 0 | O87: -40.2 | P87: 0 | Q87: 0 | R87: 0 | S87: 0 | T87: 0 | U87: 0 | V87: 0 | W87: 0
A88: =IF(AND(B88<>"West",OR(A87="Winter FOT",A87="Done")),"Done",VLOOKUP(C88,'Resource Map'!$B$3:$C$509,2,FALSE)) -> Wind Removed | C88: Expire - Wind PPA | D88: 0 | E88: -26.55 | F88: -16.8 | G88: -49 | H88: -0.2 | I88: 0 | J88: 0 | K88: -64.5 | L88: -3 | M88: 0 | N88: -18.9 | O88: -99 | P88: -200.2 | Q88: -45 | R88: -180.9 | S88: -80 | T88: 0 | U88: -60 | V88: -80 | W88: 0
A89: =IF(AND(B89<>"West",OR(A88="Winter FOT",A88="Done")),"Done",VLOOKUP(C89,'Resource Map'!$B$3:$C$509,2,FALSE)) -> Solar Removed | C89: Expire - Solar PPA | D89: 0 | E89: 0 | F89: 0 | G89: 0 | H89: -0.5 | I89: -0.52 | J89: 0 | K89: 0 | L89: 0 | M89: 0 | N89: 0 | O89: 0 | P89: 0 | Q89: 0 | R89: 0 | S89: 0 | T89: -35.1 | U89: -94.1 | V89: -849 | W89: 0
A90: =IF(AND(B90<>"West",OR(A89="Winter FOT",A89="Done")),"Done",VLOOKUP(C90,'Resource Map'!$B$3:$C$509,2,FALSE)) -> Other Removed | C90: Retire - Other | D90: 0 | E90: 0 | F90: 0 | G90: 0 | H90: 0 | I90: 0 | J90: 0 | K90: 0 | L90: 0 | M90: 0 | N90: 0 | O90: 0 | P90: 0 | Q90: 0 | R90: 0 | S90: -0.907 | T90: 0 | U90: 0 | V90: 0 | W90: -32.1
A91: =IF(AND(B91<>"West",OR(A90="Winter FOT",A90="Done")),"Done",VLOOKUP(C91,'Resource Map'!$B$3:$C$509,2,FALSE)) -> Gas Conv. | C91: Coal Ret_WY - Gas RePower | D91: 0 | E91: 247 | F91: 0 | G91: 0 | H91: 0 | I91: 0 | J91: 0 | K91: 0 | L91: 0 | M91: 0 | N91: 0 | O91: -247 | P91: 0 | Q91: 0 | R91: 0 | S91: 0 | T91: 0 | U91: 0 | V91: 0 | W91: 0
A92: =IF(AND(B92<>"West",OR(A91="Winter FOT",A91="Done")),"Done",VLOOKUP(C92,'Resource Map'!$B$3:$C$509,2,FALSE)) -> - | C92: Expansion Resources
A93: =IF(AND(B93<>"West",OR(A92="Winter FOT",A92="Done")),"Done",VLOOKUP(C93,'Resource Map'!$B$3:$C$509,2,FALSE)) -> Gas CCCT | C93: CCCT - DJohns - J 1x1 | D93: 0 | E93: 0 | F93: 0 | G93: 0 | H93: 0 | I93: 0 | J93: 0 | K93: 0 | L93: 0 | M93: 0 | N93: 0 | O93: 0 | P93: 0 | Q93: 0 | R93: 0 | S93: 0 | T93: 0 | U93: 0 | V93: 505.2 | W93: 0
A94: =IF(AND(B94<>"West",OR(A93="Winter FOT",A93="Done")),"Done",VLOOKUP(C94,'Resource Map'!$B$3:$C$509,2,FALSE)) -> - | C94: Total CCCT | D94: 0 | E94: 0 | F94: 0 | G94: 0 | H94: 0 | I94: 0 | J94: 0 | K94: 0 | L94: 0 | M94: 0 | N94: 0 | O94: 0 | P94: 0 | Q94: 0 | R94: 0 | S94: 0 | T94: 0 | U94: 0 | V94: 505.2 | W94: 0
A95: =IF(AND(B95<>"West",OR(A94="Winter FOT",A94="Done")),"Done",VLOOKUP(C95,'Resource Map'!$B$3:$C$509,2,FALSE)) -> Gas Peaker | C95: SCCT Frame NTN | D95: 0 | E95: 0 | F95: 0 | G95: 0 | H95: 0 | I95: 0 | J95: 0 | K95: 0 | L95: 0 | M95: 0 | N95: 0 | O95: 0 | P95: 0 | Q95: 0 | R95: 184.9 | S95: 0 | T95: 0 | U95: 0 | V95: 369.8 | W95: 0
A96: =IF(AND(B96<>"West",OR(A95="Winter FOT",A95="Done")),"Done",VLOOKUP(C96,'Resource Map'!$B$3:$C$509,2,FALSE)) -> Gas Peaker | C96: SCCT Frame WYSW | D96: 0 | E96: 0 | F96: 0 | G96: 0 | H96: 0 | I96: 0 | J96: 0 | K96: 0 | L96: 0 | M96: 0 | N96: 0 | O96: 0 | P96: 0 | Q96: 0 | R96: 0 | S96: 0 | T96: 0 | U96: 0 | V96: 369.8 | W96: 0
A97: =IF(AND(B97<>"West",OR(A96="Winter FOT",A96="Done")),"Done",VLOOKUP(C97,'Resource Map'!$B$3:$C$509,2,FALSE)) -> - | C97: Total SCCT | D97: 0 | E97: 0 | F97: 0 | G97: 0 | H97: 0 | I97: 0 | J97: 0 | K97: 0 | L97: 0 | M97: 0 | N97: 0 | O97: 0 | P97: 0 | Q97: 0 | R97: 184.9 | S97: 0 | T97: 0 | U97: 0 | V97: 739.6 | W97: 0
A98: =IF(AND(B98<>"West",OR(A97="Winter FOT",A97="Done")),"Done",VLOOKUP(C98,'Resource Map'!$B$3:$C$509,2,FALSE)) -> Wind | C98: Wind, GO | D98: 0 | E98: 0 | F98: 0 | G98: 0 | H98: 0 | I98: 0 | J98: 0 | K98: 0 | L98: 0 | M98: 0 | N98: 0 | O98: 993.552 | P98: 0 | Q98: 0 | R98: 0 | S98: 0 | T98: 0 | U98: 0 | V98: 0 | W98: 0
A99: =IF(AND(B99<>"West",OR(A98="Winter FOT",A98="Done")),"Done",VLOOKUP(C99,'Resource Map'!$B$3:$C$509,2,FALSE)) -> Wind | C99: Wind, WYAE | D99: 0 | E99: 0 | F99: 0 | G99: 0 | H99: 0 | I99: 1920 | J99: 0 | K99: 0 | L99: 0 | M99: 0 | N99: 0 | O99: 0 | P99: 0 | Q99: 0 | R99: 0 | S99: 0 | T99: 0 | U99: 0 | V99: 0 | W99: 0
A100: =IF(AND(B100<>"West",OR(A99="Winter FOT",A99="Done")),"Done",VLOOKUP(C100,'Resource Map'!$B$3:$C$509,2,FALSE)) -> Wind+Bat | C100: Wind+Storage, GO | D100: 0 | E100: 0 | F100: 0 | G100: 0 | H100: 0 | I100: 0 | J100: 0 | K100: 0 | L100: 0 | M100: 0 | N100: 0 | O100: 30.253 | P100: 0 | Q100: 76.195 | R100: 0 | S100: 0 | T100: 0 | U100: 0 | V100: 0 | W100: 0
A101: =IF(AND(B101<>"West",OR(A100="Winter FOT",A100="Done")),"Done",VLOOKUP(C101,'Resource Map'!$B$3:$C$509,2,FALSE)) -> - | C101: Total Wind | D101: 0 | E101: 0 | F101: 0 | G101: 0 | H101: 0 | I101: 1920 | J101: 0 | K101: 0 | L101: 0 | M101: 0 | N101: 0 | O101: 1023.805 | P101: 0 | Q101: 76.195 | R101: 0 | S101: 0 | T101: 0 | U101: 0 | V101: 0 | W101: 0
A102: =IF(AND(B102<>"West",OR(A101="Winter FOT",A101="Done")),"Done",VLOOKUP(C102,'Resource Map'!$B$3:$C$509,2,FALSE)) -> Solar+Bat | C102: Utility Solar+Storage - PV - Utah-S | D102: 0 | E102: 0 | F102: 0 | G102: 0 | H102: 0 | I102: 300 | J102: 0 | K102: 0 | L102: 0 | M102: 0 | N102: 0 | O102: 0 | P102: 500 | Q102: 0 | R102: 0 | S102: 0 | T102: 0 | U102: 0 | V102: 0 | W102: 0
A103: =IF(AND(B103<>"West",OR(A102="Winter FOT",A102="Done")),"Done",VLOOKUP(C103,'Resource Map'!$B$3:$C$509,2,FALSE)) -> Solar+Bat | C103: Utility Solar+Storage - PV - WYSW | D103: 0 | E103: 0 | F103: 0 | G103: 0 | H103: 0 | I103: 0 | J103: 0 | K103: 0 | L103: 0 | M103: 0 | N103: 0 | O103: 0 | P103: 0 | Q103: 0 | R103: 100 | S103: 0 | T103: 0 | U103: 0 | V103: 0 | W103: 0
A104: =IF(AND(B104<>"West",OR(A103="Winter FOT",A103="Done")),"Done",VLOOKUP(C104,'Resource Map'!$B$3:$C$509,2,FALSE)) -> Solar+Bat | C104: Utility Solar+Storage - PV - Huntington | D104: 0 | E104: 0 | F104: 0 | G104: 0 | H104: 0 | I104: 0 | J104: 0 | K104: 0 | L104: 0 | M104: 0 | N104: 0 | O104: 0 | P104: 0 | Q104: 0 | R104: 0 | S104: 0 | T104: 0 | U104: 0 | V104: 904.024 | W104: 4.976
A105: =IF(AND(B105<>"West",OR(A104="Winter FOT",A104="Done")),"Done",VLOOKUP(C105,'Resource Map'!$B$3:$C$509,2,FALSE)) -> Solar+Bat | C105: Utility Solar+Storage - PV - Utah-N | D105: 0 | E105: 0 | F105: 159.234 | G105: 63.747 | H105: 72.825 | I105: 604.193 | J105: 0 | K105: 0 | L105: 0 | M105: 0 | N105: 0 | O105: 0 | P105: 0 | Q105: 0 | R105: 0 | S105: 0 | T105: 0 | U105: 0 | V105: 0 | W105: 0
A106: =IF(AND(B106<>"West",OR(A105="Winter FOT",A105="Done")),"Done",VLOOKUP(C106,'Resource Map'!$B$3:$C$509,2,FALSE)) -> - | C106: Total Solar | D106: 0 | E106: 0 | F106: 159.234 | G106: 63.747 | H106: 72.825 | I106: 904.193 | J106: 0 | K106: 0 | L106: 0 | M106: 0 | N106: 0 | O106: 0 | P106: 500 | Q106: 0 | R106: 100 | S106: 0 | T106: 0 | U106: 0 | V106: 904.024 | W106: 4.976
A107: =IF(AND(B107<>"West",OR(A106="Winter FOT",A106="Done")),"Done",VLOOKUP(C107,'Resource Map'!$B$3:$C$509,2,FALSE)) -> Class 1 DSM | C107: Demand Response, ID-3rd Party Contracts | D107: 0 | E107: 0 | F107: 0 | G107: 0 | H107: 0 | I107: 0 | J107: 0 | K107: 0 | L107: 0 | M107: 0 | N107: 0 | O107: 0 | P107: 0 | Q107: 0 | R107: 0 | S107: 0 | T107: 0 | U107: 0 | V107: 0 | W107: 1.827
A108: =IF(AND(B108<>"West",OR(A107="Winter FOT",A107="Done")),"Done",VLOOKUP(C108,'Resource Map'!$B$3:$C$509,2,FALSE)) -> Class 1 DSM | C108: Demand Response, ID-Irrigate | D108: 0 | E108: 0 | F108: 0 | G108: 0 | H108: 0 | I108: 0 | J108: 0 | K108: 0 | L108: 0 | M108: 0 | N108: 0 | O108: 0 | P108: 0 | Q108: 5.152 | R108: 0 | S108: 0 | T108: 0 | U108: 0 | V108: 3.654 | W108: 1.789
A109: =IF(AND(B109<>"West",OR(A108="Winter FOT",A108="Done")),"Done",VLOOKUP(C109,'Resource Map'!$B$3:$C$509,2,FALSE)) -> Class 1 DSM | C109: Demand Response, UT-Cool/WH | D109: 4.06 | E109: 0 | F109: 7.004 | G109: 0 | H109: 9.858 | I109: 0 | J109: 0 | K109: 7.166 | L109: 0 | M109: 0 | N109: 6.693 | O109: 0 | P109: 0 | Q109: 6.843 | R109: 0 | S109: 0 | T109: 7.008 | U109: 0 | V109: 0 | W109: 7.237
A110: =IF(AND(B110<>"West",OR(A109="Winter FOT",A109="Done")),"Done",VLOOKUP(C110,'Resource Map'!$B$3:$C$509,2,FALSE)) -> Class 1 DSM | C110: Demand Response, UT-3rd Party Contracts | D110: 0 | E110: 0 | F110: 0 | G110: 0 | H110: 0 | I110: 0 | J110: 0 | K110: 0 | L110: 0 | M110: 0 | N110: 0 | O110: 0 | P110: 0 | Q110: 0 | R110: 0 | S110: 0 | T110: 0 | U110: 0 | V110: 0 | W110: 48.395
A111: =IF(AND(B111<>"West",OR(A110="Winter FOT",A110="Done")),"Done",VLOOKUP(C111,'Resource Map'!$B$3:$C$509,2,FALSE)) -> Class 1 DSM | C111: Demand Response, UT-Irrigate | D111: 0 | E111: 0 | F111: 0 | G111: 0 | H111: 0 | I111: 0 | J111: 0 | K111: 0 | L111: 0 | M111: 0 | N111: 0 | O111: 0 | P111: 0 | Q111: 0 | R111: 0 | S111: 0 | T111: 0 | U111: 0 | V111: 0 | W111: 1.927
A112: =IF(AND(B112<>"West",OR(A111="Winter FOT",A111="Done")),"Done",VLOOKUP(C112,'Resource Map'!$B$3:$C$509,2,FALSE)) -> Class 1 DSM | C112: Demand Response, UT-Thermostat | D112: 0 | E112: 0 | F112: 0 | G112: 0 | H112: 0 | I112: 0 | J112: 0 | K112: 0 | L112: 0 | M112: 0 | N112: 92.517 | O112: 32.352 | P112: 0 | Q112: 0 | R112: 0 | S112: 0 | T112: 0 | U112: 0 | V112: 8.335 | W112: 5.118
A113: =IF(AND(B113<>"West",OR(A112="Winter FOT",A112="Done")),"Done",VLOOKUP(C113,'Resource Map'!$B$3:$C$509,2,FALSE)) -> Class 1 DSM | C113: Demand Response, WY-3rd Party Contracts | D113: 0 | E113: 0 | F113: 0 | G113: 0 | H113: 0 | I113: 0 | J113: 0 | K113: 0 | L113: 0 | M113: 0 | N113: 0 | O113: 0 | P113: 0 | Q113: 0 | R113: 0 | S113: 0 | T113: 0 | U113: 0 | V113: 0 | W113: 2.05
A114: =IF(AND(B114<>"West",OR(A113="Winter FOT",A113="Done")),"Done",VLOOKUP(C114,'Resource Map'!$B$3:$C$509,2,FALSE)) -> Class 1 DSM | C114: Demand Response, WY-Irrigate | D114: 0 | E114: 0 | F114: 0 | G114: 0 | H114: 0 | I114: 0 | J114: 0 | K114: 0 | L114: 0 | M114: 0 | N114: 0 | O114: 0 | P114: 0 | Q114: 0 | R114: 0 | S114: 0 | T114: 0 | U114: 0 | V114: 0 | W114: 1.757
A115: =IF(AND(B115<>"West",OR(A114="Winter FOT",A114="Done")),"Done",VLOOKUP(C115,'Resource Map'!$B$3:$C$509,2,FALSE)) -> Class 1 DSM | C115: Demand Response, WY-Thermostat | D115: 0 | E115: 0 | F115: 0 | G115: 0 | H115: 0 | I115: 0 | J115: 0 | K115: 0 | L115: 0 | M115: 0 | N115: 0 | O115: 0 | P115: 0 | Q115: 0 | R115: 0 | S115: 0 | T115: 0 | U115: 0 | V115: 0 | W115: 19.921
A116: =IF(AND(B116<>"West",OR(A115="Winter FOT",A115="Done")),"Done",VLOOKUP(C116,'Resource Map'!$B$3:$C$509,2,FALSE)) -> Class 1 DSM | C116: Demand Response, UT-Ancillary Services | D116: 0 | E116: 0 | F116: 0 | G116: 0 | H116: 8.252 | I116: 0 | J116: 5.253 | K116: 0 | L116: 0 | M116: 0 | N116: 0 | O116: 0 | P116: 0 | Q116: 0 | R116: 0 | S116: 0 | T116: 0 | U116: 0 | V116: 3.241 | W116: 0
A117: =IF(AND(B117<>"West",OR(A116="Winter FOT",A116="Done")),"Done",VLOOKUP(C117,'Resource Map'!$B$3:$C$509,2,FALSE)) -> Class 1 DSM | C117: Demand Response, WY-Ancillary Services | D117: 0 | E117: 0 | F117: 0 | G117: 0 | H117: 0 | I117: 0 | J117: 2.958 | K117: 0 | L117: 0 | M117: 0 | N117: 0 | O117: 0 | P117: 0 | Q117: 0 | R117: 0 | S117: 0 | T117: 0 | U117: 0 | V117: 0 | W117: 0
A118: =IF(AND(B118<>"West",OR(A117="Winter FOT",A117="Done")),"Done",VLOOKUP(C118,'Resource Map'!$B$3:$C$509,2,FALSE)) -> - | C118: Demand Response Total | D118: 4.06 | E118: 0 | F118: 7.004 | G118: 0 | H118: 18.11 | I118: 0 | J118: 8.211 | K118: 7.166 | L118: 0 | M118: 0 | N118: 99.21 | O118: 32.352 | P118: 0 | Q118: 11.995 | R118: 0 | S118: 0 | T118: 7.008 | U118: 0 | V118: 15.23 | W118: 90.021
A119: =IF(AND(B119<>"West",OR(A118="Winter FOT",A118="Done")),"Done",VLOOKUP(C119,'Resource Map'!$B$3:$C$509,2,FALSE)) -> Class 2 DSM | C119: Energy Efficiency, ID | D119: 6 | E119: 5.25 | F119: 5.34 | G119: 5.58 | H119: 7.03 | I119: 6.92 | J119: 6.89 | K119: 6.84 | L119: 6.73 | M119: 6.92 | N119: 6.45 | O119: 6.23 | P119: 5.95 | Q119: 5.86 | R119: 5.58 | S119: 4.42 | T119: 4.02 | U119: 3.27 | V119: 2.96 | W119: 2.98
A120: =IF(AND(B120<>"West",OR(A119="Winter FOT",A119="Done")),"Done",VLOOKUP(C120,'Resource Map'!$B$3:$C$509,2,FALSE)) -> Class 2 DSM | C120: Energy Efficiency, UT | D120: 58 | E120: 60.5 | F120: 60.3 | G120: 60.4 | H120: 68.8 | I120: 66.3 | J120: 65 | K120: 62.5 | L120: 59.4 | M120: 57.1 | N120: 54.2 | O120: 53.2 | P120: 50 | Q120: 49.9 | R120: 48.7 | S120: 35.9 | T120: 32.4 | U120: 24.6 | V120: 21.9 | W120: 25.1
A121: =IF(AND(B121<>"West",OR(A120="Winter FOT",A120="Done")),"Done",VLOOKUP(C121,'Resource Map'!$B$3:$C$509,2,FALSE)) -> Class 2 DSM | C121: Energy Efficiency, WY | D121: 10 | E121: 10.17 | F121: 10.99 | G121: 12.01 | H121: 13.33 | I121: 14.04 | J121: 16.47 | K121: 16.67 | L121: 16.57 | M121: 15.85 | N121: 15.35 | O121: 14.44 | P121: 12.76 | Q121: 12.05 | R121: 11.21 | S121: 8.79 | T121: 8.18 | U121: 7.09 | V121: 5.19 | W121: 5.33
A122: =IF(AND(B122<>"West",OR(A121="Winter FOT",A121="Done")),"Done",VLOOKUP(C122,'Resource Map'!$B$3:$C$509,2,FALSE)) -> - | C122: Energy Efficiency Total | D122: 74 | E122: 75.92 | F122: 76.63 | G122: 77.99 | H122: 89.16 | I122: 87.26 | J122: 88.36 | K122: 86.01 | L122: 82.7 | M122: 79.87 | N122: 76 | O122: 73.87 | P122: 68.71 | Q122: 67.81 | R122: 65.49 | S122: 49.11 | T122: 44.6 | U122: 34.96 | V122: 30.05 | W122: 33.41
A123: =IF(AND(B123<>"West",OR(A122="Winter FOT",A122="Done")),"Done",VLOOKUP(C123,'Resource Map'!$B$3:$C$509,2,FALSE)) -> FOT | C123: FOT East - Summer | D123: 0 | E123: 0 | F123: 0 | G123: 0 | H123: 0 | I123: 0 | J123: 0 | K123: 0 | L123: 0 | M123: 30.506 | N123: 224.433 | O123: 300 | P123: 280.324 | Q123: 144.936 | R123: 300 | S123: 281.015 | T123: 300 | U123: 300 | V123: 300 | W123: 300
A124: =IF(AND(B124<>"West",OR(A123="Winter FOT",A123="Done")),"Done",VLOOKUP(C124,'Resource Map'!$B$3:$C$509,2,FALSE)) -> - | B124: West | C124: Existing Plant Retirements and PPA Termination
A125: =IF(AND(B125<>"West",OR(A124="Winter FOT",A124="Done")),"Done",VLOOKUP(C125,'Resource Map'!$B$3:$C$509,2,FALSE)) -> Coal Removed | C125: JimBridger 1 (Coal Early Retirement/Conversions) | D125: 0 | E125: 0 | F125: 0 | G125: 0 | H125: 0 | I125: -350.5 | J125: 0 | K125: 0 | L125: 0 | M125: 0 | N125: 0 | O125: 0 | P125: 0 | Q125: 0 | R125: 0 | S125: 0 | T125: 0 | U125: 0 | V125: 0 | W125: 0
A126: =IF(AND(B126<>"West",OR(A125="Winter FOT",A125="Done")),"Done",VLOOKUP(C126,'Resource Map'!$B$3:$C$509,2,FALSE)) -> Coal Removed | C126: JimBridger 2 (Coal Early Retirement/Conversions) | D126: 0 | E126: 0 | F126: 0 | G126: 0 | H126: 0 | I126: 0 | J126: 0 | K126: 0 | L126: 0 | M126: 0 | N126: -355.8 | O126: 0 | P126: 0 | Q126: 0 | R126: 0 | S126: 0 | T126: 0 | U126: 0 | V126: 0 | W126: 0
A127: =IF(AND(B127<>"West",OR(A126="Winter FOT",A126="Done")),"Done",VLOOKUP(C127,'Resource Map'!$B$3:$C$509,2,FALSE)) -> Coal Removed | C127: JimBridger 3 | D127: 0 | E127: 0 | F127: 0 | G127: 0 | H127: 0 | I127: 0 | J127: 0 | K127: 0 | L127: 0 | M127: 0 | N127: 0 | O127: 0 | P127: 0 | Q127: 0 | R127: 0 | S127: 0 | T127: 0 | U127: 0 | V127: 0 | W127: -348.7
A128: =IF(AND(B128<>"West",OR(A127="Winter FOT",A127="Done")),"Done",VLOOKUP(C128,'Resource Map'!$B$3:$C$509,2,FALSE)) -> Coal Removed | C128: JimBridger 4 | D128: 0 | E128: 0 | F128: 0 | G128: 0 | H128: 0 | I128: 0 | J128: 0 | K128: 0 | L128: 0 | M128: 0 | N128: 0 | O128: 0 | P128: 0 | Q128: 0 | R128: 0 | S128: 0 | T128: 0 | U128: 0 | V128: 0 | W128: -353.3
A129: =IF(AND(B129<>"West",OR(A128="Winter FOT",A128="Done")),"Done",VLOOKUP(C129,'Resource Map'!$B$3:$C$509,2,FALSE)) -> Gas Removed | C129: Hermiston | D129: 0 | E129: 0 | F129: 0 | G129: 0 | H129: 0 | I129: 0 | J129: 0 | K129: 0 | L129: 0 | M129: 0 | N129: 0 | O129: 0 | P129: 0 | Q129: 0 | R129: 0 | S129: 0 | T129: 0 | U129: 0 | V129: -237 | W129: 0
A130: =IF(AND(B130<>"West",OR(A129="Winter FOT",A129="Done")),"Done",VLOOKUP(C130,'Resource Map'!$B$3:$C$509,2,FALSE)) -> Hydro Removed | C130: Retire - Hydro | D130: 0 | E130: -1.1 | F130: -168.9 | G130: 0 | H130: -0.7 | I130: 0 | J130: 0 | K130: -1.4 | L130: 0 | M130: -7.2 | N130: 0 | O130: 0 | P130: -6.4 | Q130: 0 | R130: 0 | S130: -74.9 | T130: 0 | U130: -1.2 | V130: 0 | W130: 0
A131: =IF(AND(B131<>"West",OR(A130="Winter FOT",A130="Done")),"Done",VLOOKUP(C131,'Resource Map'!$B$3:$C$509,2,FALSE)) -> Wind Removed | C131: Expire - Wind PPA | D131: 0 | E131: 0 | F131: 0 | G131: -175 | H131: 0 | I131: -41 | J131: 0 | K131: 0 | L131: 0 | M131: 0 | N131: -74.5 | O131: -9.9 | P131: 0 | Q131: -20 | R131: -20 | S131: 0 | T131: 0 | U131: -10 | V131: -10 | W131: 0
A132: =IF(AND(B132<>"West",OR(A131="Winter FOT",A131="Done")),"Done",VLOOKUP(C132,'Resource Map'!$B$3:$C$509,2,FALSE)) -> Solar Removed | C132: Expire - Solar PPA | D132: 0 | E132: 0 | F132: 0 | G132: 0 | H132: 0 | I132: 0 | J132: 0 | K132: 0 | L132: 0 | M132: -2 | N132: 0 | O132: 0 | P132: -67 | Q132: -48.9 | R132: 0 | S132: 0 | T132: -0.8 | U132: -115 | V132: -175.2 | W132: -10.9
A133: =IF(AND(B133<>"West",OR(A132="Winter FOT",A132="Done")),"Done",VLOOKUP(C133,'Resource Map'!$B$3:$C$509,2,FALSE)) -> - | C133: Expansion Resources
A134: =IF(AND(B134<>"West",OR(A133="Winter FOT",A133="Done")),"Done",VLOOKUP(C134,'Resource Map'!$B$3:$C$509,2,FALSE)) -> Gas Peaker | C134: SCCT Frame WV | D134: 0 | E134: 0 | F134: 0 | G134: 0 | H134: 0 | I134: 0 | J134: 0 | K134: 0 | L134: 0 | M134: 0 | N134: 0 | O134: 0 | P134: 0 | Q134: 0 | R134: 0 | S134: 0 | T134: 0 | U134: 0 | V134: 221.4 | W134: 221.4
A135: =IF(AND(B135<>"West",OR(A134="Winter FOT",A134="Done")),"Done",VLOOKUP(C135,'Resource Map'!$B$3:$C$509,2,FALSE)) -> - | C135: Total SCCT | D135: 0 | E135: 0 | F135: 0 | G135: 0 | H135: 0 | I135: 0 | J135: 0 | K135: 0 | L135: 0 | M135: 0 | N135: 0 | O135: 0 | P135: 0 | Q135: 0 | R135: 0 | S135: 0 | T135: 0 | U135: 0 | V135: 221.4 | W135: 221.4
A136: =IF(AND(B136<>"West",OR(A135="Winter FOT",A135="Done")),"Done",VLOOKUP(C136,'Resource Map'!$B$3:$C$509,2,FALSE)) -> Solar+Bat | C136: Utility Solar+Storage - PV - Jbridger | D136: 0 | E136: 0 | F136: 0 | G136: 0 | H136: 0 | I136: 354 | J136: 0 | K136: 0 | L136: 0 | M136: 0 | N136: 359.3 | O136: 0 | P136: 0 | Q136: 0 | R136: 0 | S136: 0 | T136: 0 | U136: 0 | V136: 0 | W136: 701.7
A137: =IF(AND(B137<>"West",OR(A136="Winter FOT",A136="Done")),"Done",VLOOKUP(C137,'Resource Map'!$B$3:$C$509,2,FALSE)) -> Solar+Bat | C137: Utility Solar+Storage - PV - S-Oregon | D137: 0 | E137: 0 | F137: 0 | G137: 0 | H137: 0 | I137: 500 | J137: 0 | K137: 0 | L137: 0 | M137: 0 | N137: 0 | O137: 0 | P137: 0 | Q137: 475 | R137: 0 | S137: 0 | T137: 0 | U137: 0 | V137: 0 | W137: 0
A138: =IF(AND(B138<>"West",OR(A137="Winter FOT",A137="Done")),"Done",VLOOKUP(C138,'Resource Map'!$B$3:$C$509,2,FALSE)) -> Solar+Bat | C138: Utility Solar+Storage - PV - Yakima | D138: 0 | E138: 0 | F138: 0 | G138: 0 | H138: 0 | I138: 405 | J138: 0 | K138: 0 | L138: 0 | M138: 0 | N138: 0 | O138: 0 | P138: 0 | Q138: 0 | R138: 0 | S138: 0 | T138: 0 | U138: 0 | V138: 0 | W138: 0
A139: =IF(AND(B139<>"West",OR(A138="Winter FOT",A138="Done")),"Done",VLOOKUP(C139,'Resource Map'!$B$3:$C$509,2,FALSE)) -> - | C139: Total Solar | D139: 0 | E139: 0 | F139: 0 | G139: 0 | H139: 0 | I139: 1259 | J139: 0 | K139: 0 | L139: 0 | M139: 0 | N139: 359.3 | O139: 0 | P139: 0 | Q139: 475 | R139: 0 | S139: 0 | T139: 0 | U139: 0 | V139: 0 | W139: 701.7
A140: =IF(AND(B140<>"West",OR(A139="Winter FOT",A139="Done")),"Done",VLOOKUP(C140,'Resource Map'!$B$3:$C$509,2,FALSE)) -> Class 1 DSM | C140: Demand Response, OR-Ancillary Services | D140: 0 | E140: 0 | F140: 0 | G140: 0 | H140: 0 | I140: 0 | J140: 0 | K140: 0 | L140: 0 | M140: 0 | N140: 0 | O140: 0 | P140: 0 | Q140: 7.512 | R140: 0 | S140: 0 | T140: 0 | U140: 0 | V140: 0 | W140: 0
A141: =IF(AND(B141<>"West",OR(A140="Winter FOT",A140="Done")),"Done",VLOOKUP(C141,'Resource Map'!$B$3:$C$509,2,FALSE)) -> Class 1 DSM | C141: Demand Response, WA-Ancillary Services | D141: 0 | E141: 0 | F141: 0 | G141: 0 | H141: 0 | I141: 0 | J141: 0 | K141: 0 | L141: 0 | M141: 0 | N141: 0 | O141: 1.851 | P141: 0 | Q141: 0 | R141: 0 | S141: 0 | T141: 0 | U141: 0 | V141: 0 | W141: 0
A142: =IF(AND(B142<>"West",OR(A141="Winter FOT",A141="Done")),"Done",VLOOKUP(C142,'Resource Map'!$B$3:$C$509,2,FALSE)) -> Class 1 DSM | C142: Demand Response, OR-Cool/WH | D142: 0 | E142: 0 | F142: 0 | G142: 0 | H142: 0 | I142: 0 | J142: 0 | K142: 0 | L142: 0 | M142: 0 | N142: 0 | O142: 0 | P142: 0 | Q142: 0 | R142: 0 | S142: 0 | T142: 0 | U142: 0 | V142: 0 | W142: 3.027
A143: =IF(AND(B143<>"West",OR(A142="Winter FOT",A142="Done")),"Done",VLOOKUP(C143,'Resource Map'!$B$3:$C$509,2,FALSE)) -> Class 1 DSM | C143: Demand Response, OR-3rd Party Contracts | D143: 0 | E143: 0 | F143: 0 | G143: 0 | H143: 0 | I143: 0 | J143: 0 | K143: 0 | L143: 0 | M143: 0 | N143: 0 | O143: 0 | P143: 0 | Q143: 0 | R143: 0 | S143: 0 | T143: 0 | U143: 0 | V143: 0 | W143: 7.394
A144: =IF(AND(B144<>"West",OR(A143="Winter FOT",A143="Done")),"Done",VLOOKUP(C144,'Resource Map'!$B$3:$C$509,2,FALSE)) -> Class 1 DSM | C144: Demand Response, OR-Irrigate | D144: 0 | E144: 0 | F144: 0 | G144: 0 | H144: 0 | I144: 0 | J144: 0 | K144: 0 | L144: 0 | M144: 0 | N144: 0 | O144: 0 | P144: 0 | Q144: 0 | R144: 0 | S144: 0 | T144: 0 | U144: 0 | V144: 13.268 | W144: 0
A145: =IF(AND(B145<>"West",OR(A144="Winter FOT",A144="Done")),"Done",VLOOKUP(C145,'Resource Map'!$B$3:$C$509,2,FALSE)) -> Class 1 DSM | C145: Demand Response, WA-Irrigate | D145: 0 | E145: 0 | F145: 0 | G145: 0 | H145: 0 | I145: 0 | J145: 0 | K145: 0 | L145: 0 | M145: 0 | N145: 0 | O145: 0 | P145: 0 | Q145: 0 | R145: 0 | S145: 0 | T145: 0 | U145: 0 | V145: 8.306 | W145: 0
A146: =IF(AND(B146<>"West",OR(A145="Winter FOT",A145="Done")),"Done",VLOOKUP(C146,'Resource Map'!$B$3:$C$509,2,FALSE)) -> Class 1 DSM | C146: Demand Response, WA-Thermostat | D146: 0 | E146: 0 | F146: 0 | G146: 0 | H146: 0 | I146: 0 | J146: 0 | K146: 0 | L146: 0 | M146: 0 | N146: 0 | O146: 0 | P146: 0 | Q146: 0 | R146: 0 | S146: 0 | T146: 0 | U146: 0 | V146: 0 | W146: 5.308
A147: =IF(AND(B147<>"West",OR(A146="Winter FOT",A146="Done")),"Done",VLOOKUP(C147,'Resource Map'!$B$3:$C$509,2,FALSE)) -> - | C147: Demand Response Total | D147: 0 | E147: 0 | F147: 0 | G147: 0 | H147: 0 | I147: 0 | J147: 0 | K147: 0 | L147: 0 | M147: 0 | N147: 0 | O147: 1.851 | P147: 0 | Q147: 7.512 | R147: 0 | S147: 0 | T147: 0 | U147: 0 | V147: 21.574 | W147: 15.729
A148: =IF(AND(B148<>"West",OR(A147="Winter FOT",A147="Done")),"Done",VLOOKUP(C148,'Resource Map'!$B$3:$C$509,2,FALSE)) -> Class 2 DSM | C148: Energy Efficiency, CA | D148: 1 | E148: 1.5 | F148: 1.41 | G148: 1.48 | H148: 1.74 | I148: 1.73 | J148: 1.76 | K148: 1.81 | L148: 1.82 | M148: 1.92 | N148: 1.89 | O148: 1.88 | P148: 1.82 | Q148: 1.76 | R148: 1.66 | S148: 1.3 | T148: 1.41 | U148: 1.17 | V148: 0.98 | W148: 0.83
A149: =IF(AND(B149<>"West",OR(A148="Winter FOT",A148="Done")),"Done",VLOOKUP(C149,'Resource Map'!$B$3:$C$509,2,FALSE)) -> Class 2 DSM | C149: Energy Efficiency, OR | D149: 40 | E149: 31.8 | F149: 31.3 | G149: 35.7 | H149: 34 | I149: 33.5 | J149: 31.3 | K149: 30.3 | L149: 32.8 | M149: 36.5 | N149: 32.9 | O149: 30.6 | P149: 29.6 | Q149: 28.5 | R149: 25.5 | S149: 25.5 | T149: 24.4 | U149: 24.6 | V149: 23.5 | W149: 22.7
A150: =IF(AND(B150<>"West",OR(A149="Winter FOT",A149="Done")),"Done",VLOOKUP(C150,'Resource Map'!$B$3:$C$509,2,FALSE)) -> Class 2 DSM | C150: Energy Efficiency, WA | D150: 11 | E150: 9.25 | F150: 9.44 | G150: 9.69 | H150: 10.91 | I150: 10.76 | J150: 10.8 | K150: 10.47 | L150: 10.05 | M150: 10.11 | N150: 9.35 | O150: 9 | P150: 8.44 | Q150: 7.83 | R150: 7.46 | S150: 5.69 | T150: 5.69 | U150: 4.72 | V150: 4.05 | W150: 3.83
A151: =IF(AND(B151<>"West",OR(A150="Winter FOT",A150="Done")),"Done",VLOOKUP(C151,'Resource Map'!$B$3:$C$509,2,FALSE)) -> - | C151: Energy Efficiency Total | D151: 52 | E151: 42.55 | F151: 42.15 | G151: 46.87 | H151: 46.65 | I151: 45.99 | J151: 43.86 | K151: 42.58 | L151: 44.67 | M151: 48.53 | N151: 44.14 | O151: 41.48 | P151: 39.86 | Q151: 38.09 | R151: 34.62 | S151: 32.49 | T151: 31.5 | U151: 30.49 | V151: 28.53 | W151: 27.36
A152: =IF(AND(B152<>"West",OR(A151="Winter FOT",A151="Done")),"Done",VLOOKUP(C152,'Resource Map'!$B$3:$C$509,2,FALSE)) -> Battery | C152: Battery Storage - Portland NC | D152: 0 | E152: 0 | F152: 0 | G152: 0 | H152: 0 | I152: 0 | J152: 0 | K152: 0 | L152: 0 | M152: 0 | N152: 0 | O152: 0 | P152: 0 | Q152: 0 | R152: 0 | S152: 0 | T152: 0 | U152: 0 | V152: 0 | W152: 45
A153: =IF(AND(B153<>"West",OR(A152="Winter FOT",A152="Done")),"Done",VLOOKUP(C153,'Resource Map'!$B$3:$C$509,2,FALSE)) -> Battery | C153: Battery Storage - Walla Walla | D153: 0 | E153: 0 | F153: 0 | G153: 0 | H153: 0 | I153: 0 | J153: 0 | K153: 0 | L153: 0 | M153: 0 | N153: 0 | O153: 0 | P153: 0 | Q153: 0 | R153: 0 | S153: 0 | T153: 0 | U153: 0 | V153: 0 | W153: 180
A154: =IF(AND(B154<>"West",OR(A153="Winter FOT",A153="Done")),"Done",VLOOKUP(C154,'Resource Map'!$B$3:$C$509,2,FALSE)) -> Battery | C154: Battery Storage - Yakima | D154: 0 | E154: 0 | F154: 0 | G154: 0 | H154: 0 | I154: 0 | J154: 0 | K154: 0 | L154: 0 | M154: 0 | N154: 0 | O154: 0 | P154: 0 | Q154: 0 | R154: 0 | S154: 0 | T154: 0 | U154: 0 | V154: 0 | W154: 105
A155: =IF(AND(B155<>"West",OR(A154="Winter FOT",A154="Done")),"Done",VLOOKUP(C155,'Resource Map'!$B$3:$C$509,2,FALSE)) -> FOT | C155: FOT West - Summer | D155: 997.685 | E155: 719.555 | F155: 493.543 | G155: 503.895 | H155: 499.658 | I155: 175.026 | J155: 168.516 | K155: 198.048 | L155: 243.309 | M155: 1075 | N155: 1075 | O155: 1075 | P155: 1075 | Q155: 1075 | R155: 1075 | S155: 1075 | T155: 1051.473 | U155: 1063.048 | V155: 1075 | W155: 1062.377
A156: =IF(AND(B156<>"West",OR(A155="Winter FOT",A155="Done")),"Done",VLOOKUP(C156,'Resource Map'!$B$3:$C$509,2,FALSE)) -> Winter FOT | C156: FOT West - Winter | D156: 151.427 | E156: 130.923 | F156: 268.415 | G156: 303.282 | H156: 313.946 | I156: 50.144 | J156: 56.544 | K156: 60.297 | L156: 109.849 | M156: 241.696 | N156: 261.638 | O156: 225.957 | P156: 247.199 | Q156: 127.506 | R156: 75.488 | S156: 6.915 | T156: 22.235 | U156: 175.016 | V156: 0 | W156: 0
A157: =IF(AND(B157<>"West",OR(A156="Winter FOT",A156="Done")),"Done",VLOOKUP(C157,'Resource Map'!$B$3:$C$509,2,FALSE)) -> Done
A158: =IF(AND(B158<>"West",OR(A157="Winter FOT",A157="Done")),"Done",VLOOKUP(C158,'Resource Map'!$B$3:$C$509,2,FALSE)) -> Done
A159: =IF(AND(B159<>"West",OR(A158="Winter FOT",A158="Done")),"Done",VLOOKUP(C159,'Resource Map'!$B$3:$C$509,2,FALSE)) -> Done
A160: =IF(AND(B160<>"West",OR(A159="Winter FOT",A159="Done")),"Done",VLOOKUP(C160,'Resource Map'!$B$3:$C$509,2,FALSE)) -> Done
A161: =IF(AND(B161<>"West",OR(A160="Winter FOT",A160="Done")),"Done",VLOOKUP(C161,'Resource Map'!$B$3:$C$509,2,FALSE)) -> Done
A162: =IF(AND(B162<>"West",OR(A161="Winter FOT",A161="Done")),"Done",VLOOKUP(C162,'Resource Map'!$B$3:$C$509,2,FALSE)) -> Done
A163: =IF(AND(B163<>"West",OR(A162="Winter FOT",A162="Done")),"Done",VLOOKUP(C163,'Resource Map'!$B$3:$C$509,2,FALSE)) -> Done
A164: =IF(AND(B164<>"West",OR(A163="Winter FOT",A163="Done")),"Done",VLOOKUP(C164,'Resource Map'!$B$3:$C$509,2,FALSE)) -> Done
A165: =IF(AND(B165<>"West",OR(A164="Winter FOT",A164="Done")),"Done",VLOOKUP(C165,'Resource Map'!$B$3:$C$509,2,FALSE)) -> Done
A166: =IF(AND(B166<>"West",OR(A165="Winter FOT",A165="Done")),"Done",VLOOKUP(C166,'Resource Map'!$B$3:$C$509,2,FALSE)) -> Done
A167: =IF(AND(B167<>"West",OR(A166="Winter FOT",A166="Done")),"Done",VLOOKUP(C167,'Resource Map'!$B$3:$C$509,2,FALSE)) -> Done
A168: =IF(AND(B168<>"West",OR(A167="Winter FOT",A167="Done")),"Done",VLOOKUP(C168,'Resource Map'!$B$3:$C$509,2,FALSE)) -> Done
A169: =IF(AND(B169<>"West",OR(A168="Winter FOT",A168="Done")),"Done",VLOOKUP(C169,'Resource Map'!$B$3:$C$509,2,FALSE)) -> Done
A170: =IF(AND(B170<>"West",OR(A169="Winter FOT",A169="Done")),"Done",VLOOKUP(C170,'Resource Map'!$B$3:$C$509,2,FALSE)) -> Done
A171: =IF(AND(B171<>"West",OR(A170="Winter FOT",A170="Done")),"Done",VLOOKUP(C171,'Resource Map'!$B$3:$C$509,2,FALSE)) -> Done
A172: =IF(AND(B172<>"West",OR(A171="Winter FOT",A171="Done")),"Done",VLOOKUP(C172,'Resource Map'!$B$3:$C$509,2,FALSE)) -> Done
A173: =IF(AND(B173<>"West",OR(A172="Winter FOT",A172="Done")),"Done",VLOOKUP(C173,'Resource Map'!$B$3:$C$509,2,FALSE)) -> Done
A174: =IF(AND(B174<>"West",OR(A173="Winter FOT",A173="Done")),"Done",VLOOKUP(C174,'Resource Map'!$B$3:$C$509,2,FALSE)) -> Done
A175: =IF(AND(B175<>"West",OR(A174="Winter FOT",A174="Done")),"Done",VLOOKUP(C175,'Resource Map'!$B$3:$C$509,2,FALSE)) -> Done
A176: =IF(AND(B176<>"West",OR(A175="Winter FOT",A175="Done")),"Done",VLOOKUP(C176,'Resource Map'!$B$3:$C$509,2,FALSE)) -> Done
A177: =IF(AND(B177<>"West",OR(A176="Winter FOT",A176="Done")),"Done",VLOOKUP(C177,'Resource Map'!$B$3:$C$509,2,FALSE)) -> Done
A178: =IF(AND(B178<>"West",OR(A177="Winter FOT",A177="Done")),"Done",VLOOKUP(C178,'Resource Map'!$B$3:$C$509,2,FALSE)) -> Done
A179: =IF(AND(B179<>"West",OR(A178="Winter FOT",A178="Done")),"Done",VLOOKUP(C179,'Resource Map'!$B$3:$C$509,2,FALSE)) -> Done
A180: =IF(AND(B180<>"West",OR(A179="Winter FOT",A179="Done")),"Done",VLOOKUP(C180,'Resource Map'!$B$3:$C$509,2,FALSE)) -> Done
A181: =IF(AND(B181<>"West",OR(A180="Winter FOT",A180="Done")),"Done",VLOOKUP(C181,'Resource Map'!$B$3:$C$509,2,FALSE)) -> Done
A182: =IF(AND(B182<>"West",OR(A181="Winter FOT",A181="Done")),"Done",VLOOKUP(C182,'Resource Map'!$B$3:$C$509,2,FALSE)) -> Done
A183: =IF(AND(B183<>"West",OR(A182="Winter FOT",A182="Done")),"Done",VLOOKUP(C183,'Resource Map'!$B$3:$C$509,2,FALSE)) -> Done
A184: =IF(AND(B184<>"West",OR(A183="Winter FOT",A183="Done")),"Done",VLOOKUP(C184,'Resource Map'!$B$3:$C$509,2,FALSE)) -> Done
A185: =IF(AND(B185<>"West",OR(A184="Winter FOT",A184="Done")),"Done",VLOOKUP(C185,'Resource Map'!$B$3:$C$509,2,FALSE)) -> Done
A186: =IF(AND(B186<>"West",OR(A185="Winter FOT",A185="Done")),"Done",VLOOKUP(C186,'Resource Map'!$B$3:$C$509,2,FALSE)) -> Done
A187: =IF(AND(B187<>"West",OR(A186="Winter FOT",A186="Done")),"Done",VLOOKUP(C187,'Resource Map'!$B$3:$C$509,2,FALSE)) -> Done
A188: =IF(AND(B188<>"West",OR(A187="Winter FOT",A187="Done")),"Done",VLOOKUP(C188,'Resource Map'!$B$3:$C$509,2,FALSE)) -> Done
A189: =IF(AND(B189<>"West",OR(A188="Winter FOT",A188="Done")),"Done",VLOOKUP(C189,'Resource Map'!$B$3:$C$509,2,FALSE)) -> Done
A190: =IF(AND(B190<>"West",OR(A189="Winter FOT",A189="Done")),"Done",VLOOKUP(C190,'Resource Map'!$B$3:$C$509,2,FALSE)) -> Done
A191: =IF(AND(B191<>"West",OR(A190="Winter FOT",A190="Done")),"Done",VLOOKUP(C191,'Resource Map'!$B$3:$C$509,2,FALSE)) -> Done
A192: =IF(AND(B192<>"West",OR(A191="Winter FOT",A191="Done")),"Done",VLOOKUP(C192,'Resource Map'!$B$3:$C$509,2,FALSE)) -> Done
A193: =IF(AND(B193<>"West",OR(A192="Winter FOT",A192="Done")),"Done",VLOOKUP(C193,'Resource Map'!$B$3:$C$509,2,FALSE)) -> Done
A194: =IF(AND(B194<>"West",OR(A193="Winter FOT",A193="Done")),"Done",VLOOKUP(C194,'Resource Map'!$B$3:$C$509,2,FALSE)) -> Done
A195: =IF(AND(B195<>"West",OR(A194="Winter FOT",A194="Done")),"Done",VLOOKUP(C195,'Resource Map'!$B$3:$C$509,2,FALSE)) -> Done
A196: =IF(AND(B196<>"West",OR(A195="Winter FOT",A195="Done")),"Done",VLOOKUP(C196,'Resource Map'!$B$3:$C$509,2,FALSE)) -> Done
A197: =IF(AND(B197<>"West",OR(A196="Winter FOT",A196="Done")),"Done",VLOOKUP(C197,'Resource Map'!$B$3:$C$509,2,FALSE)) -> Done
A198: =IF(AND(B198<>"West",OR(A197="Winter FOT",A197="Done")),"Done",VLOOKUP(C198,'Resource Map'!$B$3:$C$509,2,FALSE)) -> Done
A199: =IF(AND(B199<>"West",OR(A198="Winter FOT",A198="Done")),"Done",VLOOKUP(C199,'Resource Map'!$B$3:$C$509,2,FALSE)) -> Done
A200: =IF(AND(B200<>"West",OR(A199="Winter FOT",A199="Done")),"Done",VLOOKUP(C200,'Resource Map'!$B$3:$C$509,2,FALSE)) -> Done
A201: =IF(AND(B201<>"West",OR(A200="Winter FOT",A200="Done")),"Done",VLOOKUP(C201,'Resource Map'!$B$3:$C$509,2,FALSE)) -> Done
A202: =IF(AND(B202<>"West",OR(A201="Winter FOT",A201="Done")),"Done",VLOOKUP(C202,'Resource Map'!$B$3:$C$509,2,FALSE)) -> Done
A203: =IF(AND(B203<>"West",OR(A202="Winter FOT",A202="Done")),"Done",VLOOKUP(C203,'Resource Map'!$B$3:$C$509,2,FALSE)) -> Done
A204: =IF(AND(B204<>"West",OR(A203="Winter FOT",A203="Done")),"Done",VLOOKUP(C204,'Resource Map'!$B$3:$C$509,2,FALSE)) -> Done
A205: =IF(AND(B205<>"West",OR(A204="Winter FOT",A204="Done")),"Done",VLOOKUP(C205,'Resource Map'!$B$3:$C$509,2,FALSE)) -> Done
A206: =IF(AND(B206<>"West",OR(A205="Winter FOT",A205="Done")),"Done",VLOOKUP(C206,'Resource Map'!$B$3:$C$509,2,FALSE)) -> Done
A207: =IF(AND(B207<>"West",OR(A206="Winter FOT",A206="Done")),"Done",VLOOKUP(C207,'Resource Map'!$B$3:$C$509,2,FALSE)) -> Done
A208: =IF(AND(B208<>"West",OR(A207="Winter FOT",A207="Done")),"Done",VLOOKUP(C208,'Resource Map'!$B$3:$C$509,2,FALSE)) -> Done
A209: =IF(AND(B209<>"West",OR(A208="Winter FOT",A208="Done")),"Done",VLOOKUP(C209,'Resource Map'!$B$3:$C$509,2,FALSE)) -> Done
A210: =IF(AND(B210<>"West",OR(A209="Winter FOT",A209="Done")),"Done",VLOOKUP(C210,'Resource Map'!$B$3:$C$509,2,FALSE)) -> Done
A211: =IF(AND(B211<>"West",OR(A210="Winter FOT",A210="Done")),"Done",VLOOKUP(C211,'Resource Map'!$B$3:$C$509,2,FALSE)) -> Done
A212: =IF(AND(B212<>"West",OR(A211="Winter FOT",A211="Done")),"Done",VLOOKUP(C212,'Resource Map'!$B$3:$C$509,2,FALSE)) -> Done
A213: =IF(AND(B213<>"West",OR(A212="Winter FOT",A212="Done")),"Done",VLOOKUP(C213,'Resource Map'!$B$3:$C$509,2,FALSE)) -> Done
A214: =IF(AND(B214<>"West",OR(A213="Winter FOT",A213="Done")),"Done",VLOOKUP(C214,'Resource Map'!$B$3:$C$509,2,FALSE)) -> Done
A215: =IF(AND(B215<>"West",OR(A214="Winter FOT",A214="Done")),"Done",VLOOKUP(C215,'Resource Map'!$B$3:$C$509,2,FALSE)) -> Done
... 87 more rows

Sheet Delta Compare Rel - Pre
C3: Coal
C4: Cumulative | D4: 2019 | E4: 2020 | F4: 2021 | G4: 2022 | H4: 2023 | I4: 2024 | J4: 2025 | K4: 2026 | L4: 2027 | M4: 2028 | N4: 2029 | O4: 2030 | P4: 2031 | Q4: 2032 | R4: 2033 | S4: 2034 | T4: 2035 | U4: 2036 | V4: 2037 | W4: 2038
C5: Coal Removed | D5: ='Data Compare Rel'!D8-'Data Compare Pre'!D8 -> 0 | E5: ='Data Compare Rel'!E8-'Data Compare Pre'!E8 -> 0 | F5: ='Data Compare Rel'!F8-'Data Compare Pre'!F8 -> 0 | G5: ='Data Compare Rel'!G8-'Data Compare Pre'!G8 -> 0 | H5: ='Data Compare Rel'!H8-'Data Compare Pre'!H8 -> 0 | I5: ='Data Compare Rel'!I8-'Data Compare Pre'!I8 -> 0 | J5: ='Data Compare Rel'!J8-'Data Compare Pre'!J8 -> 0 | K5: ='Data Compare Rel'!K8-'Data Compare Pre'!K8 -> 0 | L5: ='Data Compare Rel'!L8-'Data Compare Pre'!L8 -> 0 | M5: ='Data Compare Rel'!M8-'Data Compare Pre'!M8 -> 0 | N5: ='Data Compare Rel'!N8-'Data Compare Pre'!N8 -> 0 | O5: ='Data Compare Rel'!O8-'Data Compare Pre'!O8 -> 0 | P5: ='Data Compare Rel'!P8-'Data Compare Pre'!P8 -> 0 | Q5: ='Data Compare Rel'!Q8-'Data Compare Pre'!Q8 -> 0 | R5: ='Data Compare Rel'!R8-'Data Compare Pre'!R8 -> 0 | S5: ='Data Compare Rel'!S8-'Data Compare Pre'!S8 -> 0 | T5: ='Data Compare Rel'!T8-'Data Compare Pre'!T8 -> 0 | U5: ='Data Compare Rel'!U8-'Data Compare Pre'!U8 -> 0 | V5: ='Data Compare Rel'!V8-'Data Compare Pre'!V8 -> 0 | W5: ='Data Compare Rel'!W8-'Data Compare Pre'!W8 -> 0
C7: Renewable and Storage
C8: Cumulative | D8: 2019 | E8: 2020 | F8: 2021 | G8: 2022 | H8: 2023 | I8: 2024 | J8: 2025 | K8: 2026 | L8: 2027 | M8: 2028 | N8: 2029 | O8: 2030 | P8: 2031 | Q8: 2032 | R8: 2033 | S8: 2034 | T8: 2035 | U8: 2036 | V8: 2037 | W8: 2038 | Y8: Wind | Z8: Solar | AA8: Battery
C9: Wind | D9: ='Data Compare Rel'!D24-'Data Compare Pre'!D24 -> 0 | E9: ='Data Compare Rel'!E24-'Data Compare Pre'!E24 -> 0 | F9: ='Data Compare Rel'!F24-'Data Compare Pre'!F24 -> 0 | G9: ='Data Compare Rel'!G24-'Data Compare Pre'!G24 -> 0 | H9: ='Data Compare Rel'!H24-'Data Compare Pre'!H24 -> 0 | I9: ='Data Compare Rel'!I24-'Data Compare Pre'!I24 -> 0 | J9: ='Data Compare Rel'!J24-'Data Compare Pre'!J24 -> 0 | K9: ='Data Compare Rel'!K24-'Data Compare Pre'!K24 -> 0 | L9: ='Data Compare Rel'!L24-'Data Compare Pre'!L24 -> 0 | M9: ='Data Compare Rel'!M24-'Data Compare Pre'!M24 -> 0 | N9: ='Data Compare Rel'!N24-'Data Compare Pre'!N24 -> 0 | O9: ='Data Compare Rel'!O24-'Data Compare Pre'!O24 -> 0.048 | P9: ='Data Compare Rel'!P24-'Data Compare Pre'!P24 -> 0.048 | Q9: ='Data Compare Rel'!Q24-'Data Compare Pre'!Q24 -> 0.048 | R9: ='Data Compare Rel'!R24-'Data Compare Pre'!R24 -> 0.048 | S9: ='Data Compare Rel'!S24-'Data Compare Pre'!S24 -> 0.048 | T9: ='Data Compare Rel'!T24-'Data Compare Pre'!T24 -> 0.048 | U9: ='Data Compare Rel'!U24-'Data Compare Pre'!U24 -> 0.048 | V9: ='Data Compare Rel'!V24-'Data Compare Pre'!V24 -> 0.048 | W9: ='Data Compare Rel'!W24-'Data Compare Pre'!W24 -> 0.048 | Y9: ='Data Compare Rel'!Y24-'Data Compare Pre'!Y24 -> 0 | Z9: ='Data Compare Rel'!Z24-'Data Compare Pre'!Z24 -> 0.201 | AA9: =0.25*W11+0.25*W12+W13 -> 1065.03825
C10: Solar | D10: ='Data Compare Rel'!D25-'Data Compare Pre'!D25 -> 0 | E10: ='Data Compare Rel'!E25-'Data Compare Pre'!E25 -> 0 | F10: ='Data Compare Rel'!F25-'Data Compare Pre'!F25 -> 0 | G10: ='Data Compare Rel'!G25-'Data Compare Pre'!G25 -> 0 | H10: ='Data Compare Rel'!H25-'Data Compare Pre'!H25 -> 0 | I10: ='Data Compare Rel'!I25-'Data Compare Pre'!I25 -> 0 | J10: ='Data Compare Rel'!J25-'Data Compare Pre'!J25 -> 0 | K10: ='Data Compare Rel'!K25-'Data Compare Pre'!K25 -> 0 | L10: ='Data Compare Rel'!L25-'Data Compare Pre'!L25 -> 0 | M10: ='Data Compare Rel'!M25-'Data Compare Pre'!M25 -> 0 | N10: ='Data Compare Rel'!N25-'Data Compare Pre'!N25 -> 0 | O10: ='Data Compare Rel'!O25-'Data Compare Pre'!O25 -> 0 | P10: ='Data Compare Rel'!P25-'Data Compare Pre'!P25 -> 0 | Q10: ='Data Compare Rel'!Q25-'Data Compare Pre'!Q25 -> 0 | R10: ='Data Compare Rel'!R25-'Data Compare Pre'!R25 -> 0 | S10: ='Data Compare Rel'!S25-'Data Compare Pre'!S25 -> 0 | T10: ='Data Compare Rel'!T25-'Data Compare Pre'!T25 -> 0 | U10: ='Data Compare Rel'!U25-'Data Compare Pre'!U25 -> 0 | V10: ='Data Compare Rel'!V25-'Data Compare Pre'!V25 -> 0 | W10: ='Data Compare Rel'!W25-'Data Compare Pre'!W25 -> 0
C11: Wind+Bat | D11: ='Data Compare Rel'!D26-'Data Compare Pre'!D26 -> 0 | E11: ='Data Compare Rel'!E26-'Data Compare Pre'!E26 -> 0 | F11: ='Data Compare Rel'!F26-'Data Compare Pre'!F26 -> 0 | G11: ='Data Compare Rel'!G26-'Data Compare Pre'!G26 -> 0 | H11: ='Data Compare Rel'!H26-'Data Compare Pre'!H26 -> 0 | I11: ='Data Compare Rel'!I26-'Data Compare Pre'!I26 -> 0 | J11: ='Data Compare Rel'!J26-'Data Compare Pre'!J26 -> 0 | K11: ='Data Compare Rel'!K26-'Data Compare Pre'!K26 -> 0 | L11: ='Data Compare Rel'!L26-'Data Compare Pre'!L26 -> 0 | M11: ='Data Compare Rel'!M26-'Data Compare Pre'!M26 -> 0 | N11: ='Data Compare Rel'!N26-'Data Compare Pre'!N26 -> 0 | O11: ='Data Compare Rel'!O26-'Data Compare Pre'!O26 -> -0.053 | P11: ='Data Compare Rel'!P26-'Data Compare Pre'!P26 -> -0.053 | Q11: ='Data Compare Rel'!Q26-'Data Compare Pre'!Q26 -> -0.048 | R11: ='Data Compare Rel'!R26-'Data Compare Pre'!R26 -> -0.048 | S11: ='Data Compare Rel'!S26-'Data Compare Pre'!S26 -> -0.048 | T11: ='Data Compare Rel'!T26-'Data Compare Pre'!T26 -> -0.048 | U11: ='Data Compare Rel'!U26-'Data Compare Pre'!U26 -> -0.048 | V11: ='Data Compare Rel'!V26-'Data Compare Pre'!V26 -> -0.048 | W11: ='Data Compare Rel'!W26-'Data Compare Pre'!W26 -> -0.048
